Workbook

Sheet Process data log-S2
A1: E:\PhD\Experiment\2018_11_08_Sucrose and NaCl solutions study (Tg' and collapse)
C4: Start apply vaccum | E4: 11.23 | F4: h | G4: Temperature ramp up at primary drying | L4: h
C5: Start liquid phase | F5: h
C6: End liquid phase | F6: h
B9: 1 | C9: 2 | D9: 3 | E9: 4 | F9: 5 | G9: 6 | H9: 7 | I9: 8 | J9: 9 | K9: 10 | L9: 11 | M9: 12 | N9: 13 | O9: 14 | P9: 15 | Q9: 16 | R9: 17 | S9: 18 | T9: 19 | U9: 20 | V9: 21 | W9: 22 | X9: 23 | Y9: 24 | Z9: 25 | AA9: 26 | AB9: 27 | AC9: 28 | AD9: 29
S10: TC3 | U10: 0% NaCl | W10: 0.13% NaCl | Y10: 0.55% NaCl | AA10: 0.41% NaCl | AC10: 0.26% NaCl
S11: USED | U11: S1 (TC1) | W11: S2 (TC2) | Y11: S5 (TC4) | AA11: S4 (TC3 used S4) | AC11: S3 (TC3 used S4)
C12: Paste the Process data log here (in C8) | U12: IMG for CH1 | W12: IMG for CH2 | Y12: IMG for CH3 | AA12: IMG for CH4 | AC12: IMG for CH5
A13: Time /min | B13: Time/hr. | C13: Product temperature 1 | D13: Product temperature 2 | E13: Product temperature 3 | F13: Product temperature 4 | G13: Tave | H13: Shelf temperature | I13: Condenser temperature | J13: Vacuum | K13: Vacuum | N13: Vaccum mbar | O13: Time/h (Primary drying) | P13: Time/h (Primary drying) | S13: Product temperature | U13: IMG | V13: Time | W13: IMG | X13: Time | Y13: IMG | Z13: Time | AA13: IMG | AB13: Time | AC13: IMG | AD13: Time
A14: 0 | B14: =ROUND(A14/60,3) -> 0 | C14: 23.3 | D14: 23.4 | E14: 23.3 | F14: 23.2 | G14: 23.2 | H14: 24.7 | I14: 24.1 | J14: 9999 | K14: ---- | L14: 38018 | M14: 1 | N14: =IF(J14=9999,#N/A,J14/1000) ->  | O14: =IF(B14>=$E$2,B14-$E$2,#N/A) -> 0 | P14: =IF(B14>=$E$2,B14,#N/A) -> 0 | S14: =E14 -> 23.3 | U14: 0017 | V14: 0 | W14: 0017 | X14: 0 | Y14: 5890 | Z14: 0 | AA14: 5890 | AB14: 0 | AC14: 5890 | AD14: 0
A15: 2 | B15: =ROUND(A15/60,3) -> 0.033 | C15: 23.4 | D15: 23.6 | E15: 23.5 | F15: 22.4 | G15: 23.2 | H15: 24.9 | I15: 25.9 | J15: 9999 | K15: ---- | L15: 38018 | M15: 10 | O15: 0.033 | P15: 0.033 | S15: =E15 -> 23.5 | U15: 0047 | V15: 1 | W15: 0047 | X15: 1 | Y15: 5920 | Z15: 1 | AA15: 5920 | AB15: 1 | AC15: 5920 | AD15: 1
A16: 4 | B16: 0.067 | C16: 22.3 | D16: 22.1 | E16: 21.6 | F16: 21.5 | G16: 21.8 | H16: 19.9 | I16: -21.8 | J16: 9999 | K16: ---- | L16: 38018 | M16: 10 | O16: 0.067 | P16: 0.067 | S16: 21.6 | U16: 0061 | V16: 1.5 | W16: 0061 | X16: 1.5 | Y16: 5935 | Z16: 1.5 | AA16: 5935 | AB16: 1.5 | AC16: 5935 | AD16: 1.5
A17: 6 | B17: 0.1 | C17: 22.1 | D17: 21.6 | E17: 21.1 | F17: 21.2 | G17: 21.5 | H17: 20 | I17: -32.3 | J17: 9999 | K17: ---- | L17: 38018 | M17: 1 | O17: 0.1 | P17: 0.1 | S17: 21.1 | U17: 0073 | V17: 1.9 | W17: 0065 | X17: 1.63 | Y17: 5939 | Z17: 1.63 | AA17: 5939 | AB17: 1.63 | AC17: 5939 | AD17: 1.63
A18: 8 | B18: 0.133 | C18: 21.7 | D18: 21.3 | E18: 20.8 | F18: 20.6 | G18: 21.1 | H18: 20.2 | I18: -43.2 | J18: 9999 | K18: ---- | L18: 38018 | M18: 12 | O18: 0.133 | P18: 0.133 | S18: 20.8 | U18: 0075 | V18: 1.97 | W18: 0067 | X18: 1.7 | Y18: 5940 | Z18: 1.67 | AA18: 5940 | AB18: 1.67 | AC18: 5940 | AD18: 1.67
A19: 10 | B19: 0.167 | C19: 21.4 | D19: 20.9 | E19: 20.3 | F19: 20.4 | G19: 20.7 | H19: 19.9 | I19: -51.4 | J19: 9999 | K19: ---- | L19: 38018 | M19: 12 | O19: 0.167 | P19: 0.167 | S19: 20.3 | U19: 0076 | V19: 2 | W19: 0068 | X19: 1.73 | Y19: 5942 | Z19: 1.73 | AA19: 5942 | AB19: 1.73 | AC19: 5942 | AD19: 1.73
A20: 12 | B20: 0.2 | C20: 21.1 | D20: 20.5 | E20: 20 | F20: 20 | G20: 20.3 | H20: 19.9 | I20: -55.4 | J20: 9999 | K20: ---- | L20: 38018 | M20: 7 | O20: 0.2 | P20: 0.2 | S20: 20 | U20: 0081 | V20: 2.17 | W20: 0073 | X20: 1.9 | Y20: 5943 | Z20: 1.77 | AA20: 5943 | AB20: 1.77 | AC20: 5943 | AD20: 1.77
A21: 14 | B21: 0.233 | C21: 20.9 | D21: 20.4 | E21: 19.8 | F21: 19.8 | G21: 20.2 | H21: 20 | I21: -59.7 | J21: 9999 | K21: ---- | L21: 38018 | M21: 1 | O21: 0.233 | P21: 0.233 | S21: 19.8 | U21: 0083 | V21: 2.23 | W21: 0075 | X21: 1.97 | Y21: 5944 | Z21: 1.8 | AA21: 5944 | AB21: 1.8 | AC21: 5944 | AD21: 1.8
A22: 16 | B22: 0.267 | C22: 20.7 | D22: 20.2 | E22: 19.8 | F22: 19.7 | G22: 20.1 | H22: 20.2 | I22: -62.2 | J22: 9999 | K22: ---- | L22: 38018 | M22: 12 | O22: 0.267 | P22: 0.267 | S22: 19.8 | U22: 0084 | V22: 2.27 | W22: 0076 | X22: 2 | Y22: 5949 | Z22: 1.97 | AA22: 5945 | AB22: 1.83 | AC22: 5945 | AD22: 1.83
A23: 18 | B23: 0.3 | C23: 20.6 | D23: 20.1 | E23: 19.7 | F23: 19.7 | G23: 20 | H23: 20 | I23: -63.3 | J23: 9999 | K23: ---- | L23: 38018 | M23: 10 | O23: 0.3 | P23: 0.3 | S23: 19.7 | U23: 0087 | V23: 2.37 | W23: 0078 | X23: 2.07 | Y23: 5950 | Z23: 2 | AA23: 5947 | AB23: 1.9 | AC23: 5947 | AD23: 1.9
A24: 20 | B24: 0.333 | C24: 20.3 | D24: 19.9 | E24: 19.5 | F24: 19.6 | G24: 19.8 | H24: 20.3 | I24: -61.7 | J24: 9999 | K24: ---- | L24: 38018 | M24: 7 | O24: 0.333 | P24: 0.333 | S24: 19.5 | U24: 0100 | V24: 2.8 | W24: 0080 | X24: 2.13 | Y24: 5951 | Z24: 2.03 | AA24: 5949 | AB24: 1.97 | AC24: 5949 | AD24: 1.97
A25: 22 | B25: 0.367 | C25: 20.2 | D25: 19.8 | E25: 19.5 | F25: 19.6 | G25: 19.7 | H25: 20.1 | I25: -65 | J25: 9999 | K25: ---- | L25: 38018 | M25: 1 | O25: 0.367 | P25: 0.367 | S25: 19.5 | U25: 0121 | V25: 3.5 | W25: 0081 | X25: 2.17 | Y25: 5954 | Z25: 2.13 | AA25: 5950 | AB25: 2 | AC25: 5950 | AD25: 2
A26: 24 | B26: 0.4 | C26: 20 | D26: 19.8 | E26: 19.5 | F26: 19.3 | G26: 19.6 | H26: 19.8 | I26: -63.2 | J26: 9999 | K26: ---- | L26: 38018 | M26: 12 | O26: 0.4 | P26: 0.4 | S26: 19.5 | U26: 0135 | V26: 4 | W26: 0083 | X26: 2.23 | Y26: 5955 | Z26: 2.17 | AA26: 5951 | AB26: 2.03 | AC26: 5951 | AD26: 2.03
A27: 26 | B27: 0.433 | C27: 20 | D27: 19.8 | E27: 19.3 | F27: 19.3 | G27: 19.6 | H27: 20 | I27: -63.7 | J27: 9999 | K27: ---- | L27: 38018 | M27: 10 | O27: 0.433 | P27: 0.433 | S27: 19.3 | U27: 0150 | V27: 4.5 | W27: 0084 | X27: 2.27 | Y27: 5959 | Z27: 2.3 | AA27: 5954 | AB27: 2.13 | AC27: 5954 | AD27: 2.13
A28: 28 | B28: 0.467 | C28: 19.9 | D28: 19.6 | E28: 19.3 | F28: 19.3 | G28: 19.5 | H28: 20 | I28: -61.7 | J28: 9999 | K28: ---- | L28: 38018 | M28: 7 | O28: 0.467 | P28: 0.467 | S28: 19.3 | W28: 0086 | X28: 2.33 | Y28: 5962 | Z28: 2.4 | AA28: 5955 | AB28: 2.17 | AC28: 5955 | AD28: 2.17
A29: 30 | B29: 0.5 | C29: 19.9 | D29: 19.7 | E29: 19.3 | F29: 19.3 | G29: 19.5 | H29: 20.1 | I29: -65.1 | J29: 9999 | K29: ---- | L29: 38018 | M29: 1 | O29: 0.5 | P29: 0.5 | S29: 19.3 | W29: 0087 | X29: 2.37 | Y29: 5966 | Z29: 2.53 | AA29: 5956 | AB29: 2.2 | AC29: 5956 | AD29: 2.2
A30: 32 | B30: 0.533 | C30: 19.8 | D30: 19.5 | E30: 19.2 | F30: 19.3 | G30: 19.4 | H30: 20 | I30: -58.8 | J30: 9999 | K30: ---- | L30: 38018 | M30: 12 | O30: 0.533 | P30: 0.533 | S30: 19.2 | W30: 0100 | X30: 2.8 | Y30: 5974 | Z30: 2.8 | AA30: 5959 | AB30: 2.3 | AC30: 5959 | AD30: 2.3
A31: 34 | B31: 0.567 | C31: 19.7 | D31: 19.3 | E31: 18.9 | F31: 19 | G31: 19.2 | H31: 18.4 | I31: -63.5 | J31: 9999 | K31: ---- | L31: 38018 | M31: 10 | O31: 0.567 | P31: 0.567 | S31: 18.9 | W31: 0121 | X31: 3.5 | Y31: 5980 | Z31: 3 | AA31: 5961 | AB31: 2.37 | AC31: 5961 | AD31: 2.37
A32: 36 | B32: 0.6 | C32: 19.3 | D32: 18.8 | E32: 18.4 | F32: 18.6 | G32: 18.7 | H32: 17.4 | I32: -61.4 | J32: 9999 | K32: ---- | L32: 38018 | M32: 7 | O32: 0.6 | P32: 0.6 | S32: 18.4 | W32: 0135 | X32: 4 | Y32: 5995 | Z32: 3.5 | AA32: 5962 | AB32: 2.4 | AC32: 5962 | AD32: 2.4
A33: 38 | B33: 0.633 | C33: 19 | D33: 18.5 | E33: 18 | F33: 18 | G33: 18.3 | H33: 16.5 | I33: -62 | J33: 9999 | K33: ---- | L33: 38018 | M33: 1 | O33: 0.633 | P33: 0.633 | S33: 18 | W33: 0150 | X33: 4.5 | Y33: 6010 | Z33: 4 | AA33: 5963 | AB33: 2.43 | AC33: 5963 | AD33: 2.43
A34: 40 | B34: 0.667 | C34: 18.7 | D34: 18 | E34: 17.4 | F34: 17.4 | G34: 17.8 | H34: 16.3 | I34: -55.2 | J34: 9999 | K34: ---- | L34: 38018 | M34: 12 | O34: 0.667 | P34: 0.667 | S34: 17.4 | Y34: 6025 | Z34: 4.5 | AA34: 5966 | AB34: 2.53 | AC34: 5966 | AD34: 2.53
A35: 42 | B35: 0.7 | C35: 18.2 | D35: 17.4 | E35: 16.6 | F35: 16.7 | G35: 17.2 | H35: 14.4 | I35: -60.5 | J35: 9999 | K35: ---- | L35: 38018 | M35: 10 | O35: 0.7 | P35: 0.7 | S35: 16.6 | AA35: 5967 | AB35: 2.57 | AC35: 5967 | AD35: 2.57
A36: 44 | B36: 0.733 | C36: 17.8 | D36: 16.8 | E36: 16.1 | F36: 16.1 | G36: 16.6 | H36: 13.9 | I36: -57.4 | J36: 9999 | K36: ---- | L36: 38018 | M36: 7 | O36: 0.733 | P36: 0.733 | S36: 16.1 | AA36: 5974 | AB36: 2.8 | AC36: 5970 | AD36: 2.67
A37: 46 | B37: 0.767 | C37: 17.2 | D37: 16 | E37: 15.2 | F37: 15.3 | G37: 15.9 | H37: 12.6 | I37: -59.6 | J37: 9999 | K37: ---- | L37: 38018 | M37: 1 | O37: 0.767 | P37: 0.767 | S37: 15.2 | AA37: 5980 | AB37: 3 | AC37: 5974 | AD37: 2.8
A38: 48 | B38: 0.8 | C38: 16.6 | D38: 15.4 | E38: 14.5 | F38: 14.6 | G38: 15.2 | H38: 12 | I38: -56.5 | J38: 9999 | K38: ---- | L38: 38018 | M38: 10 | O38: 0.8 | P38: 0.8 | S38: 14.5 | AA38: 5995 | AB38: 3.5 | AC38: 5980 | AD38: 3
A39: 50 | B39: 0.833 | C39: 15.9 | D39: 14.6 | E39: 13.6 | F39: 13.7 | G39: 14.4 | H39: 10.2 | I39: -57.8 | J39: 9999 | K39: ---- | L39: 38018 | M39: 7 | O39: 0.833 | P39: 0.833 | S39: 13.6 | AA39: 6010 | AB39: 4 | AC39: 5995 | AD39: 3.5
A40: 52 | B40: 0.867 | C40: 15.3 | D40: 13.8 | E40: 12.8 | F40: 13 | G40: 13.7 | H40: 9.5 | I40: -58.6 | J40: 9999 | K40: ---- | L40: 38018 | M40: 1 | O40: 0.867 | P40: 0.867 | S40: 12.8 | AA40: 6025 | AB40: 4.5 | AC40: 6010 | AD40: 4
A41: 54 | B41: 0.9 | C41: 14.7 | D41: 13 | E41: 12 | F41: 12.1 | G41: 12.9 | H41: 8.4 | I41: -58.3 | J41: 9999 | K41: ---- | L41: 38018 | M41: 12 | O41: 0.9 | P41: 0.9 | S41: 12 | AC41: 6025 | AD41: 4.5
A42: 56 | B42: 0.933 | C42: 13.9 | D42: 12.2 | E42: 11.2 | F42: 11.2 | G42: 12.1 | H42: 7.4 | I42: -57.8 | J42: 9999 | K42: ---- | L42: 38018 | M42: 10 | O42: 0.933 | P42: 0.933 | S42: 11.2
A43: 58 | B43: 0.967 | C43: 13.2 | D43: 11.5 | E43: 10.4 | F43: 10.4 | G43: 11.3 | H43: 6.5 | I43: -58.2 | J43: 9999 | K43: ---- | L43: 38018 | M43: 7 | O43: 0.967 | P43: 0.967 | S43: 10.4
A44: 60 | B44: 1 | C44: 12.5 | D44: 10.7 | E44: 9.4 | F44: 9.5 | G44: 10.5 | H44: 5.3 | I44: -57.8 | J44: 9999 | K44: ---- | L44: 38018 | M44: 1 | O44: 1 | P44: 1 | S44: 9.4
A45: 62 | B45: 1.033 | C45: 11.8 | D45: 9.9 | E45: 8.6 | F45: 8.7 | G45: 9.7 | H45: 4.6 | I45: -55.5 | J45: 9999 | K45: ---- | L45: 38018 | M45: 12 | O45: 1.033 | P45: 1.033 | S45: 8.6
A46: 64 | B46: 1.067 | C46: 10.9 | D46: 9 | E46: 7.7 | F46: 7.8 | G46: 8.8 | H46: 3.5 | I46: -58.2 | J46: 9999 | K46: ---- | L46: 38018 | M46: 10 | O46: 1.067 | P46: 1.067 | S46: 7.7
A47: 66 | B47: 1.1 | C47: 10.3 | D47: 8.2 | E47: 6.9 | F47: 6.9 | G47: 8 | H47: 2.6 | I47: -55 | J47: 9999 | K47: ---- | L47: 38018 | M47: 7 | O47: 1.1 | P47: 1.1 | S47: 6.9
A48: 68 | B48: 1.133 | C48: 9.4 | D48: 7.3 | E48: 6 | F48: 6.1 | G48: 7.1 | H48: 1.5 | I48: -57.6 | J48: 9999 | K48: ---- | L48: 38018 | M48: 1 | O48: 1.133 | P48: 1.133 | S48: 6
A49: 70 | B49: 1.167 | C49: 8.6 | D49: 6.5 | E49: 5.1 | F49: 5.1 | G49: 6.3 | H49: 0.5 | I49: -51.9 | J49: 9999 | K49: ---- | L49: 38018 | M49: 12 | O49: 1.167 | P49: 1.167 | S49: 5.1
A50: 72 | B50: 1.2 | C50: 7.9 | D50: 5.6 | E50: 4.2 | F50: 4.3 | G50: 5.5 | H50: -0.5 | I50: -56.6 | J50: 9999 | K50: ---- | L50: 38018 | M50: 7 | O50: 1.2 | P50: 1.2 | S50: 4.2
A51: 74 | B51: 1.233 | C51: 7 | D51: 4.8 | E51: 3.4 | F51: 3.4 | G51: 4.6 | H51: -1.5 | I51: -51.7 | J51: 9999 | K51: ---- | L51: 38018 | M51: 1 | O51: 1.233 | P51: 1.233 | S51: 3.4
A52: 76 | B52: 1.267 | C52: 6.2 | D52: 3.9 | E52: 2.5 | F52: 2.6 | G52: 3.7 | H52: -2.7 | I52: -56 | J52: 9999 | K52: ---- | L52: 38018 | M52: 12 | O52: 1.267 | P52: 1.267 | S52: 2.5
A53: 78 | B53: 1.3 | C53: 5.4 | D53: 3.1 | E53: 1.8 | F53: 1.8 | G53: 3 | H53: -3.3 | I53: -52 | J53: 9999 | K53: ---- | L53: 38018 | M53: 10 | O53: 1.3 | P53: 1.3 | S53: 1.8
A54: 80 | B54: 1.333 | C54: 4.7 | D54: 2.4 | E54: 0.9 | F54: 1 | G54: 2.2 | H54: -4.4 | I54: -56.4 | J54: 9999 | K54: ---- | L54: 38018 | M54: 7 | O54: 1.333 | P54: 1.333 | S54: 0.9
A55: 82 | B55: 1.367 | C55: 3.9 | D55: 1.6 | E55: 0.2 | F55: 0.2 | G55: 1.4 | H55: -5.2 | I55: -50.3 | J55: 9999 | K55: ---- | L55: 38018 | M55: 1 | O55: 1.367 | P55: 1.367 | S55: 0.2
A56: 84 | B56: 1.4 | C56: 3.2 | D56: 0.9 | E56: -0.5 | F56: -0.5 | G56: 0.7 | H56: -6.4 | I56: -55.5 | J56: 9999 | K56: ---- | L56: 38018 | M56: 12 | O56: 1.4 | P56: 1.4 | S56: -0.5
A57: 86 | B57: 1.433 | C57: 2.4 | D57: 0.2 | E57: -1.3 | F57: -1.3 | G57: 0 | H57: -7.2 | I57: -50.6 | J57: 9999 | K57: ---- | L57: 38018 | M57: 10 | O57: 1.433 | P57: 1.433 | S57: -1.3
A58: 88 | B58: 1.467 | C58: 1.8 | D58: -0.5 | E58: -2.4 | F58: -2.4 | G58: -0.9 | H58: -8.3 | I58: -53.5 | J58: 9999 | K58: ---- | L58: 38018 | M58: 7 | O58: 1.467 | P58: 1.467 | S58: -2.4
A59: 90 | B59: 1.5 | C59: 1.1 | D59: -1.7 | E59: -3.5 | F59: -3.6 | G59: -2 | H59: -9.2 | I59: -48.4 | J59: 9999 | K59: ---- | L59: 38018 | M59: 1 | O59: 1.5 | P59: 1.5 | S59: -3.5
A60: 92 | B60: 1.533 | C60: 0.3 | D60: -2.7 | E60: -4.6 | F60: -4.7 | G60: -3 | H60: -10.2 | I60: -54.9 | J60: 9999 | K60: ---- | L60: 38018 | M60: 12 | O60: 1.533 | P60: 1.533 | S60: -4.6
A61: 94 | B61: 1.567 | C61: -0.7 | D61: -3.7 | E61: -5.7 | F61: -5.8 | G61: -4 | H61: -11.3 | I61: -46.5 | J61: 9999 | K61: ---- | L61: 38018 | M61: 10 | O61: 1.567 | P61: 1.567 | S61: -5.7
A62: 96 | B62: 1.6 | C62: -1.8 | D62: -4.7 | E62: -6.8 | F62: -6.7 | G62: -5 | H62: -12.1 | I62: -54.4 | J62: 9999 | K62: ---- | L62: 38018 | M62: 7 | O62: 1.6 | P62: 1.6 | S62: -6.8
A63: 98 | B63: 1.633 | C63: -2.7 | D63: -5.6 | E63: -7.7 | F63: -7.7 | G63: -6 | H63: -13 | I63: -46.6 | J63: 9999 | K63: ---- | L63: 38018 | M63: 1 | O63: 1.633 | P63: 1.633 | S63: -7.7
A64: 100 | B64: 1.667 | C64: -3.7 | D64: -6.6 | E64: -1.5 | F64: -8.7 | G64: -5.2 | H64: -14.3 | I64: -53.6 | J64: 9999 | K64: ---- | L64: 38018 | M64: 12 | O64: 1.667 | P64: 1.667 | S64: -1.5
A65: 102 | B65: 1.7 | C65: -4.6 | D65: -7.5 | E65: -1.3 | F65: -9.7 | G65: -5.8 | H65: -15.1 | I65: -44.7 | J65: 9999 | K65: ---- | L65: 38018 | M65: 10 | O65: 1.7 | P65: 1.7 | S65: -1.3
A66: 104 | B66: 1.733 | C66: -5.6 | D66: -8.5 | E66: -1.4 | F66: -10.6 | G66: -6.6 | H66: -16.1 | I66: -50.6 | J66: 9999 | K66: ---- | L66: 38018 | M66: 7 | O66: 1.733 | P66: 1.733 | S66: -1.4
A67: 106 | B67: 1.767 | C67: -6.4 | D67: -1.3 | E67: -1.4 | F67: -1.6 | G67: -2.7 | H67: -17 | I67: -44.2 | J67: 9999 | K67: ---- | L67: 38018 | M67: 1 | O67: 1.767 | P67: 1.767 | S67: -1.4
A68: 108 | B68: 1.8 | C68: -7.3 | D68: -1.2 | E68: -1.4 | F68: -1.6 | G68: -2.9 | H68: -18 | I68: -51.6 | J68: 9999 | K68: ---- | L68: 38018 | M68: 10 | O68: 1.8 | P68: 1.8 | S68: -1.4
A69: 110 | B69: 1.833 | C69: -8 | D69: -1.1 | E69: -1.9 | F69: -1.6 | G69: -3.2 | H69: -19.1 | I69: -39.6 | J69: 9999 | K69: ---- | L69: 38018 | M69: 7 | O69: 1.833 | P69: 1.833 | S69: -1.9
A70: 112 | B70: 1.867 | C70: -8.7 | D70: -1.1 | E70: -2.5 | F70: -1.6 | G70: -3.5 | H70: -19.9 | I70: -47.4 | J70: 9999 | K70: ---- | L70: 38018 | M70: 1 | O70: 1.867 | P70: 1.867 | S70: -2.5
A71: 114 | B71: 1.9 | C71: -9.5 | D71: -1.1 | E71: -3.4 | F71: -2.1 | G71: -4.1 | H71: -20.8 | I71: -34.3 | J71: 9999 | K71: ---- | L71: 38018 | M71: 12 | O71: 1.9 | P71: 1.9 | S71: -3.4
A72: 116 | B72: 1.933 | C72: -1.2 | D72: -1.3 | E72: -4.3 | F72: -2.8 | G72: -2.5 | H72: -21.5 | I72: -32.2 | J72: 9999 | K72: ---- | L72: 38018 | M72: 10 | O72: 1.933 | P72: 1.933 | S72: -4.3
A73: 118 | B73: 1.967 | C73: -1.2 | D73: -1.5 | E73: -5 | F73: -3.6 | G73: -2.9 | H73: -22.3 | I73: -22.5 | J73: 9999 | K73: ---- | L73: 38018 | M73: 7 | O73: 1.967 | P73: 1.967 | S73: -5
A74: 120 | B74: 2 | C74: -1.2 | D74: -2 | E74: -6.7 | F74: -4.9 | G74: -3.7 | H74: -23 | I74: -15.9 | J74: 9999 | K74: ---- | L74: 38018 | M74: 7 | O74: 2 | P74: 2 | S74: -6.7
A75: 122 | B75: 2.033 | C75: -1.3 | D75: -2.6 | E75: -10.2 | F75: -6.1 | G75: -5.1 | H75: -24.3 | I75: -27.5 | J75: 9999 | K75: ---- | L75: 38018 | M75: 12 | O75: 2.033 | P75: 2.033 | S75: -10.2
A76: 124 | B76: 2.067 | C76: -1.3 | D76: -3.2 | E76: -13.7 | F76: -8.8 | G76: -6.8 | H76: -25.3 | I76: -31.9 | J76: 9999 | K76: ---- | L76: 38018 | M76: 10 | O76: 2.067 | P76: 2.067 | S76: -13.7
A77: 126 | B77: 2.1 | C77: -1.3 | D77: -3.8 | E77: -16.4 | F77: -13.5 | G77: -8.8 | H77: -26.6 | I77: -30.2 | J77: 9999 | K77: ---- | L77: 38018 | M77: 7 | O77: 2.1 | P77: 2.1 | S77: -16.4
A78: 128 | B78: 2.133 | C78: -1.3 | D78: -4.4 | E78: -18.5 | F78: -17 | G78: -10.4 | H78: -27.4 | I78: -24.2 | J78: 9999 | K78: ---- | L78: 38018 | M78: 1 | N78: =IF(J78=9999,#N/A,J78/1000) ->  | O78: =IF(B78>=$E$2,B78-$E$2,#N/A) -> 2.133 | P78: =IF(B78>=$E$2,B78,#N/A) -> 2.133 | S78: -18.5
A79: 130 | B79: =ROUND(A79/60,3) -> 2.167 | C79: -1.4 | D79: -5.3 | E79: -20.4 | F79: -19.5 | G79: -11.7 | H79: -28.6 | I79: -16.6 | J79: 9999 | K79: ---- | L79: 38018 | M79: 12 | O79: 2.167 | P79: 2.167 | S79: =E79 -> -20.4
A80: 132 | B80: 2.2 | C80: -1.4 | D80: -7.6 | E80: -21.8 | F80: -21.5 | G80: -13.1 | H80: -29.5 | I80: -12.4 | J80: 9999 | K80: ---- | L80: 38018 | M80: 10 | O80: 2.2 | P80: 2.2 | S80: -21.8
A81: 134 | B81: 2.233 | C81: -1.4 | D81: -11.3 | E81: -23.3 | F81: -23.2 | G81: -14.9 | H81: -30.4 | I81: -9.4 | J81: 9999 | K81: ---- | L81: 38018 | M81: 7 | O81: 2.233 | P81: 2.233 | S81: -23.3
A82: 136 | B82: 2.267 | C82: -1.6 | D82: -15 | E82: -24.6 | F82: -24.6 | G82: -16.5 | H82: -31.2 | I82: -7.4 | J82: 9999 | K82: ---- | L82: 38018 | M82: 7 | O82: 2.267 | P82: 2.267 | S82: -24.6
A83: 138 | B83: 2.3 | C83: -1.7 | D83: -17.9 | E83: -26 | F83: -25.8 | G83: -17.9 | H83: -32.1 | I83: -5.9 | J83: 9999 | K83: ---- | L83: 38018 | M83: 1 | O83: 2.3 | P83: 2.3 | S83: -26
A84: 140 | B84: 2.333 | C84: -2.1 | D84: -20.3 | E84: -27.4 | F84: -27 | G84: -19.3 | H84: -33 | I84: -4.7 | J84: 9999 | K84: ---- | L84: 38018 | M84: 12 | O84: 2.333 | P84: 2.333 | S84: -27.4
A85: 142 | B85: 2.367 | C85: -2.7 | D85: -22.2 | E85: -28.8 | F85: -28.2 | G85: -20.5 | H85: -33.9 | I85: -3.9 | J85: 9999 | K85: ---- | L85: 38018 | M85: 10 | O85: 2.367 | P85: 2.367 | S85: -28.8
A86: 144 | B86: 2.4 | C86: -4.5 | D86: -23.8 | E86: -30 | F86: -29.3 | G86: -21.9 | H86: -34.9 | I86: -3.1 | J86: 9999 | K86: ---- | L86: 38018 | M86: 7 | O86: 2.4 | P86: 2.4 | S86: -30
A87: 146 | B87: 2.433 | C87: -7.4 | D87: -25.3 | E87: -31.1 | F87: -30.4 | G87: -23.6 | H87: -35.6 | I87: -2.6 | J87: 9999 | K87: ---- | L87: 38018 | M87: 1 | O87: 2.433 | P87: 2.433 | S87: -31.1
A88: 148 | B88: 2.467 | C88: -12.1 | D88: -26.7 | E88: -32.1 | F88: -31.4 | G88: -25.6 | H88: -36.6 | I88: -2.2 | J88: 9999 | K88: ---- | L88: 38018 | M88: 12 | O88: 2.467 | P88: 2.467 | S88: -32.1
A89: 150 | B89: 2.5 | C89: -16.8 | D89: -27.9 | E89: -33.1 | F89: -32.4 | G89: -27.6 | H89: -37.4 | I89: -1.9 | J89: 9999 | K89: ---- | L89: 38018 | M89: 10 | O89: 2.5 | P89: 2.5 | S89: -33.1
A90: 152 | B90: 2.533 | C90: -20.4 | D90: -29.3 | E90: -34.1 | F90: -33.4 | G90: -29.4 | H90: -38.3 | I90: -1.5 | J90: 9999 | K90: ---- | L90: 38018 | M90: 10 | O90: 2.533 | P90: 2.533 | S90: -34.1
A91: 154 | B91: 2.567 | C91: -23.1 | D91: -30.4 | E91: -35 | F91: -34.3 | G91: -30.8 | H91: -39 | I91: -1.3 | J91: 9999 | K91: ---- | L91: 38018 | M91: 7 | O91: 2.567 | P91: 2.567 | S91: -35
A92: 156 | B92: 2.6 | C92: -25.4 | D92: -31.6 | E92: -35.9 | F92: -35 | G92: -32 | H92: -39.8 | I92: -6.2 | J92: 9999 | K92: ---- | L92: 38018 | M92: 1 | O92: 2.6 | P92: 2.6 | S92: -35.9
A93: 158 | B93: 2.633 | C93: -27.1 | D93: -32.4 | E93: -36.5 | F93: -35.8 | G93: -33 | H93: -40.1 | I93: -2.8 | J93: 9999 | K93: ---- | L93: 38018 | M93: 12 | O93: 2.633 | P93: 2.633 | S93: -36.5
A94: 160 | B94: 2.667 | C94: -28.6 | D94: -33.3 | E94: -37.1 | F94: -36.6 | G94: -34 | H94: -40.7 | I94: -1.9 | J94: 9999 | K94: ---- | L94: 38018 | M94: 10 | O94: 2.667 | P94: 2.667 | S94: -37.1
A95: 162 | B95: 2.7 | C95: -29.9 | D95: -34.2 | E95: -37.9 | F95: -37.2 | G95: -34.8 | H95: -41.5 | I95: -1.4 | J95: 9999 | K95: ---- | L95: 38018 | M95: 7 | O95: 2.7 | P95: 2.7 | S95: -37.9
A96: 164 | B96: 2.733 | C96: -30.9 | D96: -35 | E96: -38.6 | F96: -37.9 | G96: -35.6 | H96: -42 | I96: -1.1 | J96: 9999 | K96: ---- | L96: 38018 | M96: 1 | O96: 2.733 | P96: 2.733 | S96: -38.6
A97: 166 | B97: 2.767 | C97: -31.9 | D97: -35.7 | E97: -39 | F97: -38.2 | G97: -36.3 | H97: -42.6 | I97: -5.2 | J97: 9999 | K97: ---- | L97: 38018 | M97: 12 | O97: 2.767 | P97: 2.767 | S97: -39
A98: 168 | B98: 2.8 | C98: -32.6 | D98: -36 | E98: -39.4 | F98: -38.7 | G98: -36.7 | H98: -42.8 | I98: -3 | J98: 9999 | K98: ---- | L98: 38018 | M98: 10 | O98: 2.8 | P98: 2.8 | S98: -39.4
A99: 170 | B99: 2.833 | C99: -33.3 | D99: -36.7 | E99: -39.8 | F99: -39.1 | G99: -37.3 | H99: -42.9 | I99: -2 | J99: 9999 | K99: ---- | L99: 38018 | M99: 7 | O99: 2.833 | P99: 2.833 | S99: -39.8
A100: 172 | B100: 2.867 | C100: -33.8 | D100: -37.1 | E100: -40.2 | F100: -39.6 | G100: -37.7 | H100: -43.2 | I100: -1.2 | J100: 9999 | K100: ---- | L100: 38018 | M100: 1 | O100: 2.867 | P100: 2.867 | S100: -40.2
A101: 174 | B101: 2.9 | C101: -34.4 | D101: -37.8 | E101: -40.6 | F101: -40 | G101: -38.3 | H101: -43.4 | I101: -1 | J101: 9999 | K101: ---- | L101: 38018 | M101: 1 | O101: 2.9 | P101: 2.9 | S101: -40.6
A102: 176 | B102: 2.933 | C102: -35 | D102: -38.2 | E102: -40.8 | F102: -40.3 | G102: -38.6 | H102: -43.6 | I102: -0.9 | J102: 9999 | K102: ---- | L102: 38018 | M102: 12 | O102: 2.933 | P102: 2.933 | S102: -40.8
A103: 178 | B103: 2.967 | C103: -35.5 | D103: -38.6 | E103: -41.2 | F103: -40.6 | G103: -39 | H103: -43.9 | I103: -0.6 | J103: 9999 | K103: ---- | L103: 38018 | M103: 10 | O103: 2.967 | P103: 2.967 | S103: -41.2
A104: 180 | B104: 3 | C104: -35.8 | D104: -38.9 | E104: -41.5 | F104: -41.1 | G104: -39.4 | H104: -43.9 | I104: -7.3 | J104: 9999 | K104: ---- | L104: 38018 | M104: 7 | O104: 3 | P104: 3 | S104: -41.5
A105: 182 | B105: 3.033 | C105: -36.5 | D105: -39.2 | E105: -41.7 | F105: -41.4 | G105: -39.7 | H105: -44 | I105: -12.1 | J105: 9999 | K105: ---- | L105: 38018 | M105: 1 | O105: 3.033 | P105: 3.033 | S105: -41.7
A106: 184 | B106: 3.067 | C106: -36.8 | D106: -39.6 | E106: -42 | F106: -41.5 | G106: -40 | H106: -44.3 | I106: -26.9 | J106: 9999 | K106: ---- | L106: 38018 | M106: 10 | O106: 3.067 | P106: 3.067 | S106: -42
A107: 186 | B107: 3.1 | C107: -37.2 | D107: -40 | E107: -42.3 | F107: -41.8 | G107: -40.4 | H107: -44.5 | I107: -37.1 | J107: 9999 | K107: ---- | L107: 38018 | M107: 10 | O107: 3.1 | P107: 3.1 | S107: -42.3
A108: 188 | B108: 3.133 | C108: -37.4 | D108: -40.2 | E108: -42.3 | F108: -42 | G108: -40.5 | H108: -44.4 | I108: -33.9 | J108: 9999 | K108: ---- | L108: 38018 | M108: 7 | O108: 3.133 | P108: 3.133 | S108: -42.3
A109: 190 | B109: 3.167 | C109: -37.6 | D109: -40.4 | E109: -42.6 | F109: -42.1 | G109: -40.7 | H109: -44.6 | I109: -41.5 | J109: 9999 | K109: ---- | L109: 38018 | M109: 1 | O109: 3.167 | P109: 3.167 | S109: -42.6
A110: 192 | B110: 3.2 | C110: -37.9 | D110: -40.6 | E110: -42.7 | F110: -42.3 | G110: -40.9 | H110: -44.6 | I110: -36.9 | J110: 9999 | K110: ---- | L110: 38018 | M110: 12 | O110: 3.2 | P110: 3.2 | S110: -42.7
A111: 194 | B111: 3.233 | C111: -38.2 | D111: -40.8 | E111: -42.8 | F111: -42.3 | G111: -41.1 | H111: -44.6 | I111: -45.1 | J111: 9999 | K111: ---- | L111: 38018 | M111: 10 | O111: 3.233 | P111: 3.233 | S111: -42.8
A112: 196 | B112: 3.267 | C112: -38.3 | D112: -41 | E112: -43 | F112: -42.7 | G112: -41.3 | H112: -44.8 | I112: -43 | J112: 9999 | K112: ---- | L112: 38018 | M112: 1 | O112: 3.267 | P112: 3.267 | S112: -43
A113: 198 | B113: 3.3 | C113: -38.5 | D113: -41.1 | E113: -43 | F113: -42.7 | G113: -41.4 | H113: -44.7 | I113: -46.3 | J113: 9999 | K113: ---- | L113: 38018 | M113: 12 | O113: 3.3 | P113: 3.3 | S113: -43
A114: 200 | B114: 3.333 | C114: -38.5 | D114: -41.3 | E114: -43.1 | F114: -42.8 | G114: -41.5 | H114: -44.8 | I114: -49.7 | J114: 9999 | K114: ---- | L114: 38018 | M114: 10 | O114: 3.333 | P114: 3.333 | S114: -43.1
A115: 202 | B115: 3.367 | C115: -38.7 | D115: -41.4 | E115: -43.1 | F115: -42.7 | G115: -41.5 | H115: -44.6 | I115: -48.8 | J115: 9999 | K115: ---- | L115: 38018 | M115: 7 | O115: 3.367 | P115: 3.367 | S115: -43.1
A116: 204 | B116: 3.4 | C116: -38.9 | D116: -41.5 | E116: -43.2 | F116: -42.9 | G116: -41.7 | H116: -44.9 | I116: -46 | J116: 9999 | K116: ---- | L116: 38018 | M116: 1 | O116: 3.4 | P116: 3.4 | S116: -43.2
A117: 206 | B117: 3.433 | C117: -39 | D117: -41.6 | E117: -43.3 | F117: -43 | G117: -41.8 | H117: -44.8 | I117: -49.6 | J117: 9999 | K117: ---- | L117: 38018 | M117: 12 | O117: 3.433 | P117: 3.433 | S117: -43.3
A118: 208 | B118: 3.467 | C118: -39.2 | D118: -41.8 | E118: -43.4 | F118: -43.1 | G118: -41.9 | H118: -45 | I118: -58.1 | J118: 9999 | K118: ---- | L118: 38018 | M118: 10 | O118: 3.467 | P118: 3.467 | S118: -43.4
A119: 210 | B119: 3.5 | C119: -39.2 | D119: -41.8 | E119: -43.4 | F119: -43.2 | G119: -42 | H119: -45 | I119: -49.8 | J119: 9999 | K119: ---- | L119: 38018 | M119: 7 | O119: 3.5 | P119: 3.5 | S119: -43.4
A120: 212 | B120: 3.533 | C120: -39.4 | D120: -42 | E120: -43.4 | F120: -43.2 | G120: -42 | H120: -45 | I120: -59.3 | J120: 9999 | K120: ---- | L120: 38018 | M120: 1 | O120: 3.533 | P120: 3.533 | S120: -43.4
A121: 214 | B121: 3.567 | C121: -39.5 | D121: -42 | E121: -43.5 | F121: -43.2 | G121: -42.1 | H121: -44.9 | I121: -52.4 | J121: 9999 | K121: ---- | L121: 38018 | M121: 12 | O121: 3.567 | P121: 3.567 | S121: -43.5
A122: 216 | B122: 3.6 | C122: -39.6 | D122: -42.1 | E122: -43.5 | F122: -43.3 | G122: -42.2 | H122: -45.1 | I122: -58.6 | J122: 9999 | K122: ---- | L122: 38018 | M122: 10 | O122: 3.6 | P122: 3.6 | S122: -43.5
A123: 218 | B123: 3.633 | C123: -39.7 | D123: -42.1 | E123: -43.6 | F123: -43.3 | G123: -42.2 | H123: -44.9 | I123: -52.4 | J123: 9999 | K123: ---- | L123: 38018 | M123: 7 | O123: 3.633 | P123: 3.633 | S123: -43.6
A124: 220 | B124: 3.667 | C124: -39.8 | D124: -42.2 | E124: -43.5 | F124: -43.4 | G124: -42.3 | H124: -45 | I124: -55.2 | J124: 9999 | K124: ---- | L124: 38018 | M124: 1 | O124: 3.667 | P124: 3.667 | S124: -43.5
A125: 222 | B125: 3.7 | C125: -39.8 | D125: -42.3 | E125: -43.6 | F125: -43.4 | G125: -42.3 | H125: -45 | I125: -52.6 | J125: 9999 | K125: ---- | L125: 38018 | M125: 10 | O125: 3.7 | P125: 3.7 | S125: -43.6
A126: 224 | B126: 3.733 | C126: -39.8 | D126: -42.3 | E126: -43.7 | F126: -43.4 | G126: -42.3 | H126: -45.2 | I126: -59.6 | J126: 9999 | K126: ---- | L126: 38018 | M126: 7 | O126: 3.733 | P126: 3.733 | S126: -43.7
A127: 226 | B127: 3.767 | C127: -39.9 | D127: -42.4 | E127: -43.7 | F127: -43.5 | G127: -42.4 | H127: -45.1 | I127: -51.3 | J127: 9999 | K127: ---- | L127: 38018 | M127: 7 | O127: 3.767 | P127: 3.767 | S127: -43.7
A128: 228 | B128: 3.8 | C128: -40 | D128: -42.4 | E128: -43.8 | F128: -43.5 | G128: -42.5 | H128: -45.1 | I128: -57.1 | J128: 9999 | K128: ---- | L128: 38018 | M128: 12 | O128: 3.8 | P128: 3.8 | S128: -43.8
A129: 230 | B129: 3.833 | C129: -40 | D129: -42.4 | E129: -43.8 | F129: -43.6 | G129: -42.5 | H129: -45.1 | I129: -52.5 | J129: 9999 | K129: ---- | L129: 38018 | M129: 10 | O129: 3.833 | P129: 3.833 | S129: -43.8
A130: 232 | B130: 3.867 | C130: -40.1 | D130: -42.7 | E130: -43.8 | F130: -43.6 | G130: -42.6 | H130: -45.1 | I130: -56.2 | J130: 9999 | K130: ---- | L130: 38018 | M130: 7 | O130: 3.867 | P130: 3.867 | S130: -43.8
A131: 234 | B131: 3.9 | C131: -40.1 | D131: -42.6 | E131: -43.8 | F131: -43.6 | G131: -42.6 | H131: -45.1 | I131: -52.1 | J131: 9999 | K131: ---- | L131: 38018 | M131: 1 | O131: 3.9 | P131: 3.9 | S131: -43.8
A132: 236 | B132: 3.933 | C132: -40.2 | D132: -42.6 | E132: -43.9 | F132: -43.7 | G132: -42.7 | H132: -45 | I132: -57.1 | J132: 9999 | K132: ---- | L132: 38018 | M132: 12 | O132: 3.933 | P132: 3.933 | S132: -43.9
A133: 238 | B133: 3.967 | C133: -40.1 | D133: -42.7 | E133: -43.8 | F133: -43.6 | G133: -42.6 | H133: -45.1 | I133: -57.7 | J133: 9999 | K133: ---- | L133: 38018 | M133: 10 | O133: 3.967 | P133: 3.967 | S133: -43.8
A134: 240 | B134: 4 | C134: -40.2 | D134: -42.8 | E134: -43.9 | F134: -43.7 | G134: -42.7 | H134: -45 | I134: -56.8 | J134: 9999 | K134: ---- | L134: 38018 | M134: 7 | O134: 4 | P134: 4 | S134: -43.9
A135: 242 | B135: 4.033 | C135: -40.3 | D135: -42.8 | E135: -43.9 | F135: -43.6 | G135: -42.7 | H135: -45.2 | I135: -58.4 | J135: 9999 | K135: ---- | L135: 38018 | M135: 1 | O135: 4.033 | P135: 4.033 | S135: -43.9
A136: 244 | B136: 4.067 | C136: -40.2 | D136: -42.8 | E136: -43.9 | F136: -43.7 | G136: -42.7 | H136: -45 | I136: -56.1 | J136: 9999 | K136: ---- | L136: 38018 | M136: 12 | O136: 4.067 | P136: 4.067 | S136: -43.9
A137: 246 | B137: 4.1 | C137: -40.3 | D137: -42.8 | E137: -44 | F137: -43.7 | G137: -42.8 | H137: -45.2 | I137: -62.3 | J137: 9999 | K137: ---- | L137: 38018 | M137: 10 | O137: 4.1 | P137: 4.1 | S137: -44
A138: 248 | B138: 4.133 | C138: -40.4 | D138: -42.8 | E138: -44 | F138: -43.8 | G138: -42.8 | H138: -45 | I138: -57.7 | J138: 9999 | K138: ---- | L138: 38018 | M138: 1 | O138: 4.133 | P138: 4.133 | S138: -44
A139: 250 | B139: 4.167 | C139: -40.4 | D139: -42.9 | E139: -44 | F139: -43.7 | G139: -42.8 | H139: -45.3 | I139: -62 | J139: 9999 | K139: ---- | L139: 38018 | M139: 1 | O139: 4.167 | P139: 4.167 | S139: -44
A140: 252 | B140: 4.2 | C140: -40.4 | D140: -42.9 | E140: -43.9 | F140: -43.8 | G140: -42.8 | H140: -45 | I140: -56.2 | J140: 9999 | K140: ---- | L140: 38018 | M140: 12 | O140: 4.2 | P140: 4.2 | S140: -43.9
A141: 254 | B141: 4.233 | C141: -40.4 | D141: -42.9 | E141: -43.9 | F141: -43.7 | G141: -42.8 | H141: -45.1 | I141: -63.4 | J141: 9999 | K141: ---- | L141: 38018 | M141: 10 | O141: 4.233 | P141: 4.233 | S141: -43.9
A142: 256 | B142: 4.267 | C142: -40.4 | D142: -42.9 | E142: -43.9 | F142: -43.8 | G142: -42.8 | H142: -45.1 | I142: -55.5 | J142: 9999 | K142: ---- | L142: 38018 | M142: 7 | N142: =IF(J142=9999,#N/A,J142/1000) ->  | O142: =IF(B142>=$E$2,B142-$E$2,#N/A) -> 4.267 | P142: =IF(B142>=$E$2,B142,#N/A) -> 4.267 | S142: -43.9
A143: 258 | B143: =ROUND(A143/60,3) -> 4.3 | C143: -40.4 | D143: -42.9 | E143: -43.9 | F143: -43.8 | G143: -42.8 | H143: -45 | I143: -63.3 | J143: 9999 | K143: ---- | L143: 38018 | M143: 12 | O143: 4.3 | P143: 4.3 | S143: =E143 -> -43.9
A144: 260 | B144: 4.333 | C144: -40.4 | D144: -43 | E144: -43.9 | F144: -43.7 | G144: -42.8 | H144: -44.9 | I144: -55.8 | J144: 9999 | K144: ---- | L144: 38018 | M144: 10 | O144: 4.333 | P144: 4.333 | S144: -43.9
A145: 262 | B145: 4.367 | C145: -40.5 | D145: -42.9 | E145: -44 | F145: -43.8 | G145: -42.8 | H145: -45 | I145: -61.7 | J145: 9999 | K145: ---- | L145: 38018 | M145: 7 | O145: 4.367 | P145: 4.367 | S145: -44
A146: 264 | B146: 4.4 | C146: -40.5 | D146: -43 | E146: -43.9 | F146: -43.8 | G146: -42.8 | H146: -44.9 | I146: -55.1 | J146: 9999 | K146: ---- | L146: 38018 | M146: 1 | O146: 4.4 | P146: 4.4 | S146: -43.9
A147: 266 | B147: 4.433 | C147: -40.5 | D147: -43 | E147: -44 | F147: -43.8 | G147: -42.9 | H147: -45.2 | I147: -63 | J147: 9999 | K147: ---- | L147: 38018 | M147: 12 | O147: 4.433 | P147: 4.433 | S147: -44
A148: 268 | B148: 4.467 | C148: -40.6 | D148: -43 | E148: -44 | F148: -43.8 | G148: -42.9 | H148: -45.1 | I148: -55.8 | J148: 9999 | K148: ---- | L148: 38018 | M148: 10 | O148: 4.467 | P148: 4.467 | S148: -44
A149: 270 | B149: 4.5 | C149: -40.5 | D149: -43 | E149: -44 | F149: -43.9 | G149: -42.9 | H149: -45 | I149: -61.6 | J149: 9999 | K149: ---- | L149: 38018 | M149: 7 | O149: 4.5 | P149: 4.5 | S149: -44
A150: 272 | B150: 4.533 | C150: -40.6 | D150: -43.1 | E150: -44.2 | F150: -43.9 | G150: -43 | H150: -45.1 | I150: -59.8 | J150: 9999 | K150: ---- | L150: 38018 | M150: 1 | O150: 4.533 | P150: 4.533 | S150: -44.2
A151: 274 | B151: 4.567 | C151: -40.6 | D151: -43 | E151: -44 | F151: -43.8 | G151: -42.9 | H151: -45.2 | I151: -63.7 | J151: 9999 | K151: ---- | L151: 38018 | M151: 10 | O151: 4.567 | P151: 4.567 | S151: -44
A152: 276 | B152: 4.6 | C152: -40.7 | D152: -43 | E152: -43.9 | F152: -43.8 | G152: -42.9 | H152: -45 | I152: -55.4 | J152: 9999 | K152: ---- | L152: 38018 | M152: 10 | O152: 4.6 | P152: 4.6 | S152: -43.9
A153: 278 | B153: 4.633 | C153: -40.6 | D153: -43 | E153: -44 | F153: -43.9 | G153: -42.9 | H153: -45 | I153: -59.9 | J153: 9999 | K153: ---- | L153: 38018 | M153: 7 | O153: 4.633 | P153: 4.633 | S153: -44
A154: 280 | B154: 4.667 | C154: -40.6 | D154: -43 | E154: -44 | F154: -43.7 | G154: -42.9 | H154: -45.1 | I154: -59.6 | J154: 9999 | K154: ---- | L154: 38018 | M154: 1 | O154: 4.667 | P154: 4.667 | S154: -44
A155: 282 | B155: 4.7 | C155: -40.7 | D155: -43 | E155: -44.2 | F155: -43.9 | G155: -43 | H155: -45.1 | I155: -59.8 | J155: 9999 | K155: ---- | L155: 38018 | M155: 12 | O155: 4.7 | P155: 4.7 | S155: -44.2
A156: 284 | B156: 4.733 | C156: -40.7 | D156: -43 | E156: -44.2 | F156: -43.9 | G156: -43 | H156: -45.2 | I156: -62.1 | J156: 9999 | K156: ---- | L156: 38018 | M156: 10 | O156: 4.733 | P156: 4.733 | S156: -44.2
A157: 286 | B157: 4.767 | C157: -40.6 | D157: -43.1 | E157: -44.2 | F157: -43.9 | G157: -43 | H157: -45 | I157: -58.8 | J157: 9999 | K157: ---- | L157: 38018 | M157: 1 | O157: 4.767 | P157: 4.767 | S157: -44.2
A158: 288 | B158: 4.8 | C158: -40.7 | D158: -43.1 | E158: -44.2 | F158: -43.9 | G158: -43 | H158: -45.2 | I158: -62.2 | J158: 9999 | K158: ---- | L158: 38018 | M158: 12 | O158: 4.8 | P158: 4.8 | S158: -44.2
A159: 290 | B159: 4.833 | C159: -40.7 | D159: -43.1 | E159: -44.2 | F159: -44 | G159: -43 | H159: -45 | I159: -58 | J159: 9999 | K159: ---- | L159: 38018 | M159: 10 | O159: 4.833 | P159: 4.833 | S159: -44.2
A160: 292 | B160: 4.867 | C160: -40.7 | D160: -43 | E160: -44.2 | F160: -43.9 | G160: -43 | H160: -45.1 | I160: -63.2 | J160: 9999 | K160: ---- | L160: 38018 | M160: 7 | O160: 4.867 | P160: 4.867 | S160: -44.2
A161: 294 | B161: 4.9 | C161: -40.7 | D161: -43.1 | E161: -44 | F161: -43.7 | G161: -42.9 | H161: -44.4 | I161: -59.7 | J161: 9999 | K161: ---- | L161: 38018 | M161: 1 | O161: 4.9 | P161: 4.9 | S161: -44
A162: 296 | B162: 4.933 | C162: -40.6 | D162: -43 | E162: -43.7 | F162: -43.6 | G162: -42.8 | H162: -44.4 | I162: -65 | J162: 9999 | K162: ---- | L162: 38018 | M162: 12 | O162: 4.933 | P162: 4.933 | S162: -43.7
A163: 298 | B163: 4.967 | C163: -40.6 | D163: -42.8 | E163: -43.5 | F163: -43.4 | G163: -42.6 | H163: -43.9 | I163: -58.6 | J163: 9999 | K163: ---- | L163: 38018 | M163: 10 | O163: 4.967 | P163: 4.967 | S163: -43.5
A164: 300 | B164: 5 | C164: -40.4 | D164: -42.6 | E164: -43.3 | F164: -43.2 | G164: -42.4 | H164: -43.4 | I164: -65.6 | J164: 9999 | K164: ---- | L164: 38018 | M164: 7 | O164: 5 | P164: 5 | S164: -43.3
A165: 302 | B165: 5.033 | C165: -40.2 | D165: -42.2 | E165: -42.9 | F165: -42.9 | G165: -42.1 | H165: -43 | I165: -59.2 | J165: 9999 | K165: ---- | L165: 38018 | M165: 1 | O165: 5.033 | P165: 5.033 | S165: -42.9
A166: 304 | B166: 5.067 | C166: -40 | D166: -42.1 | E166: -42.8 | F166: -42.6 | G166: -41.9 | H166: -42.8 | I166: -66.2 | J166: 9999 | K166: ---- | L166: 38018 | M166: 12 | O166: 5.067 | P166: 5.067 | S166: -42.8
A167: 306 | B167: 5.1 | C167: -39.9 | D167: -41.8 | E167: -42.3 | F167: -42.2 | G167: -41.6 | H167: -42.2 | I167: -63 | J167: 9999 | K167: ---- | L167: 38018 | M167: 10 | O167: 5.1 | P167: 5.1 | S167: -42.3
A168: 308 | B168: 5.133 | C168: -39.6 | D168: -41.6 | E168: -42 | F168: -42 | G168: -41.3 | H168: -41.9 | I168: -64.4 | J168: 9999 | K168: ---- | L168: 38018 | M168: 7 | O168: 5.133 | P168: 5.133 | S168: -42
A169: 310 | B169: 5.167 | C169: -39.4 | D169: -41.2 | E169: -41.7 | F169: -41.6 | G169: -41 | H169: -41.4 | I169: -63.3 | J169: 9999 | K169: ---- | L169: 38018 | M169: 1 | O169: 5.167 | P169: 5.167 | S169: -41.7
A170: 312 | B170: 5.2 | C170: -39.1 | D170: -41 | E170: -41.4 | F170: -41.3 | G170: -40.8 | H170: -41 | I170: -64.6 | J170: 9999 | K170: ---- | L170: 38018 | M170: 12 | O170: 5.2 | P170: 5.2 | S170: -41.4
A171: 314 | B171: 5.233 | C171: -38.8 | D171: -40.5 | E171: -41 | F171: -41 | G171: -40.4 | H171: -40.8 | I171: -65.1 | J171: 9999 | K171: ---- | L171: 38018 | M171: 10 | O171: 5.233 | P171: 5.233 | S171: -41
A172: 316 | B172: 5.267 | C172: -38.5 | D172: -40.3 | E172: -40.6 | F172: -40.6 | G172: -40 | H172: -40.2 | I172: -63.1 | J172: 9999 | K172: ---- | L172: 38018 | M172: 7 | O172: 5.267 | P172: 5.267 | S172: -40.6
A173: 318 | B173: 5.3 | C173: -38.2 | D173: -39.9 | E173: -40.2 | F173: -40.2 | G173: -39.7 | H173: -40 | I173: -66 | J173: 9999 | K173: ---- | L173: 38018 | M173: 1 | O173: 5.3 | P173: 5.3 | S173: -40.2
A174: 320 | B174: 5.333 | C174: -37.9 | D174: -39.6 | E174: -39.9 | F174: -39.9 | G174: -39.4 | H174: -39.2 | I174: -63.3 | J174: 9999 | K174: ---- | L174: 38018 | M174: 10 | O174: 5.333 | P174: 5.333 | S174: -39.9
A175: 322 | B175: 5.367 | C175: -37.6 | D175: -39.2 | E175: -39.6 | F175: -39.5 | G175: -39 | H175: -39.2 | I175: -65.5 | J175: 9999 | K175: ---- | L175: 38018 | M175: 7 | O175: 5.367 | P175: 5.367 | S175: -39.6
A176: 324 | B176: 5.4 | C176: -37.2 | D176: -38.9 | E176: -39.1 | F176: -39 | G176: -38.6 | H176: -38.3 | I176: -63.7 | J176: 9999 | K176: ---- | L176: 38018 | M176: 1 | O176: 5.4 | P176: 5.4 | S176: -39.1
A177: 326 | B177: 5.433 | C177: -37 | D177: -38.5 | E177: -38.8 | F177: -38.7 | G177: -38.3 | H177: -38.2 | I177: -66.5 | J177: 9999 | K177: ---- | L177: 38018 | M177: 12 | O177: 5.433 | P177: 5.433 | S177: -38.8
A178: 328 | B178: 5.467 | C178: -36.7 | D178: -38.1 | E178: -38.3 | F178: -38.4 | G178: -37.9 | H178: -37.6 | I178: -63.4 | J178: 9999 | K178: ---- | L178: 38018 | M178: 10 | O178: 5.467 | P178: 5.467 | S178: -38.3
A179: 330 | B179: 5.5 | C179: -36.3 | D179: -37.8 | E179: -38 | F179: -38 | G179: -37.6 | H179: -37.5 | I179: -66.1 | J179: 9999 | K179: ---- | L179: 38018 | M179: 7 | O179: 5.5 | P179: 5.5 | S179: -38
A180: 332 | B180: 5.533 | C180: -35.8 | D180: -37.3 | E180: -37.5 | F180: -37.5 | G180: -37.1 | H180: -36.7 | I180: -65.1 | J180: 9999 | K180: ---- | L180: 38018 | M180: 1 | O180: 5.533 | P180: 5.533 | S180: -37.5
A181: 334 | B181: 5.567 | C181: -35.6 | D181: -37 | E181: -37.1 | F181: -37.2 | G181: -36.8 | H181: -36.6 | I181: -66.7 | J181: 9999 | K181: ---- | L181: 38018 | M181: 12 | O181: 5.567 | P181: 5.567 | S181: -37.1
A182: 336 | B182: 5.6 | C182: -35.2 | D182: -36.7 | E182: -36.8 | F182: -36.8 | G182: -36.4 | H182: -36 | I182: -62.8 | J182: 9999 | K182: ---- | L182: 38018 | M182: 10 | O182: 5.6 | P182: 5.6 | S182: -36.8
A183: 338 | B183: 5.633 | C183: -34.9 | D183: -36.4 | E183: -36.5 | F183: -36.5 | G183: -36.1 | H183: -35.7 | I183: -67.4 | J183: 9999 | K183: ---- | L183: 38018 | M183: 7 | O183: 5.633 | P183: 5.633 | S183: -36.5
A184: 340 | B184: 5.667 | C184: -34.6 | D184: -35.9 | E184: -36 | F184: -36 | G184: -35.7 | H184: -35.3 | I184: -64.6 | J184: 9999 | K184: ---- | L184: 38018 | M184: 1 | O184: 5.667 | P184: 5.667 | S184: -36
A185: 342 | B185: 5.7 | C185: -34.1 | D185: -35.6 | E185: -35.7 | F185: -35.7 | G185: -35.3 | H185: -34.9 | I185: -67.1 | J185: 9999 | K185: ---- | L185: 38018 | M185: 12 | O185: 5.7 | P185: 5.7 | S185: -35.7
A186: 344 | B186: 5.733 | C186: -33.8 | D186: -35.2 | E186: -35.2 | F186: -35.4 | G186: -34.9 | H186: -34.4 | I186: -63.9 | J186: 9999 | K186: ---- | L186: 38018 | M186: 7 | O186: 5.733 | P186: 5.733 | S186: -35.2
A187: 346 | B187: 5.767 | C187: -33.5 | D187: -34.9 | E187: -35 | F187: -34.9 | G187: -34.6 | H187: -34 | I187: -67.7 | J187: 9999 | K187: ---- | L187: 38018 | M187: 7 | O187: 5.767 | P187: 5.767 | S187: -35
A188: 348 | B188: 5.8 | C188: -33.1 | D188: -34.3 | E188: -34.4 | F188: -34.6 | G188: -34.2 | H188: -33.8 | I188: -65.6 | J188: 9999 | K188: ---- | L188: 38018 | M188: 12 | O188: 5.8 | P188: 5.8 | S188: -34.4
A189: 350 | B189: 5.833 | C189: -32.7 | D189: -34 | E189: -34 | F189: -34 | G189: -33.7 | H189: -33.2 | I189: -67.1 | J189: 9999 | K189: ---- | L189: 38018 | M189: 10 | O189: 5.833 | P189: 5.833 | S189: -34
A190: 352 | B190: 5.867 | C190: -32.4 | D190: -33.6 | E190: -33.7 | F190: -33.7 | G190: -33.4 | H190: -32.8 | I190: -66.1 | J190: 9999 | K190: ---- | L190: 38018 | M190: 7 | O190: 5.867 | P190: 5.867 | S190: -33.7
A191: 354 | B191: 5.9 | C191: -32 | D191: -33.3 | E191: -33.4 | F191: -33.4 | G191: -33.1 | H191: -32.3 | I191: -66.4 | J191: 9999 | K191: ---- | L191: 38018 | M191: 1 | O191: 5.9 | P191: 5.9 | S191: -33.4
A192: 356 | B192: 5.933 | C192: -31.7 | D192: -32.8 | E192: -33 | F192: -32.8 | G192: -32.6 | H192: -32.3 | I192: -66.3 | J192: 9999 | K192: ---- | L192: 38018 | M192: 12 | O192: 5.933 | P192: 5.933 | S192: -33
A193: 358 | B193: 5.967 | C193: -31.4 | D193: -32.5 | E193: -32.5 | F193: -32.5 | G193: -32.3 | H193: -31.6 | I193: -66.4 | J193: 9999 | K193: ---- | L193: 38018 | M193: 10 | O193: 5.967 | P193: 5.967 | S193: -32.5
A194: 360 | B194: 6 | C194: -30.9 | D194: -32 | E194: -32.1 | F194: -32.2 | G194: -31.8 | H194: -31.4 | I194: -67 | J194: 9999 | K194: ---- | L194: 38018 | M194: 7 | O194: 6 | P194: 6 | S194: -32.1
A195: 362 | B195: 6.033 | C195: -30.6 | D195: -31.7 | E195: -31.8 | F195: -31.8 | G195: -31.5 | H195: -30.6 | I195: -64.7 | J195: 9999 | K195: ---- | L195: 38018 | M195: 1 | O195: 6.033 | P195: 6.033 | S195: -31.8
A196: 364 | B196: 6.067 | C196: -30.2 | D196: -31.4 | E196: -31.5 | F196: -31.5 | G196: -31.2 | H196: -30.6 | I196: -66.9 | J196: 9999 | K196: ---- | L196: 38018 | M196: 12 | O196: 6.067 | P196: 6.067 | S196: -31.5
A197: 366 | B197: 6.1 | C197: -29.9 | D197: -30.9 | E197: -30.9 | F197: -31 | G197: -30.7 | H197: -29.9 | I197: -64.6 | J197: 9999 | K197: ---- | L197: 38018 | M197: 10 | O197: 6.1 | P197: 6.1 | S197: -30.9
A198: 368 | B198: 6.133 | C198: -29.4 | D198: -30.6 | E198: -30.5 | F198: -30.6 | G198: -30.3 | H198: -29.5 | I198: -67.2 | J198: 9999 | K198: ---- | L198: 38018 | M198: 7 | O198: 6.133 | P198: 6.133 | S198: -30.5
A199: 370 | B199: 6.167 | C199: -29.1 | D199: -30.2 | E199: -30.2 | F199: -30.2 | G199: -30 | H199: -29.2 | I199: -65.5 | J199: 9999 | K199: ---- | L199: 38018 | M199: 1 | O199: 6.167 | P199: 6.167 | S199: -30.2
A200: 372 | B200: 6.2 | C200: -28.8 | D200: -29.8 | E200: -29.9 | F200: -29.9 | G200: -29.7 | H200: -28.8 | I200: -68 | J200: 9999 | K200: ---- | L200: 38018 | M200: 12 | O200: 6.2 | P200: 6.2 | S200: -29.9
A201: 374 | B201: 6.233 | C201: -28.4 | D201: -29.3 | E201: -29.4 | F201: -29.4 | G201: -29.2 | H201: -28.3 | I201: -64.8 | J201: 9999 | K201: ---- | L201: 38018 | M201: 7 | O201: 6.233 | P201: 6.233 | S201: -29.4
A202: 376 | B202: 6.267 | C202: -27.9 | D202: -28.9 | E202: -29 | F202: -29 | G202: -28.8 | H202: -27.9 | I202: -67.8 | J202: 9999 | K202: ---- | L202: 38018 | M202: 1 | O202: 6.267 | P202: 6.267 | S202: -29
A203: 378 | B203: 6.3 | C203: -27.6 | D203: -28.5 | E203: -28.5 | F203: -28.7 | G203: -28.4 | H203: -27.6 | I203: -66.1 | J203: 9999 | K203: ---- | L203: 38018 | M203: 1 | O203: 6.3 | P203: 6.3 | S203: -28.5
A204: 380 | B204: 6.333 | C204: -27.3 | D204: -28.2 | E204: -28.4 | F204: -28.3 | G204: -28.1 | H204: -27.3 | I204: -68.1 | J204: 9999 | K204: ---- | L204: 38018 | M204: 10 | O204: 6.333 | P204: 6.333 | S204: -28.4
... 2477 more rows

Sheet Process data log-ppt-S2
L14: Order | M14: 2 | N14: 1 | O14: 0
L15: Trend 1 TC | M15: =LINEST('Process data log-S2'!$S$56:$S$63, 'Process data log-S2'!$B$56:$B$63^{1,2}, TRUE) -> -4.292669803 | N15: -18.74222933 | O15: 34.26124695
L16: Nucleation time | M16: 1.73
L17: Tn | M17: =$M$15*M16^$M$14+$N$15*M16^$N$14+$O$15*M16^$O$14 -> -11.01034124

Sheet Data from RelaxIS-S2
A1: 0z to 150z (0-5 h) 5%Sucrose+0.26%NaCl
A3: RelaxIS 3.0 Spectrum export
A4: Date: 30/01/2019 10:59:46
A5: Data: Frequency | B5: Data: C' | C5: Data: C'' | D5: Data: Frequency | E5: Data: C' | F5: Data: C'' | G5: Data: Frequency | H5: Data: C' | I5: Data: C'' | J5: Data: Frequency | K5: Data: C' | L5: Data: C'' | M5: Data: Frequency | N5: Data: C' | O5: Data: C'' | P5: Data: Frequency | Q5: Data: C' | R5: Data: C'' | S5: Data: Frequency | T5: Data: C' | U5: Data: C'' | V5: Data: Frequency | W5: Data: C' | X5: Data: C'' | Y5: Data: Frequency | Z5: Data: C' | AA5: Data: C'' | AB5: Data: Frequency | AC5: Data: C' | AD5: Data: C'' | AE5: Data: Frequency | AF5: Data: C' | AG5: Data: C'' | AH5: Data: Frequency | AI5: Data: C' | AJ5: Data: C'' | AK5: Data: Frequency | AL5: Data: C' | AM5: Data: C'' | AN5: Data: Frequency | AO5: Data: C' | AP5: Data: C'' | AQ5: Data: Frequency | AR5: Data: C' | AS5: Data: C'' | AT5: Data: Frequency | AU5: Data: C' | AV5: Data: C'' | AW5: Data: Frequency | AX5: Data: C' | AY5: Data: C'' | AZ5: Data: Frequency | BA5: Data: C' | BB5: Data: C'' | BC5: Data: Frequency | BD5: Data: C' | BE5: Data: C'' | BF5: Data: Frequency | BG5: Data: C' | BH5: Data: C'' | BI5: Data: Frequency | BJ5: Data: C' | BK5: Data: C'' | BL5: Data: Frequency | BM5: Data: C' | BN5: Data: C'' | BO5: Data: Frequency | BP5: Data: C' | BQ5: Data: C'' | BR5: Data: Frequency | BS5: Data: C' | BT5: Data: C'' | BU5: Data: Frequency | BV5: Data: C' | BW5: Data: C'' | BX5: Data: Frequency | BY5: Data: C' | BZ5: Data: C'' | CA5: Data: Frequency | CB5: Data: C' | CC5: Data: C'' | CD5: Data: Frequency | CE5: Data: C' | CF5: Data: C'' | CG5: Data: Frequency | CH5: Data: C' | CI5: Data: C'' | CJ5: Data: Frequency | CK5: Data: C' | CL5: Data: C'' | CM5: Data: Frequency | CN5: Data: C' | CO5: Data: C'' | CP5: Data: Frequency | CQ5: Data: C' | CR5: Data: C'' | CS5: Data: Frequency | CT5: Data: C' | CU5: Data: C'' | CV5: Data: Frequency | CW5: Data: C' | CX5: Data: C'' | CY5: Data: Frequency | CZ5: Data: C' | DA5: Data: C'' | DB5: Data: Frequency | DC5: Data: C' | DD5: Data: C'' | DE5: Data: Frequency | DF5: Data: C' | DG5: Data: C'' | DH5: Data: Frequency | DI5: Data: C' | DJ5: Data: C'' | DK5: Data: Frequency | DL5: Data: C' | DM5: Data: C'' | DN5: Data: Frequency | DO5: Data: C' | DP5: Data: C'' | DQ5: Data: Frequency | DR5: Data: C' | DS5: Data: C'' | DT5: Data: Frequency | DU5: Data: C' | DV5: Data: C'' | DW5: Data: Frequency | DX5: Data: C' | DY5: Data: C'' | DZ5: Data: Frequency | EA5: Data: C' | EB5: Data: C'' | EC5: Data: Frequency | ED5: Data: C' | EE5: Data: C'' | EF5: Data: Frequency | EG5: Data: C' | EH5: Data: C'' | EI5: Data: Frequency | EJ5: Data: C' | EK5: Data: C'' | EL5: Data: Frequency | EM5: Data: C' | EN5: Data: C'' | EO5: Data: Frequency | EP5: Data: C' | EQ5: Data: C'' | ER5: Data: Frequency | ES5: Data: C' | ET5: Data: C'' | EU5: Data: Frequency | EV5: Data: C' | EW5: Data: C'' | EX5: Data: Frequency | EY5: Data: C' | EZ5: Data: C'' | FA5: Data: Frequency | FB5: Data: C' | FC5: Data: C'' | FD5: Data: Frequency | FE5: Data: C' | FF5: Data: C'' | FG5: Data: Frequency | FH5: Data: C' | FI5: Data: C'' | FJ5: Data: Frequency | FK5: Data: C' | FL5: Data: C'' | FM5: Data: Frequency | FN5: Data: C' | FO5: Data: C'' | FP5: Data: Frequency | FQ5: Data: C' | FR5: Data: C'' | FS5: Data: Frequency | FT5: Data: C' | FU5: Data: C'' | FV5: Data: Frequency | FW5: Data: C' | FX5: Data: C'' | FY5: Data: Frequency | FZ5: Data: C' | GA5: Data: C'' | GB5: Data: Frequency | GC5: Data: C' | GD5: Data: C'' | GE5: Data: Frequency | GF5: Data: C' | GG5: Data: C'' | GH5: Data: Frequency | GI5: Data: C' | GJ5: Data: C'' | GK5: Data: Frequency | GL5: Data: C' | GM5: Data: C'' | GN5: Data: Frequency | GO5: Data: C' | GP5: Data: C'' | GQ5: Data: Frequency | GR5: Data: C' | GS5: Data: C'' | GT5: Data: Frequency | GU5: Data: C' | GV5: Data: C'' | GW5: Data: Frequency | GX5: Data: C' | GY5: Data: C'' | GZ5: Data: Frequency | HA5: Data: C' | HB5: Data: C'' | HC5: Data: Frequency | HD5: Data: C' | HE5: Data: C'' | HF5: Data: Frequency | HG5: Data: C' | HH5: Data: C'' | HI5: Data: Frequency | HJ5: Data: C' | HK5: Data: C'' | HL5: Data: Frequency | HM5: Data: C' | HN5: Data: C'' | HO5: Data: Frequency | HP5: Data: C' | HQ5: Data: C'' | HR5: Data: Frequency | HS5: Data: C' | HT5: Data: C'' | HU5: Data: Frequency | HV5: Data: C' | HW5: Data: C'' | HX5: Data: Frequency | HY5: Data: C' | HZ5: Data: C'' | IA5: Data: Frequency | IB5: Data: C' | IC5: Data: C'' | ID5: Data: Frequency | IE5: Data: C' | IF5: Data: C'' | IG5: Data: Frequency | IH5: Data: C' | II5: Data: C'' | IJ5: Data: Frequency | IK5: Data: C' | IL5: Data: C'' | IM5: Data: Frequency | IN5: Data: C' | IO5: Data: C'' | IP5: Data: Frequency | IQ5: Data: C' | IR5: Data: C'' | IS5: Data: Frequency | IT5: Data: C' | IU5: Data: C'' | IV5: Data: Frequency | IW5: Data: C' | IX5: Data: C'' | IY5: Data: Frequency | IZ5: Data: C' | JA5: Data: C'' | JB5: Data: Frequency | JC5: Data: C' | JD5: Data: C'' | JE5: Data: Frequency | JF5: Data: C' | JG5: Data: C'' | JH5: Data: Frequency | JI5: Data: C' | JJ5: Data: C'' | JK5: Data: Frequency | JL5: Data: C' | JM5: Data: C'' | JN5: Data: Frequency | JO5: Data: C' | JP5: Data: C'' | JQ5: Data: Frequency | JR5: Data: C' | JS5: Data: C'' | JT5: Data: Frequency | JU5: Data: C' | JV5: Data: C'' | JW5: Data: Frequency | JX5: Data: C' | JY5: Data: C'' | JZ5: Data: Frequency | KA5: Data: C' | KB5: Data: C'' | KC5: Data: Frequency | KD5: Data: C' | KE5: Data: C'' | KF5: Data: Frequency | KG5: Data: C' | KH5: Data: C'' | KI5: Data: Frequency | KJ5: Data: C' | KK5: Data: C'' | KL5: Data: Frequency | KM5: Data: C' | KN5: Data: C'' | KO5: Data: Frequency | KP5: Data: C' | KQ5: Data: C'' | KR5: Data: Frequency | KS5: Data: C' | KT5: Data: C'' | KU5: Data: Frequency | KV5: Data: C' | KW5: Data: C'' | KX5: Data: Frequency | KY5: Data: C' | KZ5: Data: C'' | LA5: Data: Frequency | LB5: Data: C' | LC5: Data: C'' | LD5: Data: Frequency | LE5: Data: C' | LF5: Data: C'' | LG5: Data: Frequency | LH5: Data: C' | LI5: Data: C'' | LJ5: Data: Frequency | LK5: Data: C' | LL5: Data: C'' | LM5: Data: Frequency | LN5: Data: C' | LO5: Data: C'' | LP5: Data: Frequency | LQ5: Data: C' | LR5: Data: C'' | LS5: Data: Frequency | LT5: Data: C' | LU5: Data: C'' | LV5: Data: Frequency | LW5: Data: C' | LX5: Data: C'' | LY5: Data: Frequency | LZ5: Data: C' | MA5: Data: C'' | MB5: Data: Frequency | MC5: Data: C' | MD5: Data: C'' | ME5: Data: Frequency | MF5: Data: C' | MG5: Data: C'' | MH5: Data: Frequency | MI5: Data: C' | MJ5: Data: C'' | MK5: Data: Frequency | ML5: Data: C' | MM5: Data: C'' | MN5: Data: Frequency | MO5: Data: C' | MP5: Data: C'' | MQ5: Data: Frequency | MR5: Data: C' | MS5: Data: C'' | MT5: Data: Frequency | MU5: Data: C' | MV5: Data: C'' | MW5: Data: Frequency | MX5: Data: C' | MY5: Data: C'' | MZ5: Data: Frequency | NA5: Data: C' | NB5: Data: C'' | NC5: Data: Frequency | ND5: Data: C' | NE5: Data: C'' | NF5: Data: Frequency | NG5: Data: C' | NH5: Data: C'' | NI5: Data: Frequency | NJ5: Data: C' | NK5: Data: C'' | NL5: Data: Frequency | NM5: Data: C' | NN5: Data: C'' | NO5: Data: Frequency | NP5: Data: C' | NQ5: Data: C'' | NR5: Data: Frequency | NS5: Data: C' | NT5: Data: C'' | NU5: Data: Frequency | NV5: Data: C' | NW5: Data: C'' | NX5: Data: Frequency | NY5: Data: C' | NZ5: Data: C'' | OA5: Data: Frequency | OB5: Data: C' | OC5: Data: C'' | OD5: Data: Frequency | OE5: Data: C' | OF5: Data: C'' | OG5: Data: Frequency | OH5: Data: C' | OI5: Data: C'' | OJ5: Data: Frequency | OK5: Data: C' | OL5: Data: C'' | OM5: Data: Frequency | ON5: Data: C' | OO5: Data: C'' | OP5: Data: Frequency | OQ5: Data: C' | OR5: Data: C'' | OS5: Data: Frequency | OT5: Data: C' | OU5: Data: C'' | OV5: Data: Frequency | OW5: Data: C' | OX5: Data: C'' | OY5: Data: Frequency | OZ5: Data: C' | PA5: Data: C'' | PB5: Data: Frequency | PC5: Data: C' | PD5: Data: C'' | PE5: Data: Frequency | PF5: Data: C' | PG5: Data: C'' | PH5: Data: Frequency | PI5: Data: C' | PJ5: Data: C'' | PK5: Data: Frequency | PL5: Data: C' | PM5: Data: C'' | PN5: Data: Frequency | PO5: Data: C' | PP5: Data: C'' | PQ5: Data: Frequency | PR5: Data: C' | PS5: Data: C'' | PT5: Data: Frequency | PU5: Data: C' | PV5: Data: C'' | PW5: Data: Frequency | PX5: Data: C' | PY5: Data: C'' | PZ5: Data: Frequency | QA5: Data: C' | QB5: Data: C'' | QC5: Data: Frequency | QD5: Data: C' | QE5: Data: C'' | QF5: Data: Frequency | QG5: Data: C' | QH5: Data: C'' | QI5: Data: Frequency | QJ5: Data: C' | QK5: Data: C''
A6: Glass transition and colllapse of Sucrose-NaCl_221118_Ch5_0.z_1 | B6: DC=0 | D6: Glass transition and colllapse of Sucrose-NaCl_221118_Ch5_1.z_1 | E6: DC=0 | G6: Glass transition and colllapse of Sucrose-NaCl_221118_Ch5_2.z_1 | H6: DC=0 | J6: Glass transition and colllapse of Sucrose-NaCl_221118_Ch5_3.z_1 | K6: DC=0 | M6: Glass transition and colllapse of Sucrose-NaCl_221118_Ch5_4.z_1 | N6: DC=0 | P6: Glass transition and colllapse of Sucrose-NaCl_221118_Ch5_5.z_1 | Q6: DC=0 | S6: Glass transition and colllapse of Sucrose-NaCl_221118_Ch5_6.z_1 | T6: DC=0 | V6: Glass transition and colllapse of Sucrose-NaCl_221118_Ch5_7.z_1 | W6: DC=0 | Y6: Glass transition and colllapse of Sucrose-NaCl_221118_Ch5_8.z_1 | Z6: DC=0 | AB6: Glass transition and colllapse of Sucrose-NaCl_221118_Ch5_9.z_1 | AC6: DC=0 | AE6: Glass transition and colllapse of Sucrose-NaCl_221118_Ch5_10.z_1 | AF6: DC=0 | AH6: Glass transition and colllapse of Sucrose-NaCl_221118_Ch5_11.z_1 | AI6: DC=0 | AK6: Glass transition and colllapse of Sucrose-NaCl_221118_Ch5_12.z_1 | AL6: DC=0 | AN6: Glass transition and colllapse of Sucrose-NaCl_221118_Ch5_13.z_1 | AO6: DC=0 | AQ6: Glass transition and colllapse of Sucrose-NaCl_221118_Ch5_14.z_1 | AR6: DC=0 | AT6: Glass transition and colllapse of Sucrose-NaCl_221118_Ch5_15.z_1 | AU6: DC=0 | AW6: Glass transition and colllapse of Sucrose-NaCl_221118_Ch5_16.z_1 | AX6: DC=0 | AZ6: Glass transition and colllapse of Sucrose-NaCl_221118_Ch5_17.z_1 | BA6: DC=0 | BC6: Glass transition and colllapse of Sucrose-NaCl_221118_Ch5_18.z_1 | BD6: DC=0 | BF6: Glass transition and colllapse of Sucrose-NaCl_221118_Ch5_19.z_1 | BG6: DC=0 | BI6: Glass transition and colllapse of Sucrose-NaCl_221118_Ch5_20.z_1 | BJ6: DC=0 | BL6: Glass transition and colllapse of Sucrose-NaCl_221118_Ch5_21.z_1 | BM6: DC=0 | BO6: Glass transition and colllapse of Sucrose-NaCl_221118_Ch5_22.z_1 | BP6: DC=0 | BR6: Glass transition and colllapse of Sucrose-NaCl_221118_Ch5_23.z_1 | BS6: DC=0 | BU6: Glass transition and colllapse of Sucrose-NaCl_221118_Ch5_24.z_1 | BV6: DC=0 | BX6: Glass transition and colllapse of Sucrose-NaCl_221118_Ch5_25.z_1 | BY6: DC=0 | CA6: Glass transition and colllapse of Sucrose-NaCl_221118_Ch5_26.z_1 | CB6: DC=0 | CD6: Glass transition and colllapse of Sucrose-NaCl_221118_Ch5_27.z_1 | CE6: DC=0 | CG6: Glass transition and colllapse of Sucrose-NaCl_221118_Ch5_28.z_1 | CH6: DC=0 | CJ6: Glass transition and colllapse of Sucrose-NaCl_221118_Ch5_29.z_1 | CK6: DC=0 | CM6: Glass transition and colllapse of Sucrose-NaCl_221118_Ch5_30.z_1 | CN6: DC=0 | CP6: Glass transition and colllapse of Sucrose-NaCl_221118_Ch5_31.z_1 | CQ6: DC=0 | CS6: Glass transition and colllapse of Sucrose-NaCl_221118_Ch5_32.z_1 | CT6: DC=0 | CV6: Glass transition and colllapse of Sucrose-NaCl_221118_Ch5_33.z_1 | CW6: DC=0 | CY6: Glass transition and colllapse of Sucrose-NaCl_221118_Ch5_34.z_1 | CZ6: DC=0 | DB6: Glass transition and colllapse of Sucrose-NaCl_221118_Ch5_35.z_1 | DC6: DC=0 | DE6: Glass transition and colllapse of Sucrose-NaCl_221118_Ch5_36.z_1 | DF6: DC=0 | DH6: Glass transition and colllapse of Sucrose-NaCl_221118_Ch5_37.z_1 | DI6: DC=0 | DK6: Glass transition and colllapse of Sucrose-NaCl_221118_Ch5_38.z_1 | DL6: DC=0 | DN6: Glass transition and colllapse of Sucrose-NaCl_221118_Ch5_39.z_1 | DO6: DC=0 | DQ6: Glass transition and colllapse of Sucrose-NaCl_221118_Ch5_40.z_1 | DR6: DC=0 | DT6: Glass transition and colllapse of Sucrose-NaCl_221118_Ch5_41.z_1 | DU6: DC=0 | DW6: Glass transition and colllapse of Sucrose-NaCl_221118_Ch5_42.z_1 | DX6: DC=0 | DZ6: Glass transition and colllapse of Sucrose-NaCl_221118_Ch5_43.z_1 | EA6: DC=0 | EC6: Glass transition and colllapse of Sucrose-NaCl_221118_Ch5_44.z_1 | ED6: DC=0 | EF6: Glass transition and colllapse of Sucrose-NaCl_221118_Ch5_45.z_1 | EG6: DC=0 | EI6: Glass transition and colllapse of Sucrose-NaCl_221118_Ch5_46.z_1 | EJ6: DC=0 | EL6: Glass transition and colllapse of Sucrose-NaCl_221118_Ch5_47.z_1 | EM6: DC=0 | EO6: Glass transition and colllapse of Sucrose-NaCl_221118_Ch5_48.z_1 | EP6: DC=0 | ER6: Glass transition and colllapse of Sucrose-NaCl_221118_Ch5_49.z_1 | ES6: DC=0 | EU6: Glass transition and colllapse of Sucrose-NaCl_221118_Ch5_50.z_1 | EV6: DC=0 | EX6: Glass transition and colllapse of Sucrose-NaCl_221118_Ch5_51.z_1 | EY6: DC=0 | FA6: Glass transition and colllapse of Sucrose-NaCl_221118_Ch5_52.z_1 | FB6: DC=0 | FD6: Glass transition and colllapse of Sucrose-NaCl_221118_Ch5_53.z_1 | FE6: DC=0 | FG6: Glass transition and colllapse of Sucrose-NaCl_221118_Ch5_54.z_1 | FH6: DC=0 | FJ6: Glass transition and colllapse of Sucrose-NaCl_221118_Ch5_55.z_1 | FK6: DC=0 | FM6: Glass transition and colllapse of Sucrose-NaCl_221118_Ch5_56.z_1 | FN6: DC=0 | FP6: Glass transition and colllapse of Sucrose-NaCl_221118_Ch5_57.z_1 | FQ6: DC=0 | FS6: Glass transition and colllapse of Sucrose-NaCl_221118_Ch5_58.z_1 | FT6: DC=0 | FV6: Glass transition and colllapse of Sucrose-NaCl_221118_Ch5_59.z_1 | FW6: DC=0 | FY6: Glass transition and colllapse of Sucrose-NaCl_221118_Ch5_60.z_1 | FZ6: DC=0 | GB6: Glass transition and colllapse of Sucrose-NaCl_221118_Ch5_61.z_1 | GC6: DC=0 | GE6: Glass transition and colllapse of Sucrose-NaCl_221118_Ch5_62.z_1 | GF6: DC=0 | GH6: Glass transition and colllapse of Sucrose-NaCl_221118_Ch5_63.z_1 | GI6: DC=0 | GK6: Glass transition and colllapse of Sucrose-NaCl_221118_Ch5_64.z_1 | GL6: DC=0 | GN6: Glass transition and colllapse of Sucrose-NaCl_221118_Ch5_65.z_1 | GO6: DC=0 | GQ6: Glass transition and colllapse of Sucrose-NaCl_221118_Ch5_66.z_1 | GR6: DC=0 | GT6: Glass transition and colllapse of Sucrose-NaCl_221118_Ch5_67.z_1 | GU6: DC=0 | GW6: Glass transition and colllapse of Sucrose-NaCl_221118_Ch5_68.z_1 | GX6: DC=0 | GZ6: Glass transition and colllapse of Sucrose-NaCl_221118_Ch5_69.z_1 | HA6: DC=0 | HC6: Glass transition and colllapse of Sucrose-NaCl_221118_Ch5_70.z_1 | HD6: DC=0 | HF6: Glass transition and colllapse of Sucrose-NaCl_221118_Ch5_71.z_1 | HG6: DC=0 | HI6: Glass transition and colllapse of Sucrose-NaCl_221118_Ch5_72.z_1 | HJ6: DC=0 | HL6: Glass transition and colllapse of Sucrose-NaCl_221118_Ch5_73.z_1 | HM6: DC=0 | HO6: Glass transition and colllapse of Sucrose-NaCl_221118_Ch5_74.z_1 | HP6: DC=0 | HR6: Glass transition and colllapse of Sucrose-NaCl_221118_Ch5_75.z_1 | HS6: DC=0 | HU6: Glass transition and colllapse of Sucrose-NaCl_221118_Ch5_76.z_1 | HV6: DC=0 | HX6: Glass transition and colllapse of Sucrose-NaCl_221118_Ch5_77.z_1 | HY6: DC=0 | IA6: Glass transition and colllapse of Sucrose-NaCl_221118_Ch5_78.z_1 | IB6: DC=0 | ID6: Glass transition and colllapse of Sucrose-NaCl_221118_Ch5_79.z_1 | IE6: DC=0 | IG6: Glass transition and colllapse of Sucrose-NaCl_221118_Ch5_80.z_1 | IH6: DC=0 | IJ6: Glass transition and colllapse of Sucrose-NaCl_221118_Ch5_81.z_1 | IK6: DC=0 | IM6: Glass transition and colllapse of Sucrose-NaCl_221118_Ch5_82.z_1 | IN6: DC=0 | IP6: Glass transition and colllapse of Sucrose-NaCl_221118_Ch5_83.z_1 | IQ6: DC=0 | IS6: Glass transition and colllapse of Sucrose-NaCl_221118_Ch5_84.z_1 | IT6: DC=0 | IV6: Glass transition and colllapse of Sucrose-NaCl_221118_Ch5_85.z_1 | IW6: DC=0 | IY6: Glass transition and colllapse of Sucrose-NaCl_221118_Ch5_86.z_1 | IZ6: DC=0 | JB6: Glass transition and colllapse of Sucrose-NaCl_221118_Ch5_87.z_1 | JC6: DC=0 | JE6: Glass transition and colllapse of Sucrose-NaCl_221118_Ch5_88.z_1 | JF6: DC=0 | JH6: Glass transition and colllapse of Sucrose-NaCl_221118_Ch5_89.z_1 | JI6: DC=0 | JK6: Glass transition and colllapse of Sucrose-NaCl_221118_Ch5_90.z_1 | JL6: DC=0 | JN6: Glass transition and colllapse of Sucrose-NaCl_221118_Ch5_91.z_1 | JO6: DC=0 | JQ6: Glass transition and colllapse of Sucrose-NaCl_221118_Ch5_92.z_1 | JR6: DC=0 | JT6: Glass transition and colllapse of Sucrose-NaCl_221118_Ch5_93.z_1 | JU6: DC=0 | JW6: Glass transition and colllapse of Sucrose-NaCl_221118_Ch5_94.z_1 | JX6: DC=0 | JZ6: Glass transition and colllapse of Sucrose-NaCl_221118_Ch5_95.z_1 | KA6: DC=0 | KC6: Glass transition and colllapse of Sucrose-NaCl_221118_Ch5_96.z_1 | KD6: DC=0 | KF6: Glass transition and colllapse of Sucrose-NaCl_221118_Ch5_97.z_1 | KG6: DC=0 | KI6: Glass transition and colllapse of Sucrose-NaCl_221118_Ch5_98.z_1 | KJ6: DC=0 | KL6: Glass transition and colllapse of Sucrose-NaCl_221118_Ch5_99.z_1 | KM6: DC=0 | KO6: Glass transition and colllapse of Sucrose-NaCl_221118_Ch5_100.z_1 | KP6: DC=0 | KR6: Glass transition and colllapse of Sucrose-NaCl_221118_Ch5_101.z_1 | KS6: DC=0 | KU6: Glass transition and colllapse of Sucrose-NaCl_221118_Ch5_102.z_1 | KV6: DC=0 | KX6: Glass transition and colllapse of Sucrose-NaCl_221118_Ch5_103.z_1 | KY6: DC=0 | LA6: Glass transition and colllapse of Sucrose-NaCl_221118_Ch5_104.z_1 | LB6: DC=0 | LD6: Glass transition and colllapse of Sucrose-NaCl_221118_Ch5_105.z_1 | LE6: DC=0 | LG6: Glass transition and colllapse of Sucrose-NaCl_221118_Ch5_106.z_1 | LH6: DC=0 | LJ6: Glass transition and colllapse of Sucrose-NaCl_221118_Ch5_107.z_1 | LK6: DC=0 | LM6: Glass transition and colllapse of Sucrose-NaCl_221118_Ch5_108.z_1 | LN6: DC=0 | LP6: Glass transition and colllapse of Sucrose-NaCl_221118_Ch5_109.z_1 | LQ6: DC=0 | LS6: Glass transition and colllapse of Sucrose-NaCl_221118_Ch5_110.z_1 | LT6: DC=0 | LV6: Glass transition and colllapse of Sucrose-NaCl_221118_Ch5_111.z_1 | LW6: DC=0 | LY6: Glass transition and colllapse of Sucrose-NaCl_221118_Ch5_112.z_1 | LZ6: DC=0 | MB6: Glass transition and colllapse of Sucrose-NaCl_221118_Ch5_113.z_1 | MC6: DC=0 | ME6: Glass transition and colllapse of Sucrose-NaCl_221118_Ch5_114.z_1 | MF6: DC=0 | MH6: Glass transition and colllapse of Sucrose-NaCl_221118_Ch5_115.z_1 | MI6: DC=0 | MK6: Glass transition and colllapse of Sucrose-NaCl_221118_Ch5_116.z_1 | ML6: DC=0 | MN6: Glass transition and colllapse of Sucrose-NaCl_221118_Ch5_117.z_1 | MO6: DC=0 | MQ6: Glass transition and colllapse of Sucrose-NaCl_221118_Ch5_118.z_1 | MR6: DC=0 | MT6: Glass transition and colllapse of Sucrose-NaCl_221118_Ch5_119.z_1 | MU6: DC=0 | MW6: Glass transition and colllapse of Sucrose-NaCl_221118_Ch5_120.z_1 | MX6: DC=0 | MZ6: Glass transition and colllapse of Sucrose-NaCl_221118_Ch5_121.z_1 | NA6: DC=0 | NC6: Glass transition and colllapse of Sucrose-NaCl_221118_Ch5_122.z_1 | ND6: DC=0 | NF6: Glass transition and colllapse of Sucrose-NaCl_221118_Ch5_123.z_1 | NG6: DC=0 | NI6: Glass transition and colllapse of Sucrose-NaCl_221118_Ch5_124.z_1 | NJ6: DC=0 | NL6: Glass transition and colllapse of Sucrose-NaCl_221118_Ch5_125.z_1 | NM6: DC=0 | NO6: Glass transition and colllapse of Sucrose-NaCl_221118_Ch5_126.z_1 | NP6: DC=0 | NR6: Glass transition and colllapse of Sucrose-NaCl_221118_Ch5_127.z_1 | NS6: DC=0 | NU6: Glass transition and colllapse of Sucrose-NaCl_221118_Ch5_128.z_1 | NV6: DC=0 | NX6: Glass transition and colllapse of Sucrose-NaCl_221118_Ch5_129.z_1 | NY6: DC=0 | OA6: Glass transition and colllapse of Sucrose-NaCl_221118_Ch5_130.z_1 | OB6: DC=0 | OD6: Glass transition and colllapse of Sucrose-NaCl_221118_Ch5_131.z_1 | OE6: DC=0 | OG6: Glass transition and colllapse of Sucrose-NaCl_221118_Ch5_132.z_1 | OH6: DC=0 | OJ6: Glass transition and colllapse of Sucrose-NaCl_221118_Ch5_133.z_1 | OK6: DC=0 | OM6: Glass transition and colllapse of Sucrose-NaCl_221118_Ch5_134.z_1 | ON6: DC=0 | OP6: Glass transition and colllapse of Sucrose-NaCl_221118_Ch5_135.z_1 | OQ6: DC=0 | OS6: Glass transition and colllapse of Sucrose-NaCl_221118_Ch5_136.z_1 | OT6: DC=0 | OV6: Glass transition and colllapse of Sucrose-NaCl_221118_Ch5_137.z_1 | OW6: DC=0 | OY6: Glass transition and colllapse of Sucrose-NaCl_221118_Ch5_138.z_1 | OZ6: DC=0 | PB6: Glass transition and colllapse of Sucrose-NaCl_221118_Ch5_139.z_1 | PC6: DC=0 | PE6: Glass transition and colllapse of Sucrose-NaCl_221118_Ch5_140.z_1 | PF6: DC=0 | PH6: Glass transition and colllapse of Sucrose-NaCl_221118_Ch5_141.z_1 | PI6: DC=0 | PK6: Glass transition and colllapse of Sucrose-NaCl_221118_Ch5_142.z_1 | PL6: DC=0 | PN6: Glass transition and colllapse of Sucrose-NaCl_221118_Ch5_143.z_1 | PO6: DC=0 | PQ6: Glass transition and colllapse of Sucrose-NaCl_221118_Ch5_144.z_1 | PR6: DC=0 | PT6: Glass transition and colllapse of Sucrose-NaCl_221118_Ch5_145.z_1 | PU6: DC=0 | PW6: Glass transition and colllapse of Sucrose-NaCl_221118_Ch5_146.z_1 | PX6: DC=0 | PZ6: Glass transition and colllapse of Sucrose-NaCl_221118_Ch5_147.z_1 | QA6: DC=0 | QC6: Glass transition and colllapse of Sucrose-NaCl_221118_Ch5_148.z_1 | QD6: DC=0 | QF6: Glass transition and colllapse of Sucrose-NaCl_221118_Ch5_149.z_1 | QG6: DC=0 | QI6: Glass transition and colllapse of Sucrose-NaCl_221118_Ch5_150.z_1 | QJ6: DC=0
A7: 10 | B7: 3.512055e-12 | C7: -3.632917e-13 | D7: 10 | E7: 3.442131e-12 | F7: -3.526686e-13 | G7: 10 | H7: 3.452991e-12 | I7: -3.34259e-13 | J7: 10 | K7: 3.461358e-12 | L7: -3.368952e-13 | M7: 10 | N7: 3.460522e-12 | O7: -3.360265e-13 | P7: 10 | Q7: 3.460541e-12 | R7: -3.363244e-13 | S7: 10 | T7: 3.458046e-12 | U7: -3.356341e-13 | V7: 10 | W7: 3.456069e-12 | X7: -3.354783e-13 | Y7: 10 | Z7: 3.45414e-12 | AA7: -3.354782e-13 | AB7: 10 | AC7: 3.452354e-12 | AD7: -3.35937e-13 | AE7: 10 | AF7: 3.450841e-12 | AG7: -3.358014e-13 | AH7: 10 | AI7: 3.449144e-12 | AJ7: -3.36214e-13 | AK7: 10 | AL7: 3.448342e-12 | AM7: -3.367711e-13 | AN7: 10 | AO7: 3.447368e-12 | AP7: -3.370324e-13 | AQ7: 10 | AR7: 3.44706e-12 | AS7: -3.374249e-13 | AT7: 10 | AU7: 3.447148e-12 | AV7: -3.385335e-13 | AW7: 10 | AX7: 3.446992e-12 | AY7: -3.389328e-13 | AZ7: 10 | BA7: 3.449237e-12 | BB7: -3.404024e-13 | BC7: 10 | BD7: 3.450656e-12 | BE7: -3.425498e-13 | BF7: 10 | BG7: 3.44752e-12 | BH7: -3.432135e-13 | BI7: 10 | BJ7: 3.442232e-12 | BK7: -3.431555e-13 | BL7: 10 | BM7: 3.434731e-12 | BN7: -3.416391e-13 | BO7: 10 | BP7: 3.426836e-12 | BQ7: -3.407462e-13 | BR7: 10 | BS7: 3.415221e-12 | BT7: -3.371043e-13 | BU7: 10 | BV7: 3.40585e-12 | BW7: -3.357942e-13 | BX7: 10 | BY7: 3.391393e-12 | BZ7: -3.318508e-13 | CA7: 10 | CB7: 3.380345e-12 | CC7: -3.303659e-13 | CD7: 10 | CE7: 3.365917e-12 | CF7: -3.274369e-13 | CG7: 10 | CH7: 3.35335e-12 | CI7: -3.256711e-13 | CJ7: 10 | CK7: 3.337723e-12 | CL7: -3.231037e-13 | CM7: 10 | CN7: 3.324191e-12 | CO7: -3.219068e-13 | CP7: 10 | CQ7: 3.308748e-12 | CR7: -3.191e-13 | CS7: 10 | CT7: 3.294852e-12 | CU7: -3.188342e-13 | CV7: 10 | CW7: 3.278415e-12 | CX7: -3.168673e-13 | CY7: 10 | CZ7: 3.264528e-12 | DA7: -3.16794e-13 | DB7: 10 | DC7: 3.246781e-12 | DD7: -3.15418e-13 | DE7: 10 | DF7: 3.231758e-12 | DG7: -3.155837e-13 | DH7: 10 | DI7: 3.213761e-12 | DJ7: -3.14903e-13 | DK7: 10 | DL7: 3.197668e-12 | DM7: -3.152778e-13 | DN7: 10 | DO7: 3.180534e-12 | DP7: -3.150817e-13 | DQ7: 10 | DR7: 3.163383e-12 | DS7: -3.158556e-13 | DT7: 10 | DU7: 3.145533e-12 | DV7: -3.15872e-13 | DW7: 10 | DX7: 3.12519e-12 | DY7: -3.17876e-13 | DZ7: 10 | EA7: 3.097973e-12 | EB7: -3.192678e-13 | EC7: 10 | ED7: 3.07402e-12 | EE7: -3.182998e-13 | EF7: 10 | EG7: 3.050723e-12 | EH7: -3.173789e-13 | EI7: 10 | EJ7: 3.029216e-12 | EK7: -3.152595e-13 | EL7: 10 | EM7: 3.005626e-12 | EN7: -3.130707e-13 | EO7: 10 | EP7: 2.984341e-12 | EQ7: -3.104713e-13 | ER7: 10 | ES7: 2.962681e-12 | ET7: -3.076011e-13 | EU7: 10 | EV7: 2.943269e-12 | EW7: -3.046529e-13 | EX7: 10 | EY7: 2.923836e-12 | EZ7: -3.009386e-13 | FA7: 10 | FB7: 2.905328e-12 | FC7: -2.972209e-13 | FD7: 10 | FE7: 3.129938e-12 | FF7: -2.249202e-13 | FG7: 10 | FH7: 3.129995e-12 | FI7: -2.495968e-13 | FJ7: 10 | FK7: 3.139482e-12 | FL7: -2.574568e-13 | FM7: 10 | FN7: 3.146183e-12 | FO7: -2.485192e-13 | FP7: 10 | FQ7: 3.152287e-12 | FR7: -2.279894e-13 | FS7: 10 | FT7: 3.151107e-12 | FU7: -2.110869e-13 | FV7: 10 | FW7: 3.140302e-12 | FX7: -2.042117e-13 | FY7: 10 | FZ7: 3.12406e-12 | GA7: -2.215377e-13 | GB7: 10 | GC7: 3.076189e-12 | GD7: -2.741542e-13 | GE7: 10 | GF7: 2.912657e-12 | GG7: -3.065178e-13 | GH7: 10 | GI7: 2.743174e-12 | GJ7: -2.410414e-13 | GK7: 10 | GL7: 2.681323e-12 | GM7: -1.967472e-13 | GN7: 10 | GO7: 2.647878e-12 | GP7: -1.77071e-13 | GQ7: 10 | GR7: 2.624699e-12 | GS7: -1.631594e-13 | GT7: 10 | GU7: 2.607372e-12 | GV7: -1.529636e-13 | GW7: 10 | GX7: 2.592782e-12 | GY7: -1.444177e-13 | GZ7: 10 | HA7: 2.579817e-12 | HB7: -1.377284e-13 | HC7: 10 | HD7: 2.567897e-12 | HE7: -1.325574e-13 | HF7: 10 | HG7: 2.557121e-12 | HH7: -1.285501e-13 | HI7: 10 | HJ7: 2.546734e-12 | HK7: -1.256414e-13 | HL7: 10 | HM7: 2.535056e-12 | HN7: -1.230777e-13 | HO7: 10 | HP7: 2.523978e-12 | HQ7: -1.224977e-13 | HR7: 10 | HS7: 2.511561e-12 | HT7: -1.23528e-13 | HU7: 10 | HV7: 2.498352e-12 | HW7: -1.261365e-13 | HX7: 10 | HY7: 2.483776e-12 | HZ7: -1.295369e-13 | IA7: 10 | IB7: 2.471603e-12 | IC7: -1.324586e-13 | ID7: 10 | IE7: 2.456581e-12 | IF7: -1.353856e-13 | IG7: 10 | IH7: 2.442579e-12 | II7: -1.377504e-13 | IJ7: 10 | IK7: 2.428184e-12 | IL7: -1.395716e-13 | IM7: 10 | IN7: 2.415435e-12 | IO7: -1.410116e-13 | IP7: 10 | IQ7: 2.407151e-12 | IR7: -1.420879e-13 | IS7: 10 | IT7: 2.398015e-12 | IU7: -1.430853e-13 | IV7: 10 | IW7: 2.390302e-12 | IX7: -1.436544e-13 | IY7: 10 | IZ7: 2.382925e-12 | JA7: -1.439166e-13 | JB7: 10 | JC7: 2.375903e-12 | JD7: -1.442892e-13 | JE7: 10 | JF7: 2.368945e-12 | JG7: -1.447472e-13 | JH7: 10 | JI7: 2.362839e-12 | JJ7: -1.44652e-13 | JK7: 10 | JL7: 2.357761e-12 | JM7: -1.447844e-13 | JN7: 10 | JO7: 2.352622e-12 | JP7: -1.44718e-13 | JQ7: 10 | JR7: 2.349108e-12 | JS7: -1.447401e-13 | JT7: 10 | JU7: 2.345342e-12 | JV7: -1.446137e-13 | JW7: 10 | JX7: 2.342004e-12 | JY7: -1.445076e-13 | JZ7: 10 | KA7: 2.339511e-12 | KB7: -1.443937e-13 | KC7: 10 | KD7: 2.336754e-12 | KE7: -1.436463e-13 | KF7: 10 | KG7: 2.334111e-12 | KH7: -1.439989e-13 | KI7: 10 | KJ7: 2.331853e-12 | KK7: -1.440787e-13 | KL7: 10 | KM7: 2.330541e-12 | KN7: -1.44068e-13 | KO7: 10 | KP7: 2.328848e-12 | KQ7: -1.440957e-13 | KR7: 10 | KS7: 2.327701e-12 | KT7: -1.441737e-13 | KU7: 10 | KV7: 2.325764e-12 | KW7: -1.439777e-13 | KX7: 10 | KY7: 2.323711e-12 | KZ7: -1.439114e-13 | LA7: 10 | LB7: 2.322174e-12 | LC7: -1.438609e-13 | LD7: 10 | LE7: 2.321105e-12 | LF7: -1.439197e-13 | LG7: 10 | LH7: 2.3203e-12 | LI7: -1.440624e-13 | LJ7: 10 | LK7: 2.319136e-12 | LL7: -1.437977e-13 | LM7: 10 | LN7: 2.31797e-12 | LO7: -1.438268e-13 | LP7: 10 | LQ7: 2.31754e-12 | LR7: -1.439917e-13 | LS7: 10 | LT7: 2.315587e-12 | LU7: -1.440584e-13 | LV7: 10 | LW7: 2.314621e-12 | LX7: -1.441557e-13 | LY7: 10 | LZ7: 2.313937e-12 | MA7: -1.439102e-13 | MB7: 10 | MC7: 2.313113e-12 | MD7: -1.439739e-13 | ME7: 10 | MF7: 2.312048e-12 | MG7: -1.440584e-13 | MH7: 10 | MI7: 2.311724e-12 | MJ7: -1.436578e-13 | MK7: 10 | ML7: 2.310767e-12 | MM7: -1.439863e-13 | MN7: 10 | MO7: 2.310014e-12 | MP7: -1.440313e-13 | MQ7: 10 | MR7: 2.309707e-12 | MS7: -1.440471e-13 | MT7: 10 | MU7: 2.309122e-12 | MV7: -1.441162e-13 | MW7: 10 | MX7: 2.308015e-12 | MY7: -1.443026e-13 | MZ7: 10 | NA7: 2.307576e-12 | NB7: -1.442948e-13 | NC7: 10 | ND7: 2.306971e-12 | NE7: -1.442595e-13 | NF7: 10 | NG7: 2.306353e-12 | NH7: -1.443308e-13 | NI7: 10 | NJ7: 2.306191e-12 | NK7: -1.445404e-13 | NL7: 10 | NM7: 2.304942e-12 | NN7: -1.445285e-13 | NO7: 10 | NP7: 2.30506e-12 | NQ7: -1.446683e-13 | NR7: 10 | NS7: 2.305056e-12 | NT7: -1.446982e-13 | NU7: 10 | NV7: 2.304507e-12 | NW7: -1.447708e-13 | NX7: 10 | NY7: 2.304228e-12 | NZ7: -1.448402e-13 | OA7: 10 | OB7: 2.303777e-12 | OC7: -1.449319e-13 | OD7: 10 | OE7: -1.990291e-16 | OF7: 1.11181e-16 | OG7: 10 | OH7: 2.303073e-12 | OI7: -1.451667e-13 | OJ7: 10 | OK7: 2.30279e-12 | OL7: -1.450061e-13 | OM7: 10 | ON7: 2.300917e-12 | OO7: -1.454259e-13 | OP7: 10 | OQ7: 2.301e-12 | OR7: -1.450424e-13 | OS7: 10 | OT7: 2.30107e-12 | OU7: -1.452836e-13 | OV7: 10 | OW7: 2.300484e-12 | OX7: -1.451286e-13 | OY7: 10 | OZ7: 2.300805e-12 | PA7: -1.455159e-13 | PB7: 10 | PC7: 2.300165e-12 | PD7: -1.455221e-13 | PE7: 10 | PF7: 2.299725e-12 | PG7: -1.455436e-13 | PH7: 10 | PI7: 2.299495e-12 | PJ7: -1.454976e-13 | PK7: 10 | PL7: 2.298813e-12 | PM7: -1.455723e-13 | PN7: 10 | PO7: 2.298568e-12 | PP7: -1.456487e-13 | PQ7: 10 | PR7: 2.298035e-12 | PS7: -1.456177e-13 | PT7: 10 | PU7: 2.297225e-12 | PV7: -1.456523e-13 | PW7: 10 | PX7: 2.297437e-12 | PY7: -1.458303e-13 | PZ7: 10 | QA7: 2.299952e-12 | QB7: -1.464e-13 | QC7: 10 | QD7: 2.302611e-12 | QE7: -1.469424e-13 | QF7: 10 | QG7: 2.304831e-12 | QH7: -1.472676e-13 | QI7: 10 | QJ7: 2.309267e-12 | QK7: -1.483089e-13
A8: 12.589 | B8: 3.481605e-12 | C8: -3.384528e-13 | D8: 12.589 | E8: 3.412863e-12 | F8: -3.192507e-13 | G8: 12.589 | H8: 3.424098e-12 | I8: -3.103203e-13 | J8: 12.589 | K8: 3.431608e-12 | L8: -3.166229e-13 | M8: 12.589 | N8: 3.430355e-12 | O8: -3.166857e-13 | P8: 12.589 | Q8: 3.429188e-12 | R8: -3.183295e-13 | S8: 12.589 | T8: 3.425698e-12 | U8: -3.186382e-13 | V8: 12.589 | W8: 3.424422e-12 | X8: -3.183322e-13 | Y8: 12.589 | Z8: 3.421571e-12 | AA8: -3.188242e-13 | AB8: 12.589 | AC8: 3.420185e-12 | AD8: -3.191239e-13 | AE8: 12.589 | AF8: 3.418023e-12 | AG8: -3.190111e-13 | AH8: 12.589 | AI8: 3.41666e-12 | AJ8: -3.197023e-13 | AK8: 12.589 | AL8: 3.415205e-12 | AM8: -3.198823e-13 | AN8: 12.589 | AO8: 3.414747e-12 | AP8: -3.207996e-13 | AQ8: 12.589 | AR8: 3.414171e-12 | AS8: -3.208418e-13 | AT8: 12.589 | AU8: 3.413935e-12 | AV8: -3.215829e-13 | AW8: 12.589 | AX8: 3.413691e-12 | AY8: -3.223695e-13 | AZ8: 12.589 | BA8: 3.415257e-12 | BB8: -3.255685e-13 | BC8: 12.589 | BD8: 3.414852e-12 | BE8: -3.286476e-13 | BF8: 12.589 | BG8: 3.410654e-12 | BH8: -3.302548e-13 | BI8: 12.589 | BJ8: 3.405827e-12 | BK8: -3.307745e-13 | BL8: 12.589 | BM8: 3.396725e-12 | BN8: -3.306257e-13 | BO8: 12.589 | BP8: 3.388417e-12 | BQ8: -3.30957e-13 | BR8: 12.589 | BS8: 3.376867e-12 | BT8: -3.29082e-13 | BU8: 12.589 | BV8: 3.366828e-12 | BW8: -3.283735e-13 | BX8: 12.589 | BY8: 3.352343e-12 | BZ8: -3.263684e-13 | CA8: 12.589 | CB8: 3.341404e-12 | CC8: -3.254392e-13 | CD8: 12.589 | CE8: 3.324565e-12 | CF8: -3.228107e-13 | CG8: 12.589 | CH8: 3.31286e-12 | CI8: -3.230832e-13 | CJ8: 12.589 | CK8: 3.297567e-12 | CL8: -3.20831e-13 | CM8: 12.589 | CN8: 3.283323e-12 | CO8: -3.206794e-13 | CP8: 12.589 | CQ8: 3.268653e-12 | CR8: -3.206452e-13 | CS8: 12.589 | CT8: 3.25319e-12 | CU8: -3.191661e-13 | CV8: 12.589 | CW8: 3.236694e-12 | CX8: -3.180554e-13 | CY8: 12.589 | CZ8: 3.221048e-12 | DA8: -3.185995e-13 | DB8: 12.589 | DC8: 3.203736e-12 | DD8: -3.177418e-13 | DE8: 12.589 | DF8: 3.187348e-12 | DG8: -3.181423e-13 | DH8: 12.589 | DI8: 3.168876e-12 | DJ8: -3.170801e-13 | DK8: 12.589 | DL8: 3.152203e-12 | DM8: -3.173798e-13 | DN8: 12.589 | DO8: 3.134055e-12 | DP8: -3.174792e-13 | DQ8: 12.589 | DR8: 3.115388e-12 | DS8: -3.176124e-13 | DT8: 12.589 | DU8: 3.097748e-12 | DV8: -3.175983e-13 | DW8: 12.589 | DX8: 3.074891e-12 | DY8: -3.18669e-13 | DZ8: 12.589 | EA8: 3.047638e-12 | EB8: -3.182808e-13 | EC8: 12.589 | ED8: 3.023538e-12 | EE8: -3.164992e-13 | EF8: 12.589 | EG8: 2.999478e-12 | EH8: -3.13552e-13 | EI8: 12.589 | EJ8: 2.977991e-12 | EK8: -3.109038e-13 | EL8: 12.589 | EM8: 2.955341e-12 | EN8: -3.071331e-13 | EO8: 12.589 | EP8: 2.934465e-12 | EQ8: -3.029738e-13 | ER8: 12.589 | ES8: 2.913375e-12 | ET8: -2.986577e-13 | EU8: 12.589 | EV8: 2.894547e-12 | EW8: -2.945168e-13 | EX8: 12.589 | EY8: 2.876394e-12 | EZ8: -2.896424e-13 | FA8: 12.589 | FB8: 2.859662e-12 | FC8: -2.838628e-13 | FD8: 12.589 | FE8: 3.102214e-12 | FF8: -2.335981e-13 | FG8: 12.589 | FH8: 3.095311e-12 | FI8: -2.583941e-13 | FJ8: 12.589 | FK8: 3.102514e-12 | FL8: -2.666628e-13 | FM8: 12.589 | FN8: 3.11103e-12 | FO8: -2.583314e-13 | FP8: 12.589 | FQ8: 3.122577e-12 | FR8: -2.385995e-13 | FS8: 12.589 | FT8: 3.125534e-12 | FU8: -2.218223e-13 | FV8: 12.589 | FW8: 3.11612e-12 | FX8: -2.148231e-13 | FY8: 12.589 | FZ8: 3.094971e-12 | GA8: -2.334735e-13 | GB8: 12.589 | GC8: 3.033798e-12 | GD8: -2.843143e-13 | GE8: 12.589 | GF8: 2.860017e-12 | GG8: -2.983566e-13 | GH8: 12.589 | GI8: 2.710068e-12 | GJ8: -2.21904e-13 | GK8: 12.589 | GL8: 2.655721e-12 | GM8: -1.798484e-13 | GN8: 12.589 | GO8: 2.626195e-12 | GP8: -1.615758e-13 | GQ8: 12.589 | GR8: 2.60535e-12 | GS8: -1.487625e-13 | GT8: 12.589 | GU8: 2.589615e-12 | GV8: -1.396417e-13 | GW8: 12.589 | GX8: 2.576107e-12 | GY8: -1.325264e-13 | GZ8: 12.589 | HA8: 2.564137e-12 | HB8: -1.264526e-13 | HC8: 12.589 | HD8: 2.553501e-12 | HE8: -1.221309e-13 | HF8: 12.589 | HG8: 2.542754e-12 | HH8: -1.193264e-13 | HI8: 12.589 | HJ8: 2.533371e-12 | HK8: -1.176484e-13 | HL8: 12.589 | HM8: 2.522264e-12 | HN8: -1.161915e-13 | HO8: 12.589 | HP8: 2.510939e-12 | HQ8: -1.176077e-13 | HR8: 12.589 | HS8: 2.498525e-12 | HT8: -1.199646e-13 | HU8: 12.589 | HV8: 2.484474e-12 | HW8: -1.240499e-13 | HX8: 12.589 | HY8: 2.469236e-12 | HZ8: -1.286337e-13 | IA8: 12.589 | IB8: 2.45601e-12 | IC8: -1.324569e-13 | ID8: 12.589 | IE8: 2.440715e-12 | IF8: -1.358043e-13 | IG8: 12.589 | IH8: 2.426041e-12 | II8: -1.384481e-13 | IJ8: 12.589 | IK8: 2.411671e-12 | IL8: -1.406408e-13 | IM8: 12.589 | IN8: 2.398185e-12 | IO8: -1.424959e-13 | IP8: 12.589 | IQ8: 2.38998e-12 | IR8: -1.4404e-13 | IS8: 12.589 | IT8: 2.380783e-12 | IU8: -1.451961e-13 | IV8: 12.589 | IW8: 2.371908e-12 | IX8: -1.457406e-13 | IY8: 12.589 | IZ8: 2.36429e-12 | JA8: -1.463856e-13 | JB8: 12.589 | JC8: 2.35785e-12 | JD8: -1.472365e-13 | JE8: 12.589 | JF8: 2.350464e-12 | JG8: -1.474173e-13 | JH8: 12.589 | JI8: 2.343901e-12 | JJ8: -1.473571e-13 | JK8: 12.589 | JL8: 2.338956e-12 | JM8: -1.476005e-13 | JN8: 12.589 | JO8: 2.33427e-12 | JP8: -1.476704e-13 | JQ8: 12.589 | JR8: 2.330631e-12 | JS8: -1.475215e-13 | JT8: 12.589 | JU8: 2.326507e-12 | JV8: -1.475221e-13 | JW8: 12.589 | JX8: 2.323103e-12 | JY8: -1.470717e-13 | JZ8: 12.589 | KA8: 2.320406e-12 | KB8: -1.469014e-13 | KC8: 12.589 | KD8: 2.317692e-12 | KE8: -1.469093e-13 | KF8: 12.589 | KG8: 2.315223e-12 | KH8: -1.470673e-13 | KI8: 12.589 | KJ8: 2.313127e-12 | KK8: -1.470356e-13 | KL8: 12.589 | KM8: 2.311916e-12 | KN8: -1.467912e-13 | KO8: 12.589 | KP8: 2.310648e-12 | KQ8: -1.466724e-13 | KR8: 12.589 | KS8: 2.308254e-12 | KT8: -1.470327e-13 | KU8: 12.589 | KV8: 2.307029e-12 | KW8: -1.466076e-13 | KX8: 12.589 | KY8: 2.305427e-12 | KZ8: -1.468118e-13 | LA8: 12.589 | LB8: 2.303022e-12 | LC8: -1.466701e-13 | LD8: 12.589 | LE8: 2.301945e-12 | LF8: -1.467954e-13 | LG8: 12.589 | LH8: 2.30244e-12 | LI8: -1.472366e-13 | LJ8: 12.589 | LK8: 2.300371e-12 | LL8: -1.465049e-13 | LM8: 12.589 | LN8: 2.299059e-12 | LO8: -1.468323e-13 | LP8: 12.589 | LQ8: 2.298413e-12 | LR8: -1.469145e-13 | LS8: 12.589 | LT8: 2.297129e-12 | LU8: -1.467116e-13 | LV8: 12.589 | LW8: 2.296197e-12 | LX8: -1.470608e-13 | LY8: 12.589 | LZ8: 2.294919e-12 | MA8: -1.468248e-13 | MB8: 12.589 | MC8: 2.294318e-12 | MD8: -1.469119e-13 | ME8: 12.589 | MF8: 2.293821e-12 | MG8: -1.468438e-13 | MH8: 12.589 | MI8: 2.292739e-12 | MJ8: -1.467385e-13 | MK8: 12.589 | ML8: 2.291752e-12 | MM8: -1.468934e-13 | MN8: 12.589 | MO8: 2.291628e-12 | MP8: -1.468774e-13 | MQ8: 12.589 | MR8: 2.290549e-12 | MS8: -1.470957e-13 | MT8: 12.589 | MU8: 2.290747e-12 | MV8: -1.471843e-13 | MW8: 12.589 | MX8: 2.289294e-12 | MY8: -1.473788e-13 | MZ8: 12.589 | NA8: 2.288725e-12 | NB8: -1.472381e-13 | NC8: 12.589 | ND8: 2.288122e-12 | NE8: -1.473573e-13 | NF8: 12.589 | NG8: 2.288129e-12 | NH8: -1.473078e-13 | NI8: 12.589 | NJ8: 2.286888e-12 | NK8: -1.471769e-13 | NL8: 12.589 | NM8: 2.286581e-12 | NN8: -1.469613e-13 | NO8: 12.589 | NP8: 2.286731e-12 | NQ8: -1.474204e-13 | NR8: 12.589 | NS8: 2.286081e-12 | NT8: -1.475915e-13 | NU8: 12.589 | NV8: 2.285234e-12 | NW8: -1.473438e-13 | NX8: 12.589 | NY8: 2.284791e-12 | NZ8: -1.475372e-13 | OA8: 12.589 | OB8: 2.284634e-12 | OC8: -1.477803e-13 | OD8: 12.589 | OE8: -1.939133e-16 | OF8: 1.398049e-16 | OG8: 12.589 | OH8: 2.284224e-12 | OI8: -1.477227e-13 | OJ8: 12.589 | OK8: 2.283622e-12 | OL8: -1.481751e-13 | OM8: 12.589 | ON8: 2.282666e-12 | OO8: -1.484555e-13 | OP8: 12.589 | OQ8: 2.282026e-12 | OR8: -1.479296e-13 | OS8: 12.589 | OT8: 2.282275e-12 | OU8: -1.47937e-13 | OV8: 12.589 | OW8: 2.281982e-12 | OX8: -1.482618e-13 | OY8: 12.589 | OZ8: 2.281867e-12 | PA8: -1.481843e-13 | PB8: 12.589 | PC8: 2.281194e-12 | PD8: -1.48234e-13 | PE8: 12.589 | PF8: 2.280448e-12 | PG8: -1.482033e-13 | PH8: 12.589 | PI8: 2.280418e-12 | PJ8: -1.484286e-13 | PK8: 12.589 | PL8: 2.279876e-12 | PM8: -1.484327e-13 | PN8: 12.589 | PO8: 2.279833e-12 | PP8: -1.481231e-13 | PQ8: 12.589 | PR8: 2.279266e-12 | PS8: -1.486401e-13 | PT8: 12.589 | PU8: 2.278821e-12 | PV8: -1.485443e-13 | PW8: 12.589 | PX8: 2.278583e-12 | PY8: -1.490913e-13 | PZ8: 12.589 | QA8: 2.280934e-12 | QB8: -1.489461e-13 | QC8: 12.589 | QD8: 2.283078e-12 | QE8: -1.494572e-13 | QF8: 12.589 | QG8: 2.28565e-12 | QH8: -1.48971e-13 | QI8: 12.589 | QJ8: 2.289976e-12 | QK8: -1.50521e-13
A9: 15.849 | B9: 3.450093e-12 | C9: -3.226376e-13 | D9: 15.849 | E9: 3.38527e-12 | F9: -2.944073e-13 | G9: 15.849 | H9: 3.395728e-12 | I9: -2.955383e-13 | J9: 15.849 | K9: 3.400832e-12 | L9: -3.039086e-13 | M9: 15.849 | N9: 3.398232e-12 | O9: -3.059023e-13 | P9: 15.849 | Q9: 3.396154e-12 | R9: -3.082559e-13 | S9: 15.849 | T9: 3.392856e-12 | U9: -3.089217e-13 | V9: 15.849 | W9: 3.390041e-12 | X9: -3.09543e-13 | Y9: 15.849 | Z9: 3.388277e-12 | AA9: -3.095699e-13 | AB9: 15.849 | AC9: 3.386464e-12 | AD9: -3.098683e-13 | AE9: 15.849 | AF9: 3.384119e-12 | AG9: -3.098918e-13 | AH9: 15.849 | AI9: 3.382751e-12 | AJ9: -3.103402e-13 | AK9: 15.849 | AL9: 3.381429e-12 | AM9: -3.105394e-13 | AN9: 15.849 | AO9: 3.379586e-12 | AP9: -3.110379e-13 | AQ9: 15.849 | AR9: 3.379034e-12 | AS9: -3.114954e-13 | AT9: 15.849 | AU9: 3.378654e-12 | AV9: -3.129059e-13 | AW9: 15.849 | AX9: 3.378791e-12 | AY9: -3.134214e-13 | AZ9: 15.849 | BA9: 3.378404e-12 | BB9: -3.167204e-13 | BC9: 15.849 | BD9: 3.377255e-12 | BE9: -3.209126e-13 | BF9: 15.849 | BG9: 3.373123e-12 | BH9: -3.236021e-13 | BI9: 15.849 | BJ9: 3.366555e-12 | BK9: -3.25093e-13 | BL9: 15.849 | BM9: 3.357496e-12 | BN9: -3.258346e-13 | BO9: 15.849 | BP9: 3.348705e-12 | BQ9: -3.271932e-13 | BR9: 15.849 | BS9: 3.336584e-12 | BT9: -3.259582e-13 | BU9: 15.849 | BV9: 3.32587e-12 | BW9: -3.266482e-13 | BX9: 15.849 | BY9: 3.310985e-12 | BZ9: -3.248711e-13 | CA9: 15.849 | CB9: 3.298875e-12 | CC9: -3.255214e-13 | CD9: 15.849 | CE9: 3.283293e-12 | CF9: -3.245787e-13 | CG9: 15.849 | CH9: 3.269851e-12 | CI9: -3.240821e-13 | CJ9: 15.849 | CK9: 3.253693e-12 | CL9: -3.230377e-13 | CM9: 15.849 | CN9: 3.238574e-12 | CO9: -3.234988e-13 | CP9: 15.849 | CQ9: 3.222107e-12 | CR9: -3.218035e-13 | CS9: 15.849 | CT9: 3.207258e-12 | CU9: -3.223399e-13 | CV9: 15.849 | CW9: 3.1901e-12 | CX9: -3.214976e-13 | CY9: 15.849 | CZ9: 3.174189e-12 | DA9: -3.220209e-13 | DB9: 15.849 | DC9: 3.15512e-12 | DD9: -3.21211e-13 | DE9: 15.849 | DF9: 3.138776e-12 | DG9: -3.215211e-13 | DH9: 15.849 | DI9: 3.119811e-12 | DJ9: -3.207672e-13 | DK9: 15.849 | DL9: 3.101702e-12 | DM9: -3.207826e-13 | DN9: 15.849 | DO9: 3.082872e-12 | DP9: -3.200731e-13 | DQ9: 15.849 | DR9: 3.064816e-12 | DS9: -3.195113e-13 | DT9: 15.849 | DU9: 3.045374e-12 | DV9: -3.183554e-13 | DW9: 15.849 | DX9: 3.022992e-12 | DY9: -3.180145e-13 | DZ9: 15.849 | EA9: 2.994486e-12 | EB9: -3.153478e-13 | EC9: 15.849 | ED9: 2.970752e-12 | EE9: -3.119849e-13 | EF9: 15.849 | EG9: 2.9473e-12 | EH9: -3.07847e-13 | EI9: 15.849 | EJ9: 2.926604e-12 | EK9: -3.037385e-13 | EL9: 15.849 | EM9: 2.904153e-12 | EN9: -2.986823e-13 | EO9: 15.849 | EP9: 2.884138e-12 | EQ9: -2.935023e-13 | ER9: 15.849 | ES9: 2.864086e-12 | ET9: -2.882735e-13 | EU9: 15.849 | EV9: 2.847118e-12 | EW9: -2.823886e-13 | EX9: 15.849 | EY9: 2.82963e-12 | EZ9: -2.768855e-13 | FA9: 15.849 | FB9: 2.813245e-12 | FC9: -2.706181e-13 | FD9: 15.849 | FE9: 3.068738e-12 | FF9: -2.450857e-13 | FG9: 15.849 | FH9: 3.0544e-12 | FI9: -2.684501e-13 | FJ9: 15.849 | FK9: 3.060002e-12 | FL9: -2.765292e-13 | FM9: 15.849 | FN9: 3.071114e-12 | FO9: -2.7016e-13 | FP9: 15.849 | FQ9: 3.086849e-12 | FR9: -2.52022e-13 | FS9: 15.849 | FT9: 3.093576e-12 | FU9: -2.352724e-13 | FV9: 15.849 | FW9: 3.086054e-12 | FX9: -2.28741e-13 | FY9: 15.849 | FZ9: 3.059475e-12 | GA9: -2.475427e-13 | GB9: 15.849 | GC9: 2.984882e-12 | GD9: -2.937582e-13 | GE9: 15.849 | GF9: 2.808155e-12 | GG9: -2.85941e-13 | GH9: 15.849 | GI9: 2.67916e-12 | GJ9: -2.03845e-13 | GK9: 15.849 | GL9: 2.632678e-12 | GM9: -1.651435e-13 | GN9: 15.849 | GO9: 2.605367e-12 | GP9: -1.482155e-13 | GQ9: 15.849 | GR9: 2.586237e-12 | GS9: -1.368662e-13 | GT9: 15.849 | GU9: 2.571928e-12 | GV9: -1.286591e-13 | GW9: 15.849 | GX9: 2.559526e-12 | GY9: -1.224903e-13 | GZ9: 15.849 | HA9: 2.549133e-12 | HB9: -1.17561e-13 | HC9: 15.849 | HD9: 2.539002e-12 | HE9: -1.141653e-13 | HF9: 15.849 | HG9: 2.529254e-12 | HH9: -1.12385e-13 | HI9: 15.849 | HJ9: 2.519395e-12 | HK9: -1.119858e-13 | HL9: 15.849 | HM9: 2.508887e-12 | HN9: -1.126534e-13 | HO9: 15.849 | HP9: 2.49729e-12 | HQ9: -1.152117e-13 | HR9: 15.849 | HS9: 2.483889e-12 | HT9: -1.194989e-13 | HU9: 15.849 | HV9: 2.468986e-12 | HW9: -1.24633e-13 | HX9: 15.849 | HY9: 2.453269e-12 | HZ9: -1.301943e-13 | IA9: 15.849 | IB9: 2.439704e-12 | IC9: -1.344108e-13 | ID9: 15.849 | IE9: 2.423571e-12 | IF9: -1.383255e-13 | IG9: 15.849 | IH9: 2.408146e-12 | II9: -1.417327e-13 | IJ9: 15.849 | IK9: 2.393441e-12 | IL9: -1.443886e-13 | IM9: 15.849 | IN9: 2.379673e-12 | IO9: -1.467575e-13 | IP9: 15.849 | IQ9: 2.370667e-12 | IR9: -1.483339e-13 | IS9: 15.849 | IT9: 2.361431e-12 | IU9: -1.495526e-13 | IV9: 15.849 | IW9: 2.352239e-12 | IX9: -1.500646e-13 | IY9: 15.849 | IZ9: 2.345348e-12 | JA9: -1.508855e-13 | JB9: 15.849 | JC9: 2.337712e-12 | JD9: -1.513608e-13 | JE9: 15.849 | JF9: 2.330748e-12 | JG9: -1.516728e-13 | JH9: 15.849 | JI9: 2.324097e-12 | JJ9: -1.519814e-13 | JK9: 15.849 | JL9: 2.318501e-12 | JM9: -1.51963e-13 | JN9: 15.849 | JO9: 2.313946e-12 | JP9: -1.520283e-13 | JQ9: 15.849 | JR9: 2.310446e-12 | JS9: -1.51992e-13 | JT9: 15.849 | JU9: 2.3064e-12 | JV9: -1.516887e-13 | JW9: 15.849 | JX9: 2.302932e-12 | JY9: -1.515733e-13 | JZ9: 15.849 | KA9: 2.300567e-12 | KB9: -1.516772e-13 | KC9: 15.849 | KD9: 2.297771e-12 | KE9: -1.514457e-13 | KF9: 15.849 | KG9: 2.29511e-12 | KH9: -1.514497e-13 | KI9: 15.849 | KJ9: 2.293422e-12 | KK9: -1.51364e-13 | KL9: 15.849 | KM9: 2.292002e-12 | KN9: -1.512764e-13 | KO9: 15.849 | KP9: 2.289865e-12 | KQ9: -1.514165e-13 | KR9: 15.849 | KS9: 2.288858e-12 | KT9: -1.510344e-13 | KU9: 15.849 | KV9: 2.286955e-12 | KW9: -1.510513e-13 | KX9: 15.849 | KY9: 2.284841e-12 | KZ9: -1.514821e-13 | LA9: 15.849 | LB9: 2.283485e-12 | LC9: -1.509963e-13 | LD9: 15.849 | LE9: 2.28198e-12 | LF9: -1.512379e-13 | LG9: 15.849 | LH9: 2.281186e-12 | LI9: -1.512845e-13 | LJ9: 15.849 | LK9: 2.279921e-12 | LL9: -1.513258e-13 | LM9: 15.849 | LN9: 2.279329e-12 | LO9: -1.514408e-13 | LP9: 15.849 | LQ9: 2.278823e-12 | LR9: -1.513052e-13 | LS9: 15.849 | LT9: 2.277244e-12 | LU9: -1.513616e-13 | LV9: 15.849 | LW9: 2.275902e-12 | LX9: -1.512346e-13 | LY9: 15.849 | LZ9: 2.275092e-12 | MA9: -1.514243e-13 | MB9: 15.849 | MC9: 2.274501e-12 | MD9: -1.51554e-13 | ME9: 15.849 | MF9: 2.273209e-12 | MG9: -1.514594e-13 | MH9: 15.849 | MI9: 2.272631e-12 | MJ9: -1.514915e-13 | MK9: 15.849 | ML9: 2.271285e-12 | MM9: -1.51431e-13 | MN9: 15.849 | MO9: 2.270846e-12 | MP9: -1.515961e-13 | MQ9: 15.849 | MR9: 2.270466e-12 | MS9: -1.513266e-13 | MT9: 15.849 | MU9: 2.270279e-12 | MV9: -1.515565e-13 | MW9: 15.849 | MX9: 2.268963e-12 | MY9: -1.516813e-13 | MZ9: 15.849 | NA9: 2.268129e-12 | NB9: -1.516992e-13 | NC9: 15.849 | ND9: 2.267972e-12 | NE9: -1.517092e-13 | NF9: 15.849 | NG9: 2.267315e-12 | NH9: -1.519634e-13 | NI9: 15.849 | NJ9: 2.267132e-12 | NK9: -1.521721e-13 | NL9: 15.849 | NM9: 2.266031e-12 | NN9: -1.518734e-13 | NO9: 15.849 | NP9: 2.266626e-12 | NQ9: -1.52078e-13 | NR9: 15.849 | NS9: 2.266153e-12 | NT9: -1.521231e-13 | NU9: 15.849 | NV9: 2.265222e-12 | NW9: -1.521115e-13 | NX9: 15.849 | NY9: 2.265005e-12 | NZ9: -1.521807e-13 | OA9: 15.849 | OB9: 2.264673e-12 | OC9: -1.523429e-13 | OD9: 15.849 | OE9: -1.867277e-16 | OF9: 1.772679e-16 | OG9: 15.849 | OH9: 2.263873e-12 | OI9: -1.525142e-13 | OJ9: 15.849 | OK9: 2.263325e-12 | OL9: -1.527451e-13 | OM9: 15.849 | ON9: 2.262192e-12 | OO9: -1.527104e-13 | OP9: 15.849 | OQ9: 2.261639e-12 | OR9: -1.526043e-13 | OS9: 15.849 | OT9: 2.261834e-12 | OU9: -1.526876e-13 | OV9: 15.849 | OW9: 2.26152e-12 | OX9: -1.530943e-13 | OY9: 15.849 | OZ9: 2.260929e-12 | PA9: -1.5289e-13 | PB9: 15.849 | PC9: 2.260955e-12 | PD9: -1.530742e-13 | PE9: 15.849 | PF9: 2.260685e-12 | PG9: -1.531613e-13 | PH9: 15.849 | PI9: 2.259438e-12 | PJ9: -1.532338e-13 | PK9: 15.849 | PL9: 2.259721e-12 | PM9: -1.530456e-13 | PN9: 15.849 | PO9: 2.259054e-12 | PP9: -1.530218e-13 | PQ9: 15.849 | PR9: 2.258311e-12 | PS9: -1.531833e-13 | PT9: 15.849 | PU9: 2.257717e-12 | PV9: -1.533855e-13 | PW9: 15.849 | PX9: 2.257754e-12 | PY9: -1.534934e-13 | PZ9: 15.849 | QA9: 2.26072e-12 | QB9: -1.536666e-13 | QC9: 15.849 | QD9: 2.262547e-12 | QE9: -1.542781e-13 | QF9: 15.849 | QG9: 2.265451e-12 | QH9: -1.546141e-13 | QI9: 15.849 | QJ9: 2.269518e-12 | QK9: -1.548705e-13
A10: 19.953 | B10: 3.418857e-12 | C10: -3.121418e-13 | D10: 19.953 | E10: 3.361397e-12 | F10: -2.775517e-13 | G10: 19.953 | H10: 3.366655e-12 | I10: -2.867425e-13 | J10: 19.953 | K10: 3.368646e-12 | L10: -2.969931e-13 | M10: 19.953 | N10: 3.36583e-12 | O10: -2.997209e-13 | P10: 19.953 | Q10: 3.362689e-12 | R10: -3.026277e-13 | S10: 19.953 | T10: 3.358509e-12 | U10: -3.040722e-13 | V10: 19.953 | W10: 3.355838e-12 | X10: -3.04424e-13 | Y10: 19.953 | Z10: 3.353336e-12 | AA10: -3.046601e-13 | AB10: 19.953 | AC10: 3.351816e-12 | AD10: -3.050746e-13 | AE10: 19.953 | AF10: 3.349433e-12 | AG10: -3.04695e-13 | AH10: 19.953 | AI10: 3.347475e-12 | AJ10: -3.051568e-13 | AK10: 19.953 | AL10: 3.34641e-12 | AM10: -3.054649e-13 | AN10: 19.953 | AO10: 3.345222e-12 | AP10: -3.056634e-13 | AQ10: 19.953 | AR10: 3.344144e-12 | AS10: -3.06054e-13 | AT10: 19.953 | AU10: 3.343022e-12 | AV10: -3.074563e-13 | AW10: 19.953 | AX10: 3.342947e-12 | AY10: -3.078591e-13 | AZ10: 19.953 | BA10: 3.342267e-12 | BB10: -3.114976e-13 | BC10: 19.953 | BD10: 3.339507e-12 | BE10: -3.162043e-13 | BF10: 19.953 | BG10: 3.333717e-12 | BH10: -3.194654e-13 | BI10: 19.953 | BJ10: 3.327124e-12 | BK10: -3.217583e-13 | BL10: 19.953 | BM10: 3.316534e-12 | BN10: -3.235097e-13 | BO10: 19.953 | BP10: 3.3068e-12 | BQ10: -3.247975e-13 | BR10: 19.953 | BS10: 3.294273e-12 | BT10: -3.248665e-13 | BU10: 19.953 | BV10: 3.282787e-12 | BW10: -3.257547e-13 | BX10: 19.953 | BY10: 3.267238e-12 | BZ10: -3.252506e-13 | CA10: 19.953 | CB10: 3.254837e-12 | CC10: -3.254434e-13 | CD10: 19.953 | CE10: 3.23847e-12 | CF10: -3.248962e-13 | CG10: 19.953 | CH10: 3.224311e-12 | CI10: -3.25512e-13 | CJ10: 19.953 | CK10: 3.207226e-12 | CL10: -3.247352e-13 | CM10: 19.953 | CN10: 3.191637e-12 | CO10: -3.245958e-13 | CP10: 19.953 | CQ10: 3.175157e-12 | CR10: -3.237988e-13 | CS10: 19.953 | CT10: 3.158961e-12 | CU10: -3.243159e-13 | CV10: 19.953 | CW10: 3.140829e-12 | CX10: -3.232192e-13 | CY10: 19.953 | CZ10: 3.124263e-12 | DA10: -3.234837e-13 | DB10: 19.953 | DC10: 3.104783e-12 | DD10: -3.223516e-13 | DE10: 19.953 | DF10: 3.087711e-12 | DG10: -3.22062e-13 | DH10: 19.953 | DI10: 3.067758e-12 | DJ10: -3.206833e-13 | DK10: 19.953 | DL10: 3.049539e-12 | DM10: -3.19723e-13 | DN10: 19.953 | DO10: 3.03034e-12 | DP10: -3.182235e-13 | DQ10: 19.953 | DR10: 3.011653e-12 | DS10: -3.165593e-13 | DT10: 19.953 | DU10: 2.99239e-12 | DV10: -3.143343e-13 | DW10: 19.953 | DX10: 2.969831e-12 | DY10: -3.12109e-13 | DZ10: 19.953 | EA10: 2.942203e-12 | EB10: -3.073306e-13 | EC10: 19.953 | ED10: 2.919113e-12 | EE10: -3.023633e-13 | EF10: 19.953 | EG10: 2.896393e-12 | EH10: -2.969193e-13 | EI10: 19.953 | EJ10: 2.876997e-12 | EK10: -2.91673e-13 | EL10: 19.953 | EM10: 2.85554e-12 | EN10: -2.854611e-13 | EO10: 19.953 | EP10: 2.836726e-12 | EQ10: -2.796591e-13 | ER10: 19.953 | ES10: 2.817929e-12 | ET10: -2.735326e-13 | EU10: 19.953 | EV10: 2.802325e-12 | EW10: -2.668805e-13 | EX10: 19.953 | EY10: 2.786672e-12 | EZ10: -2.603715e-13 | FA10: 19.953 | FB10: 2.771536e-12 | FC10: -2.541772e-13 | FD10: 19.953 | FE10: 3.030362e-12 | FF10: -2.555796e-13 | FG10: 19.953 | FH10: 3.009859e-12 | FI10: -2.755153e-13 | FJ10: 19.953 | FK10: 3.013592e-12 | FL10: -2.830045e-13 | FM10: 19.953 | FN10: 3.026139e-12 | FO10: -2.786706e-13 | FP10: 19.953 | FQ10: 3.046689e-12 | FR10: -2.638213e-13 | FS10: 19.953 | FT10: 3.057706e-12 | FU10: -2.48758e-13 | FV10: 19.953 | FW10: 3.051217e-12 | FX10: -2.424365e-13 | FY10: 19.953 | FZ10: 3.019262e-12 | GA10: -2.601442e-13 | GB10: 19.953 | GC10: 2.932089e-12 | GD10: -2.974556e-13 | GE10: 19.953 | GF10: 2.760885e-12 | GG10: -2.671855e-13 | GH10: 19.953 | GI10: 2.651998e-12 | GJ10: -1.84768e-13 | GK10: 19.953 | GL10: 2.611297e-12 | GM10: -1.497254e-13 | GN10: 19.953 | GO10: 2.586896e-12 | GP10: -1.345731e-13 | GQ10: 19.953 | GR10: 2.569661e-12 | GS10: -1.247822e-13 | GT10: 19.953 | GU10: 2.556257e-12 | GV10: -1.175018e-13 | GW10: 19.953 | GX10: 2.545138e-12 | GY10: -1.125007e-13 | GZ10: 19.953 | HA10: 2.534745e-12 | HB10: -1.085605e-13 | HC10: 19.953 | HD10: 2.525249e-12 | HE10: -1.063806e-13 | HF10: 19.953 | HG10: 2.516305e-12 | HH10: -1.06066e-13 | HI10: 19.953 | HJ10: 2.506544e-12 | HK10: -1.068033e-13 | HL10: 19.953 | HM10: 2.496027e-12 | HN10: -1.089312e-13 | HO10: 19.953 | HP10: 2.483982e-12 | HQ10: -1.133353e-13 | HR10: 19.953 | HS10: 2.47014e-12 | HT10: -1.189105e-13 | HU10: 19.953 | HV10: 2.45394e-12 | HW10: -1.255279e-13 | HX10: 19.953 | HY10: 2.43703e-12 | HZ10: -1.317497e-13 | IA10: 19.953 | IB10: 2.422937e-12 | IC10: -1.368956e-13 | ID10: 19.953 | IE10: 2.406436e-12 | IF10: -1.410511e-13 | IG10: 19.953 | IH10: 2.390177e-12 | II10: -1.447621e-13 | IJ10: 19.953 | IK10: 2.37446e-12 | IL10: -1.479186e-13 | IM10: 19.953 | IN10: 2.360563e-12 | IO10: -1.504127e-13 | IP10: 19.953 | IQ10: 2.351175e-12 | IR10: -1.521958e-13 | IS10: 19.953 | IT10: 2.341505e-12 | IU10: -1.534404e-13 | IV10: 19.953 | IW10: 2.332622e-12 | IX10: -1.545192e-13 | IY10: 19.953 | IZ10: 2.324403e-12 | JA10: -1.551983e-13 | JB10: 19.953 | JC10: 2.317216e-12 | JD10: -1.557095e-13 | JE10: 19.953 | JF10: 2.310512e-12 | JG10: -1.559794e-13 | JH10: 19.953 | JI10: 2.303708e-12 | JJ10: -1.562652e-13 | JK10: 19.953 | JL10: 2.297934e-12 | JM10: -1.56164e-13 | JN10: 19.953 | JO10: 2.293218e-12 | JP10: -1.56363e-13 | JQ10: 19.953 | JR10: 2.289702e-12 | JS10: -1.562016e-13 | JT10: 19.953 | JU10: 2.285604e-12 | JV10: -1.560056e-13 | JW10: 19.953 | JX10: 2.28238e-12 | JY10: -1.55822e-13 | JZ10: 19.953 | KA10: 2.279532e-12 | KB10: -1.558477e-13 | KC10: 19.953 | KD10: 2.277321e-12 | KE10: -1.556036e-13 | KF10: 19.953 | KG10: 2.274736e-12 | KH10: -1.55729e-13 | KI10: 19.953 | KJ10: 2.27285e-12 | KK10: -1.555749e-13 | KL10: 19.953 | KM10: 2.271292e-12 | KN10: -1.554524e-13 | KO10: 19.953 | KP10: 2.269612e-12 | KQ10: -1.552803e-13 | KR10: 19.953 | KS10: 2.268145e-12 | KT10: -1.554777e-13 | KU10: 19.953 | KV10: 2.266038e-12 | KW10: -1.55586e-13 | KX10: 19.953 | KY10: 2.26463e-12 | KZ10: -1.553917e-13 | LA10: 19.953 | LB10: 2.262731e-12 | LC10: -1.554556e-13 | LD10: 19.953 | LE10: 2.261556e-12 | LF10: -1.55482e-13 | LG10: 19.953 | LH10: 2.26104e-12 | LI10: -1.554562e-13 | LJ10: 19.953 | LK10: 2.259597e-12 | LL10: -1.555555e-13 | LM10: 19.953 | LN10: 2.258487e-12 | LO10: -1.556031e-13 | LP10: 19.953 | LQ10: 2.258355e-12 | LR10: -1.556173e-13 | LS10: 19.953 | LT10: 2.256752e-12 | LU10: -1.554989e-13 | LV10: 19.953 | LW10: 2.255433e-12 | LX10: -1.556722e-13 | LY10: 19.953 | LZ10: 2.254396e-12 | MA10: -1.556899e-13 | MB10: 19.953 | MC10: 2.254017e-12 | MD10: -1.556245e-13 | ME10: 19.953 | MF10: 2.252953e-12 | MG10: -1.558448e-13 | MH10: 19.953 | MI10: 2.251993e-12 | MJ10: -1.557888e-13 | MK10: 19.953 | ML10: 2.250846e-12 | MM10: -1.556938e-13 | MN10: 19.953 | MO10: 2.25079e-12 | MP10: -1.556344e-13 | MQ10: 19.953 | MR10: 2.24998e-12 | MS10: -1.559017e-13 | MT10: 19.953 | MU10: 2.24951e-12 | MV10: -1.560359e-13 | MW10: 19.953 | MX10: 2.249047e-12 | MY10: -1.561321e-13 | MZ10: 19.953 | NA10: 2.24834e-12 | NB10: -1.561236e-13 | NC10: 19.953 | ND10: 2.24749e-12 | NE10: -1.562298e-13 | NF10: 19.953 | NG10: 2.247236e-12 | NH10: -1.562072e-13 | NI10: 19.953 | NJ10: 2.246771e-12 | NK10: -1.563157e-13 | NL10: 19.953 | NM10: 2.245874e-12 | NN10: -1.563057e-13 | NO10: 19.953 | NP10: 2.245999e-12 | NQ10: -1.563296e-13 | NR10: 19.953 | NS10: 2.245455e-12 | NT10: -1.565486e-13 | NU10: 19.953 | NV10: 2.244911e-12 | NW10: -1.567736e-13 | NX10: 19.953 | NY10: 2.244572e-12 | NZ10: -1.564441e-13 | OA10: 19.953 | OB10: 2.244027e-12 | OC10: -1.566753e-13 | OD10: 19.953 | OE10: -1.770988e-16 | OF10: 2.224046e-16 | OG10: 19.953 | OH10: 2.243092e-12 | OI10: -1.569537e-13 | OJ10: 19.953 | OK10: 2.242765e-12 | OL10: -1.570037e-13 | OM10: 19.953 | ON10: 2.241751e-12 | OO10: -1.569315e-13 | OP10: 19.953 | OQ10: 2.24174e-12 | OR10: -1.57013e-13 | OS10: 19.953 | OT10: 2.241532e-12 | OU10: -1.571307e-13 | OV10: 19.953 | OW10: 2.240866e-12 | OX10: -1.57318e-13 | OY10: 19.953 | OZ10: 2.240688e-12 | PA10: -1.572226e-13 | PB10: 19.953 | PC10: 2.240222e-12 | PD10: -1.573549e-13 | PE10: 19.953 | PF10: 2.239765e-12 | PG10: -1.574245e-13 | PH10: 19.953 | PI10: 2.239089e-12 | PJ10: -1.576926e-13 | PK10: 19.953 | PL10: 2.239112e-12 | PM10: -1.5753e-13 | PN10: 19.953 | PO10: 2.238504e-12 | PP10: -1.577692e-13 | PQ10: 19.953 | PR10: 2.238134e-12 | PS10: -1.576848e-13 | PT10: 19.953 | PU10: 2.237319e-12 | PV10: -1.575886e-13 | PW10: 19.953 | PX10: 2.23747e-12 | PY10: -1.578712e-13 | PZ10: 19.953 | QA10: 2.239783e-12 | QB10: -1.581994e-13 | QC10: 19.953 | QD10: 2.241662e-12 | QE10: -1.584663e-13 | QF10: 19.953 | QG10: 2.244458e-12 | QH10: -1.590689e-13 | QI10: 19.953 | QJ10: 2.247999e-12 | QK10: -1.594516e-13
A11: 25.119 | B11: 3.386507e-12 | C11: -3.09175e-13 | D11: 25.119 | E11: 3.338004e-12 | F11: -2.701486e-13 | G11: 25.119 | H11: 3.33698e-12 | I11: -2.858802e-13 | J11: 25.119 | K11: 3.336345e-12 | L11: -2.966447e-13 | M11: 25.119 | N11: 3.331699e-12 | O11: -2.994909e-13 | P11: 25.119 | Q11: 3.32776e-12 | R11: -3.024131e-13 | S11: 25.119 | T11: 3.322978e-12 | U11: -3.050574e-13 | V11: 25.119 | W11: 3.31987e-12 | X11: -3.044822e-13 | Y11: 25.119 | Z11: 3.318047e-12 | AA11: -3.046975e-13 | AB11: 25.119 | AC11: 3.315325e-12 | AD11: -3.049763e-13 | AE11: 25.119 | AF11: 3.313548e-12 | AG11: -3.049667e-13 | AH11: 25.119 | AI11: 3.312435e-12 | AJ11: -3.052218e-13 | AK11: 25.119 | AL11: 3.310311e-12 | AM11: -3.061401e-13 | AN11: 25.119 | AO11: 3.309165e-12 | AP11: -3.05625e-13 | AQ11: 25.119 | AR11: 3.307578e-12 | AS11: -3.065339e-13 | AT11: 25.119 | AU11: 3.307203e-12 | AV11: -3.06641e-13 | AW11: 25.119 | AX11: 3.306649e-12 | AY11: -3.077062e-13 | AZ11: 25.119 | BA11: 3.304645e-12 | BB11: -3.117537e-13 | BC11: 25.119 | BD11: 3.300569e-12 | BE11: -3.164014e-13 | BF11: 25.119 | BG11: 3.293317e-12 | BH11: -3.201217e-13 | BI11: 25.119 | BJ11: 3.285611e-12 | BK11: -3.226607e-13 | BL11: 25.119 | BM11: 3.273678e-12 | BN11: -3.24652e-13 | BO11: 25.119 | BP11: 3.263797e-12 | BQ11: -3.262778e-13 | BR11: 25.119 | BS11: 3.250056e-12 | BT11: -3.268243e-13 | BU11: 25.119 | BV11: 3.237484e-12 | BW11: -3.280267e-13 | BX11: 25.119 | BY11: 3.221429e-12 | BZ11: -3.2767e-13 | CA11: 25.119 | CB11: 3.208626e-12 | CC11: -3.285467e-13 | CD11: 25.119 | CE11: 3.191795e-12 | CF11: -3.276611e-13 | CG11: 25.119 | CH11: 3.176022e-12 | CI11: -3.280608e-13 | CJ11: 25.119 | CK11: 3.159223e-12 | CL11: -3.278478e-13 | CM11: 25.119 | CN11: 3.142501e-12 | CO11: -3.273268e-13 | CP11: 25.119 | CQ11: 3.125396e-12 | CR11: -3.264257e-13 | CS11: 25.119 | CT11: 3.108658e-12 | CU11: -3.26147e-13 | CV11: 25.119 | CW11: 3.090533e-12 | CX11: -3.244161e-13 | CY11: 25.119 | CZ11: 3.072787e-12 | DA11: -3.240794e-13 | DB11: 25.119 | DC11: 3.05346e-12 | DD11: -3.220997e-13 | DE11: 25.119 | DF11: 3.035995e-12 | DG11: -3.210014e-13 | DH11: 25.119 | DI11: 3.015742e-12 | DJ11: -3.185847e-13 | DK11: 25.119 | DL11: 2.997753e-12 | DM11: -3.164685e-13 | DN11: 25.119 | DO11: 2.977938e-12 | DP11: -3.137569e-13 | DQ11: 25.119 | DR11: 2.96009e-12 | DS11: -3.111234e-13 | DT11: 25.119 | DU11: 2.941149e-12 | DV11: -3.073645e-13 | DW11: 25.119 | DX11: 2.918956e-12 | DY11: -3.03082e-13 | DZ11: 25.119 | EA11: 2.8928e-12 | EB11: -2.965537e-13 | EC11: 25.119 | ED11: 2.871472e-12 | EE11: -2.90447e-13 | EF11: 25.119 | EG11: 2.849348e-12 | EH11: -2.840418e-13 | EI11: 25.119 | EJ11: 2.831197e-12 | EK11: -2.77768e-13 | EL11: 25.119 | EM11: 2.810945e-12 | EN11: -2.710127e-13 | EO11: 25.119 | EP11: 2.793488e-12 | EQ11: -2.644494e-13 | ER11: 25.119 | ES11: 2.776398e-12 | ET11: -2.577978e-13 | EU11: 25.119 | EV11: 2.76255e-12 | EW11: -2.507887e-13 | EX11: 25.119 | EY11: 2.74821e-12 | EZ11: -2.438848e-13 | FA11: 25.119 | FB11: 2.734409e-12 | FC11: -2.3751e-13 | FD11: 25.119 | FE11: 2.988405e-12 | FF11: -2.655271e-13 | FG11: 25.119 | FH11: 2.96325e-12 | FI11: -2.806223e-13 | FJ11: 25.119 | FK11: 2.965425e-12 | FL11: -2.870724e-13 | FM11: 25.119 | FN11: 2.978981e-12 | FO11: -2.851771e-13 | FP11: 25.119 | FQ11: 3.003411e-12 | FR11: -2.748018e-13 | FS11: 25.119 | FT11: 3.018099e-12 | FU11: -2.623816e-13 | FV11: 25.119 | FW11: 3.012232e-12 | FX11: -2.572991e-13 | FY11: 25.119 | FZ11: 2.975543e-12 | GA11: -2.72205e-13 | GB11: 25.119 | GC11: 2.87938e-12 | GD11: -2.964939e-13 | GE11: 25.119 | GF11: 2.719227e-12 | GG11: -2.471308e-13 | GH11: 25.119 | GI11: 2.629025e-12 | GJ11: -1.674151e-13 | GK11: 25.119 | GL11: 2.593599e-12 | GM11: -1.365466e-13 | GN11: 25.119 | GO11: 2.571505e-12 | GP11: -1.231933e-13 | GQ11: 25.119 | GR11: 2.555474e-12 | GS11: -1.148538e-13 | GT11: 25.119 | GU11: 2.542923e-12 | GV11: -1.085939e-13 | GW11: 25.119 | GX11: 2.53314e-12 | GY11: -1.046125e-13 | GZ11: 25.119 | HA11: 2.523506e-12 | HB11: -1.021503e-13 | HC11: 25.119 | HD11: 2.514473e-12 | HE11: -1.006069e-13 | HF11: 25.119 | HG11: 2.505612e-12 | HH11: -1.014512e-13 | HI11: 25.119 | HJ11: 2.496087e-12 | HK11: -1.038723e-13 | HL11: 25.119 | HM11: 2.484404e-12 | HN11: -1.081699e-13 | HO11: 25.119 | HP11: 2.47094e-12 | HQ11: -1.137455e-13 | HR11: 25.119 | HS11: 2.456471e-12 | HT11: -1.20833e-13 | HU11: 25.119 | HV11: 2.439878e-12 | HW11: -1.283487e-13 | HX11: 25.119 | HY11: 2.421685e-12 | HZ11: -1.355872e-13 | IA11: 25.119 | IB11: 2.405795e-12 | IC11: -1.413265e-13 | ID11: 25.119 | IE11: 2.388698e-12 | IF11: -1.462542e-13 | IG11: 25.119 | IH11: 2.372519e-12 | II11: -1.504465e-13 | IJ11: 25.119 | IK11: 2.356284e-12 | IL11: -1.537182e-13 | IM11: 25.119 | IN11: 2.341545e-12 | IO11: -1.564217e-13 | IP11: 25.119 | IQ11: 2.33177e-12 | IR11: -1.582962e-13 | IS11: 25.119 | IT11: 2.322061e-12 | IU11: -1.595808e-13 | IV11: 25.119 | IW11: 2.31253e-12 | IX11: -1.60733e-13 | IY11: 25.119 | IZ11: 2.303989e-12 | JA11: -1.614038e-13 | JB11: 25.119 | JC11: 2.297127e-12 | JD11: -1.619689e-13 | JE11: 25.119 | JF11: 2.290291e-12 | JG11: -1.620269e-13 | JH11: 25.119 | JI11: 2.283164e-12 | JJ11: -1.620673e-13 | JK11: 25.119 | JL11: 2.277666e-12 | JM11: -1.620568e-13 | JN11: 25.119 | JO11: 2.273328e-12 | JP11: -1.622236e-13 | JQ11: 25.119 | JR11: 2.269381e-12 | JS11: -1.620706e-13 | JT11: 25.119 | JU11: 2.265252e-12 | JV11: -1.621363e-13 | JW11: 25.119 | JX11: 2.262129e-12 | JY11: -1.615807e-13 | JZ11: 25.119 | KA11: 2.259369e-12 | KB11: -1.614055e-13 | KC11: 25.119 | KD11: 2.25655e-12 | KE11: -1.616945e-13 | KF11: 25.119 | KG11: 2.254348e-12 | KH11: -1.616952e-13 | KI11: 25.119 | KJ11: 2.252624e-12 | KK11: -1.612352e-13 | KL11: 25.119 | KM11: 2.250986e-12 | KN11: -1.613244e-13 | KO11: 25.119 | KP11: 2.249403e-12 | KQ11: -1.616074e-13 | KR11: 25.119 | KS11: 2.247507e-12 | KT11: -1.612689e-13 | KU11: 25.119 | KV11: 2.246364e-12 | KW11: -1.613386e-13 | KX11: 25.119 | KY11: 2.244419e-12 | KZ11: -1.613728e-13 | LA11: 25.119 | LB11: 2.24246e-12 | LC11: -1.615331e-13 | LD11: 25.119 | LE11: 2.241584e-12 | LF11: -1.614626e-13 | LG11: 25.119 | LH11: 2.240672e-12 | LI11: -1.616444e-13 | LJ11: 25.119 | LK11: 2.239239e-12 | LL11: -1.615412e-13 | LM11: 25.119 | LN11: 2.238092e-12 | LO11: -1.61696e-13 | LP11: 25.119 | LQ11: 2.237377e-12 | LR11: -1.616404e-13 | LS11: 25.119 | LT11: 2.236521e-12 | LU11: -1.6146e-13 | LV11: 25.119 | LW11: 2.235593e-12 | LX11: -1.617819e-13 | LY11: 25.119 | LZ11: 2.234282e-12 | MA11: -1.619835e-13 | MB11: 25.119 | MC11: 2.233913e-12 | MD11: -1.617697e-13 | ME11: 25.119 | MF11: 2.232669e-12 | MG11: -1.620761e-13 | MH11: 25.119 | MI11: 2.231712e-12 | MJ11: -1.620642e-13 | MK11: 25.119 | ML11: 2.231028e-12 | MM11: -1.618287e-13 | MN11: 25.119 | MO11: 2.230234e-12 | MP11: -1.623431e-13 | MQ11: 25.119 | MR11: 2.229538e-12 | MS11: -1.622012e-13 | MT11: 25.119 | MU11: 2.229386e-12 | MV11: -1.621472e-13 | MW11: 25.119 | MX11: 2.228742e-12 | MY11: -1.621963e-13 | MZ11: 25.119 | NA11: 2.227605e-12 | NB11: -1.623483e-13 | NC11: 25.119 | ND11: 2.226738e-12 | NE11: -1.622929e-13 | NF11: 25.119 | NG11: 2.226618e-12 | NH11: -1.625694e-13 | NI11: 25.119 | NJ11: 2.226214e-12 | NK11: -1.626135e-13 | NL11: 25.119 | NM11: 2.225237e-12 | NN11: -1.627718e-13 | NO11: 25.119 | NP11: 2.225807e-12 | NQ11: -1.626808e-13 | NR11: 25.119 | NS11: 2.225303e-12 | NT11: -1.62861e-13 | NU11: 25.119 | NV11: 2.224741e-12 | NW11: -1.629053e-13 | NX11: 25.119 | NY11: 2.224553e-12 | NZ11: -1.631077e-13 | OA11: 25.119 | OB11: 2.224235e-12 | OC11: -1.631085e-13 | OD11: 25.119 | OE11: -1.619505e-16 | OF11: 2.757662e-16 | OG11: 25.119 | OH11: 2.223074e-12 | OI11: -1.629136e-13 | OJ11: 25.119 | OK11: 2.222011e-12 | OL11: -1.631371e-13 | OM11: 25.119 | ON11: 2.222062e-12 | OO11: -1.633268e-13 | OP11: 25.119 | OQ11: 2.221424e-12 | OR11: -1.633591e-13 | OS11: 25.119 | OT11: 2.220397e-12 | OU11: -1.633496e-13 | OV11: 25.119 | OW11: 2.220301e-12 | OX11: -1.63462e-13 | OY11: 25.119 | OZ11: 2.220245e-12 | PA11: -1.638411e-13 | PB11: 25.119 | PC11: 2.219626e-12 | PD11: -1.637493e-13 | PE11: 25.119 | PF11: 2.219253e-12 | PG11: -1.635992e-13 | PH11: 25.119 | PI11: 2.21879e-12 | PJ11: -1.635305e-13 | PK11: 25.119 | PL11: 2.218164e-12 | PM11: -1.640219e-13 | PN11: 25.119 | PO11: 2.217593e-12 | PP11: -1.636135e-13 | PQ11: 25.119 | PR11: 2.217271e-12 | PS11: -1.641889e-13 | PT11: 25.119 | PU11: 2.217121e-12 | PV11: -1.64135e-13 | PW11: 25.119 | PX11: 2.21689e-12 | PY11: -1.641006e-13 | PZ11: 25.119 | QA11: 2.219065e-12 | QB11: -1.643375e-13 | QC11: 25.119 | QD11: 2.220998e-12 | QE11: -1.646334e-13 | QF11: 25.119 | QG11: 2.223829e-12 | QH11: -1.647781e-13 | QI11: 25.119 | QJ11: 2.227311e-12 | QK11: -1.654088e-13
A12: 31.623 | B12: 3.350062e-12 | C12: -3.108731e-13 | D12: 31.623 | E12: 3.310936e-12 | F12: -2.7051e-13 | G12: 31.623 | H12: 3.302979e-12 | I12: -2.885574e-13 | J12: 31.623 | K12: 3.298954e-12 | L12: -2.998514e-13 | M12: 31.623 | N12: 3.293565e-12 | O12: -3.026655e-13 | P12: 31.623 | Q12: 3.289531e-12 | R12: -3.065284e-13 | S12: 31.623 | T12: 3.28343e-12 | U12: -3.08505e-13 | V12: 31.623 | W12: 3.280648e-12 | X12: -3.081095e-13 | Y12: 31.623 | Z12: 3.278069e-12 | AA12: -3.089803e-13 | AB12: 31.623 | AC12: 3.275244e-12 | AD12: -3.088591e-13 | AE12: 31.623 | AF12: 3.273921e-12 | AG12: -3.089136e-13 | AH12: 31.623 | AI12: 3.272297e-12 | AJ12: -3.082549e-13 | AK12: 31.623 | AL12: 3.270136e-12 | AM12: -3.092844e-13 | AN12: 31.623 | AO12: 3.268979e-12 | AP12: -3.096307e-13 | AQ12: 31.623 | AR12: 3.267462e-12 | AS12: -3.095806e-13 | AT12: 31.623 | AU12: 3.266776e-12 | AV12: -3.108872e-13 | AW12: 31.623 | AX12: 3.26592e-12 | AY12: -3.108098e-13 | AZ12: 31.623 | BA12: 3.263517e-12 | BB12: -3.153515e-13 | BC12: 31.623 | BD12: 3.257517e-12 | BE12: -3.193443e-13 | BF12: 31.623 | BG12: 3.24968e-12 | BH12: -3.228066e-13 | BI12: 31.623 | BJ12: 3.24058e-12 | BK12: -3.262289e-13 | BL12: 31.623 | BM12: 3.227487e-12 | BN12: -3.273908e-13 | BO12: 31.623 | BP12: 3.217695e-12 | BQ12: -3.294608e-13 | BR12: 31.623 | BS12: 3.201756e-12 | BT12: -3.299122e-13 | BU12: 31.623 | BV12: 3.188891e-12 | BW12: -3.313269e-13 | BX12: 31.623 | BY12: 3.172145e-12 | BZ12: -3.300074e-13 | CA12: 31.623 | CB12: 3.159211e-12 | CC12: -3.308571e-13 | CD12: 31.623 | CE12: 3.141416e-12 | CF12: -3.301996e-13 | CG12: 31.623 | CH12: 3.125215e-12 | CI12: -3.295732e-13 | CJ12: 31.623 | CK12: 3.106979e-12 | CL12: -3.290267e-13 | CM12: 31.623 | CN12: 3.090643e-12 | CO12: -3.279118e-13 | CP12: 31.623 | CQ12: 3.073202e-12 | CR12: -3.264114e-13 | CS12: 31.623 | CT12: 3.055658e-12 | CU12: -3.254166e-13 | CV12: 31.623 | CW12: 3.036607e-12 | CX12: -3.235428e-13 | CY12: 31.623 | CZ12: 3.019239e-12 | DA12: -3.219276e-13 | DB12: 31.623 | DC12: 2.999844e-12 | DD12: -3.186271e-13 | DE12: 31.623 | DF12: 2.982503e-12 | DG12: -3.163202e-13 | DH12: 31.623 | DI12: 2.963291e-12 | DJ12: -3.127537e-13 | DK12: 31.623 | DL12: 2.944842e-12 | DM12: -3.093269e-13 | DN12: 31.623 | DO12: 2.925986e-12 | DP12: -3.056336e-13 | DQ12: 31.623 | DR12: 2.907466e-12 | DS12: -3.015439e-13 | DT12: 31.623 | DU12: 2.890043e-12 | DV12: -2.966516e-13 | DW12: 31.623 | DX12: 2.869074e-12 | DY12: -2.911871e-13 | DZ12: 31.623 | EA12: 2.845387e-12 | EB12: -2.826867e-13 | EC12: 31.623 | ED12: 2.824615e-12 | EE12: -2.763638e-13 | EF12: 31.623 | EG12: 2.804447e-12 | EH12: -2.685696e-13 | EI12: 31.623 | EJ12: 2.788003e-12 | EK12: -2.619265e-13 | EL12: 31.623 | EM12: 2.769074e-12 | EN12: -2.545833e-13 | EO12: 31.623 | EP12: 2.753107e-12 | EQ12: -2.476642e-13 | ER12: 31.623 | ES12: 2.736981e-12 | ET12: -2.409839e-13 | EU12: 31.623 | EV12: 2.724998e-12 | EW12: -2.332337e-13 | EX12: 31.623 | EY12: 2.712349e-12 | EZ12: -2.264584e-13 | FA12: 31.623 | FB12: 2.69972e-12 | FC12: -2.20246e-13 | FD12: 31.623 | FE12: 2.941157e-12 | FF12: -2.718234e-13 | FG12: 31.623 | FH12: 2.913805e-12 | FI12: -2.813517e-13 | FJ12: 31.623 | FK12: 2.914296e-12 | FL12: -2.867951e-13 | FM12: 31.623 | FN12: 2.928241e-12 | FO12: -2.877668e-13 | FP12: 31.623 | FQ12: 2.954284e-12 | FR12: -2.829854e-13 | FS12: 31.623 | FT12: 2.972232e-12 | FU12: -2.743163e-13 | FV12: 31.623 | FW12: 2.967213e-12 | FX12: -2.693827e-13 | FY12: 31.623 | FZ12: 2.925999e-12 | GA12: -2.795364e-13 | GB12: 31.623 | GC12: 2.824992e-12 | GD12: -2.882511e-13 | GE12: 31.623 | GF12: 2.682351e-12 | GG12: -2.248873e-13 | GH12: 31.623 | GI12: 2.608371e-12 | GJ12: -1.517956e-13 | GK12: 31.623 | GL12: 2.577163e-12 | GM12: -1.249321e-13 | GN12: 31.623 | GO12: 2.556681e-12 | GP12: -1.127766e-13 | GQ12: 31.623 | GR12: 2.541185e-12 | GS12: -1.058015e-13 | GT12: 31.623 | GU12: 2.530661e-12 | GV12: -1.01011e-13 | GW12: 31.623 | GX12: 2.520967e-12 | GY12: -9.797675e-14 | GZ12: 31.623 | HA12: 2.511335e-12 | HB12: -9.670981e-14 | HC12: 31.623 | HD12: 2.502831e-12 | HE12: -9.637501e-14 | HF12: 31.623 | HG12: 2.49442e-12 | HH12: -9.876267e-14 | HI12: 31.623 | HJ12: 2.48422e-12 | HK12: -1.024813e-13 | HL12: 31.623 | HM12: 2.472661e-12 | HN12: -1.085171e-13 | HO12: 31.623 | HP12: 2.458381e-12 | HQ12: -1.158485e-13 | HR12: 31.623 | HS12: 2.441789e-12 | HT12: -1.245244e-13 | HU12: 31.623 | HV12: 2.423695e-12 | HW12: -1.330029e-13 | HX12: 31.623 | HY12: 2.404785e-12 | HZ12: -1.409296e-13 | IA12: 31.623 | IB12: 2.388425e-12 | IC12: -1.474333e-13 | ID12: 31.623 | IE12: 2.370889e-12 | IF12: -1.528293e-13 | IG12: 31.623 | IH12: 2.353127e-12 | II12: -1.572362e-13 | IJ12: 31.623 | IK12: 2.336436e-12 | IL12: -1.610516e-13 | IM12: 31.623 | IN12: 2.32136e-12 | IO12: -1.640652e-13 | IP12: 31.623 | IQ12: 2.310841e-12 | IR12: -1.657305e-13 | IS12: 31.623 | IT12: 2.300977e-12 | IU12: -1.671534e-13 | IV12: 31.623 | IW12: 2.291197e-12 | IX12: -1.677946e-13 | IY12: 31.623 | IZ12: 2.282863e-12 | JA12: -1.684427e-13 | JB12: 31.623 | JC12: 2.275601e-12 | JD12: -1.692915e-13 | JE12: 31.623 | JF12: 2.267879e-12 | JG12: -1.693331e-13 | JH12: 31.623 | JI12: 2.261579e-12 | JJ12: -1.691943e-13 | JK12: 31.623 | JL12: 2.255695e-12 | JM12: -1.692458e-13 | JN12: 31.623 | JO12: 2.251554e-12 | JP12: -1.69482e-13 | JQ12: 31.623 | JR12: 2.247965e-12 | JS12: -1.695415e-13 | JT12: 31.623 | JU12: 2.24351e-12 | JV12: -1.693445e-13 | JW12: 31.623 | JX12: 2.240062e-12 | JY12: -1.686388e-13 | JZ12: 31.623 | KA12: 2.237882e-12 | KB12: -1.68319e-13 | KC12: 31.623 | KD12: 2.235194e-12 | KE12: -1.687103e-13 | KF12: 31.623 | KG12: 2.232572e-12 | KH12: -1.687054e-13 | KI12: 31.623 | KJ12: 2.231232e-12 | KK12: -1.682501e-13 | KL12: 31.623 | KM12: 2.229814e-12 | KN12: -1.683165e-13 | KO12: 31.623 | KP12: 2.228427e-12 | KQ12: -1.688488e-13 | KR12: 31.623 | KS12: 2.226693e-12 | KT12: -1.683841e-13 | KU12: 31.623 | KV12: 2.225095e-12 | KW12: -1.683514e-13 | KX12: 31.623 | KY12: 2.223003e-12 | KZ12: -1.683028e-13 | LA12: 31.623 | LB12: 2.220729e-12 | LC12: -1.688141e-13 | LD12: 31.623 | LE12: 2.220216e-12 | LF12: -1.689149e-13 | LG12: 31.623 | LH12: 2.218922e-12 | LI12: -1.689061e-13 | LJ12: 31.623 | LK12: 2.217458e-12 | LL12: -1.687218e-13 | LM12: 31.623 | LN12: 2.216381e-12 | LO12: -1.686166e-13 | LP12: 31.623 | LQ12: 2.21564e-12 | LR12: -1.6892e-13 | LS12: 31.623 | LT12: 2.215433e-12 | LU12: -1.689775e-13 | LV12: 31.623 | LW12: 2.213424e-12 | LX12: -1.691449e-13 | LY12: 31.623 | LZ12: 2.212238e-12 | MA12: -1.691309e-13 | MB12: 31.623 | MC12: 2.211983e-12 | MD12: -1.694974e-13 | ME12: 31.623 | MF12: 2.211821e-12 | MG12: -1.692647e-13 | MH12: 31.623 | MI12: 2.210466e-12 | MJ12: -1.697181e-13 | MK12: 31.623 | ML12: 2.209103e-12 | MM12: -1.689549e-13 | MN12: 31.623 | MO12: 2.209265e-12 | MP12: -1.698189e-13 | MQ12: 31.623 | MR12: 2.208403e-12 | MS12: -1.696559e-13 | MT12: 31.623 | MU12: 2.208376e-12 | MV12: -1.698293e-13 | MW12: 31.623 | MX12: 2.206873e-12 | MY12: -1.693506e-13 | MZ12: 31.623 | NA12: 2.206268e-12 | NB12: -1.700744e-13 | NC12: 31.623 | ND12: 2.205348e-12 | NE12: -1.696661e-13 | NF12: 31.623 | NG12: 2.205866e-12 | NH12: -1.701301e-13 | NI12: 31.623 | NJ12: 2.204396e-12 | NK12: -1.700986e-13 | NL12: 31.623 | NM12: 2.2046e-12 | NN12: -1.700516e-13 | NO12: 31.623 | NP12: 2.204487e-12 | NQ12: -1.701423e-13 | NR12: 31.623 | NS12: 2.203007e-12 | NT12: -1.701874e-13 | NU12: 31.623 | NV12: 2.202735e-12 | NW12: -1.700373e-13 | NX12: 31.623 | NY12: 2.20335e-12 | NZ12: -1.705059e-13 | OA12: 31.623 | OB12: 2.202755e-12 | OC12: -1.705409e-13 | OD12: 31.623 | OE12: -1.385038e-16 | OF12: 3.422839e-16 | OG12: 31.623 | OH12: 2.201741e-12 | OI12: -1.707555e-13 | OJ12: 31.623 | OK12: 2.200444e-12 | OL12: -1.702693e-13 | OM12: 31.623 | ON12: 2.20047e-12 | OO12: -1.707336e-13 | OP12: 31.623 | OQ12: 2.199541e-12 | OR12: -1.710389e-13 | OS12: 31.623 | OT12: 2.199071e-12 | OU12: -1.709164e-13 | OV12: 31.623 | OW12: 2.198155e-12 | OX12: -1.711447e-13 | OY12: 31.623 | OZ12: 2.19841e-12 | PA12: -1.7139e-13 | PB12: 31.623 | PC12: 2.197965e-12 | PD12: -1.711052e-13 | PE12: 31.623 | PF12: 2.198243e-12 | PG12: -1.712073e-13 | PH12: 31.623 | PI12: 2.196604e-12 | PJ12: -1.710677e-13 | PK12: 31.623 | PL12: 2.196915e-12 | PM12: -1.715755e-13 | PN12: 31.623 | PO12: 2.195606e-12 | PP12: -1.712041e-13 | PQ12: 31.623 | PR12: 2.196468e-12 | PS12: -1.7131e-13 | PT12: 31.623 | PU12: 2.196006e-12 | PV12: -1.717645e-13 | PW12: 31.623 | PX12: 2.195405e-12 | PY12: -1.71865e-13 | PZ12: 31.623 | QA12: 2.197505e-12 | QB12: -1.715509e-13 | QC12: 31.623 | QD12: 2.199744e-12 | QE12: -1.716189e-13 | QF12: 31.623 | QG12: 2.201962e-12 | QH12: -1.718496e-13 | QI12: 31.623 | QJ12: 2.205267e-12 | QK12: -1.727036e-13
A13: 39.811 | B13: 3.309688e-12 | C13: -3.15789e-13 | D13: 39.811 | E13: 3.278917e-12 | F13: -2.752698e-13 | G13: 39.811 | H13: 3.266129e-12 | I13: -2.950304e-13 | J13: 39.811 | K13: 3.258811e-12 | L13: -3.064783e-13 | M13: 39.811 | N13: 3.252656e-12 | O13: -3.087634e-13 | P13: 39.811 | Q13: 3.245453e-12 | R13: -3.1234e-13 | S13: 39.811 | T13: 3.240882e-12 | U13: -3.135867e-13 | V13: 39.811 | W13: 3.238264e-12 | X13: -3.117809e-13 | Y13: 39.811 | Z13: 3.233784e-12 | AA13: -3.140311e-13 | AB13: 39.811 | AC13: 3.231702e-12 | AD13: -3.136769e-13 | AE13: 39.811 | AF13: 3.230378e-12 | AG13: -3.135786e-13 | AH13: 39.811 | AI13: 3.229106e-12 | AJ13: -3.13222e-13 | AK13: 39.811 | AL13: 3.228159e-12 | AM13: -3.125807e-13 | AN13: 39.811 | AO13: 3.223563e-12 | AP13: -3.141695e-13 | AQ13: 39.811 | AR13: 3.223926e-12 | AS13: -3.150434e-13 | AT13: 39.811 | AU13: 3.223093e-12 | AV13: -3.151999e-13 | AW13: 39.811 | AX13: 3.221155e-12 | AY13: -3.155385e-13 | AZ13: 39.811 | BA13: 3.218678e-12 | BB13: -3.185968e-13 | BC13: 39.811 | BD13: 3.211268e-12 | BE13: -3.223254e-13 | BF13: 39.811 | BG13: 3.201263e-12 | BH13: -3.258762e-13 | BI13: 39.811 | BJ13: 3.192442e-12 | BK13: -3.289831e-13 | BL13: 39.811 | BM13: 3.178123e-12 | BN13: -3.297893e-13 | BO13: 39.811 | BP13: 3.166983e-12 | BQ13: -3.320437e-13 | BR13: 39.811 | BS13: 3.150374e-12 | BT13: -3.325088e-13 | BU13: 39.811 | BV13: 3.138099e-12 | BW13: -3.313199e-13 | BX13: 39.811 | BY13: 3.121343e-12 | BZ13: -3.302966e-13 | CA13: 39.811 | CB13: 3.105955e-12 | CC13: -3.307048e-13 | CD13: 39.811 | CE13: 3.088123e-12 | CF13: -3.293676e-13 | CG13: 39.811 | CH13: 3.073011e-12 | CI13: -3.288279e-13 | CJ13: 39.811 | CK13: 3.054053e-12 | CL13: -3.266199e-13 | CM13: 39.811 | CN13: 3.036631e-12 | CO13: -3.250334e-13 | CP13: 39.811 | CQ13: 3.018512e-12 | CR13: -3.210512e-13 | CS13: 39.811 | CT13: 3.0003e-12 | CU13: -3.21804e-13 | CV13: 39.811 | CW13: 2.981616e-12 | CX13: -3.171875e-13 | CY13: 39.811 | CZ13: 2.96638e-12 | DA13: -3.156704e-13 | DB13: 39.811 | DC13: 2.946986e-12 | DD13: -3.111952e-13 | DE13: 39.811 | DF13: 2.92895e-12 | DG13: -3.078435e-13 | DH13: 39.811 | DI13: 2.912197e-12 | DJ13: -3.01576e-13 | DK13: 39.811 | DL13: 2.893382e-12 | DM13: -2.97888e-13 | DN13: 39.811 | DO13: 2.875349e-12 | DP13: -2.926751e-13 | DQ13: 39.811 | DR13: 2.858415e-12 | DS13: -2.884016e-13 | DT13: 39.811 | DU13: 2.84217e-12 | DV13: -2.817481e-13 | DW13: 39.811 | DX13: 2.823234e-12 | DY13: -2.761842e-13 | DZ13: 39.811 | EA13: 2.801132e-12 | EB13: -2.664283e-13 | EC13: 39.811 | ED13: 2.780851e-12 | EE13: -2.594316e-13 | EF13: 39.811 | EG13: 2.763408e-12 | EH13: -2.514378e-13 | EI13: 39.811 | EJ13: 2.74819e-12 | EK13: -2.452082e-13 | EL13: 39.811 | EM13: 2.731125e-12 | EN13: -2.363253e-13 | EO13: 39.811 | EP13: 2.716748e-12 | EQ13: -2.294853e-13 | ER13: 39.811 | ES13: 2.701747e-12 | ET13: -2.216837e-13 | EU13: 39.811 | EV13: 2.692586e-12 | EW13: -2.152718e-13 | EX13: 39.811 | EY13: 2.680074e-12 | EZ13: -2.07187e-13 | FA13: 39.811 | FB13: 2.668162e-12 | FC13: -2.017867e-13 | FD13: 39.811 | FE13: 2.892153e-12 | FF13: -2.715483e-13 | FG13: 39.811 | FH13: 2.861786e-12 | FI13: -2.767909e-13 | FJ13: 39.811 | FK13: 2.864972e-12 | FL13: -2.799058e-13 | FM13: 39.811 | FN13: 2.875366e-12 | FO13: -2.831097e-13 | FP13: 39.811 | FQ13: 2.901835e-12 | FR13: -2.850582e-13 | FS13: 39.811 | FT13: 2.921023e-12 | FU13: -2.795024e-13 | FV13: 39.811 | FW13: 2.919137e-12 | FX13: -2.767728e-13 | FY13: 39.811 | FZ13: 2.874226e-12 | GA13: -2.802673e-13 | GB13: 39.811 | GC13: 2.773017e-12 | GD13: -2.722718e-13 | GE13: 39.811 | GF13: 2.650859e-12 | GG13: -2.019349e-13 | GH13: 39.811 | GI13: 2.590404e-12 | GJ13: -1.368824e-13 | GK13: 39.811 | GL13: 2.562273e-12 | GM13: -1.132225e-13 | GN13: 39.811 | GO13: 2.542445e-12 | GP13: -1.036429e-13 | GQ13: 39.811 | GR13: 2.52903e-12 | GS13: -9.75801e-14 | GT13: 39.811 | GU13: 2.51842e-12 | GV13: -9.402132e-14 | GW13: 39.811 | GX13: 2.509364e-12 | GY13: -9.198059e-14 | GZ13: 39.811 | HA13: 2.500235e-12 | HB13: -9.185168e-14 | HC13: 39.811 | HD13: 2.491237e-12 | HE13: -9.293829e-14 | HF13: 39.811 | HG13: 2.482082e-12 | HH13: -9.685708e-14 | HI13: 39.811 | HJ13: 2.472511e-12 | HK13: -1.026779e-13 | HL13: 39.811 | HM13: 2.460412e-12 | HN13: -1.098901e-13 | HO13: 39.811 | HP13: 2.445002e-12 | HQ13: -1.191818e-13 | HR13: 39.811 | HS13: 2.427208e-12 | HT13: -1.293186e-13 | HU13: 39.811 | HV13: 2.407712e-12 | HW13: -1.387886e-13 | HX13: 39.811 | HY13: 2.387473e-12 | HZ13: -1.475908e-13 | IA13: 39.811 | IB13: 2.370234e-12 | IC13: -1.546897e-13 | ID13: 39.811 | IE13: 2.35165e-12 | IF13: -1.605059e-13 | IG13: 39.811 | IH13: 2.333049e-12 | II13: -1.650786e-13 | IJ13: 39.811 | IK13: 2.315596e-12 | IL13: -1.690346e-13 | IM13: 39.811 | IN13: 2.298662e-12 | IO13: -1.71878e-13 | IP13: 39.811 | IQ13: 2.288044e-12 | IR13: -1.739477e-13 | IS13: 39.811 | IT13: 2.27824e-12 | IU13: -1.747108e-13 | IV13: 39.811 | IW13: 2.268408e-12 | IX13: -1.753197e-13 | IY13: 39.811 | IZ13: 2.259234e-12 | JA13: -1.763919e-13 | JB13: 39.811 | JC13: 2.252306e-12 | JD13: -1.767526e-13 | JE13: 39.811 | JF13: 2.244831e-12 | JG13: -1.767683e-13 | JH13: 39.811 | JI13: 2.238906e-12 | JJ13: -1.769802e-13 | JK13: 39.811 | JL13: 2.233033e-12 | JM13: -1.770511e-13 | JN13: 39.811 | JO13: 2.229375e-12 | JP13: -1.769113e-13 | JQ13: 39.811 | JR13: 2.225301e-12 | JS13: -1.770817e-13 | JT13: 39.811 | JU13: 2.221106e-12 | JV13: -1.765237e-13 | JW13: 39.811 | JX13: 2.217876e-12 | JY13: -1.770859e-13 | JZ13: 39.811 | KA13: 2.215084e-12 | KB13: -1.757494e-13 | KC13: 39.811 | KD13: 2.212932e-12 | KE13: -1.767042e-13 | KF13: 39.811 | KG13: 2.210211e-12 | KH13: -1.76566e-13 | KI13: 39.811 | KJ13: 2.208088e-12 | KK13: -1.766102e-13 | KL13: 39.811 | KM13: 2.207402e-12 | KN13: -1.762389e-13 | KO13: 39.811 | KP13: 2.205392e-12 | KQ13: -1.763873e-13 | KR13: 39.811 | KS13: 2.204141e-12 | KT13: -1.764585e-13 | KU13: 39.811 | KV13: 2.202662e-12 | KW13: -1.764182e-13 | KX13: 39.811 | KY13: 2.201201e-12 | KZ13: -1.762815e-13 | LA13: 39.811 | LB13: 2.198203e-12 | LC13: -1.77265e-13 | LD13: 39.811 | LE13: 2.197708e-12 | LF13: -1.772831e-13 | LG13: 39.811 | LH13: 2.196374e-12 | LI13: -1.771528e-13 | LJ13: 39.811 | LK13: 2.195716e-12 | LL13: -1.766647e-13 | LM13: 39.811 | LN13: 2.193706e-12 | LO13: -1.776896e-13 | LP13: 39.811 | LQ13: 2.192974e-12 | LR13: -1.769078e-13 | LS13: 39.811 | LT13: 2.192764e-12 | LU13: -1.766898e-13 | LV13: 39.811 | LW13: 2.191201e-12 | LX13: -1.772569e-13 | LY13: 39.811 | LZ13: 2.189902e-12 | MA13: -1.777182e-13 | MB13: 39.811 | MC13: 2.189048e-12 | MD13: -1.769553e-13 | ME13: 39.811 | MF13: 2.18882e-12 | MG13: -1.76857e-13 | MH13: 39.811 | MI13: 2.187446e-12 | MJ13: -1.777932e-13 | MK13: 39.811 | ML13: 2.187129e-12 | MM13: -1.767407e-13 | MN13: 39.811 | MO13: 2.186006e-12 | MP13: -1.783869e-13 | MQ13: 39.811 | MR13: 2.18529e-12 | MS13: -1.775503e-13 | MT13: 39.811 | MU13: 2.186286e-12 | MV13: -1.774206e-13 | MW13: 39.811 | MX13: 2.185064e-12 | MY13: -1.781834e-13 | MZ13: 39.811 | NA13: 2.183172e-12 | NB13: -1.778485e-13 | NC13: 39.811 | ND13: 2.182642e-12 | NE13: -1.781141e-13 | NF13: 39.811 | NG13: 2.183545e-12 | NH13: -1.778002e-13 | NI13: 39.811 | NJ13: 2.181728e-12 | NK13: -1.784985e-13 | NL13: 39.811 | NM13: 2.181543e-12 | NN13: -1.78881e-13 | NO13: 39.811 | NP13: 2.181404e-12 | NQ13: -1.782509e-13 | NR13: 39.811 | NS13: 2.181268e-12 | NT13: -1.790784e-13 | NU13: 39.811 | NV13: 2.179819e-12 | NW13: -1.79033e-13 | NX13: 39.811 | NY13: 2.180574e-12 | NZ13: -1.788667e-13 | OA13: 39.811 | OB13: 2.179804e-12 | OC13: -1.783879e-13 | OD13: 39.811 | OE13: -9.223425e-17 | OF13: 4.107714e-16 | OG13: 39.811 | OH13: 2.178775e-12 | OI13: -1.780124e-13 | OJ13: 39.811 | OK13: 2.177284e-12 | OL13: -1.789771e-13 | OM13: 39.811 | ON13: 2.177329e-12 | OO13: -1.787062e-13 | OP13: 39.811 | OQ13: 2.176498e-12 | OR13: -1.793427e-13 | OS13: 39.811 | OT13: 2.175788e-12 | OU13: -1.792492e-13 | OV13: 39.811 | OW13: 2.175177e-12 | OX13: -1.800175e-13 | OY13: 39.811 | OZ13: 2.175118e-12 | PA13: -1.796453e-13 | PB13: 39.811 | PC13: 2.175557e-12 | PD13: -1.791866e-13 | PE13: 39.811 | PF13: 2.17521e-12 | PG13: -1.790929e-13 | PH13: 39.811 | PI13: 2.174135e-12 | PJ13: -1.790233e-13 | PK13: 39.811 | PL13: 2.173632e-12 | PM13: -1.798688e-13 | PN13: 39.811 | PO13: 2.173396e-12 | PP13: -1.798414e-13 | PQ13: 39.811 | PR13: 2.173458e-12 | PS13: -1.801895e-13 | PT13: 39.811 | PU13: 2.172893e-12 | PV13: -1.799626e-13 | PW13: 39.811 | PX13: 2.172088e-12 | PY13: -1.804548e-13 | PZ13: 39.811 | QA13: 2.174035e-12 | QB13: -1.796222e-13 | QC13: 39.811 | QD13: 2.176461e-12 | QE13: -1.795663e-13 | QF13: 39.811 | QG13: 2.178508e-12 | QH13: -1.79628e-13 | QI13: 39.811 | QJ13: 2.18186e-12 | QK13: -1.806347e-13
A14: 50.119 | B14: 3.265446e-12 | C14: -3.204862e-13 | D14: 50.119 | E14: 3.240872e-12 | F14: -2.725575e-13 | G14: 50.119 | H14: 3.228093e-12 | I14: -2.977833e-13 | J14: 50.119 | K14: 3.209155e-12 | L14: -3.084124e-13 | M14: 50.119 | N14: 3.209996e-12 | O14: -3.136651e-13 | P14: 50.119 | Q14: 3.199289e-12 | R14: -3.253054e-13 | S14: 50.119 | T14: 3.187543e-12 | U14: -3.100047e-13 | V14: 50.119 | W14: 3.191241e-12 | X14: -3.149759e-13 | Y14: 50.119 | Z14: 3.182212e-12 | AA14: -3.179507e-13 | AB14: 50.119 | AC14: 3.19273e-12 | AD14: -3.156296e-13 | AE14: 50.119 | AF14: 3.187218e-12 | AG14: -3.210226e-13 | AH14: 50.119 | AI14: 3.183785e-12 | AJ14: -3.145364e-13 | AK14: 50.119 | AL14: 3.179681e-12 | AM14: -3.151935e-13 | AN14: 50.119 | AO14: 3.176905e-12 | AP14: -3.107085e-13 | AQ14: 50.119 | AR14: 3.170095e-12 | AS14: -3.173323e-13 | AT14: 50.119 | AU14: 3.173813e-12 | AV14: -3.218487e-13 | AW14: 50.119 | AX14: 3.17014e-12 | AY14: -3.250795e-13 | AZ14: 50.119 | BA14: 3.165885e-12 | BB14: -3.235793e-13 | BC14: 50.119 | BD14: 3.158107e-12 | BE14: -3.290753e-13 | BF14: 50.119 | BG14: 3.15194e-12 | BH14: -3.246759e-13 | BI14: 50.119 | BJ14: 3.148217e-12 | BK14: -3.308647e-13 | BL14: 50.119 | BM14: 3.133426e-12 | BN14: -3.303493e-13 | BO14: 50.119 | BP14: 3.115858e-12 | BQ14: -3.336652e-13 | BR14: 50.119 | BS14: 3.098243e-12 | BT14: -3.292972e-13 | BU14: 50.119 | BV14: 3.082187e-12 | BW14: -3.258545e-13 | BX14: 50.119 | BY14: 3.067245e-12 | BZ14: -3.280298e-13 | CA14: 50.119 | CB14: 3.046275e-12 | CC14: -3.236298e-13 | CD14: 50.119 | CE14: 3.033764e-12 | CF14: -3.285356e-13 | CG14: 50.119 | CH14: 3.014664e-12 | CI14: -3.272087e-13 | CJ14: 50.119 | CK14: 3.004126e-12 | CL14: -3.240742e-13 | CM14: 50.119 | CN14: 2.985425e-12 | CO14: -3.173043e-13 | CP14: 50.119 | CQ14: 2.960985e-12 | CR14: -3.104457e-13 | CS14: 50.119 | CT14: 2.943286e-12 | CU14: -3.083114e-13 | CV14: 50.119 | CW14: 2.936121e-12 | CX14: -3.062908e-13 | CY14: 50.119 | CZ14: 2.909993e-12 | DA14: -3.010254e-13 | DB14: 50.119 | DC14: 2.89219e-12 | DD14: -3.036533e-13 | DE14: 50.119 | DF14: 2.878502e-12 | DG14: -2.979243e-13 | DH14: 50.119 | DI14: 2.863315e-12 | DJ14: -2.8847e-13 | DK14: 50.119 | DL14: 2.846878e-12 | DM14: -2.873176e-13 | DN14: 50.119 | DO14: 2.827963e-12 | DP14: -2.721971e-13 | DQ14: 50.119 | DR14: 2.814596e-12 | DS14: -2.693754e-13 | DT14: 50.119 | DU14: 2.794616e-12 | DV14: -2.69979e-13 | DW14: 50.119 | DX14: 2.776405e-12 | DY14: -2.548995e-13 | DZ14: 50.119 | EA14: 2.757479e-12 | EB14: -2.516281e-13 | EC14: 50.119 | ED14: 2.741407e-12 | EE14: -2.447753e-13 | EF14: 50.119 | EG14: 2.730383e-12 | EH14: -2.334257e-13 | EI14: 50.119 | EJ14: 2.7135e-12 | EK14: -2.233478e-13 | EL14: 50.119 | EM14: 2.691856e-12 | EN14: -2.165359e-13 | EO14: 50.119 | EP14: 2.682516e-12 | EQ14: -2.140836e-13 | ER14: 50.119 | ES14: 2.671125e-12 | ET14: -2.017003e-13 | EU14: 50.119 | EV14: 2.659897e-12 | EW14: -2.006989e-13 | EX14: 50.119 | EY14: 2.647636e-12 | EZ14: -1.937302e-13 | FA14: 50.119 | FB14: 2.638075e-12 | FC14: -1.809066e-13 | FD14: 50.119 | FE14: 2.843159e-12 | FF14: -2.716774e-13 | FG14: 50.119 | FH14: 2.815238e-12 | FI14: -2.687044e-13 | FJ14: 50.119 | FK14: 2.813669e-12 | FL14: -2.675313e-13 | FM14: 50.119 | FN14: 2.822252e-12 | FO14: -2.723266e-13 | FP14: 50.119 | FQ14: 2.852432e-12 | FR14: -2.806642e-13 | FS14: 50.119 | FT14: 2.869636e-12 | FU14: -2.848948e-13 | FV14: 50.119 | FW14: 2.866163e-12 | FX14: -2.822542e-13 | FY14: 50.119 | FZ14: 2.822047e-12 | GA14: -2.799e-13 | GB14: 50.119 | GC14: 2.729099e-12 | GD14: -2.539131e-13 | GE14: 50.119 | GF14: 2.62054e-12 | GG14: -1.831292e-13 | GH14: 50.119 | GI14: 2.575974e-12 | GJ14: -1.19637e-13 | GK14: 50.119 | GL14: 2.545859e-12 | GM14: -1.054368e-13 | GN14: 50.119 | GO14: 2.529657e-12 | GP14: -9.913372e-14 | GQ14: 50.119 | GR14: 2.514442e-12 | GS14: -9.012959e-14 | GT14: 50.119 | GU14: 2.509573e-12 | GV14: -8.561221e-14 | GW14: 50.119 | GX14: 2.500772e-12 | GY14: -8.669986e-14 | GZ14: 50.119 | HA14: 2.490146e-12 | HB14: -9.212074e-14 | HC14: 50.119 | HD14: 2.483656e-12 | HE14: -9.518703e-14 | HF14: 50.119 | HG14: 2.47006e-12 | HH14: -9.282062e-14 | HI14: 50.119 | HJ14: 2.461683e-12 | HK14: -1.082108e-13 | HL14: 50.119 | HM14: 2.447167e-12 | HN14: -1.185834e-13 | HO14: 50.119 | HP14: 2.435449e-12 | HQ14: -1.260426e-13 | HR14: 50.119 | HS14: 2.411738e-12 | HT14: -1.396871e-13 | HU14: 50.119 | HV14: 2.391943e-12 | HW14: -1.514198e-13 | HX14: 50.119 | HY14: 2.367509e-12 | HZ14: -1.600285e-13 | IA14: 50.119 | IB14: 2.349539e-12 | IC14: -1.589685e-13 | ID14: 50.119 | IE14: 2.328567e-12 | IF14: -1.72372e-13 | IG14: 50.119 | IH14: 2.311721e-12 | II14: -1.788092e-13 | IJ14: 50.119 | IK14: 2.288548e-12 | IL14: -1.773032e-13 | IM14: 50.119 | IN14: 2.274272e-12 | IO14: -1.851094e-13 | IP14: 50.119 | IQ14: 2.264184e-12 | IR14: -1.800202e-13 | IS14: 50.119 | IT14: 2.249666e-12 | IU14: -1.838142e-13 | IV14: 50.119 | IW14: 2.240815e-12 | IX14: -1.86379e-13 | IY14: 50.119 | IZ14: 2.238577e-12 | JA14: -1.843291e-13 | JB14: 50.119 | JC14: 2.227207e-12 | JD14: -1.833255e-13 | JE14: 50.119 | JF14: 2.219606e-12 | JG14: -1.841262e-13 | JH14: 50.119 | JI14: 2.217331e-12 | JJ14: -1.85422e-13 | JK14: 50.119 | JL14: 2.212389e-12 | JM14: -1.875819e-13 | JN14: 50.119 | JO14: 2.208332e-12 | JP14: -1.883177e-13 | JQ14: 50.119 | JR14: 2.198333e-12 | JS14: -1.828266e-13 | JT14: 50.119 | JU14: 2.195359e-12 | JV14: -1.820501e-13 | JW14: 50.119 | JX14: 2.198248e-12 | JY14: -1.851745e-13 | JZ14: 50.119 | KA14: 2.191328e-12 | KB14: -1.793251e-13 | KC14: 50.119 | KD14: 2.184019e-12 | KE14: -1.843792e-13 | KF14: 50.119 | KG14: 2.188285e-12 | KH14: -1.800242e-13 | KI14: 50.119 | KJ14: 2.186323e-12 | KK14: -1.87971e-13 | KL14: 50.119 | KM14: 2.179322e-12 | KN14: -1.84987e-13 | KO14: 50.119 | KP14: 2.178266e-12 | KQ14: -1.866849e-13 | KR14: 50.119 | KS14: 2.184641e-12 | KT14: -1.852373e-13 | KU14: 50.119 | KV14: 2.180086e-12 | KW14: -1.911478e-13 | KX14: 50.119 | KY14: 2.180296e-12 | KZ14: -1.864387e-13 | LA14: 50.119 | LB14: 2.178959e-12 | LC14: -1.862085e-13 | LD14: 50.119 | LE14: 2.173151e-12 | LF14: -1.906546e-13 | LG14: 50.119 | LH14: 2.169822e-12 | LI14: -1.879885e-13 | LJ14: 50.119 | LK14: 2.173221e-12 | LL14: -1.902561e-13 | LM14: 50.119 | LN14: 2.173524e-12 | LO14: -1.876616e-13 | LP14: 50.119 | LQ14: 2.168189e-12 | LR14: -1.825137e-13 | LS14: 50.119 | LT14: 2.16936e-12 | LU14: -1.923208e-13 | LV14: 50.119 | LW14: 2.164074e-12 | LX14: -1.845137e-13 | LY14: 50.119 | LZ14: 2.163498e-12 | MA14: -1.825925e-13 | MB14: 50.119 | MC14: 2.164752e-12 | MD14: -1.823082e-13 | ME14: 50.119 | MF14: 2.162575e-12 | MG14: -1.835941e-13 | MH14: 50.119 | MI14: 2.168982e-12 | MJ14: -1.858424e-13 | MK14: 50.119 | ML14: 2.167224e-12 | MM14: -1.855087e-13 | MN14: 50.119 | MO14: 2.165354e-12 | MP14: -1.858355e-13 | MQ14: 50.119 | MR14: 2.166207e-12 | MS14: -1.904571e-13 | MT14: 50.119 | MU14: 2.159396e-12 | MV14: -1.922884e-13 | MW14: 50.119 | MX14: 2.164687e-12 | MY14: -1.862029e-13 | MZ14: 50.119 | NA14: 2.162467e-12 | NB14: -1.850958e-13 | NC14: 50.119 | ND14: 2.160961e-12 | NE14: -1.824769e-13 | NF14: 50.119 | NG14: 2.159365e-12 | NH14: -1.924632e-13 | NI14: 50.119 | NJ14: 2.156919e-12 | NK14: -1.841852e-13 | NL14: 50.119 | NM14: 2.154561e-12 | NN14: -1.908077e-13 | NO14: 50.119 | NP14: 2.159933e-12 | NQ14: -1.909707e-13 | NR14: 50.119 | NS14: 2.152387e-12 | NT14: -1.853302e-13 | NU14: 50.119 | NV14: 2.151949e-12 | NW14: -1.86134e-13 | NX14: 50.119 | NY14: 2.15669e-12 | NZ14: -1.829033e-13 | OA14: 50.119 | OB14: 2.158527e-12 | OC14: -1.929437e-13 | OD14: 50.119 | OE14: 2.713401e-18 | OF14: 4.341857e-16 | OG14: 50.119 | OH14: 2.154173e-12 | OI14: -1.937916e-13 | OJ14: 50.119 | OK14: 2.149914e-12 | OL14: -1.841275e-13 | OM14: 50.119 | ON14: 2.148142e-12 | OO14: -1.924758e-13 | OP14: 50.119 | OQ14: 2.149047e-12 | OR14: -1.932353e-13 | OS14: 50.119 | OT14: 2.157535e-12 | OU14: -1.900935e-13 | OV14: 50.119 | OW14: 2.150535e-12 | OX14: -1.85694e-13 | OY14: 50.119 | OZ14: 2.156308e-12 | PA14: -1.868495e-13 | PB14: 50.119 | PC14: 2.151352e-12 | PD14: -1.835564e-13 | PE14: 50.119 | PF14: 2.155291e-12 | PG14: -1.86672e-13 | PH14: 50.119 | PI14: 2.148926e-12 | PJ14: -1.930794e-13 | PK14: 50.119 | PL14: 2.144876e-12 | PM14: -1.891421e-13 | PN14: 50.119 | PO14: 2.149141e-12 | PP14: -1.851541e-13 | PQ14: 50.119 | PR14: 2.146671e-12 | PS14: -1.865361e-13 | PT14: 50.119 | PU14: 2.15193e-12 | PV14: -1.904727e-13 | PW14: 50.119 | PX14: 2.148635e-12 | PY14: -1.854974e-13 | PZ14: 50.119 | QA14: 2.148744e-12 | QB14: -1.857245e-13 | QC14: 50.119 | QD14: 2.154512e-12 | QE14: -1.877024e-13 | QF14: 50.119 | QG14: 2.158887e-12 | QH14: -1.909346e-13 | QI14: 50.119 | QJ14: 2.153937e-12 | QK14: -1.875715e-13
A15: 63.096 | B15: 3.215955e-12 | C15: -3.259863e-13 | D15: 63.096 | E15: 3.200123e-12 | F15: -2.92882e-13 | G15: 63.096 | H15: 3.177315e-12 | I15: -3.089484e-13 | J15: 63.096 | K15: 3.16429e-12 | L15: -3.176639e-13 | M15: 63.096 | N15: 3.155847e-12 | O15: -3.198369e-13 | P15: 63.096 | Q15: 3.148595e-12 | R15: -3.226912e-13 | S15: 63.096 | T15: 3.141223e-12 | U15: -3.233096e-13 | V15: 63.096 | W15: 3.137949e-12 | X15: -3.217869e-13 | Y15: 63.096 | Z15: 3.136487e-12 | AA15: -3.214598e-13 | AB15: 63.096 | AC15: 3.13301e-12 | AD15: -3.211656e-13 | AE15: 63.096 | AF15: 3.130717e-12 | AG15: -3.208069e-13 | AH15: 63.096 | AI15: 3.129382e-12 | AJ15: -3.208631e-13 | AK15: 63.096 | AL15: 3.127945e-12 | AM15: -3.212259e-13 | AN15: 63.096 | AO15: 3.126527e-12 | AP15: -3.211195e-13 | AQ15: 63.096 | AR15: 3.12532e-12 | AS15: -3.22116e-13 | AT15: 63.096 | AU15: 3.123793e-12 | AV15: -3.215823e-13 | AW15: 63.096 | AX15: 3.122985e-12 | AY15: -3.222045e-13 | AZ15: 63.096 | BA15: 3.116818e-12 | BB15: -3.244392e-13 | BC15: 63.096 | BD15: 3.108376e-12 | BE15: -3.264485e-13 | BF15: 63.096 | BG15: 3.097042e-12 | BH15: -3.28893e-13 | BI15: 63.096 | BJ15: 3.086346e-12 | BK15: -3.304944e-13 | BL15: 63.096 | BM15: 3.071775e-12 | BN15: -3.289865e-13 | BO15: 63.096 | BP15: 3.058067e-12 | BQ15: -3.294459e-13 | BR15: 63.096 | BS15: 3.04352e-12 | BT15: -3.281797e-13 | BU15: 63.096 | BV15: 3.028646e-12 | BW15: -3.264635e-13 | BX15: 63.096 | BY15: 3.010638e-12 | BZ15: -3.240842e-13 | CA15: 63.096 | CB15: 2.996148e-12 | CC15: -3.217721e-13 | CD15: 63.096 | CE15: 2.979124e-12 | CF15: -3.185318e-13 | CG15: 63.096 | CH15: 2.962535e-12 | CI15: -3.14547e-13 | CJ15: 63.096 | CK15: 2.94554e-12 | CL15: -3.122097e-13 | CM15: 63.096 | CN15: 2.929023e-12 | CO15: -3.077506e-13 | CP15: 63.096 | CQ15: 2.912863e-12 | CR15: -3.028534e-13 | CS15: 63.096 | CT15: 2.896881e-12 | CU15: -2.985039e-13 | CV15: 63.096 | CW15: 2.879376e-12 | CX15: -2.937228e-13 | CY15: 63.096 | CZ15: 2.864282e-12 | DA15: -2.888923e-13 | DB15: 63.096 | DC15: 2.847265e-12 | DD15: -2.824286e-13 | DE15: 63.096 | DF15: 2.831919e-12 | DG15: -2.778473e-13 | DH15: 63.096 | DI15: 2.814881e-12 | DJ15: -2.722299e-13 | DK15: 63.096 | DL15: 2.800109e-12 | DM15: -2.664079e-13 | DN15: 63.096 | DO15: 2.785558e-12 | DP15: -2.602667e-13 | DQ15: 63.096 | DR15: 2.771412e-12 | DS15: -2.537899e-13 | DT15: 63.096 | DU15: 2.756722e-12 | DV15: -2.47373e-13 | DW15: 63.096 | DX15: 2.740655e-12 | DY15: -2.398081e-13 | DZ15: 63.096 | EA15: 2.72276e-12 | EB15: -2.297949e-13 | EC15: 63.096 | ED15: 2.707908e-12 | EE15: -2.2136e-13 | EF15: 63.096 | EG15: 2.692972e-12 | EH15: -2.145848e-13 | EI15: 63.096 | EJ15: 2.678827e-12 | EK15: -2.080508e-13 | EL15: 63.096 | EM15: 2.665528e-12 | EN15: -2.004917e-13 | EO15: 63.096 | EP15: 2.65384e-12 | EQ15: -1.937861e-13 | ER15: 63.096 | ES15: 2.642032e-12 | ET15: -1.870061e-13 | EU15: 63.096 | EV15: 2.633437e-12 | EW15: -1.796127e-13 | EX15: 63.096 | EY15: 2.624719e-12 | EZ15: -1.738328e-13 | FA15: 63.096 | FB15: 2.615795e-12 | FC15: -1.687242e-13 | FD15: 63.096 | FE15: 2.795447e-12 | FF15: -2.599085e-13 | FG15: 63.096 | FH15: 2.771125e-12 | FI15: -2.52298e-13 | FJ15: 63.096 | FK15: 2.771006e-12 | FL15: -2.547984e-13 | FM15: 63.096 | FN15: 2.779232e-12 | FO15: -2.613925e-13 | FP15: 63.096 | FQ15: 2.79938e-12 | FR15: -2.705025e-13 | FS15: 63.096 | FT15: 2.817416e-12 | FU15: -2.753019e-13 | FV15: 63.096 | FW15: 2.813907e-12 | FX15: -2.725885e-13 | FY15: 63.096 | FZ15: 2.770319e-12 | GA15: -2.653549e-13 | GB15: 63.096 | GC15: 2.686912e-12 | GD15: -2.315792e-13 | GE15: 63.096 | GF15: 2.602002e-12 | GG15: -1.598996e-13 | GH15: 63.096 | GI15: 2.559377e-12 | GJ15: -1.119597e-13 | GK15: 63.096 | GL15: 2.535968e-12 | GM15: -9.451923e-14 | GN15: 63.096 | GO15: 2.518646e-12 | GP15: -8.724744e-14 | GQ15: 63.096 | GR15: 2.506822e-12 | GS15: -8.38492e-14 | GT15: 63.096 | GU15: 2.497132e-12 | GV15: -8.353141e-14 | GW15: 63.096 | GX15: 2.488463e-12 | GY15: -8.379176e-14 | GZ15: 63.096 | HA15: 2.480014e-12 | HB15: -8.527597e-14 | HC15: 63.096 | HD15: 2.470874e-12 | HE15: -9.036685e-14 | HF15: 63.096 | HG15: 2.461811e-12 | HH15: -9.802243e-14 | HI15: 63.096 | HJ15: 2.448818e-12 | HK15: -1.068776e-13 | HL15: 63.096 | HM15: 2.434222e-12 | HN15: -1.181274e-13 | HO15: 63.096 | HP15: 2.416742e-12 | HQ15: -1.303977e-13 | HR15: 63.096 | HS15: 2.394887e-12 | HT15: -1.432437e-13 | HU15: 63.096 | HV15: 2.372227e-12 | HW15: -1.549117e-13 | HX15: 63.096 | HY15: 2.348458e-12 | HZ15: -1.650183e-13 | IA15: 63.096 | IB15: 2.329691e-12 | IC15: -1.728792e-13 | ID15: 63.096 | IE15: 2.308132e-12 | IF15: -1.791262e-13 | IG15: 63.096 | IH15: 2.288046e-12 | II15: -1.846898e-13 | IJ15: 63.096 | IK15: 2.269124e-12 | IL15: -1.886353e-13 | IM15: 63.096 | IN15: 2.251445e-12 | IO15: -1.916369e-13 | IP15: 63.096 | IQ15: 2.240457e-12 | IR15: -1.937018e-13 | IS15: 63.096 | IT15: 2.230015e-12 | IU15: -1.943307e-13 | IV15: 63.096 | IW15: 2.219877e-12 | IX15: -1.948849e-13 | IY15: 63.096 | IZ15: 2.209897e-12 | JA15: -1.961491e-13 | JB15: 63.096 | JC15: 2.203863e-12 | JD15: -1.956229e-13 | JE15: 63.096 | JF15: 2.196311e-12 | JG15: -1.96095e-13 | JH15: 63.096 | JI15: 2.189701e-12 | JJ15: -1.948487e-13 | JK15: 63.096 | JL15: 2.183956e-12 | JM15: -1.954848e-13 | JN15: 63.096 | JO15: 2.179454e-12 | JP15: -1.957921e-13 | JQ15: 63.096 | JR15: 2.176534e-12 | JS15: -1.959562e-13 | JT15: 63.096 | JU15: 2.172484e-12 | JV15: -1.960461e-13 | JW15: 63.096 | JX15: 2.169737e-12 | JY15: -1.964072e-13 | JZ15: 63.096 | KA15: 2.166662e-12 | KB15: -1.965138e-13 | KC15: 63.096 | KD15: 2.165321e-12 | KE15: -1.955066e-13 | KF15: 63.096 | KG15: 2.161883e-12 | KH15: -1.955838e-13 | KI15: 63.096 | KJ15: 2.1597e-12 | KK15: -1.961143e-13 | KL15: 63.096 | KM15: 2.159906e-12 | KN15: -1.960195e-13 | KO15: 63.096 | KP15: 2.157557e-12 | KQ15: -1.964409e-13 | KR15: 63.096 | KS15: 2.155921e-12 | KT15: -1.96084e-13 | KU15: 63.096 | KV15: 2.154055e-12 | KW15: -1.959682e-13 | KX15: 63.096 | KY15: 2.151782e-12 | KZ15: -1.97057e-13 | LA15: 63.096 | LB15: 2.150058e-12 | LC15: -1.972272e-13 | LD15: 63.096 | LE15: 2.15029e-12 | LF15: -1.969882e-13 | LG15: 63.096 | LH15: 2.14877e-12 | LI15: -1.970828e-13 | LJ15: 63.096 | LK15: 2.146859e-12 | LL15: -1.972729e-13 | LM15: 63.096 | LN15: 2.146359e-12 | LO15: -1.979483e-13 | LP15: 63.096 | LQ15: 2.145209e-12 | LR15: -1.9809e-13 | LS15: 63.096 | LT15: 2.144449e-12 | LU15: -1.971444e-13 | LV15: 63.096 | LW15: 2.143344e-12 | LX15: -1.980605e-13 | LY15: 63.096 | LZ15: 2.142164e-12 | MA15: -1.983818e-13 | MB15: 63.096 | MC15: 2.140814e-12 | MD15: -1.986145e-13 | ME15: 63.096 | MF15: 2.140032e-12 | MG15: -1.978161e-13 | MH15: 63.096 | MI15: 2.13966e-12 | MJ15: -1.988082e-13 | MK15: 63.096 | ML15: 2.138072e-12 | MM15: -1.983433e-13 | MN15: 63.096 | MO15: 2.138534e-12 | MP15: -1.988577e-13 | MQ15: 63.096 | MR15: 2.136796e-12 | MS15: -1.992006e-13 | MT15: 63.096 | MU15: 2.137372e-12 | MV15: -1.991044e-13 | MW15: 63.096 | MX15: 2.135903e-12 | MY15: -1.99014e-13 | MZ15: 63.096 | NA15: 2.136048e-12 | NB15: -1.99227e-13 | NC15: 63.096 | ND15: 2.134274e-12 | NE15: -1.99783e-13 | NF15: 63.096 | NG15: 2.133018e-12 | NH15: -1.995645e-13 | NI15: 63.096 | NJ15: 2.133504e-12 | NK15: -1.999341e-13 | NL15: 63.096 | NM15: 2.132751e-12 | NN15: -1.999955e-13 | NO15: 63.096 | NP15: 2.132708e-12 | NQ15: -1.992467e-13 | NR15: 63.096 | NS15: 2.132481e-12 | NT15: -2.004441e-13 | NU15: 63.096 | NV15: 2.132027e-12 | NW15: -1.999138e-13 | NX15: 63.096 | NY15: 2.131174e-12 | NZ15: -2.005105e-13 | OA15: 63.096 | OB15: 2.130841e-12 | OC15: -1.993385e-13 | OD15: 63.096 | OE15: 1.231885e-17 | OF15: 6.119912e-16 | OG15: 63.096 | OH15: 2.129939e-12 | OI15: -1.992237e-13 | OJ15: 63.096 | OK15: 2.128936e-12 | OL15: -2.00621e-13 | OM15: 63.096 | ON15: 2.127842e-12 | OO15: -1.995836e-13 | OP15: 63.096 | OQ15: 2.127163e-12 | OR15: -2.002473e-13 | OS15: 63.096 | OT15: 2.127343e-12 | OU15: -2.012395e-13 | OV15: 63.096 | OW15: 2.127599e-12 | OX15: -2.008644e-13 | OY15: 63.096 | OZ15: 2.126417e-12 | PA15: -2.012654e-13 | PB15: 63.096 | PC15: 2.126567e-12 | PD15: -2.014414e-13 | PE15: 63.096 | PF15: 2.125816e-12 | PG15: -2.015187e-13 | PH15: 63.096 | PI15: 2.124019e-12 | PJ15: -2.013035e-13 | PK15: 63.096 | PL15: 2.12465e-12 | PM15: -2.018471e-13 | PN15: 63.096 | PO15: 2.123729e-12 | PP15: -2.018544e-13 | PQ15: 63.096 | PR15: 2.123858e-12 | PS15: -2.01181e-13 | PT15: 63.096 | PU15: 2.122908e-12 | PV15: -2.013482e-13 | PW15: 63.096 | PX15: 2.122218e-12 | PY15: -2.020782e-13 | PZ15: 63.096 | QA15: 2.124479e-12 | QB15: -2.017777e-13 | QC15: 63.096 | QD15: 2.126058e-12 | QE15: -2.012153e-13 | QF15: 63.096 | QG15: 2.129034e-12 | QH15: -2.001046e-13 | QI15: 63.096 | QJ15: 2.132718e-12 | QK15: -2.001742e-13
A16: 79.433 | B16: 3.162141e-12 | C16: -3.304057e-13 | D16: 79.433 | E16: 3.154588e-12 | F16: -3.03108e-13 | G16: 79.433 | H16: 3.124991e-12 | I16: -3.161525e-13 | J16: 79.433 | K16: 3.111661e-12 | L16: -3.210511e-13 | M16: 79.433 | N16: 3.102565e-12 | O16: -3.200643e-13 | P16: 79.433 | Q16: 3.094274e-12 | R16: -3.239589e-13 | S16: 79.433 | T16: 3.086554e-12 | U16: -3.204012e-13 | V16: 79.433 | W16: 3.085061e-12 | X16: -3.209661e-13 | Y16: 79.433 | Z16: 3.081232e-12 | AA16: -3.233093e-13 | AB16: 79.433 | AC16: 3.079949e-12 | AD16: -3.198821e-13 | AE16: 79.433 | AF16: 3.078481e-12 | AG16: -3.222077e-13 | AH16: 79.433 | AI16: 3.075106e-12 | AJ16: -3.194654e-13 | AK16: 79.433 | AL16: 3.074449e-12 | AM16: -3.214232e-13 | AN16: 79.433 | AO16: 3.070203e-12 | AP16: -3.207885e-13 | AQ16: 79.433 | AR16: 3.071136e-12 | AS16: -3.223527e-13 | AT16: 79.433 | AU16: 3.069669e-12 | AV16: -3.210159e-13 | AW16: 79.433 | AX16: 3.067669e-12 | AY16: -3.231125e-13 | AZ16: 79.433 | BA16: 3.062326e-12 | BB16: -3.240706e-13 | BC16: 79.433 | BD16: 3.052317e-12 | BE16: -3.237253e-13 | BF16: 79.433 | BG16: 3.041416e-12 | BH16: -3.233821e-13 | BI16: 79.433 | BJ16: 3.029108e-12 | BK16: -3.241989e-13 | BL16: 79.433 | BM16: 3.016059e-12 | BN16: -3.230097e-13 | BO16: 79.433 | BP16: 3.00199e-12 | BQ16: -3.212441e-13 | BR16: 79.433 | BS16: 2.986169e-12 | BT16: -3.196795e-13 | BU16: 79.433 | BV16: 2.972289e-12 | BW16: -3.168813e-13 | BX16: 79.433 | BY16: 2.955908e-12 | BZ16: -3.120642e-13 | CA16: 79.433 | CB16: 2.94168e-12 | CC16: -3.108198e-13 | CD16: 79.433 | CE16: 2.925504e-12 | CF16: -3.073375e-13 | CG16: 79.433 | CH16: 2.910363e-12 | CI16: -3.010685e-13 | CJ16: 79.433 | CK16: 2.892834e-12 | CL16: -2.973409e-13 | CM16: 79.433 | CN16: 2.877668e-12 | CO16: -2.91487e-13 | CP16: 79.433 | CQ16: 2.861707e-12 | CR16: -2.885076e-13 | CS16: 79.433 | CT16: 2.847601e-12 | CU16: -2.836525e-13 | CV16: 79.433 | CW16: 2.8327e-12 | CX16: -2.758434e-13 | CY16: 79.433 | CZ16: 2.818021e-12 | DA16: -2.72333e-13 | DB16: 79.433 | DC16: 2.802913e-12 | DD16: -2.657995e-13 | DE16: 79.433 | DF16: 2.788822e-12 | DG16: -2.60045e-13 | DH16: 79.433 | DI16: 2.772819e-12 | DJ16: -2.532845e-13 | DK16: 79.433 | DL16: 2.759114e-12 | DM16: -2.475462e-13 | DN16: 79.433 | DO16: 2.745088e-12 | DP16: -2.404842e-13 | DQ16: 79.433 | DR16: 2.732937e-12 | DS16: -2.352973e-13 | DT16: 79.433 | DU16: 2.719307e-12 | DV16: -2.276786e-13 | DW16: 79.433 | DX16: 2.705103e-12 | DY16: -2.211599e-13 | DZ16: 79.433 | EA16: 2.689997e-12 | EB16: -2.108285e-13 | EC16: 79.433 | ED16: 2.675855e-12 | EE16: -2.02984e-13 | EF16: 79.433 | EG16: 2.661533e-12 | EH16: -1.950964e-13 | EI16: 79.433 | EJ16: 2.649896e-12 | EK16: -1.878146e-13 | EL16: 79.433 | EM16: 2.637143e-12 | EN16: -1.823638e-13 | EO16: 79.433 | EP16: 2.62706e-12 | EQ16: -1.761072e-13 | ER16: 79.433 | ES16: 2.61585e-12 | ET16: -1.683773e-13 | EU16: 79.433 | EV16: 2.609387e-12 | EW16: -1.625285e-13 | EX16: 79.433 | EY16: 2.601306e-12 | EZ16: -1.577725e-13 | FA16: 79.433 | FB16: 2.592502e-12 | FC16: -1.523187e-13 | FD16: 79.433 | FE16: 2.750641e-12 | FF16: -2.44616e-13 | FG16: 79.433 | FH16: 2.729494e-12 | FI16: -2.358297e-13 | FJ16: 79.433 | FK16: 2.728359e-12 | FL16: -2.375359e-13 | FM16: 79.433 | FN16: 2.735764e-12 | FO16: -2.456287e-13 | FP16: 79.433 | FQ16: 2.752422e-12 | FR16: -2.556058e-13 | FS16: 79.433 | FT16: 2.766821e-12 | FU16: -2.640477e-13 | FV16: 79.433 | FW16: 2.762799e-12 | FX16: -2.602874e-13 | FY16: 79.433 | FZ16: 2.723583e-12 | GA16: -2.457764e-13 | GB16: 79.433 | GC16: 2.652874e-12 | GD16: -2.076795e-13 | GE16: 79.433 | GF16: 2.583661e-12 | GG16: -1.419364e-13 | GH16: 79.433 | GI16: 2.544556e-12 | GJ16: -1.006961e-13 | GK16: 79.433 | GL16: 2.524074e-12 | GM16: -8.695317e-14 | GN16: 79.433 | GO16: 2.507934e-12 | GP16: -8.037266e-14 | GQ16: 79.433 | GR16: 2.49664e-12 | GS16: -8.002104e-14 | GT16: 79.433 | GU16: 2.487197e-12 | GV16: -7.795765e-14 | GW16: 79.433 | GX16: 2.477777e-12 | GY16: -8.005385e-14 | GZ16: 79.433 | HA16: 2.471126e-12 | HB16: -8.506719e-14 | HC16: 79.433 | HD16: 2.460775e-12 | HE16: -9.010696e-14 | HF16: 79.433 | HG16: 2.450169e-12 | HH16: -1.01274e-13 | HI16: 79.433 | HJ16: 2.437063e-12 | HK16: -1.106905e-13 | HL16: 79.433 | HM16: 2.421045e-12 | HN16: -1.247657e-13 | HO16: 79.433 | HP16: 2.400773e-12 | HQ16: -1.392961e-13 | HR16: 79.433 | HS16: 2.376955e-12 | HT16: -1.517817e-13 | HU16: 79.433 | HV16: 2.353023e-12 | HW16: -1.64598e-13 | HX16: 79.433 | HY16: 2.328043e-12 | HZ16: -1.762185e-13 | IA16: 79.433 | IB16: 2.306514e-12 | IC16: -1.859017e-13 | ID16: 79.433 | IE16: 2.284482e-12 | IF16: -1.909357e-13 | IG16: 79.433 | IH16: 2.263472e-12 | II16: -1.971565e-13 | IJ16: 79.433 | IK16: 2.243231e-12 | IL16: -2.018356e-13 | IM16: 79.433 | IN16: 2.225714e-12 | IO16: -2.039002e-13 | IP16: 79.433 | IQ16: 2.213676e-12 | IR16: -2.056932e-13 | IS16: 79.433 | IT16: 2.202615e-12 | IU16: -2.069901e-13 | IV16: 79.433 | IW16: 2.192922e-12 | IX16: -2.062824e-13 | IY16: 79.433 | IZ16: 2.184642e-12 | JA16: -2.060517e-13 | JB16: 79.433 | JC16: 2.176853e-12 | JD16: -2.075091e-13 | JE16: 79.433 | JF16: 2.169428e-12 | JG16: -2.074493e-13 | JH16: 79.433 | JI16: 2.164226e-12 | JJ16: -2.07446e-13 | JK16: 79.433 | JL16: 2.158764e-12 | JM16: -2.073109e-13 | JN16: 79.433 | JO16: 2.154e-12 | JP16: -2.07393e-13 | JQ16: 79.433 | JR16: 2.150044e-12 | JS16: -2.087839e-13 | JT16: 79.433 | JU16: 2.145711e-12 | JV16: -2.087744e-13 | JW16: 79.433 | JX16: 2.142668e-12 | JY16: -2.07199e-13 | JZ16: 79.433 | KA16: 2.140044e-12 | KB16: -2.072559e-13 | KC16: 79.433 | KD16: 2.13809e-12 | KE16: -2.090732e-13 | KF16: 79.433 | KG16: 2.135315e-12 | KH16: -2.076852e-13 | KI16: 79.433 | KJ16: 2.134397e-12 | KK16: -2.079517e-13 | KL16: 79.433 | KM16: 2.133038e-12 | KN16: -2.090304e-13 | KO16: 79.433 | KP16: 2.130077e-12 | KQ16: -2.092535e-13 | KR16: 79.433 | KS16: 2.129702e-12 | KT16: -2.079655e-13 | KU16: 79.433 | KV16: 2.127983e-12 | KW16: -2.080707e-13 | KX16: 79.433 | KY16: 2.126312e-12 | KZ16: -2.086443e-13 | LA16: 79.433 | LB16: 2.123702e-12 | LC16: -2.080046e-13 | LD16: 79.433 | LE16: 2.123626e-12 | LF16: -2.107124e-13 | LG16: 79.433 | LH16: 2.122375e-12 | LI16: -2.109411e-13 | LJ16: 79.433 | LK16: 2.120184e-12 | LL16: -2.089444e-13 | LM16: 79.433 | LN16: 2.118996e-12 | LO16: -2.093471e-13 | LP16: 79.433 | LQ16: 2.118312e-12 | LR16: -2.104606e-13 | LS16: 79.433 | LT16: 2.118249e-12 | LU16: -2.097354e-13 | LV16: 79.433 | LW16: 2.115467e-12 | LX16: -2.105158e-13 | LY16: 79.433 | LZ16: 2.114845e-12 | MA16: -2.109772e-13 | MB16: 79.433 | MC16: 2.11411e-12 | MD16: -2.109717e-13 | ME16: 79.433 | MF16: 2.113832e-12 | MG16: -2.120072e-13 | MH16: 79.433 | MI16: 2.112111e-12 | MJ16: -2.113213e-13 | MK16: 79.433 | ML16: 2.111843e-12 | MM16: -2.106043e-13 | MN16: 79.433 | MO16: 2.110951e-12 | MP16: -2.121801e-13 | MQ16: 79.433 | MR16: 2.110193e-12 | MS16: -2.102629e-13 | MT16: 79.433 | MU16: 2.109262e-12 | MV16: -2.112447e-13 | MW16: 79.433 | MX16: 2.10865e-12 | MY16: -2.112169e-13 | MZ16: 79.433 | NA16: 2.107712e-12 | NB16: -2.116715e-13 | NC16: 79.433 | ND16: 2.107221e-12 | NE16: -2.124055e-13 | NF16: 79.433 | NG16: 2.108309e-12 | NH16: -2.125587e-13 | NI16: 79.433 | NJ16: 2.106331e-12 | NK16: -2.138523e-13 | NL16: 79.433 | NM16: 2.105078e-12 | NN16: -2.130594e-13 | NO16: 79.433 | NP16: 2.1058e-12 | NQ16: -2.137685e-13 | NR16: 79.433 | NS16: 2.104835e-12 | NT16: -2.135797e-13 | NU16: 79.433 | NV16: 2.104295e-12 | NW16: -2.135442e-13 | NX16: 79.433 | NY16: 2.103506e-12 | NZ16: -2.128381e-13 | OA16: 79.433 | OB16: 2.103896e-12 | OC16: -2.117062e-13 | OD16: 79.433 | OE16: 1.928406e-12 | OF16: -2.103067e-13 | OG16: 79.433 | OH16: 2.102797e-12 | OI16: -2.121836e-13 | OJ16: 79.433 | OK16: 2.101444e-12 | OL16: -2.140169e-13 | OM16: 79.433 | ON16: 2.10183e-12 | OO16: -2.142375e-13 | OP16: 79.433 | OQ16: 2.101055e-12 | OR16: -2.14137e-13 | OS16: 79.433 | OT16: 2.100014e-12 | OU16: -2.119046e-13 | OV16: 79.433 | OW16: 2.099031e-12 | OX16: -2.141513e-13 | OY16: 79.433 | OZ16: 2.098543e-12 | PA16: -2.136584e-13 | PB16: 79.433 | PC16: 2.098865e-12 | PD16: -2.124208e-13 | PE16: 79.433 | PF16: 2.098574e-12 | PG16: -2.129552e-13 | PH16: 79.433 | PI16: 2.097992e-12 | PJ16: -2.128087e-13 | PK16: 79.433 | PL16: 2.096789e-12 | PM16: -2.152401e-13 | PN16: 79.433 | PO16: 2.095246e-12 | PP16: -2.141694e-13 | PQ16: 79.433 | PR16: 2.095816e-12 | PS16: -2.150202e-13 | PT16: 79.433 | PU16: 2.095492e-12 | PV16: -2.133046e-13 | PW16: 79.433 | PX16: 2.094589e-12 | PY16: -2.148292e-13 | PZ16: 79.433 | QA16: 2.098197e-12 | QB16: -2.128075e-13 | QC16: 79.433 | QD16: 2.09875e-12 | QE16: -2.130911e-13 | QF16: 79.433 | QG16: 2.101856e-12 | QH16: -2.117825e-13 | QI16: 79.433 | QJ16: 2.105185e-12 | QK16: -2.127597e-13
A17: 100 | B17: 3.102991e-12 | C17: -3.29767e-13 | D17: 100 | E17: 3.103087e-12 | F17: -3.088911e-13 | G17: 100 | H17: 3.069324e-12 | I17: -3.158694e-13 | J17: 100 | K17: 3.054572e-12 | L17: -3.186312e-13 | M17: 100 | N17: 3.04655e-12 | O17: -3.199906e-13 | P17: 100 | Q17: 3.037877e-12 | R17: -3.183788e-13 | S17: 100 | T17: 3.031865e-12 | U17: -3.196489e-13 | V17: 100 | W17: 3.029109e-12 | X17: -3.183047e-13 | Y17: 100 | Z17: 3.025681e-12 | AA17: -3.156628e-13 | AB17: 100 | AC17: 3.023715e-12 | AD17: -3.176524e-13 | AE17: 100 | AF17: 3.020543e-12 | AG17: -3.166708e-13 | AH17: 100 | AI17: 3.019659e-12 | AJ17: -3.169275e-13 | AK17: 100 | AL17: 3.017567e-12 | AM17: -3.153543e-13 | AN17: 100 | AO17: 3.015744e-12 | AP17: -3.155893e-13 | AQ17: 100 | AR17: 3.015051e-12 | AS17: -3.155193e-13 | AT17: 100 | AU17: 3.013787e-12 | AV17: -3.164727e-13 | AW17: 100 | AX17: 3.011956e-12 | AY17: -3.167674e-13 | AZ17: 100 | BA17: 3.005159e-12 | BB17: -3.158337e-13 | BC17: 100 | BD17: 2.9955e-12 | BE17: -3.175204e-13 | BF17: 100 | BG17: 2.986493e-12 | BH17: -3.177714e-13 | BI17: 100 | BJ17: 2.976002e-12 | BK17: -3.144415e-13 | BL17: 100 | BM17: 2.962566e-12 | BN17: -3.119189e-13 | BO17: 100 | BP17: 2.946631e-12 | BQ17: -3.116484e-13 | BR17: 100 | BS17: 2.935355e-12 | BT17: -3.068238e-13 | BU17: 100 | BV17: 2.919849e-12 | BW17: -3.017354e-13 | BX17: 100 | BY17: 2.904951e-12 | BZ17: -2.995619e-13 | CA17: 100 | CB17: 2.888723e-12 | CC17: -2.938466e-13 | CD17: 100 | CE17: 2.87207e-12 | CF17: -2.898511e-13 | CG17: 100 | CH17: 2.859892e-12 | CI17: -2.851173e-13 | CJ17: 100 | CK17: 2.844941e-12 | CL17: -2.819521e-13 | CM17: 100 | CN17: 2.830271e-12 | CO17: -2.758427e-13 | CP17: 100 | CQ17: 2.815923e-12 | CR17: -2.701987e-13 | CS17: 100 | CT17: 2.80193e-12 | CU17: -2.642875e-13 | CV17: 100 | CW17: 2.788751e-12 | CX17: -2.588107e-13 | CY17: 100 | CZ17: 2.774415e-12 | DA17: -2.519531e-13 | DB17: 100 | DC17: 2.759376e-12 | DD17: -2.454771e-13 | DE17: 100 | DF17: 2.748749e-12 | DG17: -2.391152e-13 | DH17: 100 | DI17: 2.734573e-12 | DJ17: -2.328708e-13 | DK17: 100 | DL17: 2.722123e-12 | DM17: -2.282525e-13 | DN17: 100 | DO17: 2.709792e-12 | DP17: -2.199079e-13 | DQ17: 100 | DR17: 2.697075e-12 | DS17: -2.137166e-13 | DT17: 100 | DU17: 2.685515e-12 | DV17: -2.082403e-13 | DW17: 100 | DX17: 2.673455e-12 | DY17: -1.997697e-13 | DZ17: 100 | EA17: 2.658681e-12 | EB17: -1.92559e-13 | EC17: 100 | ED17: 2.648387e-12 | EE17: -1.841197e-13 | EF17: 100 | EG17: 2.634448e-12 | EH17: -1.778304e-13 | EI17: 100 | EJ17: 2.624817e-12 | EK17: -1.704697e-13 | EL17: 100 | EM17: 2.611703e-12 | EN17: -1.639306e-13 | EO17: 100 | EP17: 2.603176e-12 | EQ17: -1.570657e-13 | ER17: 100 | ES17: 2.593215e-12 | ET17: -1.525308e-13 | EU17: 100 | EV17: 2.587391e-12 | EW17: -1.46937e-13 | EX17: 100 | EY17: 2.579974e-12 | EZ17: -1.413398e-13 | FA17: 100 | FB17: 2.573523e-12 | FC17: -1.363921e-13 | FD17: 100 | FE17: 2.709816e-12 | FF17: -2.29077e-13 | FG17: 100 | FH17: 2.691445e-12 | FI17: -2.163454e-13 | FJ17: 100 | FK17: 2.691017e-12 | FL17: -2.17269e-13 | FM17: 100 | FN17: 2.695683e-12 | FO17: -2.253337e-13 | FP17: 100 | FQ17: 2.708193e-12 | FR17: -2.381447e-13 | FS17: 100 | FT17: 2.721314e-12 | FU17: -2.469248e-13 | FV17: 100 | FW17: 2.716431e-12 | FX17: -2.442077e-13 | FY17: 100 | FZ17: 2.683068e-12 | GA17: -2.250071e-13 | GB17: 100 | GC17: 2.623818e-12 | GD17: -1.855313e-13 | GE17: 100 | GF17: 2.565922e-12 | GG17: -1.256671e-13 | GH17: 100 | GI17: 2.53298e-12 | GJ17: -8.992614e-14 | GK17: 100 | GL17: 2.513157e-12 | GM17: -7.847682e-14 | GN17: 100 | GO17: 2.498388e-12 | GP17: -7.480717e-14 | GQ17: 100 | GR17: 2.486561e-12 | GS17: -7.427525e-14 | GT17: 100 | GU17: 2.477153e-12 | GV17: -7.454883e-14 | GW17: 100 | GX17: 2.468993e-12 | GY17: -7.872514e-14 | GZ17: 100 | HA17: 2.459942e-12 | HB17: -8.472111e-14 | HC17: 100 | HD17: 2.450484e-12 | HE17: -9.247503e-14 | HF17: 100 | HG17: 2.43879e-12 | HH17: -1.041468e-13 | HI17: 100 | HJ17: 2.423849e-12 | HK17: -1.175479e-13 | HL17: 100 | HM17: 2.405451e-12 | HN17: -1.338679e-13 | HO17: 100 | HP17: 2.382542e-12 | HQ17: -1.496385e-13 | HR17: 100 | HS17: 2.358253e-12 | HT17: -1.651785e-13 | HU17: 100 | HV17: 2.332383e-12 | HW17: -1.777539e-13 | HX17: 100 | HY17: 2.303665e-12 | HZ17: -1.899841e-13 | IA17: 100 | IB17: 2.28178e-12 | IC17: -1.976316e-13 | ID17: 100 | IE17: 2.258402e-12 | IF17: -2.059773e-13 | IG17: 100 | IH17: 2.235347e-12 | II17: -2.114121e-13 | IJ17: 100 | IK17: 2.214429e-12 | IL17: -2.152567e-13 | IM17: 100 | IN17: 2.197022e-12 | IO17: -2.175217e-13 | IP17: 100 | IQ17: 2.185796e-12 | IR17: -2.177125e-13 | IS17: 100 | IT17: 2.173981e-12 | IU17: -2.17722e-13 | IV17: 100 | IW17: 2.16407e-12 | IX17: -2.199954e-13 | IY17: 100 | IZ17: 2.15641e-12 | JA17: -2.194462e-13 | JB17: 100 | JC17: 2.1488e-12 | JD17: -2.20371e-13 | JE17: 100 | JF17: 2.140767e-12 | JG17: -2.202691e-13 | JH17: 100 | JI17: 2.134256e-12 | JJ17: -2.196586e-13 | JK17: 100 | JL17: 2.129509e-12 | JM17: -2.214904e-13 | JN17: 100 | JO17: 2.124789e-12 | JP17: -2.215891e-13 | JQ17: 100 | JR17: 2.121231e-12 | JS17: -2.20705e-13 | JT17: 100 | JU17: 2.117517e-12 | JV17: -2.211702e-13 | JW17: 100 | JX17: 2.114577e-12 | JY17: -2.200882e-13 | JZ17: 100 | KA17: 2.111994e-12 | KB17: -2.218847e-13 | KC17: 100 | KD17: 2.109803e-12 | KE17: -2.214341e-13 | KF17: 100 | KG17: 2.107219e-12 | KH17: -2.20687e-13 | KI17: 100 | KJ17: 2.105085e-12 | KK17: -2.217835e-13 | KL17: 100 | KM17: 2.104523e-12 | KN17: -2.219916e-13 | KO17: 100 | KP17: 2.102338e-12 | KQ17: -2.222609e-13 | KR17: 100 | KS17: 2.100836e-12 | KT17: -2.236434e-13 | KU17: 100 | KV17: 2.099445e-12 | KW17: -2.242437e-13 | KX17: 100 | KY17: 2.097113e-12 | KZ17: -2.24435e-13 | LA17: 100 | LB17: 2.096322e-12 | LC17: -2.236008e-13 | LD17: 100 | LE17: 2.093918e-12 | LF17: -2.246846e-13 | LG17: 100 | LH17: 2.092982e-12 | LI17: -2.233505e-13 | LJ17: 100 | LK17: 2.09297e-12 | LL17: -2.248492e-13 | LM17: 100 | LN17: 2.091603e-12 | LO17: -2.249845e-13 | LP17: 100 | LQ17: 2.090053e-12 | LR17: -2.241332e-13 | LS17: 100 | LT17: 2.088647e-12 | LU17: -2.261552e-13 | LV17: 100 | LW17: 2.087245e-12 | LX17: -2.247823e-13 | LY17: 100 | LZ17: 2.086224e-12 | MA17: -2.240079e-13 | MB17: 100 | MC17: 2.086288e-12 | MD17: -2.244945e-13 | ME17: 100 | MF17: 2.084535e-12 | MG17: -2.252664e-13 | MH17: 100 | MI17: 2.083755e-12 | MJ17: -2.252118e-13 | MK17: 100 | ML17: 2.083881e-12 | MM17: -2.257989e-13 | MN17: 100 | MO17: 2.081561e-12 | MP17: -2.251777e-13 | MQ17: 100 | MR17: 2.080294e-12 | MS17: -2.254326e-13 | MT17: 100 | MU17: 2.081203e-12 | MV17: -2.27194e-13 | MW17: 100 | MX17: 2.081115e-12 | MY17: -2.258014e-13 | MZ17: 100 | NA17: 2.078801e-12 | NB17: -2.254372e-13 | NC17: 100 | ND17: 2.0787e-12 | NE17: -2.25896e-13 | NF17: 100 | NG17: 2.077209e-12 | NH17: -2.270486e-13 | NI17: 100 | NJ17: 2.077306e-12 | NK17: -2.263563e-13 | NL17: 100 | NM17: 2.077075e-12 | NN17: -2.265132e-13 | NO17: 100 | NP17: 2.07567e-12 | NQ17: -2.266464e-13 | NR17: 100 | NS17: 2.07552e-12 | NT17: -2.26689e-13 | NU17: 100 | NV17: 2.075379e-12 | NW17: -2.27073e-13 | NX17: 100 | NY17: 2.074491e-12 | NZ17: -2.258873e-13 | OA17: 100 | OB17: 2.074679e-12 | OC17: -2.264358e-13 | OD17: 100 | OE17: 2.07322e-12 | OF17: -2.266987e-13 | OG17: 100 | OH17: 2.073221e-12 | OI17: -2.284599e-13 | OJ17: 100 | OK17: 2.072356e-12 | OL17: -2.265578e-13 | OM17: 100 | ON17: 2.071701e-12 | OO17: -2.276178e-13 | OP17: 100 | OQ17: 2.0699e-12 | OR17: -2.285544e-13 | OS17: 100 | OT17: 2.06997e-12 | OU17: -2.277408e-13 | OV17: 100 | OW17: 2.070574e-12 | OX17: -2.272833e-13 | OY17: 100 | OZ17: 2.070367e-12 | PA17: -2.280863e-13 | PB17: 100 | PC17: 2.068722e-12 | PD17: -2.273292e-13 | PE17: 100 | PF17: 2.069486e-12 | PG17: -2.289084e-13 | PH17: 100 | PI17: 2.067704e-12 | PJ17: -2.297636e-13 | PK17: 100 | PL17: 2.06806e-12 | PM17: -2.284221e-13 | PN17: 100 | PO17: 2.067587e-12 | PP17: -2.28918e-13 | PQ17: 100 | PR17: 2.067599e-12 | PS17: -2.286143e-13 | PT17: 100 | PU17: 2.065913e-12 | PV17: -2.301706e-13 | PW17: 100 | PX17: 2.064187e-12 | PY17: -2.295619e-13 | PZ17: 100 | QA17: 2.068551e-12 | QB17: -2.280995e-13 | QC17: 100 | QD17: 2.070288e-12 | QE17: -2.269378e-13 | QF17: 100 | QG17: 2.072948e-12 | QH17: -2.286764e-13 | QI17: 100 | QJ17: 2.077001e-12 | QK17: -2.254438e-13
A18: 125.89 | B18: 3.049953e-12 | C18: -3.209826e-13 | D18: 125.89 | E18: 3.045699e-12 | F18: -3.068009e-13 | G18: 125.89 | H18: 3.014708e-12 | I18: -3.110321e-13 | J18: 125.89 | K18: 2.999709e-12 | L18: -3.117554e-13 | M18: 125.89 | N18: 2.991452e-12 | O18: -3.098839e-13 | P18: 125.89 | Q18: 2.982421e-12 | R18: -3.095067e-13 | S18: 125.89 | T18: 2.976838e-12 | U18: -3.098423e-13 | V18: 125.89 | W18: 2.973866e-12 | X18: -3.07115e-13 | Y18: 125.89 | Z18: 2.97163e-12 | AA18: -3.07456e-13 | AB18: 125.89 | AC18: 2.96979e-12 | AD18: -3.05566e-13 | AE18: 125.89 | AF18: 2.96702e-12 | AG18: -3.057378e-13 | AH18: 125.89 | AI18: 2.966067e-12 | AJ18: -3.044475e-13 | AK18: 125.89 | AL18: 2.964671e-12 | AM18: -3.066697e-13 | AN18: 125.89 | AO18: 2.961558e-12 | AP18: -3.047514e-13 | AQ18: 125.89 | AR18: 2.961585e-12 | AS18: -3.049647e-13 | AT18: 125.89 | AU18: 2.959614e-12 | AV18: -3.061783e-13 | AW18: 125.89 | AX18: 2.958769e-12 | AY18: -3.047434e-13 | AZ18: 125.89 | BA18: 2.952691e-12 | BB18: -3.048106e-13 | BC18: 125.89 | BD18: 2.943716e-12 | BE18: -3.025798e-13 | BF18: 125.89 | BG18: 2.932481e-12 | BH18: -3.027144e-13 | BI18: 125.89 | BJ18: 2.922287e-12 | BK18: -2.989109e-13 | BL18: 125.89 | BM18: 2.908491e-12 | BN18: -2.965215e-13 | BO18: 125.89 | BP18: 2.896342e-12 | BQ18: -2.934351e-13 | BR18: 125.89 | BS18: 2.882362e-12 | BT18: -2.885416e-13 | BU18: 125.89 | BV18: 2.870504e-12 | BW18: -2.851548e-13 | BX18: 125.89 | BY18: 2.855073e-12 | BZ18: -2.801953e-13 | CA18: 125.89 | CB18: 2.842291e-12 | CC18: -2.76353e-13 | CD18: 125.89 | CE18: 2.827766e-12 | CF18: -2.707128e-13 | CG18: 125.89 | CH18: 2.815274e-12 | CI18: -2.646659e-13 | CJ18: 125.89 | CK18: 2.801817e-12 | CL18: -2.599464e-13 | CM18: 125.89 | CN18: 2.787496e-12 | CO18: -2.531136e-13 | CP18: 125.89 | CQ18: 2.774583e-12 | CR18: -2.47598e-13 | CS18: 125.89 | CT18: 2.761874e-12 | CU18: -2.416115e-13 | CV18: 125.89 | CW18: 2.748595e-12 | CX18: -2.357134e-13 | CY18: 125.89 | CZ18: 2.736965e-12 | DA18: -2.308324e-13 | DB18: 125.89 | DC18: 2.724494e-12 | DD18: -2.240432e-13 | DE18: 125.89 | DF18: 2.712463e-12 | DG18: -2.188679e-13 | DH18: 125.89 | DI18: 2.700681e-12 | DJ18: -2.113087e-13 | DK18: 125.89 | DL18: 2.688651e-12 | DM18: -2.055712e-13 | DN18: 125.89 | DO18: 2.677827e-12 | DP18: -1.99404e-13 | DQ18: 125.89 | DR18: 2.667533e-12 | DS18: -1.944618e-13 | DT18: 125.89 | DU18: 2.655879e-12 | DV18: -1.872674e-13 | DW18: 125.89 | DX18: 2.645537e-12 | DY18: -1.805646e-13 | DZ18: 125.89 | EA18: 2.633061e-12 | EB18: -1.719998e-13 | EC18: 125.89 | ED18: 2.621859e-12 | EE18: -1.649736e-13 | EF18: 125.89 | EG18: 2.610773e-12 | EH18: -1.576431e-13 | EI18: 125.89 | EJ18: 2.600723e-12 | EK18: -1.522533e-13 | EL18: 125.89 | EM18: 2.592113e-12 | EN18: -1.461229e-13 | EO18: 125.89 | EP18: 2.582627e-12 | EQ18: -1.405901e-13 | ER18: 125.89 | ES18: 2.573369e-12 | ET18: -1.349583e-13 | EU18: 125.89 | EV18: 2.567924e-12 | EW18: -1.305481e-13 | EX18: 125.89 | EY18: 2.562633e-12 | EZ18: -1.25247e-13 | FA18: 125.89 | FB18: 2.55552e-12 | FC18: -1.216641e-13 | FD18: 125.89 | FE18: 2.674166e-12 | FF18: -2.075121e-13 | FG18: 125.89 | FH18: 2.660108e-12 | FI18: -1.964635e-13 | FJ18: 125.89 | FK18: 2.65983e-12 | FL18: -1.971845e-13 | FM18: 125.89 | FN18: 2.663116e-12 | FO18: -2.040772e-13 | FP18: 125.89 | FQ18: 2.670749e-12 | FR18: -2.159474e-13 | FS18: 125.89 | FT18: 2.680621e-12 | FU18: -2.243791e-13 | FV18: 125.89 | FW18: 2.677346e-12 | FX18: -2.224785e-13 | FY18: 125.89 | FZ18: 2.648346e-12 | GA18: -2.011801e-13 | GB18: 125.89 | GC18: 2.599607e-12 | GD18: -1.618986e-13 | GE18: 125.89 | GF18: 2.55228e-12 | GG18: -1.099026e-13 | GH18: 125.89 | GI18: 2.521506e-12 | GJ18: -8.063362e-14 | GK18: 125.89 | GL18: 2.503858e-12 | GM18: -7.102975e-14 | GN18: 125.89 | GO18: 2.488722e-12 | GP18: -6.781095e-14 | GQ18: 125.89 | GR18: 2.478683e-12 | GS18: -6.981206e-14 | GT18: 125.89 | GU18: 2.468428e-12 | GV18: -7.181996e-14 | GW18: 125.89 | GX18: 2.460353e-12 | GY18: -7.787546e-14 | GZ18: 125.89 | HA18: 2.451393e-12 | HB18: -8.521575e-14 | HC18: 125.89 | HD18: 2.440456e-12 | HE18: -9.498082e-14 | HF18: 125.89 | HG18: 2.427017e-12 | HH18: -1.096976e-13 | HI18: 125.89 | HJ18: 2.410386e-12 | HK18: -1.254131e-13 | HL18: 125.89 | HM18: 2.390497e-12 | HN18: -1.420191e-13 | HO18: 125.89 | HP18: 2.365271e-12 | HQ18: -1.595295e-13 | HR18: 125.89 | HS18: 2.337551e-12 | HT18: -1.762921e-13 | HU18: 125.89 | HV18: 2.309178e-12 | HW18: -1.911009e-13 | HX18: 125.89 | HY18: 2.279738e-12 | HZ18: -2.039767e-13 | IA18: 125.89 | IB18: 2.256287e-12 | IC18: -2.138379e-13 | ID18: 125.89 | IE18: 2.231155e-12 | IF18: -2.20066e-13 | IG18: 125.89 | IH18: 2.207862e-12 | II18: -2.238753e-13 | IJ18: 125.89 | IK18: 2.186308e-12 | IL18: -2.283964e-13 | IM18: 125.89 | IN18: 2.16784e-12 | IO18: -2.299521e-13 | IP18: 125.89 | IQ18: 2.155903e-12 | IR18: -2.319056e-13 | IS18: 125.89 | IT18: 2.144517e-12 | IU18: -2.320252e-13 | IV18: 125.89 | IW18: 2.13475e-12 | IX18: -2.327704e-13 | IY18: 125.89 | IZ18: 2.128548e-12 | JA18: -2.323506e-13 | JB18: 125.89 | JC18: 2.116697e-12 | JD18: -2.338027e-13 | JE18: 125.89 | JF18: 2.112922e-12 | JG18: -2.34439e-13 | JH18: 125.89 | JI18: 2.106959e-12 | JJ18: -2.347919e-13 | JK18: 125.89 | JL18: 2.099237e-12 | JM18: -2.337724e-13 | JN18: 125.89 | JO18: 2.095867e-12 | JP18: -2.347766e-13 | JQ18: 125.89 | JR18: 2.092033e-12 | JS18: -2.359532e-13 | JT18: 125.89 | JU18: 2.088656e-12 | JV18: -2.359636e-13 | JW18: 125.89 | JX18: 2.085271e-12 | JY18: -2.366728e-13 | JZ18: 125.89 | KA18: 2.082771e-12 | KB18: -2.36676e-13 | KC18: 125.89 | KD18: 2.079899e-12 | KE18: -2.369259e-13 | KF18: 125.89 | KG18: 2.077364e-12 | KH18: -2.368272e-13 | KI18: 125.89 | KJ18: 2.076748e-12 | KK18: -2.373412e-13 | KL18: 125.89 | KM18: 2.075601e-12 | KN18: -2.376994e-13 | KO18: 125.89 | KP18: 2.073022e-12 | KQ18: -2.376808e-13 | KR18: 125.89 | KS18: 2.070991e-12 | KT18: -2.379078e-13 | KU18: 125.89 | KV18: 2.069788e-12 | KW18: -2.380755e-13 | KX18: 125.89 | KY18: 2.068061e-12 | KZ18: -2.377753e-13 | LA18: 125.89 | LB18: 2.065314e-12 | LC18: -2.388488e-13 | LD18: 125.89 | LE18: 2.064471e-12 | LF18: -2.401921e-13 | LG18: 125.89 | LH18: 2.063905e-12 | LI18: -2.405111e-13 | LJ18: 125.89 | LK18: 2.062929e-12 | LL18: -2.386999e-13 | LM18: 125.89 | LN18: 2.06009e-12 | LO18: -2.396106e-13 | LP18: 125.89 | LQ18: 2.059747e-12 | LR18: -2.412042e-13 | LS18: 125.89 | LT18: 2.059517e-12 | LU18: -2.405553e-13 | LV18: 125.89 | LW18: 2.057332e-12 | LX18: -2.407879e-13 | LY18: 125.89 | LZ18: 2.05648e-12 | MA18: -2.414363e-13 | MB18: 125.89 | MC18: 2.055853e-12 | MD18: -2.409945e-13 | ME18: 125.89 | MF18: 2.052929e-12 | MG18: -2.417313e-13 | MH18: 125.89 | MI18: 2.053669e-12 | MJ18: -2.418383e-13 | MK18: 125.89 | ML18: 2.052657e-12 | MM18: -2.414161e-13 | MN18: 125.89 | MO18: 2.051169e-12 | MP18: -2.418348e-13 | MQ18: 125.89 | MR18: 2.050246e-12 | MS18: -2.413405e-13 | MT18: 125.89 | MU18: 2.050448e-12 | MV18: -2.423803e-13 | MW18: 125.89 | MX18: 2.048966e-12 | MY18: -2.426378e-13 | MZ18: 125.89 | NA18: 2.048081e-12 | NB18: -2.417092e-13 | NC18: 125.89 | ND18: 2.047984e-12 | NE18: -2.428345e-13 | NF18: 125.89 | NG18: 2.046713e-12 | NH18: -2.422248e-13 | NI18: 125.89 | NJ18: 2.046861e-12 | NK18: -2.429032e-13 | NL18: 125.89 | NM18: 2.044166e-12 | NN18: -2.437686e-13 | NO18: 125.89 | NP18: 2.045255e-12 | NQ18: -2.428275e-13 | NR18: 125.89 | NS18: 2.045542e-12 | NT18: -2.442156e-13 | NU18: 125.89 | NV18: 2.044444e-12 | NW18: -2.433322e-13 | NX18: 125.89 | NY18: 2.042684e-12 | NZ18: -2.42911e-13 | OA18: 125.89 | OB18: 2.044903e-12 | OC18: -2.425702e-13 | OD18: 125.89 | OE18: 2.041643e-12 | OF18: -2.436608e-13 | OG18: 125.89 | OH18: 2.041915e-12 | OI18: -2.42674e-13 | OJ18: 125.89 | OK18: 2.041399e-12 | OL18: -2.431031e-13 | OM18: 125.89 | ON18: 2.039773e-12 | OO18: -2.431499e-13 | OP18: 125.89 | OQ18: 2.040392e-12 | OR18: -2.441383e-13 | OS18: 125.89 | OT18: 2.040143e-12 | OU18: -2.433219e-13 | OV18: 125.89 | OW18: 2.039587e-12 | OX18: -2.43208e-13 | OY18: 125.89 | OZ18: 2.040131e-12 | PA18: -2.433739e-13 | PB18: 125.89 | PC18: 2.036669e-12 | PD18: -2.435025e-13 | PE18: 125.89 | PF18: 2.037667e-12 | PG18: -2.429218e-13 | PH18: 125.89 | PI18: 2.037039e-12 | PJ18: -2.4438e-13 | PK18: 125.89 | PL18: 2.037159e-12 | PM18: -2.436008e-13 | PN18: 125.89 | PO18: 2.036509e-12 | PP18: -2.44443e-13 | PQ18: 125.89 | PR18: 2.036324e-12 | PS18: -2.457645e-13 | PT18: 125.89 | PU18: 2.034439e-12 | PV18: -2.446535e-13 | PW18: 125.89 | PX18: 2.034441e-12 | PY18: -2.440864e-13 | PZ18: 125.89 | QA18: 2.037e-12 | QB18: -2.439765e-13 | QC18: 125.89 | QD18: 2.038798e-12 | QE18: -2.427804e-13 | QF18: 125.89 | QG18: 2.042561e-12 | QH18: -2.422789e-13 | QI18: 125.89 | QJ18: 2.045838e-12 | QK18: -2.415523e-13
A19: 158.49 | B19: 2.99519e-12 | C19: -3.107069e-13 | D19: 158.49 | E19: 2.992183e-12 | F19: -3.061193e-13 | G19: 158.49 | H19: 2.956186e-12 | I19: -3.008854e-13 | J19: 158.49 | K19: 2.947431e-12 | L19: -3.008007e-13 | M19: 158.49 | N19: 2.938924e-12 | O19: -2.958647e-13 | P19: 158.49 | Q19: 2.929485e-12 | R19: -2.931729e-13 | S19: 158.49 | T19: 2.922953e-12 | U19: -2.937477e-13 | V19: 158.49 | W19: 2.921105e-12 | X19: -2.93355e-13 | Y19: 158.49 | Z19: 2.919731e-12 | AA19: -2.906271e-13 | AB19: 158.49 | AC19: 2.918479e-12 | AD19: -2.937928e-13 | AE19: 158.49 | AF19: 2.915762e-12 | AG19: -2.903877e-13 | AH19: 158.49 | AI19: 2.913417e-12 | AJ19: -2.873047e-13 | AK19: 158.49 | AL19: 2.913447e-12 | AM19: -2.875893e-13 | AN19: 158.49 | AO19: 2.909536e-12 | AP19: -2.923331e-13 | AQ19: 158.49 | AR19: 2.907917e-12 | AS19: -2.917528e-13 | AT19: 158.49 | AU19: 2.905885e-12 | AV19: -2.893656e-13 | AW19: 158.49 | AX19: 2.906327e-12 | AY19: -2.884581e-13 | AZ19: 158.49 | BA19: 2.90182e-12 | BB19: -2.880734e-13 | BC19: 158.49 | BD19: 2.892199e-12 | BE19: -2.905157e-13 | BF19: 158.49 | BG19: 2.882726e-12 | BH19: -2.844622e-13 | BI19: 158.49 | BJ19: 2.870759e-12 | BK19: -2.802159e-13 | BL19: 158.49 | BM19: 2.86246e-12 | BN19: -2.778943e-13 | BO19: 158.49 | BP19: 2.851105e-12 | BQ19: -2.722612e-13 | BR19: 158.49 | BS19: 2.837924e-12 | BT19: -2.710454e-13 | BU19: 158.49 | BV19: 2.826152e-12 | BW19: -2.639454e-13 | BX19: 158.49 | BY19: 2.810074e-12 | BZ19: -2.605293e-13 | CA19: 158.49 | CB19: 2.798712e-12 | CC19: -2.555287e-13 | CD19: 158.49 | CE19: 2.785516e-12 | CF19: -2.493599e-13 | CG19: 158.49 | CH19: 2.775811e-12 | CI19: -2.43676e-13 | CJ19: 158.49 | CK19: 2.76077e-12 | CL19: -2.36846e-13 | CM19: 158.49 | CN19: 2.750709e-12 | CO19: -2.306067e-13 | CP19: 158.49 | CQ19: 2.738224e-12 | CR19: -2.251346e-13 | CS19: 158.49 | CT19: 2.727833e-12 | CU19: -2.214071e-13 | CV19: 158.49 | CW19: 2.713718e-12 | CX19: -2.124476e-13 | CY19: 158.49 | CZ19: 2.70361e-12 | DA19: -2.090571e-13 | DB19: 158.49 | DC19: 2.692197e-12 | DD19: -2.031651e-13 | DE19: 158.49 | DF19: 2.681647e-12 | DG19: -1.950007e-13 | DH19: 158.49 | DI19: 2.671484e-12 | DJ19: -1.916336e-13 | DK19: 158.49 | DL19: 2.657773e-12 | DM19: -1.850779e-13 | DN19: 158.49 | DO19: 2.649498e-12 | DP19: -1.795967e-13 | DQ19: 158.49 | DR19: 2.641195e-12 | DS19: -1.703457e-13 | DT19: 158.49 | DU19: 2.631482e-12 | DV19: -1.657675e-13 | DW19: 158.49 | DX19: 2.620105e-12 | DY19: -1.578114e-13 | DZ19: 158.49 | EA19: 2.609551e-12 | EB19: -1.551467e-13 | EC19: 158.49 | ED19: 2.602729e-12 | EE19: -1.468316e-13 | EF19: 158.49 | EG19: 2.589614e-12 | EH19: -1.39872e-13 | EI19: 158.49 | EJ19: 2.582998e-12 | EK19: -1.364088e-13 | EL19: 158.49 | EM19: 2.570046e-12 | EN19: -1.282452e-13 | EO19: 158.49 | EP19: 2.565247e-12 | EQ19: -1.239306e-13 | ER19: 158.49 | ES19: 2.556992e-12 | ET19: -1.166243e-13 | EU19: 158.49 | EV19: 2.552277e-12 | EW19: -1.152668e-13 | EX19: 158.49 | EY19: 2.545747e-12 | EZ19: -1.118525e-13 | FA19: 158.49 | FB19: 2.542787e-12 | FC19: -1.070922e-13 | FD19: 158.49 | FE19: 2.643684e-12 | FF19: -1.867981e-13 | FG19: 158.49 | FH19: 2.631672e-12 | FI19: -1.745212e-13 | FJ19: 158.49 | FK19: 2.631646e-12 | FL19: -1.752376e-13 | FM19: 158.49 | FN19: 2.634152e-12 | FO19: -1.810021e-13 | FP19: 158.49 | FQ19: 2.639718e-12 | FR19: -1.922744e-13 | FS19: 158.49 | FT19: 2.646425e-12 | FU19: -1.999373e-13 | FV19: 158.49 | FW19: 2.640151e-12 | FX19: -1.965002e-13 | FY19: 158.49 | FZ19: 2.618638e-12 | GA19: -1.767961e-13 | GB19: 158.49 | GC19: 2.578779e-12 | GD19: -1.407917e-13 | GE19: 158.49 | GF19: 2.538649e-12 | GG19: -9.324809e-14 | GH19: 158.49 | GI19: 2.512417e-12 | GJ19: -7.033736e-14 | GK19: 158.49 | GL19: 2.495093e-12 | GM19: -6.198155e-14 | GN19: 158.49 | GO19: 2.480358e-12 | GP19: -6.515093e-14 | GQ19: 158.49 | GR19: 2.470022e-12 | GS19: -6.636216e-14 | GT19: 158.49 | GU19: 2.462312e-12 | GV19: -6.966381e-14 | GW19: 158.49 | GX19: 2.449588e-12 | GY19: -7.793846e-14 | GZ19: 158.49 | HA19: 2.443996e-12 | HB19: -8.804581e-14 | HC19: 158.49 | HD19: 2.431732e-12 | HE19: -9.982691e-14 | HF19: 158.49 | HG19: 2.413931e-12 | HH19: -1.154941e-13 | HI19: 158.49 | HJ19: 2.39644e-12 | HK19: -1.34012e-13 | HL19: 158.49 | HM19: 2.371971e-12 | HN19: -1.545211e-13 | HO19: 158.49 | HP19: 2.344737e-12 | HQ19: -1.732832e-13 | HR19: 158.49 | HS19: 2.316626e-12 | HT19: -1.935015e-13 | HU19: 158.49 | HV19: 2.283491e-12 | HW19: -2.089967e-13 | HX19: 158.49 | HY19: 2.25257e-12 | HZ19: -2.191464e-13 | IA19: 158.49 | IB19: 2.226882e-12 | IC19: -2.273686e-13 | ID19: 158.49 | IE19: 2.201596e-12 | IF19: -2.366871e-13 | IG19: 158.49 | IH19: 2.175984e-12 | II19: -2.396418e-13 | IJ19: 158.49 | IK19: 2.153255e-12 | IL19: -2.439825e-13 | IM19: 158.49 | IN19: 2.136021e-12 | IO19: -2.451998e-13 | IP19: 158.49 | IQ19: 2.124721e-12 | IR19: -2.46058e-13 | IS19: 158.49 | IT19: 2.113458e-12 | IU19: -2.477982e-13 | IV19: 158.49 | IW19: 2.10231e-12 | IX19: -2.473653e-13 | IY19: 158.49 | IZ19: 2.090604e-12 | JA19: -2.497265e-13 | JB19: 158.49 | JC19: 2.086698e-12 | JD19: -2.469443e-13 | JE19: 158.49 | JF19: 2.07706e-12 | JG19: -2.499209e-13 | JH19: 158.49 | JI19: 2.078342e-12 | JJ19: -2.49264e-13 | JK19: 158.49 | JL19: 2.067527e-12 | JM19: -2.535951e-13 | JN19: 158.49 | JO19: 2.064361e-12 | JP19: -2.530958e-13 | JQ19: 158.49 | JR19: 2.061375e-12 | JS19: -2.522732e-13 | JT19: 158.49 | JU19: 2.056653e-12 | JV19: -2.524362e-13 | JW19: 158.49 | JX19: 2.053851e-12 | JY19: -2.53259e-13 | JZ19: 158.49 | KA19: 2.051356e-12 | KB19: -2.527004e-13 | KC19: 158.49 | KD19: 2.049677e-12 | KE19: -2.525826e-13 | KF19: 158.49 | KG19: 2.043529e-12 | KH19: -2.541109e-13 | KI19: 158.49 | KJ19: 2.042531e-12 | KK19: -2.540981e-13 | KL19: 158.49 | KM19: 2.040262e-12 | KN19: -2.543024e-13 | KO19: 158.49 | KP19: 2.038901e-12 | KQ19: -2.54704e-13 | KR19: 158.49 | KS19: 2.037534e-12 | KT19: -2.554791e-13 | KU19: 158.49 | KV19: 2.036191e-12 | KW19: -2.541202e-13 | KX19: 158.49 | KY19: 2.033246e-12 | KZ19: -2.558421e-13 | LA19: 158.49 | LB19: 2.030202e-12 | LC19: -2.567861e-13 | LD19: 158.49 | LE19: 2.031804e-12 | LF19: -2.572585e-13 | LG19: 158.49 | LH19: 2.029547e-12 | LI19: -2.573235e-13 | LJ19: 158.49 | LK19: 2.031864e-12 | LL19: -2.553423e-13 | LM19: 158.49 | LN19: 2.026758e-12 | LO19: -2.556355e-13 | LP19: 158.49 | LQ19: 2.027602e-12 | LR19: -2.590226e-13 | LS19: 158.49 | LT19: 2.026409e-12 | LU19: -2.589834e-13 | LV19: 158.49 | LW19: 2.023715e-12 | LX19: -2.581296e-13 | LY19: 158.49 | LZ19: 2.021766e-12 | MA19: -2.569024e-13 | MB19: 158.49 | MC19: 2.021769e-12 | MD19: -2.570529e-13 | ME19: 158.49 | MF19: 2.02087e-12 | MG19: -2.585454e-13 | MH19: 158.49 | MI19: 2.020368e-12 | MJ19: -2.580135e-13 | MK19: 158.49 | ML19: 2.017318e-12 | MM19: -2.582691e-13 | MN19: 158.49 | MO19: 2.017106e-12 | MP19: -2.585926e-13 | MQ19: 158.49 | MR19: 2.016096e-12 | MS19: -2.588738e-13 | MT19: 158.49 | MU19: 2.014486e-12 | MV19: -2.61125e-13 | MW19: 158.49 | MX19: 2.014626e-12 | MY19: -2.5897e-13 | MZ19: 158.49 | NA19: 2.014958e-12 | NB19: -2.575362e-13 | NC19: 158.49 | ND19: 2.014459e-12 | NE19: -2.58472e-13 | NF19: 158.49 | NG19: 2.0145e-12 | NH19: -2.588052e-13 | NI19: 158.49 | NJ19: 2.011965e-12 | NK19: -2.592532e-13 | NL19: 158.49 | NM19: 2.012222e-12 | NN19: -2.598885e-13 | NO19: 158.49 | NP19: 2.012659e-12 | NQ19: -2.593545e-13 | NR19: 158.49 | NS19: 2.0106e-12 | NT19: -2.591324e-13 | NU19: 158.49 | NV19: 2.010075e-12 | NW19: -2.611268e-13 | NX19: 158.49 | NY19: 2.009268e-12 | NZ19: -2.588891e-13 | OA19: 158.49 | OB19: 2.009106e-12 | OC19: -2.609512e-13 | OD19: 158.49 | OE19: 2.010744e-12 | OF19: -2.60677e-13 | OG19: 158.49 | OH19: 2.010086e-12 | OI19: -2.62044e-13 | OJ19: 158.49 | OK19: 2.006142e-12 | OL19: -2.581002e-13 | OM19: 158.49 | ON19: 2.006238e-12 | OO19: -2.615769e-13 | OP19: 158.49 | OQ19: 2.005548e-12 | OR19: -2.600415e-13 | OS19: 158.49 | OT19: 2.008192e-12 | OU19: -2.600931e-13 | OV19: 158.49 | OW19: 2.007468e-12 | OX19: -2.602739e-13 | OY19: 158.49 | OZ19: 2.00743e-12 | PA19: -2.624927e-13 | PB19: 158.49 | PC19: 2.005331e-12 | PD19: -2.62449e-13 | PE19: 158.49 | PF19: 2.004584e-12 | PG19: -2.574615e-13 | PH19: 158.49 | PI19: 2.001465e-12 | PJ19: -2.627473e-13 | PK19: 158.49 | PL19: 2.002696e-12 | PM19: -2.633327e-13 | PN19: 158.49 | PO19: 2.002955e-12 | PP19: -2.644038e-13 | PQ19: 158.49 | PR19: 2.003101e-12 | PS19: -2.610228e-13 | PT19: 158.49 | PU19: 1.997787e-12 | PV19: -2.597164e-13 | PW19: 158.49 | PX19: 1.997948e-12 | PY19: -2.633532e-13 | PZ19: 158.49 | QA19: 2.004739e-12 | QB19: -2.619838e-13 | QC19: 158.49 | QD19: 2.007791e-12 | QE19: -2.598524e-13 | QF19: 158.49 | QG19: 2.006583e-12 | QH19: -2.588307e-13 | QI19: 158.49 | QJ19: 2.011834e-12 | QK19: -2.55033e-13
A20: 199.53 | B20: 2.943538e-12 | C20: -2.915786e-13 | D20: 199.53 | E20: 2.938855e-12 | F20: -2.842132e-13 | G20: 199.53 | H20: 2.911175e-12 | I20: -2.824732e-13 | J20: 199.53 | K20: 2.895844e-12 | L20: -2.797158e-13 | M20: 199.53 | N20: 2.889911e-12 | O20: -2.752669e-13 | P20: 199.53 | Q20: 2.880011e-12 | R20: -2.748949e-13 | S20: 199.53 | T20: 2.874159e-12 | U20: -2.764724e-13 | V20: 199.53 | W20: 2.871243e-12 | X20: -2.728474e-13 | Y20: 199.53 | Z20: 2.871768e-12 | AA20: -2.706541e-13 | AB20: 199.53 | AC20: 2.869302e-12 | AD20: -2.691149e-13 | AE20: 199.53 | AF20: 2.867063e-12 | AG20: -2.691991e-13 | AH20: 199.53 | AI20: 2.864275e-12 | AJ20: -2.710689e-13 | AK20: 199.53 | AL20: 2.864343e-12 | AM20: -2.718214e-13 | AN20: 199.53 | AO20: 2.864428e-12 | AP20: -2.713729e-13 | AQ20: 199.53 | AR20: 2.861898e-12 | AS20: -2.708049e-13 | AT20: 199.53 | AU20: 2.859658e-12 | AV20: -2.698403e-13 | AW20: 199.53 | AX20: 2.860015e-12 | AY20: -2.679602e-13 | AZ20: 199.53 | BA20: 2.853249e-12 | BB20: -2.670809e-13 | BC20: 199.53 | BD20: 2.846623e-12 | BE20: -2.667383e-13 | BF20: 199.53 | BG20: 2.835977e-12 | BH20: -2.64243e-13 | BI20: 199.53 | BJ20: 2.826074e-12 | BK20: -2.581944e-13 | BL20: 199.53 | BM20: 2.814861e-12 | BN20: -2.518676e-13 | BO20: 199.53 | BP20: 2.805391e-12 | BQ20: -2.492731e-13 | BR20: 199.53 | BS20: 2.791593e-12 | BT20: -2.460477e-13 | BU20: 199.53 | BV20: 2.784691e-12 | BW20: -2.387871e-13 | BX20: 199.53 | BY20: 2.771761e-12 | BZ20: -2.374742e-13 | CA20: 199.53 | CB20: 2.759739e-12 | CC20: -2.309846e-13 | CD20: 199.53 | CE20: 2.746069e-12 | CF20: -2.227916e-13 | CG20: 199.53 | CH20: 2.73923e-12 | CI20: -2.181179e-13 | CJ20: 199.53 | CK20: 2.726839e-12 | CL20: -2.12025e-13 | CM20: 199.53 | CN20: 2.716938e-12 | CO20: -2.075868e-13 | CP20: 199.53 | CQ20: 2.705724e-12 | CR20: -2.024125e-13 | CS20: 199.53 | CT20: 2.693837e-12 | CU20: -1.980292e-13 | CV20: 199.53 | CW20: 2.685189e-12 | CX20: -1.922626e-13 | CY20: 199.53 | CZ20: 2.674461e-12 | DA20: -1.860706e-13 | DB20: 199.53 | DC20: 2.662741e-12 | DD20: -1.804509e-13 | DE20: 199.53 | DF20: 2.654456e-12 | DG20: -1.739178e-13 | DH20: 199.53 | DI20: 2.643487e-12 | DJ20: -1.68521e-13 | DK20: 199.53 | DL20: 2.635818e-12 | DM20: -1.634511e-13 | DN20: 199.53 | DO20: 2.626851e-12 | DP20: -1.578316e-13 | DQ20: 199.53 | DR20: 2.618388e-12 | DS20: -1.527824e-13 | DT20: 199.53 | DU20: 2.610538e-12 | DV20: -1.465412e-13 | DW20: 199.53 | DX20: 2.600484e-12 | DY20: -1.427158e-13 | DZ20: 199.53 | EA20: 2.589034e-12 | EB20: -1.335509e-13 | EC20: 199.53 | ED20: 2.590338e-12 | EE20: -1.33228e-13 | EF20: 199.53 | EG20: 2.567285e-12 | EH20: -1.277637e-13 | EI20: 199.53 | EJ20: 2.562288e-12 | EK20: -1.119882e-13 | EL20: 199.53 | EM20: 2.559034e-12 | EN20: -1.113732e-13 | EO20: 199.53 | EP20: 2.544438e-12 | EQ20: -1.073863e-13 | ER20: 199.53 | ES20: 2.53424e-12 | ET20: -9.78845e-14 | EU20: 199.53 | EV20: 2.535409e-12 | EW20: -9.528767e-14 | EX20: 199.53 | EY20: 2.531667e-12 | EZ20: -9.876711e-14 | FA20: 199.53 | FB20: 2.531823e-12 | FC20: -9.353307e-14 | FD20: 199.53 | FE20: 2.618209e-12 | FF20: -1.690328e-13 | FG20: 199.53 | FH20: 2.611153e-12 | FI20: -1.553739e-13 | FJ20: 199.53 | FK20: 2.605267e-12 | FL20: -1.541385e-13 | FM20: 199.53 | FN20: 2.606201e-12 | FO20: -1.571071e-13 | FP20: 199.53 | FQ20: 2.613622e-12 | FR20: -1.70893e-13 | FS20: 199.53 | FT20: 2.614405e-12 | FU20: -1.760841e-13 | FV20: 199.53 | FW20: 2.611768e-12 | FX20: -1.724602e-13 | FY20: 199.53 | FZ20: 2.596946e-12 | GA20: -1.549038e-13 | GB20: 199.53 | GC20: 2.562867e-12 | GD20: -1.202002e-13 | GE20: 199.53 | GF20: 2.527421e-12 | GG20: -8.27669e-14 | GH20: 199.53 | GI20: 2.503221e-12 | GJ20: -6.099902e-14 | GK20: 199.53 | GL20: 2.486275e-12 | GM20: -5.906377e-14 | GN20: 199.53 | GO20: 2.473448e-12 | GP20: -5.591349e-14 | GQ20: 199.53 | GR20: 2.46334e-12 | GS20: -6.092849e-14 | GT20: 199.53 | GU20: 2.452323e-12 | GV20: -6.837471e-14 | GW20: 199.53 | GX20: 2.443092e-12 | GY20: -7.673002e-14 | GZ20: 199.53 | HA20: 2.432824e-12 | HB20: -8.915326e-14 | HC20: 199.53 | HD20: 2.420037e-12 | HE20: -1.052302e-13 | HF20: 199.53 | HG20: 2.402686e-12 | HH20: -1.240239e-13 | HI20: 199.53 | HJ20: 2.381872e-12 | HK20: -1.459837e-13 | HL20: 199.53 | HM20: 2.356107e-12 | HN20: -1.671552e-13 | HO20: 199.53 | HP20: 2.325147e-12 | HQ20: -1.88218e-13 | HR20: 199.53 | HS20: 2.291919e-12 | HT20: -2.081372e-13 | HU20: 199.53 | HV20: 2.256961e-12 | HW20: -2.249866e-13 | HX20: 199.53 | HY20: 2.222952e-12 | HZ20: -2.382303e-13 | IA20: 199.53 | IB20: 2.194811e-12 | IC20: -2.472717e-13 | ID20: 199.53 | IE20: 2.167315e-12 | IF20: -2.532036e-13 | IG20: 199.53 | IH20: 2.144581e-12 | II20: -2.590065e-13 | IJ20: 199.53 | IK20: 2.119621e-12 | IL20: -2.532611e-13 | IM20: 199.53 | IN20: 2.097871e-12 | IO20: -2.63118e-13 | IP20: 199.53 | IQ20: 2.086551e-12 | IR20: -2.655071e-13 | IS20: 199.53 | IT20: 2.081715e-12 | IU20: -2.618756e-13 | IV20: 199.53 | IW20: 2.075951e-12 | IX20: -2.742978e-13 | IY20: 199.53 | IZ20: 2.05845e-12 | JA20: -2.492616e-13 | JB20: 199.53 | JC20: 2.063441e-12 | JD20: -2.531634e-13 | JE20: 199.53 | JF20: 2.060005e-12 | JG20: -2.710068e-13 | JH20: 199.53 | JI20: 2.047803e-12 | JJ20: -2.74687e-13 | JK20: 199.53 | JL20: 2.038589e-12 | JM20: -2.80598e-13 | JN20: 199.53 | JO20: 2.030352e-12 | JP20: -2.687048e-13 | JQ20: 199.53 | JR20: 2.024814e-12 | JS20: -2.676915e-13 | JT20: 199.53 | JU20: 2.022339e-12 | JV20: -2.722171e-13 | JW20: 199.53 | JX20: 2.016789e-12 | JY20: -2.71785e-13 | JZ20: 199.53 | KA20: 2.017668e-12 | KB20: -2.725061e-13 | KC20: 199.53 | KD20: 2.010531e-12 | KE20: -2.732545e-13 | KF20: 199.53 | KG20: 2.011108e-12 | KH20: -2.746523e-13 | KI20: 199.53 | KJ20: 2.00882e-12 | KK20: -2.676007e-13 | KL20: 199.53 | KM20: 2.008999e-12 | KN20: -2.724081e-13 | KO20: 199.53 | KP20: 2.007583e-12 | KQ20: -2.767242e-13 | KR20: 199.53 | KS20: 2.004378e-12 | KT20: -2.696332e-13 | KU20: 199.53 | KV20: 2.00027e-12 | KW20: -2.754428e-13 | KX20: 199.53 | KY20: 2.000507e-12 | KZ20: -2.774272e-13 | LA20: 199.53 | LB20: 1.999953e-12 | LC20: -2.744891e-13 | LD20: 199.53 | LE20: 1.992176e-12 | LF20: -2.769419e-13 | LG20: 199.53 | LH20: 1.99575e-12 | LI20: -2.807148e-13 | LJ20: 199.53 | LK20: 1.991361e-12 | LL20: -2.859936e-13 | LM20: 199.53 | LN20: 1.987048e-12 | LO20: -2.764813e-13 | LP20: 199.53 | LQ20: 1.997162e-12 | LR20: -2.778115e-13 | LS20: 199.53 | LT20: 1.979039e-12 | LU20: -2.78174e-13 | LV20: 199.53 | LW20: 1.990881e-12 | LX20: -2.777912e-13 | LY20: 199.53 | LZ20: 1.987843e-12 | MA20: -2.723538e-13 | MB20: 199.53 | MC20: 1.978537e-12 | MD20: -2.74456e-13 | ME20: 199.53 | MF20: 1.989314e-12 | MG20: -2.830575e-13 | MH20: 199.53 | MI20: 1.986859e-12 | MJ20: -2.77702e-13 | MK20: 199.53 | ML20: 1.982779e-12 | MM20: -2.815029e-13 | MN20: 199.53 | MO20: 1.98418e-12 | MP20: -2.756994e-13 | MQ20: 199.53 | MR20: 1.974516e-12 | MS20: -2.770911e-13 | MT20: 199.53 | MU20: 1.966581e-12 | MV20: -2.793466e-13 | MW20: 199.53 | MX20: 1.974259e-12 | MY20: -2.763594e-13 | MZ20: 199.53 | NA20: 1.970209e-12 | NB20: -2.771345e-13 | NC20: 199.53 | ND20: 1.982915e-12 | NE20: -2.819351e-13 | NF20: 199.53 | NG20: 1.972862e-12 | NH20: -2.76354e-13 | NI20: 199.53 | NJ20: 1.973638e-12 | NK20: -2.813916e-13 | NL20: 199.53 | NM20: 1.968133e-12 | NN20: -2.72663e-13 | NO20: 199.53 | NP20: 1.980825e-12 | NQ20: -2.74093e-13 | NR20: 199.53 | NS20: 1.970316e-12 | NT20: -2.735018e-13 | NU20: 199.53 | NV20: 1.969413e-12 | NW20: -2.708575e-13 | NX20: 199.53 | NY20: 1.964875e-12 | NZ20: -2.703805e-13 | OA20: 199.53 | OB20: 1.980295e-12 | OC20: -2.746777e-13 | OD20: 199.53 | OE20: 1.970929e-12 | OF20: -2.81261e-13 | OG20: 199.53 | OH20: 1.972524e-12 | OI20: -2.753627e-13 | OJ20: 199.53 | OK20: 1.966787e-12 | OL20: -2.736032e-13 | OM20: 199.53 | ON20: 1.974508e-12 | OO20: -2.798225e-13 | OP20: 199.53 | OQ20: 1.972582e-12 | OR20: -2.727898e-13 | OS20: 199.53 | OT20: 1.964415e-12 | OU20: -2.818299e-13 | OV20: 199.53 | OW20: 1.975159e-12 | OX20: -2.746517e-13 | OY20: 199.53 | OZ20: 1.956434e-12 | PA20: -2.800425e-13 | PB20: 199.53 | PC20: 1.973195e-12 | PD20: -2.900925e-13 | PE20: 199.53 | PF20: 1.963965e-12 | PG20: -2.880423e-13 | PH20: 199.53 | PI20: 1.962392e-12 | PJ20: -2.722912e-13 | PK20: 199.53 | PL20: 1.971934e-12 | PM20: -2.820772e-13 | PN20: 199.53 | PO20: 1.967666e-12 | PP20: -2.87238e-13 | PQ20: 199.53 | PR20: 1.956676e-12 | PS20: -2.735549e-13 | PT20: 199.53 | PU20: 1.956893e-12 | PV20: -2.860954e-13 | PW20: 199.53 | PX20: 1.959125e-12 | PY20: -2.894166e-13 | PZ20: 199.53 | QA20: 1.973377e-12 | QB20: -2.806828e-13 | QC20: 199.53 | QD20: 1.960877e-12 | QE20: -2.715053e-13 | QF20: 199.53 | QG20: 1.973125e-12 | QH20: -2.665789e-13 | QI20: 199.53 | QJ20: 1.967367e-12 | QK20: -2.816014e-13
A21: 251.19 | B21: 2.894947e-12 | C21: -2.676836e-13 | D21: 251.19 | E21: 2.891426e-12 | F21: -2.647535e-13 | G21: 251.19 | H21: 2.864177e-12 | I21: -2.599051e-13 | J21: 251.19 | K21: 2.852161e-12 | L21: -2.562377e-13 | M21: 251.19 | N21: 2.842703e-12 | O21: -2.541746e-13 | P21: 251.19 | Q21: 2.838759e-12 | R21: -2.536204e-13 | S21: 251.19 | T21: 2.832095e-12 | U21: -2.494795e-13 | V21: 251.19 | W21: 2.831122e-12 | X21: -2.498506e-13 | Y21: 251.19 | Z21: 2.828058e-12 | AA21: -2.474329e-13 | AB21: 251.19 | AC21: 2.82652e-12 | AD21: -2.481035e-13 | AE21: 251.19 | AF21: 2.82453e-12 | AG21: -2.476872e-13 | AH21: 251.19 | AI21: 2.824222e-12 | AJ21: -2.443101e-13 | AK21: 251.19 | AL21: 2.822271e-12 | AM21: -2.45899e-13 | AN21: 251.19 | AO21: 2.821396e-12 | AP21: -2.450256e-13 | AQ21: 251.19 | AR21: 2.821625e-12 | AS21: -2.451815e-13 | AT21: 251.19 | AU21: 2.817431e-12 | AV21: -2.442169e-13 | AW21: 251.19 | AX21: 2.818212e-12 | AY21: -2.441482e-13 | AZ21: 251.19 | BA21: 2.812769e-12 | BB21: -2.416031e-13 | BC21: 251.19 | BD21: 2.806339e-12 | BE21: -2.397545e-13 | BF21: 251.19 | BG21: 2.79945e-12 | BH21: -2.370663e-13 | BI21: 251.19 | BJ21: 2.790455e-12 | BK21: -2.329236e-13 | BL21: 251.19 | BM21: 2.778578e-12 | BN21: -2.284936e-13 | BO21: 251.19 | BP21: 2.77087e-12 | BQ21: -2.25612e-13 | BR21: 251.19 | BS21: 2.757699e-12 | BT21: -2.196279e-13 | BU21: 251.19 | BV21: 2.749913e-12 | BW21: -2.149042e-13 | BX21: 251.19 | BY21: 2.738311e-12 | BZ21: -2.101558e-13 | CA21: 251.19 | CB21: 2.728521e-12 | CC21: -2.035432e-13 | CD21: 251.19 | CE21: 2.717791e-12 | CF21: -1.988914e-13 | CG21: 251.19 | CH21: 2.707202e-12 | CI21: -1.930244e-13 | CJ21: 251.19 | CK21: 2.69627e-12 | CL21: -1.884795e-13 | CM21: 251.19 | CN21: 2.688492e-12 | CO21: -1.817883e-13 | CP21: 251.19 | CQ21: 2.6776e-12 | CR21: -1.780066e-13 | CS21: 251.19 | CT21: 2.667928e-12 | CU21: -1.716539e-13 | CV21: 251.19 | CW21: 2.659311e-12 | CX21: -1.672435e-13 | CY21: 251.19 | CZ21: 2.649616e-12 | DA21: -1.610678e-13 | DB21: 251.19 | DC21: 2.640787e-12 | DD21: -1.555866e-13 | DE21: 251.19 | DF21: 2.630709e-12 | DG21: -1.498629e-13 | DH21: 251.19 | DI21: 2.622791e-12 | DJ21: -1.459889e-13 | DK21: 251.19 | DL21: 2.614663e-12 | DM21: -1.3841e-13 | DN21: 251.19 | DO21: 2.606991e-12 | DP21: -1.360716e-13 | DQ21: 251.19 | DR21: 2.598868e-12 | DS21: -1.301518e-13 | DT21: 251.19 | DU21: 2.590018e-12 | DV21: -1.243913e-13 | DW21: 251.19 | DX21: 2.584005e-12 | DY21: -1.182333e-13 | DZ21: 251.19 | EA21: 2.574724e-12 | EB21: -1.133629e-13 | EC21: 251.19 | ED21: 2.566927e-12 | EE21: -1.089113e-13 | EF21: 251.19 | EG21: 2.557654e-12 | EH21: -1.039525e-13 | EI21: 251.19 | EJ21: 2.549537e-12 | EK21: -9.807524e-14 | EL21: 251.19 | EM21: 2.542387e-12 | EN21: -9.342925e-14 | EO21: 251.19 | EP21: 2.537236e-12 | EQ21: -9.117874e-14 | ER21: 251.19 | ES21: 2.531413e-12 | ET21: -8.717882e-14 | EU21: 251.19 | EV21: 2.525995e-12 | EW21: -8.343767e-14 | EX21: 251.19 | EY21: 2.52257e-12 | EZ21: -8.024532e-14 | FA21: 251.19 | FB21: 2.518446e-12 | FC21: -7.705131e-14 | FD21: 251.19 | FE21: 2.59458e-12 | FF21: -1.423518e-13 | FG21: 251.19 | FH21: 2.587844e-12 | FI21: -1.312837e-13 | FJ21: 251.19 | FK21: 2.589498e-12 | FL21: -1.32828e-13 | FM21: 251.19 | FN21: 2.587863e-12 | FO21: -1.372421e-13 | FP21: 251.19 | FQ21: 2.589243e-12 | FR21: -1.431959e-13 | FS21: 251.19 | FT21: 2.59372e-12 | FU21: -1.50876e-13 | FV21: 251.19 | FW21: 2.591752e-12 | FX21: -1.484405e-13 | FY21: 251.19 | FZ21: 2.577559e-12 | GA21: -1.301867e-13 | GB21: 251.19 | GC21: 2.552203e-12 | GD21: -9.96078e-14 | GE21: 251.19 | GF21: 2.521263e-12 | GG21: -6.827951e-14 | GH21: 251.19 | GI21: 2.497185e-12 | GJ21: -5.134481e-14 | GK21: 251.19 | GL21: 2.480474e-12 | GM21: -4.823975e-14 | GN21: 251.19 | GO21: 2.467392e-12 | GP21: -5.128096e-14 | GQ21: 251.19 | GR21: 2.456994e-12 | GS21: -5.67814e-14 | GT21: 251.19 | GU21: 2.446143e-12 | GV21: -6.6541e-14 | GW21: 251.19 | GX21: 2.436818e-12 | GY21: -7.750442e-14 | GZ21: 251.19 | HA21: 2.425631e-12 | HB21: -9.282179e-14 | HC21: 251.19 | HD21: 2.41021e-12 | HE21: -1.106843e-13 | HF21: 251.19 | HG21: 2.390786e-12 | HH21: -1.339235e-13 | HI21: 251.19 | HJ21: 2.366492e-12 | HK21: -1.574317e-13 | HL21: 251.19 | HM21: 2.336609e-12 | HN21: -1.830377e-13 | HO21: 251.19 | HP21: 2.303004e-12 | HQ21: -2.058478e-13 | HR21: 251.19 | HS21: 2.266032e-12 | HT21: -2.266441e-13 | HU21: 251.19 | HV21: 2.227637e-12 | HW21: -2.435128e-13 | HX21: 251.19 | HY21: 2.192338e-12 | HZ21: -2.560188e-13 | IA21: 251.19 | IB21: 2.162285e-12 | IC21: -2.652821e-13 | ID21: 251.19 | IE21: 2.133894e-12 | IF21: -2.704407e-13 | IG21: 251.19 | IH21: 2.107467e-12 | II21: -2.748219e-13 | IJ21: 251.19 | IK21: 2.085614e-12 | IL21: -2.764984e-13 | IM21: 251.19 | IN21: 2.066004e-12 | IO21: -2.784349e-13 | IP21: 251.19 | IQ21: 2.053942e-12 | IR21: -2.805984e-13 | IS21: 251.19 | IT21: 2.043099e-12 | IU21: -2.79796e-13 | IV21: 251.19 | IW21: 2.031753e-12 | IX21: -2.824092e-13 | IY21: 251.19 | IZ21: 2.02294e-12 | JA21: -2.824557e-13 | JB21: 251.19 | JC21: 2.015242e-12 | JD21: -2.833667e-13 | JE21: 251.19 | JF21: 2.007949e-12 | JG21: -2.813932e-13 | JH21: 251.19 | JI21: 2.003934e-12 | JJ21: -2.845712e-13 | JK21: 251.19 | JL21: 1.995694e-12 | JM21: -2.856875e-13 | JN21: 251.19 | JO21: 1.991081e-12 | JP21: -2.870889e-13 | JQ21: 251.19 | JR21: 1.988054e-12 | JS21: -2.883296e-13 | JT21: 251.19 | JU21: 1.983846e-12 | JV21: -2.886585e-13 | JW21: 251.19 | JX21: 1.980312e-12 | JY21: -2.894293e-13 | JZ21: 251.19 | KA21: 1.977558e-12 | KB21: -2.911412e-13 | KC21: 251.19 | KD21: 1.974455e-12 | KE21: -2.898733e-13 | KF21: 251.19 | KG21: 1.972113e-12 | KH21: -2.904674e-13 | KI21: 251.19 | KJ21: 1.969164e-12 | KK21: -2.909189e-13 | KL21: 251.19 | KM21: 1.969132e-12 | KN21: -2.899427e-13 | KO21: 251.19 | KP21: 1.966205e-12 | KQ21: -2.914263e-13 | KR21: 251.19 | KS21: 1.96432e-12 | KT21: -2.924879e-13 | KU21: 251.19 | KV21: 1.961999e-12 | KW21: -2.911455e-13 | KX21: 251.19 | KY21: 1.959789e-12 | KZ21: -2.918028e-13 | LA21: 251.19 | LB21: 1.957244e-12 | LC21: -2.937752e-13 | LD21: 251.19 | LE21: 1.954731e-12 | LF21: -2.935457e-13 | LG21: 251.19 | LH21: 1.955546e-12 | LI21: -2.93622e-13 | LJ21: 251.19 | LK21: 1.953949e-12 | LL21: -2.948272e-13 | LM21: 251.19 | LN21: 1.952682e-12 | LO21: -2.935023e-13 | LP21: 251.19 | LQ21: 1.951321e-12 | LR21: -2.958242e-13 | LS21: 251.19 | LT21: 1.950509e-12 | LU21: -2.942927e-13 | LV21: 251.19 | LW21: 1.948438e-12 | LX21: -2.941349e-13 | LY21: 251.19 | LZ21: 1.94685e-12 | MA21: -2.95124e-13 | MB21: 251.19 | MC21: 1.945706e-12 | MD21: -2.936495e-13 | ME21: 251.19 | MF21: 1.945655e-12 | MG21: -2.95054e-13 | MH21: 251.19 | MI21: 1.943629e-12 | MJ21: -2.958115e-13 | MK21: 251.19 | ML21: 1.941759e-12 | MM21: -2.950508e-13 | MN21: 251.19 | MO21: 1.940874e-12 | MP21: -2.966617e-13 | MQ21: 251.19 | MR21: 1.940711e-12 | MS21: -2.967763e-13 | MT21: 251.19 | MU21: 1.942093e-12 | MV21: -2.966411e-13 | MW21: 251.19 | MX21: 1.939329e-12 | MY21: -2.954911e-13 | MZ21: 251.19 | NA21: 1.937912e-12 | NB21: -2.973755e-13 | NC21: 251.19 | ND21: 1.937821e-12 | NE21: -2.964504e-13 | NF21: 251.19 | NG21: 1.937114e-12 | NH21: -2.960703e-13 | NI21: 251.19 | NJ21: 1.935826e-12 | NK21: -2.955214e-13 | NL21: 251.19 | NM21: 1.933948e-12 | NN21: -2.968653e-13 | NO21: 251.19 | NP21: 1.934982e-12 | NQ21: -2.947761e-13 | NR21: 251.19 | NS21: 1.934159e-12 | NT21: -2.963934e-13 | NU21: 251.19 | NV21: 1.93259e-12 | NW21: -2.967548e-13 | NX21: 251.19 | NY21: 1.933506e-12 | NZ21: -2.968595e-13 | OA21: 251.19 | OB21: 1.931758e-12 | OC21: -2.963857e-13 | OD21: 251.19 | OE21: 1.931346e-12 | OF21: -2.972924e-13 | OG21: 251.19 | OH21: 1.930743e-12 | OI21: -2.973993e-13 | OJ21: 251.19 | OK21: 1.931269e-12 | OL21: -2.969334e-13 | OM21: 251.19 | ON21: 1.928933e-12 | OO21: -2.951335e-13 | OP21: 251.19 | OQ21: 1.927955e-12 | OR21: -2.962431e-13 | OS21: 251.19 | OT21: 1.928302e-12 | OU21: -2.9554e-13 | OV21: 251.19 | OW21: 1.928323e-12 | OX21: -2.974738e-13 | OY21: 251.19 | OZ21: 1.927657e-12 | PA21: -2.957905e-13 | PB21: 251.19 | PC21: 1.926658e-12 | PD21: -2.95967e-13 | PE21: 251.19 | PF21: 1.925122e-12 | PG21: -2.974491e-13 | PH21: 251.19 | PI21: 1.925173e-12 | PJ21: -2.956946e-13 | PK21: 251.19 | PL21: 1.925503e-12 | PM21: -2.960432e-13 | PN21: 251.19 | PO21: 1.924609e-12 | PP21: -2.970859e-13 | PQ21: 251.19 | PR21: 1.923735e-12 | PS21: -2.978634e-13 | PT21: 251.19 | PU21: 1.923298e-12 | PV21: -2.974614e-13 | PW21: 251.19 | PX21: 1.923499e-12 | PY21: -2.970235e-13 | PZ21: 251.19 | QA21: 1.926197e-12 | QB21: -2.942328e-13 | QC21: 251.19 | QD21: 1.929177e-12 | QE21: -2.955626e-13 | QF21: 251.19 | QG21: 1.931728e-12 | QH21: -2.940587e-13 | QI21: 251.19 | QJ21: 1.936074e-12 | QK21: -2.902206e-13
A22: 316.23 | B22: 2.855889e-12 | C22: -2.421883e-13 | D22: 316.23 | E22: 2.850623e-12 | F22: -2.401184e-13 | G22: 316.23 | H22: 2.824918e-12 | I22: -2.336404e-13 | J22: 316.23 | K22: 2.813529e-12 | L22: -2.303994e-13 | M22: 316.23 | N22: 2.807551e-12 | O22: -2.278012e-13 | P22: 316.23 | Q22: 2.801956e-12 | R22: -2.249634e-13 | S22: 316.23 | T22: 2.797211e-12 | U22: -2.22882e-13 | V22: 316.23 | W22: 2.794657e-12 | X22: -2.210336e-13 | Y22: 316.23 | Z22: 2.792813e-12 | AA22: -2.207085e-13 | AB22: 316.23 | AC22: 2.791457e-12 | AD22: -2.193098e-13 | AE22: 316.23 | AF22: 2.789655e-12 | AG22: -2.187416e-13 | AH22: 316.23 | AI22: 2.789293e-12 | AJ22: -2.180389e-13 | AK22: 316.23 | AL22: 2.787329e-12 | AM22: -2.175256e-13 | AN22: 316.23 | AO22: 2.786004e-12 | AP22: -2.169564e-13 | AQ22: 316.23 | AR22: 2.785575e-12 | AS22: -2.166852e-13 | AT22: 316.23 | AU22: 2.78418e-12 | AV22: -2.165766e-13 | AW22: 316.23 | AX22: 2.783181e-12 | AY22: -2.1595e-13 | AZ22: 316.23 | BA22: 2.778543e-12 | BB22: -2.145864e-13 | BC22: 316.23 | BD22: 2.772356e-12 | BE22: -2.122892e-13 | BF22: 316.23 | BG22: 2.764497e-12 | BH22: -2.089637e-13 | BI22: 316.23 | BJ22: 2.757634e-12 | BK22: -2.054475e-13 | BL22: 316.23 | BM22: 2.747786e-12 | BN22: -2.006507e-13 | BO22: 316.23 | BP22: 2.739733e-12 | BQ22: -1.964705e-13 | BR22: 316.23 | BS22: 2.72986e-12 | BT22: -1.916526e-13 | BU22: 316.23 | BV22: 2.721349e-12 | BW22: -1.871842e-13 | BX22: 316.23 | BY22: 2.71112e-12 | BZ22: -1.815384e-13 | CA22: 316.23 | CB22: 2.70285e-12 | CC22: -1.771627e-13 | CD22: 316.23 | CE22: 2.692365e-12 | CF22: -1.722263e-13 | CG22: 316.23 | CH22: 2.683539e-12 | CI22: -1.673585e-13 | CJ22: 316.23 | CK22: 2.673976e-12 | CL22: -1.618816e-13 | CM22: 316.23 | CN22: 2.666188e-12 | CO22: -1.563686e-13 | CP22: 316.23 | CQ22: 2.656842e-12 | CR22: -1.511482e-13 | CS22: 316.23 | CT22: 2.648229e-12 | CU22: -1.461718e-13 | CV22: 316.23 | CW22: 2.638939e-12 | CX22: -1.414317e-13 | CY22: 316.23 | CZ22: 2.631328e-12 | DA22: -1.37105e-13 | DB22: 316.23 | DC22: 2.622926e-12 | DD22: -1.314327e-13 | DE22: 316.23 | DF22: 2.615029e-12 | DG22: -1.26599e-13 | DH22: 316.23 | DI22: 2.606476e-12 | DJ22: -1.219188e-13 | DK22: 316.23 | DL22: 2.599696e-12 | DM22: -1.17569e-13 | DN22: 316.23 | DO22: 2.59217e-12 | DP22: -1.128428e-13 | DQ22: 316.23 | DR22: 2.585218e-12 | DS22: -1.080327e-13 | DT22: 316.23 | DU22: 2.578217e-12 | DV22: -1.041447e-13 | DW22: 316.23 | DX22: 2.571637e-12 | DY22: -9.862681e-14 | DZ22: 316.23 | EA22: 2.563734e-12 | EB22: -9.34962e-14 | EC22: 316.23 | ED22: 2.556098e-12 | EE22: -8.877586e-14 | EF22: 316.23 | EG22: 2.547723e-12 | EH22: -8.398978e-14 | EI22: 316.23 | EJ22: 2.54177e-12 | EK22: -8.023646e-14 | EL22: 316.23 | EM22: 2.535069e-12 | EN22: -7.647002e-14 | EO22: 316.23 | EP22: 2.528399e-12 | EQ22: -7.265477e-14 | ER22: 316.23 | ES22: 2.52249e-12 | ET22: -6.93106e-14 | EU22: 316.23 | EV22: 2.519213e-12 | EW22: -6.673945e-14 | EX22: 316.23 | EY22: 2.51493e-12 | EZ22: -6.41968e-14 | FA22: 316.23 | FB22: 2.51029e-12 | FC22: -6.149126e-14 | FD22: 316.23 | FE22: 2.579128e-12 | FF22: -1.182031e-13 | FG22: 316.23 | FH22: 2.57526e-12 | FI22: -1.09409e-13 | FJ22: 316.23 | FK22: 2.574585e-12 | FL22: -1.095647e-13 | FM22: 316.23 | FN22: 2.573906e-12 | FO22: -1.12824e-13 | FP22: 316.23 | FQ22: 2.574743e-12 | FR22: -1.196764e-13 | FS22: 316.23 | FT22: 2.576633e-12 | FU22: -1.249126e-13 | FV22: 316.23 | FW22: 2.576106e-12 | FX22: -1.221077e-13 | FY22: 316.23 | FZ22: 2.564714e-12 | GA22: -1.061731e-13 | GB22: 316.23 | GC22: 2.544094e-12 | GD22: -8.016799e-14 | GE22: 316.23 | GF22: 2.515557e-12 | GG22: -5.348735e-14 | GH22: 316.23 | GI22: 2.492834e-12 | GJ22: -4.083337e-14 | GK22: 316.23 | GL22: 2.476937e-12 | GM22: -3.880625e-14 | GN22: 316.23 | GO22: 2.463913e-12 | GP22: -4.360112e-14 | GQ22: 316.23 | GR22: 2.453274e-12 | GS22: -5.133379e-14 | GT22: 316.23 | GU22: 2.443052e-12 | GV22: -6.327822e-14 | GW22: 316.23 | GX22: 2.431906e-12 | GY22: -7.792711e-14 | GZ22: 316.23 | HA22: 2.418702e-12 | HB22: -9.670384e-14 | HC22: 316.23 | HD22: 2.400979e-12 | HE22: -1.183439e-13 | HF22: 316.23 | HG22: 2.379527e-12 | HH22: -1.445693e-13 | HI22: 316.23 | HJ22: 2.351347e-12 | HK22: -1.715e-13 | HL22: 316.23 | HM22: 2.317909e-12 | HN22: -1.991096e-13 | HO22: 316.23 | HP22: 2.279473e-12 | HQ22: -2.239967e-13 | HR22: 316.23 | HS22: 2.238774e-12 | HT22: -2.461624e-13 | HU22: 316.23 | HV22: 2.19781e-12 | HW22: -2.63523e-13 | HX22: 316.23 | HY22: 2.15816e-12 | HZ22: -2.763731e-13 | IA22: 316.23 | IB22: 2.127847e-12 | IC22: -2.841799e-13 | ID22: 316.23 | IE22: 2.09765e-12 | IF22: -2.893411e-13 | IG22: 316.23 | IH22: 2.07109e-12 | II22: -2.926387e-13 | IJ22: 316.23 | IK22: 2.047927e-12 | IL22: -2.946813e-13 | IM22: 316.23 | IN22: 2.02863e-12 | IO22: -2.963231e-13 | IP22: 316.23 | IQ22: 2.016704e-12 | IR22: -2.970647e-13 | IS22: 316.23 | IT22: 2.005312e-12 | IU22: -2.987018e-13 | IV22: 316.23 | IW22: 1.994915e-12 | IX22: -2.999043e-13 | IY22: 316.23 | IZ22: 1.986202e-12 | JA22: -3.010977e-13 | JB22: 316.23 | JC22: 1.978134e-12 | JD22: -3.022896e-13 | JE22: 316.23 | JF22: 1.970343e-12 | JG22: -3.030252e-13 | JH22: 316.23 | JI22: 1.963238e-12 | JJ22: -3.048697e-13 | JK22: 316.23 | JL22: 1.95754e-12 | JM22: -3.057438e-13 | JN22: 316.23 | JO22: 1.952006e-12 | JP22: -3.06695e-13 | JQ22: 316.23 | JR22: 1.947844e-12 | JS22: -3.072387e-13 | JT22: 316.23 | JU22: 1.943439e-12 | JV22: -3.075778e-13 | JW22: 316.23 | JX22: 1.940431e-12 | JY22: -3.081342e-13 | JZ22: 316.23 | KA22: 1.937251e-12 | KB22: -3.084983e-13 | KC22: 316.23 | KD22: 1.934119e-12 | KE22: -3.092318e-13 | KF22: 316.23 | KG22: 1.931311e-12 | KH22: -3.094871e-13 | KI22: 316.23 | KJ22: 1.928972e-12 | KK22: -3.100355e-13 | KL22: 316.23 | KM22: 1.927021e-12 | KN22: -3.099023e-13 | KO22: 316.23 | KP22: 1.924966e-12 | KQ22: -3.103377e-13 | KR22: 316.23 | KS22: 1.923267e-12 | KT22: -3.106653e-13 | KU22: 316.23 | KV22: 1.921297e-12 | KW22: -3.113367e-13 | KX22: 316.23 | KY22: 1.918905e-12 | KZ22: -3.116175e-13 | LA22: 316.23 | LB22: 1.916301e-12 | LC22: -3.123127e-13 | LD22: 316.23 | LE22: 1.915003e-12 | LF22: -3.126514e-13 | LG22: 316.23 | LH22: 1.914117e-12 | LI22: -3.12236e-13 | LJ22: 316.23 | LK22: 1.912272e-12 | LL22: -3.12806e-13 | LM22: 316.23 | LN22: 1.910709e-12 | LO22: -3.134755e-13 | LP22: 316.23 | LQ22: 1.91007e-12 | LR22: -3.130401e-13 | LS22: 316.23 | LT22: 1.90783e-12 | LU22: -3.13399e-13 | LV22: 316.23 | LW22: 1.906566e-12 | LX22: -3.136614e-13 | LY22: 316.23 | LZ22: 1.905004e-12 | MA22: -3.134225e-13 | MB22: 316.23 | MC22: 1.9039e-12 | MD22: -3.13682e-13 | ME22: 316.23 | MF22: 1.902973e-12 | MG22: -3.138831e-13 | MH22: 316.23 | MI22: 1.901896e-12 | MJ22: -3.136112e-13 | MK22: 316.23 | ML22: 1.90051e-12 | MM22: -3.144807e-13 | MN22: 316.23 | MO22: 1.899928e-12 | MP22: -3.139015e-13 | MQ22: 316.23 | MR22: 1.898841e-12 | MS22: -3.141232e-13 | MT22: 316.23 | MU22: 1.898169e-12 | MV22: -3.145005e-13 | MW22: 316.23 | MX22: 1.897263e-12 | MY22: -3.144247e-13 | MZ22: 316.23 | NA22: 1.895925e-12 | NB22: -3.140234e-13 | NC22: 316.23 | ND22: 1.895148e-12 | NE22: -3.153934e-13 | NF22: 316.23 | NG22: 1.895012e-12 | NH22: -3.146573e-13 | NI22: 316.23 | NJ22: 1.893704e-12 | NK22: -3.144044e-13 | NL22: 316.23 | NM22: 1.893046e-12 | NN22: -3.142955e-13 | NO22: 316.23 | NP22: 1.892932e-12 | NQ22: -3.146278e-13 | NR22: 316.23 | NS22: 1.89226e-12 | NT22: -3.147845e-13 | NU22: 316.23 | NV22: 1.891303e-12 | NW22: -3.148738e-13 | NX22: 316.23 | NY22: 1.890833e-12 | NZ22: -3.146668e-13 | OA22: 316.23 | OB22: 1.890417e-12 | OC22: -3.147557e-13 | OD22: 316.23 | OE22: 1.889493e-12 | OF22: -3.140772e-13 | OG22: 316.23 | OH22: 1.88915e-12 | OI22: -3.146299e-13 | OJ22: 316.23 | OK22: 1.887866e-12 | OL22: -3.141059e-13 | OM22: 316.23 | ON22: 1.887292e-12 | OO22: -3.148856e-13 | OP22: 316.23 | OQ22: 1.886376e-12 | OR22: -3.146407e-13 | OS22: 316.23 | OT22: 1.886127e-12 | OU22: -3.144708e-13 | OV22: 316.23 | OW22: 1.885452e-12 | OX22: -3.139782e-13 | OY22: 316.23 | OZ22: 1.885127e-12 | PA22: -3.135831e-13 | PB22: 316.23 | PC22: 1.884309e-12 | PD22: -3.139549e-13 | PE22: 316.23 | PF22: 1.883991e-12 | PG22: -3.146582e-13 | PH22: 316.23 | PI22: 1.88337e-12 | PJ22: -3.146823e-13 | PK22: 316.23 | PL22: 1.88197e-12 | PM22: -3.143007e-13 | PN22: 316.23 | PO22: 1.881245e-12 | PP22: -3.14854e-13 | PQ22: 316.23 | PR22: 1.88123e-12 | PS22: -3.14895e-13 | PT22: 316.23 | PU22: 1.880095e-12 | PV22: -3.144201e-13 | PW22: 316.23 | PX22: 1.879907e-12 | PY22: -3.149662e-13 | PZ22: 316.23 | QA22: 1.883682e-12 | QB22: -3.133263e-13 | QC22: 316.23 | QD22: 1.886204e-12 | QE22: -3.117724e-13 | QF22: 316.23 | QG22: 1.890418e-12 | QH22: -3.109031e-13 | QI22: 316.23 | QJ22: 1.895012e-12 | QK22: -3.087085e-13
A23: 398.13 | B23: 2.822915e-12 | C23: -2.142648e-13 | D23: 398.13 | E23: 2.816647e-12 | F23: -2.129051e-13 | G23: 398.13 | H23: 2.792256e-12 | I23: -2.061394e-13 | J23: 398.13 | K23: 2.782542e-12 | L23: -2.023579e-13 | M23: 398.13 | N23: 2.776908e-12 | O23: -1.992425e-13 | P23: 398.13 | Q23: 2.772128e-12 | R23: -1.971287e-13 | S23: 398.13 | T23: 2.767373e-12 | U23: -1.949521e-13 | V23: 398.13 | W23: 2.765661e-12 | X23: -1.933117e-13 | Y23: 398.13 | Z23: 2.763675e-12 | AA23: -1.922573e-13 | AB23: 398.13 | AC23: 2.762014e-12 | AD23: -1.916593e-13 | AE23: 398.13 | AF23: 2.761524e-12 | AG23: -1.910142e-13 | AH23: 398.13 | AI23: 2.760658e-12 | AJ23: -1.902846e-13 | AK23: 398.13 | AL23: 2.758801e-12 | AM23: -1.897379e-13 | AN23: 398.13 | AO23: 2.75788e-12 | AP23: -1.894138e-13 | AQ23: 398.13 | AR23: 2.756742e-12 | AS23: -1.89276e-13 | AT23: 398.13 | AU23: 2.755899e-12 | AV23: -1.883968e-13 | AW23: 398.13 | AX23: 2.755692e-12 | AY23: -1.885032e-13 | AZ23: 398.13 | BA23: 2.751095e-12 | BB23: -1.869638e-13 | BC23: 398.13 | BD23: 2.745586e-12 | BE23: -1.837999e-13 | BF23: 398.13 | BG23: 2.738156e-12 | BH23: -1.809338e-13 | BI23: 398.13 | BJ23: 2.731421e-12 | BK23: -1.773868e-13 | BL23: 398.13 | BM23: 2.723462e-12 | BN23: -1.733615e-13 | BO23: 398.13 | BP23: 2.715272e-12 | BQ23: -1.685446e-13 | BR23: 398.13 | BS23: 2.707279e-12 | BT23: -1.639862e-13 | BU23: 398.13 | BV23: 2.698703e-12 | BW23: -1.600281e-13 | BX23: 398.13 | BY23: 2.689573e-12 | BZ23: -1.549727e-13 | CA23: 398.13 | CB23: 2.682259e-12 | CC23: -1.504083e-13 | CD23: 398.13 | CE23: 2.673033e-12 | CF23: -1.454563e-13 | CG23: 398.13 | CH23: 2.664895e-12 | CI23: -1.409122e-13 | CJ23: 398.13 | CK23: 2.656153e-12 | CL23: -1.35729e-13 | CM23: 398.13 | CN23: 2.64853e-12 | CO23: -1.304195e-13 | CP23: 398.13 | CQ23: 2.640607e-12 | CR23: -1.267453e-13 | CS23: 398.13 | CT23: 2.632936e-12 | CU23: -1.227053e-13 | CV23: 398.13 | CW23: 2.625097e-12 | CX23: -1.171017e-13 | CY23: 398.13 | CZ23: 2.617684e-12 | DA23: -1.129298e-13 | DB23: 398.13 | DC23: 2.610172e-12 | DD23: -1.082959e-13 | DE23: 398.13 | DF23: 2.60284e-12 | DG23: -1.039575e-13 | DH23: 398.13 | DI23: 2.594815e-12 | DJ23: -1.002486e-13 | DK23: 398.13 | DL23: 2.588247e-12 | DM23: -9.563458e-14 | DN23: 398.13 | DO23: 2.580954e-12 | DP23: -9.211113e-14 | DQ23: 398.13 | DR23: 2.575189e-12 | DS23: -8.86526e-14 | DT23: 398.13 | DU23: 2.569053e-12 | DV23: -8.357026e-14 | DW23: 398.13 | DX23: 2.563533e-12 | DY23: -7.942198e-14 | DZ23: 398.13 | EA23: 2.555619e-12 | EB23: -7.440874e-14 | EC23: 398.13 | ED23: 2.54835e-12 | EE23: -7.010199e-14 | EF23: 398.13 | EG23: 2.54173e-12 | EH23: -6.639191e-14 | EI23: 398.13 | EJ23: 2.535609e-12 | EK23: -6.288329e-14 | EL23: 398.13 | EM23: 2.528538e-12 | EN23: -5.96041e-14 | EO23: 398.13 | EP23: 2.523232e-12 | EQ23: -5.679224e-14 | ER23: 398.13 | ES23: 2.517479e-12 | ET23: -5.371532e-14 | EU23: 398.13 | EV23: 2.514255e-12 | EW23: -5.120581e-14 | EX23: 398.13 | EY23: 2.510565e-12 | EZ23: -4.856304e-14 | FA23: 398.13 | FB23: 2.505754e-12 | FC23: -4.665059e-14 | FD23: 398.13 | FE23: 2.568024e-12 | FF23: -9.59164e-14 | FG23: 398.13 | FH23: 2.565421e-12 | FI23: -8.84035e-14 | FJ23: 398.13 | FK23: 2.564745e-12 | FL23: -8.861946e-14 | FM23: 398.13 | FN23: 2.564288e-12 | FO23: -9.043028e-14 | FP23: 398.13 | FQ23: 2.563857e-12 | FR23: -9.633978e-14 | FS23: 398.13 | FT23: 2.56549e-12 | FU23: -1.008915e-13 | FV23: 398.13 | FW23: 2.564563e-12 | FX23: -9.791969e-14 | FY23: 398.13 | FZ23: 2.556287e-12 | GA23: -8.472681e-14 | GB23: 398.13 | GC23: 2.539028e-12 | GD23: -6.226144e-14 | GE23: 398.13 | GF23: 2.513225e-12 | GG23: -4.039303e-14 | GH23: 398.13 | GI23: 2.492191e-12 | GJ23: -3.017575e-14 | GK23: 398.13 | GL23: 2.476264e-12 | GM23: -3.094832e-14 | GN23: 398.13 | GO23: 2.462518e-12 | GP23: -3.686646e-14 | GQ23: 398.13 | GR23: 2.451394e-12 | GS23: -4.821129e-14 | GT23: 398.13 | GU23: 2.440811e-12 | GV23: -6.329824e-14 | GW23: 398.13 | GX23: 2.427991e-12 | GY23: -8.139367e-14 | GZ23: 398.13 | HA23: 2.412924e-12 | HB23: -1.032726e-13 | HC23: 398.13 | HD23: 2.392951e-12 | HE23: -1.292239e-13 | HF23: 398.13 | HG23: 2.367247e-12 | HH23: -1.591354e-13 | HI23: 398.13 | HJ23: 2.334822e-12 | HK23: -1.898716e-13 | HL23: 398.13 | HM23: 2.296869e-12 | HN23: -2.194191e-13 | HO23: 398.13 | HP23: 2.253863e-12 | HQ23: -2.464113e-13 | HR23: 398.13 | HS23: 2.20861e-12 | HT23: -2.691693e-13 | HU23: 398.13 | HV23: 2.163999e-12 | HW23: -2.864154e-13 | HX23: 398.13 | HY23: 2.121971e-12 | HZ23: -2.982292e-13 | IA23: 398.13 | IB23: 2.089713e-12 | IC23: -3.052788e-13 | ID23: 398.13 | IE23: 2.058945e-12 | IF23: -3.097093e-13 | IG23: 398.13 | IH23: 2.031637e-12 | II23: -3.127734e-13 | IJ23: 398.13 | IK23: 2.008051e-12 | IL23: -3.14513e-13 | IM23: 398.13 | IN23: 1.988453e-12 | IO23: -3.162176e-13 | IP23: 398.13 | IQ23: 1.976245e-12 | IR23: -3.172114e-13 | IS23: 398.13 | IT23: 1.964272e-12 | IU23: -3.185032e-13 | IV23: 398.13 | IW23: 1.954057e-12 | IX23: -3.192137e-13 | IY23: 398.13 | IZ23: 1.947028e-12 | JA23: -3.198786e-13 | JB23: 398.13 | JC23: 1.934643e-12 | JD23: -3.21427e-13 | JE23: 398.13 | JF23: 1.92713e-12 | JG23: -3.252778e-13 | JH23: 398.13 | JI23: 1.921758e-12 | JJ23: -3.262113e-13 | JK23: 398.13 | JL23: 1.913925e-12 | JM23: -3.268054e-13 | JN23: 398.13 | JO23: 1.909203e-12 | JP23: -3.266189e-13 | JQ23: 398.13 | JR23: 1.904724e-12 | JS23: -3.274892e-13 | JT23: 398.13 | JU23: 1.900551e-12 | JV23: -3.283718e-13 | JW23: 398.13 | JX23: 1.897283e-12 | JY23: -3.286856e-13 | JZ23: 398.13 | KA23: 1.893842e-12 | KB23: -3.29234e-13 | KC23: 398.13 | KD23: 1.890643e-12 | KE23: -3.299481e-13 | KF23: 398.13 | KG23: 1.887845e-12 | KH23: -3.301134e-13 | KI23: 398.13 | KJ23: 1.885289e-12 | KK23: -3.304387e-13 | KL23: 398.13 | KM23: 1.883546e-12 | KN23: -3.309472e-13 | KO23: 398.13 | KP23: 1.881253e-12 | KQ23: -3.311063e-13 | KR23: 398.13 | KS23: 1.879164e-12 | KT23: -3.31249e-13 | KU23: 398.13 | KV23: 1.876687e-12 | KW23: -3.314024e-13 | KX23: 398.13 | KY23: 1.874613e-12 | KZ23: -3.320557e-13 | LA23: 398.13 | LB23: 1.871721e-12 | LC23: -3.323175e-13 | LD23: 398.13 | LE23: 1.870477e-12 | LF23: -3.328232e-13 | LG23: 398.13 | LH23: 1.869474e-12 | LI23: -3.329353e-13 | LJ23: 398.13 | LK23: 1.867843e-12 | LL23: -3.326713e-13 | LM23: 398.13 | LN23: 1.866134e-12 | LO23: -3.328858e-13 | LP23: 398.13 | LQ23: 1.865473e-12 | LR23: -3.328622e-13 | LS23: 398.13 | LT23: 1.863338e-12 | LU23: -3.329451e-13 | LV23: 398.13 | LW23: 1.861802e-12 | LX23: -3.332272e-13 | LY23: 398.13 | LZ23: 1.860547e-12 | MA23: -3.335256e-13 | MB23: 398.13 | MC23: 1.859613e-12 | MD23: -3.334749e-13 | ME23: 398.13 | MF23: 1.858085e-12 | MG23: -3.337457e-13 | MH23: 398.13 | MI23: 1.857055e-12 | MJ23: -3.334488e-13 | MK23: 398.13 | ML23: 1.855407e-12 | MM23: -3.337955e-13 | MN23: 398.13 | MO23: 1.854969e-12 | MP23: -3.339548e-13 | MQ23: 398.13 | MR23: 1.854133e-12 | MS23: -3.336534e-13 | MT23: 398.13 | MU23: 1.85336e-12 | MV23: -3.334416e-13 | MW23: 398.13 | MX23: 1.852226e-12 | MY23: -3.336914e-13 | MZ23: 398.13 | NA23: 1.851121e-12 | NB23: -3.341206e-13 | NC23: 398.13 | ND23: 1.849626e-12 | NE23: -3.33827e-13 | NF23: 398.13 | NG23: 1.849777e-12 | NH23: -3.336757e-13 | NI23: 398.13 | NJ23: 1.848648e-12 | NK23: -3.336694e-13 | NL23: 398.13 | NM23: 1.848245e-12 | NN23: -3.342443e-13 | NO23: 398.13 | NP23: 1.846917e-12 | NQ23: -3.337668e-13 | NR23: 398.13 | NS23: 1.847612e-12 | NT23: -3.339228e-13 | NU23: 398.13 | NV23: 1.846089e-12 | NW23: -3.334669e-13 | NX23: 398.13 | NY23: 1.845754e-12 | NZ23: -3.341121e-13 | OA23: 398.13 | OB23: 1.845191e-12 | OC23: -3.331036e-13 | OD23: 398.13 | OE23: 1.844391e-12 | OF23: -3.332364e-13 | OG23: 398.13 | OH23: 1.844117e-12 | OI23: -3.329653e-13 | OJ23: 398.13 | OK23: 1.842788e-12 | OL23: -3.330124e-13 | OM23: 398.13 | ON23: 1.841986e-12 | OO23: -3.331528e-13 | OP23: 398.13 | OQ23: 1.841399e-12 | OR23: -3.33223e-13 | OS23: 398.13 | OT23: 1.841259e-12 | OU23: -3.33096e-13 | OV23: 398.13 | OW23: 1.840207e-12 | OX23: -3.331602e-13 | OY23: 398.13 | OZ23: 1.84049e-12 | PA23: -3.339017e-13 | PB23: 398.13 | PC23: 1.839431e-12 | PD23: -3.327391e-13 | PE23: 398.13 | PF23: 1.839201e-12 | PG23: -3.326063e-13 | PH23: 398.13 | PI23: 1.837708e-12 | PJ23: -3.328588e-13 | PK23: 398.13 | PL23: 1.837141e-12 | PM23: -3.328794e-13 | PN23: 398.13 | PO23: 1.83695e-12 | PP23: -3.328917e-13 | PQ23: 398.13 | PR23: 1.835699e-12 | PS23: -3.332505e-13 | PT23: 398.13 | PU23: 1.835052e-12 | PV23: -3.3324e-13 | PW23: 398.13 | PX23: 1.834765e-12 | PY23: -3.332623e-13 | PZ23: 398.13 | QA23: 1.838767e-12 | QB23: -3.310183e-13 | QC23: 398.13 | QD23: 1.84246e-12 | QE23: -3.303736e-13 | QF23: 398.13 | QG23: 1.846213e-12 | QH23: -3.290826e-13 | QI23: 398.13 | QJ23: 1.851142e-12 | QK23: -3.27424e-13
A24: 501.19 | B24: 2.795223e-12 | C24: -1.888092e-13 | D24: 501.19 | E24: 2.788047e-12 | F24: -1.885239e-13 | G24: 501.19 | H24: 2.765614e-12 | I24: -1.814739e-13 | J24: 501.19 | K24: 2.756695e-12 | L24: -1.771523e-13 | M24: 501.19 | N24: 2.75172e-12 | O24: -1.744663e-13 | P24: 501.19 | Q24: 2.747282e-12 | R24: -1.714558e-13 | S24: 501.19 | T24: 2.743692e-12 | U24: -1.694307e-13 | V24: 501.19 | W24: 2.741494e-12 | X24: -1.678322e-13 | Y24: 501.19 | Z24: 2.740367e-12 | AA24: -1.672657e-13 | AB24: 501.19 | AC24: 2.738622e-12 | AD24: -1.659008e-13 | AE24: 501.19 | AF24: 2.737697e-12 | AG24: -1.656618e-13 | AH24: 501.19 | AI24: 2.736847e-12 | AJ24: -1.648003e-13 | AK24: 501.19 | AL24: 2.735689e-12 | AM24: -1.645151e-13 | AN24: 501.19 | AO24: 2.734567e-12 | AP24: -1.639511e-13 | AQ24: 501.19 | AR24: 2.73433e-12 | AS24: -1.63937e-13 | AT24: 501.19 | AU24: 2.732978e-12 | AV24: -1.633177e-13 | AW24: 501.19 | AX24: 2.732301e-12 | AY24: -1.630132e-13 | AZ24: 501.19 | BA24: 2.728189e-12 | BB24: -1.61685e-13 | BC24: 501.19 | BD24: 2.723325e-12 | BE24: -1.588298e-13 | BF24: 501.19 | BG24: 2.717067e-12 | BH24: -1.55973e-13 | BI24: 501.19 | BJ24: 2.711341e-12 | BK24: -1.527757e-13 | BL24: 501.19 | BM24: 2.703212e-12 | BN24: -1.483858e-13 | BO24: 501.19 | BP24: 2.696467e-12 | BQ24: -1.443918e-13 | BR24: 501.19 | BS24: 2.68886e-12 | BT24: -1.401367e-13 | BU24: 501.19 | BV24: 2.681744e-12 | BW24: -1.358923e-13 | BX24: 501.19 | BY24: 2.672873e-12 | BZ24: -1.313614e-13 | CA24: 501.19 | CB24: 2.666048e-12 | CC24: -1.271779e-13 | CD24: 501.19 | CE24: 2.657507e-12 | CF24: -1.22474e-13 | CG24: 501.19 | CH24: 2.650512e-12 | CI24: -1.184008e-13 | CJ24: 501.19 | CK24: 2.642685e-12 | CL24: -1.140603e-13 | CM24: 501.19 | CN24: 2.635791e-12 | CO24: -1.095452e-13 | CP24: 501.19 | CQ24: 2.62827e-12 | CR24: -1.049913e-13 | CS24: 501.19 | CT24: 2.621175e-12 | CU24: -1.009771e-13 | CV24: 501.19 | CW24: 2.613895e-12 | CX24: -9.695673e-14 | CY24: 501.19 | CZ24: 2.607289e-12 | DA24: -9.299132e-14 | DB24: 501.19 | DC24: 2.600082e-12 | DD24: -8.881288e-14 | DE24: 501.19 | DF24: 2.593951e-12 | DG24: -8.490528e-14 | DH24: 501.19 | DI24: 2.586985e-12 | DJ24: -8.114943e-14 | DK24: 501.19 | DL24: 2.580683e-12 | DM24: -7.733862e-14 | DN24: 501.19 | DO24: 2.574175e-12 | DP24: -7.387335e-14 | DQ24: 501.19 | DR24: 2.56874e-12 | DS24: -7.029153e-14 | DT24: 501.19 | DU24: 2.562891e-12 | DV24: -6.700526e-14 | DW24: 501.19 | DX24: 2.557082e-12 | DY24: -6.332647e-14 | DZ24: 501.19 | EA24: 2.550298e-12 | EB24: -5.893044e-14 | EC24: 501.19 | ED24: 2.543909e-12 | EE24: -5.541875e-14 | EF24: 501.19 | EG24: 2.537553e-12 | EH24: -5.165785e-14 | EI24: 501.19 | EJ24: 2.531785e-12 | EK24: -4.898797e-14 | EL24: 501.19 | EM24: 2.525249e-12 | EN24: -4.592696e-14 | EO24: 501.19 | EP24: 2.520129e-12 | EQ24: -4.323051e-14 | ER24: 501.19 | ES24: 2.514817e-12 | ET24: -4.081398e-14 | EU24: 501.19 | EV24: 2.51189e-12 | EW24: -3.893539e-14 | EX24: 501.19 | EY24: 2.508176e-12 | EZ24: -3.703809e-14 | FA24: 501.19 | FB24: 2.50388e-12 | FC24: -3.502273e-14 | FD24: 501.19 | FE24: 2.560259e-12 | FF24: -7.698131e-14 | FG24: 501.19 | FH24: 2.558329e-12 | FI24: -7.103214e-14 | FJ24: 501.19 | FK24: 2.558104e-12 | FL24: -7.136251e-14 | FM24: 501.19 | FN24: 2.556986e-12 | FO24: -7.28707e-14 | FP24: 501.19 | FQ24: 2.556528e-12 | FR24: -7.715112e-14 | FS24: 501.19 | FT24: 2.557951e-12 | FU24: -8.085947e-14 | FV24: 501.19 | FW24: 2.557678e-12 | FX24: -7.860881e-14 | FY24: 501.19 | FZ24: 2.55113e-12 | GA24: -6.702177e-14 | GB24: 501.19 | GC24: 2.536069e-12 | GD24: -4.814215e-14 | GE24: 501.19 | GF24: 2.51194e-12 | GG24: -2.987897e-14 | GH24: 501.19 | GI24: 2.491204e-12 | GJ24: -2.223437e-14 | GK24: 501.19 | GL24: 2.475995e-12 | GM24: -2.504377e-14 | GN24: 501.19 | GO24: 2.46271e-12 | GP24: -3.429302e-14 | GQ24: 501.19 | GR24: 2.450822e-12 | GS24: -4.837119e-14 | GT24: 501.19 | GU24: 2.439195e-12 | GV24: -6.696584e-14 | GW24: 501.19 | GX24: 2.425041e-12 | GY24: -8.94504e-14 | GZ24: 501.19 | HA24: 2.407246e-12 | HB24: -1.16064e-13 | HC24: 501.19 | HD24: 2.383521e-12 | HE24: -1.461431e-13 | HF24: 501.19 | HG24: 2.353375e-12 | HH24: -1.80095e-13 | HI24: 501.19 | HJ24: 2.316057e-12 | HK24: -2.139222e-13 | HL24: 501.19 | HM24: 2.27222e-12 | HN24: -2.464519e-13 | HO24: 501.19 | HP24: 2.224012e-12 | HQ24: -2.746175e-13 | HR24: 501.19 | HS24: 2.173678e-12 | HT24: -2.971851e-13 | HU24: 501.19 | HV24: 2.125805e-12 | HW24: -3.13549e-13 | HX24: 501.19 | HY24: 2.081352e-12 | HZ24: -3.245205e-13 | IA24: 501.19 | IB24: 2.047639e-12 | IC24: -3.303045e-13 | ID24: 501.19 | IE24: 2.015593e-12 | IF24: -3.339255e-13 | IG24: 501.19 | IH24: 1.988164e-12 | II24: -3.362773e-13 | IJ24: 501.19 | IK24: 1.964414e-12 | IL24: -3.378201e-13 | IM24: 501.19 | IN24: 1.944372e-12 | IO24: -3.390567e-13 | IP24: 501.19 | IQ24: 1.931833e-12 | IR24: -3.400336e-13 | IS24: 501.19 | IT24: 1.919574e-12 | IU24: -3.413002e-13 | IV24: 501.19 | IW24: 1.908754e-12 | IX24: -3.424223e-13 | IY24: 501.19 | IZ24: 1.899433e-12 | JA24: -3.438059e-13 | JB24: 501.19 | JC24: 1.890469e-12 | JD24: -3.45078e-13 | JE24: 501.19 | JF24: 1.882482e-12 | JG24: -3.46212e-13 | JH24: 501.19 | JI24: 1.8747e-12 | JJ24: -3.472608e-13 | JK24: 501.19 | JL24: 1.868248e-12 | JM24: -3.487737e-13 | JN24: 501.19 | JO24: 1.862225e-12 | JP24: -3.495628e-13 | JQ24: 501.19 | JR24: 1.85748e-12 | JS24: -3.502423e-13 | JT24: 501.19 | JU24: 1.852711e-12 | JV24: -3.50724e-13 | JW24: 501.19 | JX24: 1.849378e-12 | JY24: -3.509512e-13 | JZ24: 501.19 | KA24: 1.846075e-12 | KB24: -3.514327e-13 | KC24: 501.19 | KD24: 1.842577e-12 | KE24: -3.521254e-13 | KF24: 501.19 | KG24: 1.839484e-12 | KH24: -3.524204e-13 | KI24: 501.19 | KJ24: 1.83705e-12 | KK24: -3.525677e-13 | KL24: 501.19 | KM24: 1.835141e-12 | KN24: -3.526004e-13 | KO24: 501.19 | KP24: 1.832987e-12 | KQ24: -3.529584e-13 | KR24: 501.19 | KS24: 1.830846e-12 | KT24: -3.529987e-13 | KU24: 501.19 | KV24: 1.828308e-12 | KW24: -3.534531e-13 | KX24: 501.19 | KY24: 1.825812e-12 | KZ24: -3.53813e-13 | LA24: 501.19 | LB24: 1.823073e-12 | LC24: -3.539168e-13 | LD24: 501.19 | LE24: 1.821634e-12 | LF24: -3.540029e-13 | LG24: 501.19 | LH24: 1.820789e-12 | LI24: -3.537787e-13 | LJ24: 501.19 | LK24: 1.819062e-12 | LL24: -3.542948e-13 | LM24: 501.19 | LN24: 1.817521e-12 | LO24: -3.543583e-13 | LP24: 501.19 | LQ24: 1.816467e-12 | LR24: -3.543734e-13 | LS24: 501.19 | LT24: 1.814594e-12 | LU24: -3.544039e-13 | LV24: 501.19 | LW24: 1.81296e-12 | LX24: -3.54425e-13 | LY24: 501.19 | LZ24: 1.81173e-12 | MA24: -3.545973e-13 | MB24: 501.19 | MC24: 1.810727e-12 | MD24: -3.545016e-13 | ME24: 501.19 | MF24: 1.809369e-12 | MG24: -3.547117e-13 | MH24: 501.19 | MI24: 1.808063e-12 | MJ24: -3.545142e-13 | MK24: 501.19 | ML24: 1.806555e-12 | MM24: -3.545336e-13 | MN24: 501.19 | MO24: 1.806112e-12 | MP24: -3.544908e-13 | MQ24: 501.19 | MR24: 1.805169e-12 | MS24: -3.545434e-13 | MT24: 501.19 | MU24: 1.804553e-12 | MV24: -3.543608e-13 | MW24: 501.19 | MX24: 1.803354e-12 | MY24: -3.544803e-13 | MZ24: 501.19 | NA24: 1.802467e-12 | NB24: -3.544043e-13 | NC24: 501.19 | ND24: 1.800964e-12 | NE24: -3.544318e-13 | NF24: 501.19 | NG24: 1.800533e-12 | NH24: -3.540837e-13 | NI24: 501.19 | NJ24: 1.79987e-12 | NK24: -3.543047e-13 | NL24: 501.19 | NM24: 1.798818e-12 | NN24: -3.540797e-13 | NO24: 501.19 | NP24: 1.798634e-12 | NQ24: -3.539701e-13 | NR24: 501.19 | NS24: 1.798336e-12 | NT24: -3.538597e-13 | NU24: 501.19 | NV24: 1.797222e-12 | NW24: -3.537917e-13 | NX24: 501.19 | NY24: 1.797056e-12 | NZ24: -3.533588e-13 | OA24: 501.19 | OB24: 1.796703e-12 | OC24: -3.533854e-13 | OD24: 501.19 | OE24: 1.795686e-12 | OF24: -3.536417e-13 | OG24: 501.19 | OH24: 1.795453e-12 | OI24: -3.533754e-13 | OJ24: 501.19 | OK24: 1.794432e-12 | OL24: -3.533669e-13 | OM24: 501.19 | ON24: 1.793153e-12 | OO24: -3.534342e-13 | OP24: 501.19 | OQ24: 1.792501e-12 | OR24: -3.533602e-13 | OS24: 501.19 | OT24: 1.792408e-12 | OU24: -3.533105e-13 | OV24: 501.19 | OW24: 1.791554e-12 | OX24: -3.531763e-13 | OY24: 501.19 | OZ24: 1.791289e-12 | PA24: -3.527159e-13 | PB24: 501.19 | PC24: 1.790938e-12 | PD24: -3.527421e-13 | PE24: 501.19 | PF24: 1.790629e-12 | PG24: -3.52944e-13 | PH24: 501.19 | PI24: 1.789065e-12 | PJ24: -3.528913e-13 | PK24: 501.19 | PL24: 1.78875e-12 | PM24: -3.528301e-13 | PN24: 501.19 | PO24: 1.787843e-12 | PP24: -3.525597e-13 | PQ24: 501.19 | PR24: 1.787491e-12 | PS24: -3.528672e-13 | PT24: 501.19 | PU24: 1.786349e-12 | PV24: -3.526237e-13 | PW24: 501.19 | PX24: 1.78613e-12 | PY24: -3.52331e-13 | PZ24: 501.19 | QA24: 1.790701e-12 | QB24: -3.511042e-13 | QC24: 501.19 | QD24: 1.794136e-12 | QE24: -3.50188e-13 | QF24: 501.19 | QG24: 1.798159e-12 | QH24: -3.489605e-13 | QI24: 501.19 | QJ24: 1.803579e-12 | QK24: -3.474044e-13
A25: 631.01 | B25: 2.774177e-12 | C25: -1.658982e-13 | D25: 631.01 | E25: 2.766123e-12 | F25: -1.651046e-13 | G25: 631.01 | H25: 2.745159e-12 | I25: -1.581715e-13 | J25: 631.01 | K25: 2.737879e-12 | L25: -1.542129e-13 | M25: 631.01 | N25: 2.732924e-12 | O25: -1.519318e-13 | P25: 631.01 | Q25: 2.729557e-12 | R25: -1.491836e-13 | S25: 631.01 | T25: 2.725984e-12 | U25: -1.46456e-13 | V25: 631.01 | W25: 2.724822e-12 | X25: -1.453837e-13 | Y25: 631.01 | Z25: 2.723034e-12 | AA25: -1.446261e-13 | AB25: 631.01 | AC25: 2.722123e-12 | AD25: -1.439958e-13 | AE25: 631.01 | AF25: 2.72096e-12 | AG25: -1.429519e-13 | AH25: 631.01 | AI25: 2.720139e-12 | AJ25: -1.426021e-13 | AK25: 631.01 | AL25: 2.719243e-12 | AM25: -1.424016e-13 | AN25: 631.01 | AO25: 2.718312e-12 | AP25: -1.414235e-13 | AQ25: 631.01 | AR25: 2.717333e-12 | AS25: -1.411769e-13 | AT25: 631.01 | AU25: 2.716125e-12 | AV25: -1.405969e-13 | AW25: 631.01 | AX25: 2.715471e-12 | AY25: -1.406557e-13 | AZ25: 631.01 | BA25: 2.712292e-12 | BB25: -1.38944e-13 | BC25: 631.01 | BD25: 2.707425e-12 | BE25: -1.366023e-13 | BF25: 631.01 | BG25: 2.702082e-12 | BH25: -1.336445e-13 | BI25: 631.01 | BJ25: 2.696759e-12 | BK25: -1.306574e-13 | BL25: 631.01 | BM25: 2.689857e-12 | BN25: -1.26831e-13 | BO25: 631.01 | BP25: 2.683469e-12 | BQ25: -1.23363e-13 | BR25: 631.01 | BS25: 2.67632e-12 | BT25: -1.187936e-13 | BU25: 631.01 | BV25: 2.669665e-12 | BW25: -1.150819e-13 | BX25: 631.01 | BY25: 2.662165e-12 | BZ25: -1.109913e-13 | CA25: 631.01 | CB25: 2.655828e-12 | CC25: -1.07534e-13 | CD25: 631.01 | CE25: 2.648133e-12 | CF25: -1.032009e-13 | CG25: 631.01 | CH25: 2.641719e-12 | CI25: -9.928267e-14 | CJ25: 631.01 | CK25: 2.633813e-12 | CL25: -9.532212e-14 | CM25: 631.01 | CN25: 2.627611e-12 | CO25: -9.112526e-14 | CP25: 631.01 | CQ25: 2.621342e-12 | CR25: -8.739899e-14 | CS25: 631.01 | CT25: 2.614414e-12 | CU25: -8.329146e-14 | CV25: 631.01 | CW25: 2.60792e-12 | CX25: -8.005705e-14 | CY25: 631.01 | CZ25: 2.60211e-12 | DA25: -7.663444e-14 | DB25: 631.01 | DC25: 2.595432e-12 | DD25: -7.280883e-14 | DE25: 631.01 | DF25: 2.589716e-12 | DG25: -6.939686e-14 | DH25: 631.01 | DI25: 2.582746e-12 | DJ25: -6.600236e-14 | DK25: 631.01 | DL25: 2.577346e-12 | DM25: -6.294277e-14 | DN25: 631.01 | DO25: 2.571078e-12 | DP25: -5.916615e-14 | DQ25: 631.01 | DR25: 2.566397e-12 | DS25: -5.664408e-14 | DT25: 631.01 | DU25: 2.560353e-12 | DV25: -5.339747e-14 | DW25: 631.01 | DX25: 2.555829e-12 | DY25: -5.03046e-14 | DZ25: 631.01 | EA25: 2.549024e-12 | EB25: -4.633113e-14 | EC25: 631.01 | ED25: 2.542781e-12 | EE25: -4.394901e-14 | EF25: 631.01 | EG25: 2.53693e-12 | EH25: -4.053167e-14 | EI25: 631.01 | EJ25: 2.53138e-12 | EK25: -3.792648e-14 | EL25: 631.01 | EM25: 2.525675e-12 | EN25: -3.521992e-14 | EO25: 631.01 | EP25: 2.52053e-12 | EQ25: -3.311581e-14 | ER25: 631.01 | ES25: 2.515067e-12 | ET25: -3.035288e-14 | EU25: 631.01 | EV25: 2.512583e-12 | EW25: -2.941652e-14 | EX25: 631.01 | EY25: 2.508877e-12 | EZ25: -2.746736e-14 | FA25: 631.01 | FB25: 2.504678e-12 | FC25: -2.568856e-14 | FD25: 631.01 | FE25: 2.556997e-12 | FF25: -6.208983e-14 | FG25: 631.01 | FH25: 2.555606e-12 | FI25: -5.743921e-14 | FJ25: 631.01 | FK25: 2.554917e-12 | FL25: -5.720086e-14 | FM25: 631.01 | FN25: 2.554412e-12 | FO25: -5.804623e-14 | FP25: 631.01 | FQ25: 2.553845e-12 | FR25: -6.131504e-14 | FS25: 631.01 | FT25: 2.55484e-12 | FU25: -6.426395e-14 | FV25: 631.01 | FW25: 2.55495e-12 | FX25: -6.256339e-14 | FY25: 631.01 | FZ25: 2.549796e-12 | GA25: -5.298623e-14 | GB25: 631.01 | GC25: 2.536445e-12 | GD25: -3.720041e-14 | GE25: 631.01 | GF25: 2.513481e-12 | GG25: -2.230921e-14 | GH25: 631.01 | GI25: 2.493923e-12 | GJ25: -1.730801e-14 | GK25: 631.01 | GL25: 2.47913e-12 | GM25: -2.241331e-14 | GN25: 631.01 | GO25: 2.46528e-12 | GP25: -3.439437e-14 | GQ25: 631.01 | GR25: 2.452389e-12 | GS25: -5.281702e-14 | GT25: 631.01 | GU25: 2.439068e-12 | GV25: -7.56463e-14 | GW25: 631.01 | GX25: 2.422746e-12 | GY25: -1.025144e-13 | GZ25: 631.01 | HA25: 2.401972e-12 | HB25: -1.341323e-13 | HC25: 631.01 | HD25: 2.373859e-12 | HE25: -1.696644e-13 | HF25: 631.01 | HG25: 2.338406e-12 | HH25: -2.072774e-13 | HI25: 631.01 | HJ25: 2.294299e-12 | HK25: -2.445e-13 | HL25: 631.01 | HM25: 2.244223e-12 | HN25: -2.787436e-13 | HO25: 631.01 | HP25: 2.189731e-12 | HQ25: -3.072718e-13 | HR25: 631.01 | HS25: 2.135038e-12 | HT25: -3.292944e-13 | HU25: 631.01 | HV25: 2.083566e-12 | HW25: -3.440607e-13 | HX25: 631.01 | HY25: 2.036455e-12 | HZ25: -3.530431e-13 | IA25: 631.01 | IB25: 2.001987e-12 | IC25: -3.581045e-13 | ID25: 631.01 | IE25: 1.968856e-12 | IF25: -3.605254e-13 | IG25: 631.01 | IH25: 1.941098e-12 | II25: -3.620333e-13 | IJ25: 631.01 | IK25: 1.916729e-12 | IL25: -3.63157e-13 | IM25: 631.01 | IN25: 1.896639e-12 | IO25: -3.643913e-13 | IP25: 631.01 | IQ25: 1.883885e-12 | IR25: -3.650101e-13 | IS25: 631.01 | IT25: 1.871176e-12 | IU25: -3.662501e-13 | IV25: 631.01 | IW25: 1.859981e-12 | IX25: -3.671225e-13 | IY25: 631.01 | IZ25: 1.850331e-12 | JA25: -3.685703e-13 | JB25: 631.01 | JC25: 1.841174e-12 | JD25: -3.690038e-13 | JE25: 631.01 | JF25: 1.833084e-12 | JG25: -3.706521e-13 | JH25: 631.01 | JI25: 1.824706e-12 | JJ25: -3.7132e-13 | JK25: 631.01 | JL25: 1.817964e-12 | JM25: -3.728096e-13 | JN25: 631.01 | JO25: 1.811661e-12 | JP25: -3.733472e-13 | JQ25: 631.01 | JR25: 1.806936e-12 | JS25: -3.740499e-13 | JT25: 631.01 | JU25: 1.802109e-12 | JV25: -3.743504e-13 | JW25: 631.01 | JX25: 1.798603e-12 | JY25: -3.743465e-13 | JZ25: 631.01 | KA25: 1.795071e-12 | KB25: -3.747598e-13 | KC25: 631.01 | KD25: 1.791664e-12 | KE25: -3.75245e-13 | KF25: 631.01 | KG25: 1.788469e-12 | KH25: -3.752635e-13 | KI25: 631.01 | KJ25: 1.78608e-12 | KK25: -3.754414e-13 | KL25: 631.01 | KM25: 1.784122e-12 | KN25: -3.756318e-13 | KO25: 631.01 | KP25: 1.781928e-12 | KQ25: -3.757144e-13 | KR25: 631.01 | KS25: 1.779834e-12 | KT25: -3.755795e-13 | KU25: 631.01 | KV25: 1.777267e-12 | KW25: -3.758768e-13 | KX25: 631.01 | KY25: 1.774702e-12 | KZ25: -3.76183e-13 | LA25: 631.01 | LB25: 1.771847e-12 | LC25: -3.76511e-13 | LD25: 631.01 | LE25: 1.770482e-12 | LF25: -3.767e-13 | LG25: 631.01 | LH25: 1.769267e-12 | LI25: -3.759174e-13 | LJ25: 631.01 | LK25: 1.76808e-12 | LL25: -3.763534e-13 | LM25: 631.01 | LN25: 1.766019e-12 | LO25: -3.765249e-13 | LP25: 631.01 | LQ25: 1.765419e-12 | LR25: -3.76285e-13 | LS25: 631.01 | LT25: 1.763246e-12 | LU25: -3.764023e-13 | LV25: 631.01 | LW25: 1.761641e-12 | LX25: -3.762062e-13 | LY25: 631.01 | LZ25: 1.760487e-12 | MA25: -3.76267e-13 | MB25: 631.01 | MC25: 1.759402e-12 | MD25: -3.761751e-13 | ME25: 631.01 | MF25: 1.757752e-12 | MG25: -3.760956e-13 | MH25: 631.01 | MI25: 1.756824e-12 | MJ25: -3.759741e-13 | MK25: 631.01 | ML25: 1.755343e-12 | MM25: -3.761504e-13 | MN25: 631.01 | MO25: 1.754856e-12 | MP25: -3.759877e-13 | MQ25: 631.01 | MR25: 1.753862e-12 | MS25: -3.757091e-13 | MT25: 631.01 | MU25: 1.753508e-12 | MV25: -3.755641e-13 | MW25: 631.01 | MX25: 1.75221e-12 | MY25: -3.753444e-13 | MZ25: 631.01 | NA25: 1.751263e-12 | NB25: -3.755886e-13 | NC25: 631.01 | ND25: 1.750159e-12 | NE25: -3.758727e-13 | NF25: 631.01 | NG25: 1.749737e-12 | NH25: -3.752646e-13 | NI25: 631.01 | NJ25: 1.748445e-12 | NK25: -3.753516e-13 | NL25: 631.01 | NM25: 1.747757e-12 | NN25: -3.75028e-13 | NO25: 631.01 | NP25: 1.747626e-12 | NQ25: -3.750106e-13 | NR25: 631.01 | NS25: 1.747385e-12 | NT25: -3.749298e-13 | NU25: 631.01 | NV25: 1.746456e-12 | NW25: -3.745261e-13 | NX25: 631.01 | NY25: 1.746168e-12 | NZ25: -3.745493e-13 | OA25: 631.01 | OB25: 1.745635e-12 | OC25: -3.745033e-13 | OD25: 631.01 | OE25: 1.744736e-12 | OF25: -3.74653e-13 | OG25: 631.01 | OH25: 1.744295e-12 | OI25: -3.740948e-13 | OJ25: 631.01 | OK25: 1.743668e-12 | OL25: -3.739512e-13 | OM25: 631.01 | ON25: 1.742261e-12 | OO25: -3.740089e-13 | OP25: 631.01 | OQ25: 1.741803e-12 | OR25: -3.741063e-13 | OS25: 631.01 | OT25: 1.741526e-12 | OU25: -3.738023e-13 | OV25: 631.01 | OW25: 1.740833e-12 | OX25: -3.735042e-13 | OY25: 631.01 | OZ25: 1.740692e-12 | PA25: -3.735099e-13 | PB25: 631.01 | PC25: 1.740526e-12 | PD25: -3.73573e-13 | PE25: 631.01 | PF25: 1.739917e-12 | PG25: -3.733955e-13 | PH25: 631.01 | PI25: 1.738448e-12 | PJ25: -3.732981e-13 | PK25: 631.01 | PL25: 1.738027e-12 | PM25: -3.730124e-13 | PN25: 631.01 | PO25: 1.737116e-12 | PP25: -3.732064e-13 | PQ25: 631.01 | PR25: 1.736737e-12 | PS25: -3.73132e-13 | PT25: 631.01 | PU25: 1.735547e-12 | PV25: -3.730345e-13 | PW25: 631.01 | PX25: 1.735727e-12 | PY25: -3.726358e-13 | PZ25: 631.01 | QA25: 1.740297e-12 | QB25: -3.713227e-13 | QC25: 631.01 | QD25: 1.743797e-12 | QE25: -3.702671e-13 | QF25: 631.01 | QG25: 1.748031e-12 | QH25: -3.697557e-13 | QI25: 631.01 | QJ25: 1.7538e-12 | QK25: -3.679987e-13
A26: 794.44 | B26: 2.757634e-12 | C26: -1.46616e-13 | D26: 794.44 | E26: 2.748812e-12 | F26: -1.456121e-13 | G26: 794.44 | H26: 2.73025e-12 | I26: -1.392731e-13 | J26: 794.44 | K26: 2.723186e-12 | L26: -1.355303e-13 | M26: 794.44 | N26: 2.718627e-12 | O26: -1.326937e-13 | P26: 794.44 | Q26: 2.715317e-12 | R26: -1.304798e-13 | S26: 794.44 | T26: 2.712666e-12 | U26: -1.280057e-13 | V26: 794.44 | W26: 2.711474e-12 | X26: -1.269251e-13 | Y26: 794.44 | Z26: 2.710276e-12 | AA26: -1.263071e-13 | AB26: 794.44 | AC26: 2.709157e-12 | AD26: -1.252586e-13 | AE26: 794.44 | AF26: 2.708197e-12 | AG26: -1.248785e-13 | AH26: 794.44 | AI26: 2.707619e-12 | AJ26: -1.243538e-13 | AK26: 794.44 | AL26: 2.706132e-12 | AM26: -1.23713e-13 | AN26: 794.44 | AO26: 2.705505e-12 | AP26: -1.229276e-13 | AQ26: 794.44 | AR26: 2.705385e-12 | AS26: -1.230343e-13 | AT26: 794.44 | AU26: 2.704095e-12 | AV26: -1.22274e-13 | AW26: 794.44 | AX26: 2.703576e-12 | AY26: -1.223261e-13 | AZ26: 794.44 | BA26: 2.700659e-12 | BB26: -1.209263e-13 | BC26: 794.44 | BD26: 2.696535e-12 | BE26: -1.187821e-13 | BF26: 794.44 | BG26: 2.69118e-12 | BH26: -1.158557e-13 | BI26: 794.44 | BJ26: 2.68625e-12 | BK26: -1.128162e-13 | BL26: 794.44 | BM26: 2.680097e-12 | BN26: -1.094916e-13 | BO26: 794.44 | BP26: 2.674192e-12 | BQ26: -1.060352e-13 | BR26: 794.44 | BS26: 2.667652e-12 | BT26: -1.027544e-13 | BU26: 794.44 | BV26: 2.661553e-12 | BW26: -9.868359e-14 | BX26: 794.44 | BY26: 2.654027e-12 | BZ26: -9.510376e-14 | CA26: 794.44 | CB26: 2.648637e-12 | CC26: -9.162089e-14 | CD26: 794.44 | CE26: 2.641726e-12 | CF26: -8.810869e-14 | CG26: 794.44 | CH26: 2.635558e-12 | CI26: -8.433716e-14 | CJ26: 794.44 | CK26: 2.628543e-12 | CL26: -8.06127e-14 | CM26: 794.44 | CN26: 2.622889e-12 | CO26: -7.766278e-14 | CP26: 794.44 | CQ26: 2.616864e-12 | CR26: -7.374566e-14 | CS26: 794.44 | CT26: 2.610507e-12 | CU26: -7.065316e-14 | CV26: 794.44 | CW26: 2.604613e-12 | CX26: -6.699174e-14 | CY26: 794.44 | CZ26: 2.598914e-12 | DA26: -6.454693e-14 | DB26: 794.44 | DC26: 2.592632e-12 | DD26: -6.065892e-14 | DE26: 794.44 | DF26: 2.58772e-12 | DG26: -5.806226e-14 | DH26: 794.44 | DI26: 2.581037e-12 | DJ26: -5.514516e-14 | DK26: 794.44 | DL26: 2.576171e-12 | DM26: -5.230025e-14 | DN26: 794.44 | DO26: 2.570617e-12 | DP26: -4.962456e-14 | DQ26: 794.44 | DR26: 2.565456e-12 | DS26: -4.667273e-14 | DT26: 794.44 | DU26: 2.560385e-12 | DV26: -4.436918e-14 | DW26: 794.44 | DX26: 2.555737e-12 | DY26: -4.161398e-14 | DZ26: 794.44 | EA26: 2.549237e-12 | EB26: -3.820498e-14 | EC26: 794.44 | ED26: 2.543596e-12 | EE26: -3.50275e-14 | EF26: 794.44 | EG26: 2.537952e-12 | EH26: -3.269113e-14 | EI26: 794.44 | EJ26: 2.532828e-12 | EK26: -3.093461e-14 | EL26: 794.44 | EM26: 2.526597e-12 | EN26: -2.814469e-14 | EO26: 794.44 | EP26: 2.522021e-12 | EQ26: -2.641159e-14 | ER26: 794.44 | ES26: 2.517594e-12 | ET26: -2.42884e-14 | EU26: 794.44 | EV26: 2.514994e-12 | EW26: -2.299585e-14 | EX26: 794.44 | EY26: 2.511235e-12 | EZ26: -2.158743e-14 | FA26: 794.44 | FB26: 2.506919e-12 | FC26: -2.028393e-14 | FD26: 794.44 | FE26: 2.556092e-12 | FF26: -5.076621e-14 | FG26: 794.44 | FH26: 2.554746e-12 | FI26: -4.757844e-14 | FJ26: 794.44 | FK26: 2.554072e-12 | FL26: -4.728606e-14 | FM26: 794.44 | FN26: 2.553608e-12 | FO26: -4.837671e-14 | FP26: 794.44 | FQ26: 2.5534e-12 | FR26: -5.037584e-14 | FS26: 794.44 | FT26: 2.553604e-12 | FU26: -5.258369e-14 | FV26: 794.44 | FW26: 2.554369e-12 | FX26: -5.140865e-14 | FY26: 794.44 | FZ26: 2.549566e-12 | GA26: -4.31765e-14 | GB26: 794.44 | GC26: 2.538403e-12 | GD26: -3.00561e-14 | GE26: 794.44 | GF26: 2.516689e-12 | GG26: -1.782825e-14 | GH26: 794.44 | GI26: 2.497334e-12 | GJ26: -1.516015e-14 | GK26: 794.44 | GL26: 2.482785e-12 | GM26: -2.316216e-14 | GN26: 794.44 | GO26: 2.468738e-12 | GP26: -3.986655e-14 | GQ26: 794.44 | GR26: 2.454851e-12 | GS26: -6.210874e-14 | GT26: 794.44 | GU26: 2.439409e-12 | GV26: -9.007131e-14 | GW26: 794.44 | GX26: 2.419872e-12 | GY26: -1.225731e-13 | GZ26: 794.44 | HA26: 2.394728e-12 | HB26: -1.589825e-13 | HC26: 794.44 | HD26: 2.361223e-12 | HE26: -1.994663e-13 | HF26: 794.44 | HG26: 2.318636e-12 | HH26: -2.416645e-13 | HI26: 794.44 | HJ26: 2.267714e-12 | HK26: -2.821479e-13 | HL26: 794.44 | HM26: 2.210271e-12 | HN26: -3.174276e-13 | HO26: 794.44 | HP26: 2.149531e-12 | HQ26: -3.454004e-13 | HR26: 794.44 | HS26: 2.0898e-12 | HT26: -3.657235e-13 | HU26: 794.44 | HV26: 2.035097e-12 | HW26: -3.77917e-13 | HX26: 794.44 | HY26: 1.98616e-12 | HZ26: -3.851774e-13 | IA26: 794.44 | IB26: 1.950162e-12 | IC26: -3.880155e-13 | ID26: 794.44 | IE26: 1.917611e-12 | IF26: -3.891218e-13 | IG26: 794.44 | IH26: 1.889152e-12 | II26: -3.900336e-13 | IJ26: 794.44 | IK26: 1.86486e-12 | IL26: -3.902399e-13 | IM26: 794.44 | IN26: 1.844111e-12 | IO26: -3.910842e-13 | IP26: 794.44 | IQ26: 1.831441e-12 | IR26: -3.917988e-13 | IS26: 794.44 | IT26: 1.81836e-12 | IU26: -3.924666e-13 | IV26: 794.44 | IW26: 1.807069e-12 | IX26: -3.932359e-13 | IY26: 794.44 | IZ26: 1.797161e-12 | JA26: -3.944629e-13 | JB26: 794.44 | JC26: 1.787557e-12 | JD26: -3.947983e-13 | JE26: 794.44 | JF26: 1.779253e-12 | JG26: -3.96053e-13 | JH26: 794.44 | JI26: 1.770752e-12 | JJ26: -3.966728e-13 | JK26: 794.44 | JL26: 1.76393e-12 | JM26: -3.973046e-13 | JN26: 794.44 | JO26: 1.757581e-12 | JP26: -3.977778e-13 | JQ26: 794.44 | JR26: 1.752528e-12 | JS26: -3.982285e-13 | JT26: 794.44 | JU26: 1.747549e-12 | JV26: -3.985669e-13 | JW26: 794.44 | JX26: 1.744493e-12 | JY26: -3.986407e-13 | JZ26: 794.44 | KA26: 1.74087e-12 | KB26: -3.988048e-13 | KC26: 794.44 | KD26: 1.737391e-12 | KE26: -3.990621e-13 | KF26: 794.44 | KG26: 1.73434e-12 | KH26: -3.991827e-13 | KI26: 794.44 | KJ26: 1.731481e-12 | KK26: -3.992841e-13 | KL26: 794.44 | KM26: 1.729838e-12 | KN26: -3.990616e-13 | KO26: 794.44 | KP26: 1.727816e-12 | KQ26: -3.992642e-13 | KR26: 794.44 | KS26: 1.72539e-12 | KT26: -3.992303e-13 | KU26: 794.44 | KV26: 1.722796e-12 | KW26: -3.991966e-13 | KX26: 794.44 | KY26: 1.720099e-12 | KZ26: -3.99385e-13 | LA26: 794.44 | LB26: 1.717514e-12 | LC26: -3.993615e-13 | LD26: 794.44 | LE26: 1.7163e-12 | LF26: -3.993694e-13 | LG26: 794.44 | LH26: 1.715584e-12 | LI26: -3.990692e-13 | LJ26: 794.44 | LK26: 1.713413e-12 | LL26: -3.992762e-13 | LM26: 794.44 | LN26: 1.712232e-12 | LO26: -3.992277e-13 | LP26: 794.44 | LQ26: 1.711431e-12 | LR26: -3.991079e-13 | LS26: 794.44 | LT26: 1.709386e-12 | LU26: -3.990772e-13 | LV26: 794.44 | LW26: 1.70742e-12 | LX26: -3.988942e-13 | LY26: 794.44 | LZ26: 1.706535e-12 | MA26: -3.989531e-13 | MB26: 794.44 | MC26: 1.705425e-12 | MD26: -3.987797e-13 | ME26: 794.44 | MF26: 1.704014e-12 | MG26: -3.985256e-13 | MH26: 794.44 | MI26: 1.703043e-12 | MJ26: -3.984202e-13 | MK26: 794.44 | ML26: 1.701699e-12 | MM26: -3.983845e-13 | MN26: 794.44 | MO26: 1.70112e-12 | MP26: -3.985229e-13 | MQ26: 794.44 | MR26: 1.700172e-12 | MS26: -3.980359e-13 | MT26: 794.44 | MU26: 1.699934e-12 | MV26: -3.981729e-13 | MW26: 794.44 | MX26: 1.698477e-12 | MY26: -3.976885e-13 | MZ26: 794.44 | NA26: 1.697629e-12 | NB26: -3.976915e-13 | NC26: 794.44 | ND26: 1.696198e-12 | NE26: -3.978452e-13 | NF26: 794.44 | NG26: 1.696001e-12 | NH26: -3.975613e-13 | NI26: 794.44 | NJ26: 1.695391e-12 | NK26: -3.974278e-13 | NL26: 794.44 | NM26: 1.69437e-12 | NN26: -3.974443e-13 | NO26: 794.44 | NP26: 1.694185e-12 | NQ26: -3.96796e-13 | NR26: 794.44 | NS26: 1.693861e-12 | NT26: -3.967701e-13 | NU26: 794.44 | NV26: 1.693097e-12 | NW26: -3.966106e-13 | NX26: 794.44 | NY26: 1.692975e-12 | NZ26: -3.965165e-13 | OA26: 794.44 | OB26: 1.692307e-12 | OC26: -3.965053e-13 | OD26: 794.44 | OE26: 1.691342e-12 | OF26: -3.960773e-13 | OG26: 794.44 | OH26: 1.691052e-12 | OI26: -3.959841e-13 | OJ26: 794.44 | OK26: 1.690405e-12 | OL26: -3.959325e-13 | OM26: 794.44 | ON26: 1.689189e-12 | OO26: -3.960172e-13 | OP26: 794.44 | OQ26: 1.688752e-12 | OR26: -3.958842e-13 | OS26: 794.44 | OT26: 1.688381e-12 | OU26: -3.956168e-13 | OV26: 794.44 | OW26: 1.688065e-12 | OX26: -3.952421e-13 | OY26: 794.44 | OZ26: 1.687729e-12 | PA26: -3.952433e-13 | PB26: 794.44 | PC26: 1.687427e-12 | PD26: -3.951773e-13 | PE26: 794.44 | PF26: 1.687205e-12 | PG26: -3.949502e-13 | PH26: 794.44 | PI26: 1.68543e-12 | PJ26: -3.948226e-13 | PK26: 794.44 | PL26: 1.685149e-12 | PM26: -3.947166e-13 | PN26: 794.44 | PO26: 1.68452e-12 | PP26: -3.946386e-13 | PQ26: 794.44 | PR26: 1.684185e-12 | PS26: -3.943057e-13 | PT26: 794.44 | PU26: 1.683438e-12 | PV26: -3.944686e-13 | PW26: 794.44 | PX26: 1.683476e-12 | PY26: -3.940547e-13 | PZ26: 794.44 | QA26: 1.687954e-12 | QB26: -3.930962e-13 | QC26: 794.44 | QD26: 1.69121e-12 | QE26: -3.919177e-13 | QF26: 794.44 | QG26: 1.695646e-12 | QH26: -3.910809e-13 | QI26: 794.44 | QJ26: 1.701678e-12 | QK26: -3.901156e-13
A27: 1000 | B27: 2.744147e-12 | C27: -1.320428e-13 | D27: 1000 | E27: 2.735242e-12 | F27: -1.313084e-13 | G27: 1000 | H27: 2.71756e-12 | I27: -1.253758e-13 | J27: 1000 | K27: 2.711142e-12 | L27: -1.216881e-13 | M27: 1000 | N27: 2.707253e-12 | O27: -1.189945e-13 | P27: 1000 | Q27: 2.704705e-12 | R27: -1.169119e-13 | S27: 1000 | T27: 2.702033e-12 | U27: -1.146834e-13 | V27: 1000 | W27: 2.701097e-12 | X27: -1.13765e-13 | Y27: 1000 | Z27: 2.699744e-12 | AA27: -1.123204e-13 | AB27: 1000 | AC27: 2.699187e-12 | AD27: -1.118276e-13 | AE27: 1000 | AF27: 2.697965e-12 | AG27: -1.115883e-13 | AH27: 1000 | AI27: 2.697571e-12 | AJ27: -1.107882e-13 | AK27: 1000 | AL27: 2.69662e-12 | AM27: -1.106273e-13 | AN27: 1000 | AO27: 2.695788e-12 | AP27: -1.101367e-13 | AQ27: 1000 | AR27: 2.695538e-12 | AS27: -1.103824e-13 | AT27: 1000 | AU27: 2.694626e-12 | AV27: -1.097574e-13 | AW27: 1000 | AX27: 2.693768e-12 | AY27: -1.096049e-13 | AZ27: 1000 | BA27: 2.690968e-12 | BB27: -1.080051e-13 | BC27: 1000 | BD27: 2.686963e-12 | BE27: -1.061382e-13 | BF27: 1000 | BG27: 2.682429e-12 | BH27: -1.036134e-13 | BI27: 1000 | BJ27: 2.678113e-12 | BK27: -1.007632e-13 | BL27: 1000 | BM27: 2.672079e-12 | BN27: -9.751159e-14 | BO27: 1000 | BP27: 2.666974e-12 | BQ27: -9.411954e-14 | BR27: 1000 | BS27: 2.660868e-12 | BT27: -9.119717e-14 | BU27: 1000 | BV27: 2.655321e-12 | BW27: -8.823869e-14 | BX27: 1000 | BY27: 2.648869e-12 | BZ27: -8.452831e-14 | CA27: 1000 | CB27: 2.643633e-12 | CC27: -8.145921e-14 | CD27: 1000 | CE27: 2.636584e-12 | CF27: -7.820441e-14 | CG27: 1000 | CH27: 2.631609e-12 | CI27: -7.508679e-14 | CJ27: 1000 | CK27: 2.625271e-12 | CL27: -7.169995e-14 | CM27: 1000 | CN27: 2.619797e-12 | CO27: -6.879077e-14 | CP27: 1000 | CQ27: 2.613725e-12 | CR27: -6.53195e-14 | CS27: 1000 | CT27: 2.608491e-12 | CU27: -6.265529e-14 | CV27: 1000 | CW27: 2.602345e-12 | CX27: -5.979868e-14 | CY27: 1000 | CZ27: 2.597489e-12 | DA27: -5.711736e-14 | DB27: 1000 | DC27: 2.591531e-12 | DD27: -5.382998e-14 | DE27: 1000 | DF27: 2.586619e-12 | DG27: -5.119745e-14 | DH27: 1000 | DI27: 2.580458e-12 | DJ27: -4.874641e-14 | DK27: 1000 | DL27: 2.57583e-12 | DM27: -4.61596e-14 | DN27: 1000 | DO27: 2.570333e-12 | DP27: -4.380635e-14 | DQ27: 1000 | DR27: 2.565847e-12 | DS27: -4.149662e-14 | DT27: 1000 | DU27: 2.561045e-12 | DV27: -3.916631e-14 | DW27: 1000 | DX27: 2.556222e-12 | DY27: -3.664921e-14 | DZ27: 1000 | EA27: 2.550558e-12 | EB27: -3.394761e-14 | EC27: 1000 | ED27: 2.544743e-12 | EE27: -3.160246e-14 | EF27: 1000 | EG27: 2.539311e-12 | EH27: -2.943134e-14 | EI27: 1000 | EJ27: 2.534224e-12 | EK27: -2.721077e-14 | EL27: 1000 | EM27: 2.528822e-12 | EN27: -2.550481e-14 | EO27: 1000 | EP27: 2.524248e-12 | EQ27: -2.347116e-14 | ER27: 1000 | ES27: 2.519002e-12 | ET27: -2.180847e-14 | EU27: 1000 | EV27: 2.516868e-12 | EW27: -2.081169e-14 | EX27: 1000 | EY27: 2.513585e-12 | EZ27: -1.975527e-14 | FA27: 1000 | FB27: 2.509721e-12 | FC27: -1.836064e-14 | FD27: 1000 | FE27: 2.555633e-12 | FF27: -4.478937e-14 | FG27: 1000 | FH27: 2.554956e-12 | FI27: -4.17566e-14 | FJ27: 1000 | FK27: 2.554583e-12 | FL27: -4.187572e-14 | FM27: 1000 | FN27: 2.553708e-12 | FO27: -4.228172e-14 | FP27: 1000 | FQ27: 2.553488e-12 | FR27: -4.392688e-14 | FS27: 1000 | FT27: 2.553735e-12 | FU27: -4.623219e-14 | FV27: 1000 | FW27: 2.554182e-12 | FX27: -4.520622e-14 | FY27: 1000 | FZ27: 2.550563e-12 | GA27: -3.811535e-14 | GB27: 1000 | GC27: 2.539807e-12 | GD27: -2.718405e-14 | GE27: 1000 | GF27: 2.519514e-12 | GG27: -1.710921e-14 | GH27: 1000 | GI27: 2.501053e-12 | GJ27: -1.763692e-14 | GK27: 1000 | GL27: 2.486038e-12 | GM27: -2.867307e-14 | GN27: 1000 | GO27: 2.471218e-12 | GP27: -4.911881e-14 | GQ27: 1000 | GR27: 2.456134e-12 | GS27: -7.721445e-14 | GT27: 1000 | GU27: 2.437659e-12 | GV27: -1.109864e-13 | GW27: 1000 | GX27: 2.414417e-12 | GY27: -1.497456e-13 | GZ27: 1000 | HA27: 2.383513e-12 | HB27: -1.926248e-13 | HC27: 1000 | HD27: 2.343261e-12 | HE27: -2.383068e-13 | HF27: 1000 | HG27: 2.292536e-12 | HH27: -2.842467e-13 | HI27: 1000 | HJ27: 2.233338e-12 | HK27: -3.260579e-13 | HL27: 1000 | HM27: 2.168223e-12 | HN27: -3.611378e-13 | HO27: 1000 | HP27: 2.100995e-12 | HQ27: -3.871061e-13 | HR27: 1000 | HS27: 2.03679e-12 | HT27: -4.043669e-13 | HU27: 1000 | HV27: 1.979172e-12 | HW27: -4.141152e-13 | HX27: 1000 | HY27: 1.929026e-12 | HZ27: -4.181818e-13 | IA27: 1000 | IB27: 1.893207e-12 | IC27: -4.196101e-13 | ID27: 1000 | IE27: 1.860214e-12 | IF27: -4.194381e-13 | IG27: 1000 | IH27: 1.832049e-12 | II27: -4.191801e-13 | IJ27: 1000 | IK27: 1.807684e-12 | IL27: -4.190252e-13 | IM27: 1000 | IN27: 1.787127e-12 | IO27: -4.194318e-13 | IP27: 1000 | IQ27: 1.774047e-12 | IR27: -4.197898e-13 | IS27: 1000 | IT27: 1.760969e-12 | IU27: -4.201228e-13 | IV27: 1000 | IW27: 1.749761e-12 | IX27: -4.205816e-13 | IY27: 1000 | IZ27: 1.739715e-12 | JA27: -4.212795e-13 | JB27: 1000 | JC27: 1.730118e-12 | JD27: -4.216208e-13 | JE27: 1000 | JF27: 1.721503e-12 | JG27: -4.222818e-13 | JH27: 1000 | JI27: 1.713603e-12 | JJ27: -4.229591e-13 | JK27: 1000 | JL27: 1.706258e-12 | JM27: -4.234284e-13 | JN27: 1000 | JO27: 1.699906e-12 | JP27: -4.237182e-13 | JQ27: 1000 | JR27: 1.69532e-12 | JS27: -4.240219e-13 | JT27: 1000 | JU27: 1.690435e-12 | JV27: -4.241882e-13 | JW27: 1000 | JX27: 1.686854e-12 | JY27: -4.239755e-13 | JZ27: 1000 | KA27: 1.683677e-12 | KB27: -4.240351e-13 | KC27: 1000 | KD27: 1.679983e-12 | KE27: -4.239993e-13 | KF27: 1000 | KG27: 1.677013e-12 | KH27: -4.241086e-13 | KI27: 1000 | KJ27: 1.674626e-12 | KK27: -4.241411e-13 | KL27: 1000 | KM27: 1.672616e-12 | KN27: -4.23841e-13 | KO27: 1000 | KP27: 1.670725e-12 | KQ27: -4.238789e-13 | KR27: 1000 | KS27: 1.668587e-12 | KT27: -4.239488e-13 | KU27: 1000 | KV27: 1.666022e-12 | KW27: -4.237611e-13 | KX27: 1000 | KY27: 1.66364e-12 | KZ27: -4.240262e-13 | LA27: 1000 | LB27: 1.66095e-12 | LC27: -4.240538e-13 | LD27: 1000 | LE27: 1.65952e-12 | LF27: -4.236304e-13 | LG27: 1000 | LH27: 1.658785e-12 | LI27: -4.236696e-13 | LJ27: 1000 | LK27: 1.656857e-12 | LL27: -4.234755e-13 | LM27: 1000 | LN27: 1.655572e-12 | LO27: -4.235675e-13 | LP27: 1000 | LQ27: 1.654746e-12 | LR27: -4.232823e-13 | LS27: 1000 | LT27: 1.652948e-12 | LU27: -4.231331e-13 | LV27: 1000 | LW27: 1.651207e-12 | LX27: -4.231163e-13 | LY27: 1000 | LZ27: 1.650007e-12 | MA27: -4.231031e-13 | MB27: 1000 | MC27: 1.64942e-12 | MD27: -4.228848e-13 | ME27: 1000 | MF27: 1.647881e-12 | MG27: -4.228906e-13 | MH27: 1000 | MI27: 1.646937e-12 | MJ27: -4.226832e-13 | MK27: 1000 | ML27: 1.64559e-12 | MM27: -4.226469e-13 | MN27: 1000 | MO27: 1.64509e-12 | MP27: -4.223515e-13 | MQ27: 1000 | MR27: 1.644144e-12 | MS27: -4.220795e-13 | MT27: 1000 | MU27: 1.643837e-12 | MV27: -4.218489e-13 | MW27: 1000 | MX27: 1.642696e-12 | MY27: -4.216346e-13 | MZ27: 1000 | NA27: 1.64184e-12 | NB27: -4.216174e-13 | NC27: 1000 | ND27: 1.640868e-12 | NE27: -4.214744e-13 | NF27: 1000 | NG27: 1.64037e-12 | NH27: -4.212209e-13 | NI27: 1000 | NJ27: 1.639557e-12 | NK27: -4.213905e-13 | NL27: 1000 | NM27: 1.638986e-12 | NN27: -4.211585e-13 | NO27: 1000 | NP27: 1.638632e-12 | NQ27: -4.207581e-13 | NR27: 1000 | NS27: 1.638622e-12 | NT27: -4.205888e-13 | NU27: 1000 | NV27: 1.637838e-12 | NW27: -4.206708e-13 | NX27: 1000 | NY27: 1.637724e-12 | NZ27: -4.203206e-13 | OA27: 1000 | OB27: 1.637339e-12 | OC27: -4.200887e-13 | OD27: 1000 | OE27: 1.636526e-12 | OF27: -4.199287e-13 | OG27: 1000 | OH27: 1.636161e-12 | OI27: -4.198103e-13 | OJ27: 1000 | OK27: 1.635392e-12 | OL27: -4.19572e-13 | OM27: 1000 | ON27: 1.634316e-12 | OO27: -4.194502e-13 | OP27: 1000 | OQ27: 1.633782e-12 | OR27: -4.193815e-13 | OS27: 1000 | OT27: 1.633328e-12 | OU27: -4.191319e-13 | OV27: 1000 | OW27: 1.632998e-12 | OX27: -4.189912e-13 | OY27: 1000 | OZ27: 1.632953e-12 | PA27: -4.187017e-13 | PB27: 1000 | PC27: 1.632543e-12 | PD27: -4.185582e-13 | PE27: 1000 | PF27: 1.631965e-12 | PG27: -4.184243e-13 | PH27: 1000 | PI27: 1.63098e-12 | PJ27: -4.183305e-13 | PK27: 1000 | PL27: 1.630555e-12 | PM27: -4.181787e-13 | PN27: 1000 | PO27: 1.629782e-12 | PP27: -4.179976e-13 | PQ27: 1000 | PR27: 1.629406e-12 | PS27: -4.17832e-13 | PT27: 1000 | PU27: 1.628361e-12 | PV27: -4.179268e-13 | PW27: 1000 | PX27: 1.628519e-12 | PY27: -4.175275e-13 | PZ27: 1000 | QA27: 1.633249e-12 | QB27: -4.165236e-13 | QC27: 1000 | QD27: 1.63684e-12 | QE27: -4.15688e-13 | QF27: 1000 | QG27: 1.640986e-12 | QH27: -4.149719e-13 | QI27: 1000 | QJ27: 1.646825e-12 | QK27: -4.137261e-13
A28: 1259 | B28: 2.730386e-12 | C28: -1.210734e-13 | D28: 1259 | E28: 2.721951e-12 | F28: -1.201717e-13 | G28: 1259 | H28: 2.704994e-12 | I28: -1.151082e-13 | J28: 1259 | K28: 2.700069e-12 | L28: -1.115174e-13 | M28: 1259 | N28: 2.695839e-12 | O28: -1.094575e-13 | P28: 1259 | Q28: 2.69425e-12 | R28: -1.076895e-13 | S28: 1259 | T28: 2.691502e-12 | U28: -1.05276e-13 | V28: 1259 | W28: 2.691183e-12 | X28: -1.049345e-13 | Y28: 1259 | Z28: 2.690154e-12 | AA28: -1.033704e-13 | AB28: 1259 | AC28: 2.688731e-12 | AD28: -1.031863e-13 | AE28: 1259 | AF28: 2.687925e-12 | AG28: -1.024642e-13 | AH28: 1259 | AI28: 2.687813e-12 | AJ28: -1.024327e-13 | AK28: 1259 | AL28: 2.687175e-12 | AM28: -1.017644e-13 | AN28: 1259 | AO28: 2.686975e-12 | AP28: -1.013821e-13 | AQ28: 1259 | AR28: 2.685717e-12 | AS28: -1.013386e-13 | AT28: 1259 | AU28: 2.685319e-12 | AV28: -1.005352e-13 | AW28: 1259 | AX28: 2.684246e-12 | AY28: -1.003346e-13 | AZ28: 1259 | BA28: 2.68162e-12 | BB28: -9.951545e-14 | BC28: 1259 | BD28: 2.678138e-12 | BE28: -9.721743e-14 | BF28: 1259 | BG28: 2.674397e-12 | BH28: -9.545752e-14 | BI28: 1259 | BJ28: 2.670058e-12 | BK28: -9.265704e-14 | BL28: 1259 | BM28: 2.664636e-12 | BN28: -9.018951e-14 | BO28: 1259 | BP28: 2.660117e-12 | BQ28: -8.70922e-14 | BR28: 1259 | BS28: 2.654083e-12 | BT28: -8.422651e-14 | BU28: 1259 | BV28: 2.64943e-12 | BW28: -8.101302e-14 | BX28: 1259 | BY28: 2.642984e-12 | BZ28: -7.829733e-14 | CA28: 1259 | CB28: 2.638099e-12 | CC28: -7.577807e-14 | CD28: 1259 | CE28: 2.63096e-12 | CF28: -7.257443e-14 | CG28: 1259 | CH28: 2.6264e-12 | CI28: -6.978542e-14 | CJ28: 1259 | CK28: 2.62073e-12 | CL28: -6.656072e-14 | CM28: 1259 | CN28: 2.615367e-12 | CO28: -6.407667e-14 | CP28: 1259 | CQ28: 2.610252e-12 | CR28: -6.133711e-14 | CS28: 1259 | CT28: 2.605001e-12 | CU28: -5.835379e-14 | CV28: 1259 | CW28: 2.599643e-12 | CX28: -5.575821e-14 | CY28: 1259 | CZ28: 2.595142e-12 | DA28: -5.351138e-14 | DB28: 1259 | DC28: 2.589536e-12 | DD28: -5.129031e-14 | DE28: 1259 | DF28: 2.584774e-12 | DG28: -4.832454e-14 | DH28: 1259 | DI28: 2.579798e-12 | DJ28: -4.577712e-14 | DK28: 1259 | DL28: 2.574182e-12 | DM28: -4.398875e-14 | DN28: 1259 | DO28: 2.569443e-12 | DP28: -4.161488e-14 | DQ28: 1259 | DR28: 2.565171e-12 | DS28: -3.976954e-14 | DT28: 1259 | DU28: 2.559819e-12 | DV28: -3.797189e-14 | DW28: 1259 | DX28: 2.555951e-12 | DY28: -3.562484e-14 | DZ28: 1259 | EA28: 2.550189e-12 | EB28: -3.310584e-14 | EC28: 1259 | ED28: 2.544991e-12 | EE28: -3.147008e-14 | EF28: 1259 | EG28: 2.539423e-12 | EH28: -2.905995e-14 | EI28: 1259 | EJ28: 2.535169e-12 | EK28: -2.790171e-14 | EL28: 1259 | EM28: 2.529638e-12 | EN28: -2.549128e-14 | EO28: 1259 | EP28: 2.525321e-12 | EQ28: -2.391977e-14 | ER28: 1259 | ES28: 2.520411e-12 | ET28: -2.256921e-14 | EU28: 1259 | EV28: 2.518117e-12 | EW28: -2.166218e-14 | EX28: 1259 | EY28: 2.514371e-12 | EZ28: -2.097452e-14 | FA28: 1259 | FB28: 2.511143e-12 | FC28: -1.977517e-14 | FD28: 1259 | FE28: 2.554704e-12 | FF28: -4.258752e-14 | FG28: 1259 | FH28: 2.55355e-12 | FI28: -3.993234e-14 | FJ28: 1259 | FK28: 2.553911e-12 | FL28: -3.996788e-14 | FM28: 1259 | FN28: 2.552445e-12 | FO28: -4.061158e-14 | FP28: 1259 | FQ28: 2.552831e-12 | FR28: -4.144316e-14 | FS28: 1259 | FT28: 2.552252e-12 | FU28: -4.33624e-14 | FV28: 1259 | FW28: 2.552941e-12 | FX28: -4.281048e-14 | FY28: 1259 | FZ28: 2.550255e-12 | GA28: -3.635165e-14 | GB28: 1259 | GC28: 2.540523e-12 | GD28: -2.781998e-14 | GE28: 1259 | GF28: 2.520819e-12 | GG28: -1.918074e-14 | GH28: 1259 | GI28: 2.503078e-12 | GJ28: -2.319928e-14 | GK28: 1259 | GL28: 2.488227e-12 | GM28: -3.787377e-14 | GN28: 1259 | GO28: 2.47224e-12 | GP28: -6.40376e-14 | GQ28: 1259 | GR28: 2.454544e-12 | GS28: -9.857512e-14 | GT28: 1259 | GU28: 2.432725e-12 | GV28: -1.393108e-13 | GW28: 1259 | GX28: 2.404004e-12 | GY28: -1.84431e-13 | GZ28: 1259 | HA28: 2.366001e-12 | HB28: -2.33944e-13 | HC28: 1259 | HD28: 2.317289e-12 | HE28: -2.838514e-13 | HF28: 1259 | HG28: 2.257362e-12 | HH28: -3.334247e-13 | HI28: 1259 | HJ28: 2.188696e-12 | HK28: -3.752825e-13 | HL28: 1259 | HM28: 2.115784e-12 | HN28: -4.089698e-13 | HO28: 1259 | HP28: 2.043341e-12 | HQ28: -4.311684e-13 | HR28: 1259 | HS28: 1.975231e-12 | HT28: -4.442471e-13 | HU28: 1259 | HV28: 1.915855e-12 | HW28: -4.504831e-13 | HX28: 1259 | HY28: 1.865663e-12 | HZ28: -4.517104e-13 | IA28: 1259 | IB28: 1.829953e-12 | IC28: -4.514041e-13 | ID28: 1259 | IE28: 1.79757e-12 | IF28: -4.503771e-13 | IG28: 1259 | IH28: 1.769704e-12 | II28: -4.491703e-13 | IJ28: 1259 | IK28: 1.745711e-12 | IL28: -4.480808e-13 | IM28: 1259 | IN28: 1.725356e-12 | IO28: -4.481748e-13 | IP28: 1259 | IQ28: 1.712292e-12 | IR28: -4.482148e-13 | IS28: 1259 | IT28: 1.699581e-12 | IU28: -4.483026e-13 | IV28: 1259 | IW28: 1.688332e-12 | IX28: -4.48717e-13 | IY28: 1259 | IZ28: 1.678103e-12 | JA28: -4.489344e-13 | JB28: 1259 | JC28: 1.668868e-12 | JD28: -4.491079e-13 | JE28: 1259 | JF28: 1.660773e-12 | JG28: -4.495937e-13 | JH28: 1259 | JI28: 1.652266e-12 | JJ28: -4.499559e-13 | JK28: 1259 | JL28: 1.645661e-12 | JM28: -4.503261e-13 | JN28: 1259 | JO28: 1.639621e-12 | JP28: -4.506128e-13 | JQ28: 1259 | JR28: 1.634556e-12 | JS28: -4.506486e-13 | JT28: 1259 | JU28: 1.629912e-12 | JV28: -4.509899e-13 | JW28: 1259 | JX28: 1.626918e-12 | JY28: -4.506691e-13 | JZ28: 1259 | KA28: 1.623433e-12 | KB28: -4.508327e-13 | KC28: 1259 | KD28: 1.619954e-12 | KE28: -4.509604e-13 | KF28: 1259 | KG28: 1.616865e-12 | KH28: -4.507636e-13 | KI28: 1259 | KJ28: 1.614975e-12 | KK28: -4.506613e-13 | KL28: 1259 | KM28: 1.612981e-12 | KN28: -4.503106e-13 | KO28: 1259 | KP28: 1.611026e-12 | KQ28: -4.504994e-13 | KR28: 1259 | KS28: 1.609124e-12 | KT28: -4.502243e-13 | KU28: 1259 | KV28: 1.606609e-12 | KW28: -4.502442e-13 | KX28: 1259 | KY28: 1.604122e-12 | KZ28: -4.504805e-13 | LA28: 1259 | LB28: 1.601562e-12 | LC28: -4.502547e-13 | LD28: 1259 | LE28: 1.600422e-12 | LF28: -4.501482e-13 | LG28: 1259 | LH28: 1.599679e-12 | LI28: -4.503595e-13 | LJ28: 1259 | LK28: 1.598241e-12 | LL28: -4.498646e-13 | LM28: 1259 | LN28: 1.596702e-12 | LO28: -4.502509e-13 | LP28: 1259 | LQ28: 1.596004e-12 | LR28: -4.498489e-13 | LS28: 1259 | LT28: 1.593959e-12 | LU28: -4.498185e-13 | LV28: 1259 | LW28: 1.592516e-12 | LX28: -4.498488e-13 | LY28: 1259 | LZ28: 1.591548e-12 | MA28: -4.496867e-13 | MB28: 1259 | MC28: 1.590984e-12 | MD28: -4.493656e-13 | ME28: 1259 | MF28: 1.589514e-12 | MG28: -4.493244e-13 | MH28: 1259 | MI28: 1.588497e-12 | MJ28: -4.488773e-13 | MK28: 1259 | ML28: 1.587143e-12 | MM28: -4.491065e-13 | MN28: 1259 | MO28: 1.586747e-12 | MP28: -4.488881e-13 | MQ28: 1259 | MR28: 1.586044e-12 | MS28: -4.484306e-13 | MT28: 1259 | MU28: 1.585806e-12 | MV28: -4.482844e-13 | MW28: 1259 | MX28: 1.584862e-12 | MY28: -4.483847e-13 | MZ28: 1259 | NA28: 1.583994e-12 | NB28: -4.480772e-13 | NC28: 1259 | ND28: 1.58263e-12 | NE28: -4.478418e-13 | NF28: 1259 | NG28: 1.582795e-12 | NH28: -4.478179e-13 | NI28: 1259 | NJ28: 1.581877e-12 | NK28: -4.475546e-13 | NL28: 1259 | NM28: 1.580978e-12 | NN28: -4.476288e-13 | NO28: 1259 | NP28: 1.580882e-12 | NQ28: -4.470931e-13 | NR28: 1259 | NS28: 1.580932e-12 | NT28: -4.471742e-13 | NU28: 1259 | NV28: 1.580107e-12 | NW28: -4.466419e-13 | NX28: 1259 | NY28: 1.579944e-12 | NZ28: -4.46867e-13 | OA28: 1259 | OB28: 1.579516e-12 | OC28: -4.465041e-13 | OD28: 1259 | OE28: 1.578701e-12 | OF28: -4.462032e-13 | OG28: 1259 | OH28: 1.578784e-12 | OI28: -4.459046e-13 | OJ28: 1259 | OK28: 1.578016e-12 | OL28: -4.460573e-13 | OM28: 1259 | ON28: 1.576921e-12 | OO28: -4.458087e-13 | OP28: 1259 | OQ28: 1.576166e-12 | OR28: -4.459426e-13 | OS28: 1259 | OT28: 1.576487e-12 | OU28: -4.455419e-13 | OV28: 1259 | OW28: 1.575842e-12 | OX28: -4.45295e-13 | OY28: 1259 | OZ28: 1.575984e-12 | PA28: -4.453074e-13 | PB28: 1259 | PC28: 1.575611e-12 | PD28: -4.451034e-13 | PE28: 1259 | PF28: 1.574808e-12 | PG28: -4.450334e-13 | PH28: 1259 | PI28: 1.573775e-12 | PJ28: -4.448954e-13 | PK28: 1259 | PL28: 1.573571e-12 | PM28: -4.449441e-13 | PN28: 1259 | PO28: 1.572808e-12 | PP28: -4.447727e-13 | PQ28: 1259 | PR28: 1.572467e-12 | PS28: -4.444393e-13 | PT28: 1259 | PU28: 1.571661e-12 | PV28: -4.443403e-13 | PW28: 1259 | PX28: 1.571981e-12 | PY28: -4.441409e-13 | PZ28: 1259 | QA28: 1.57637e-12 | QB28: -4.426841e-13 | QC28: 1259 | QD28: 1.579965e-12 | QE28: -4.41886e-13 | QF28: 1259 | QG28: 1.584009e-12 | QH28: -4.408911e-13 | QI28: 1259 | QJ28: 1.589879e-12 | QK28: -4.396635e-13
A29: 1585.4 | B29: 2.717365e-12 | C29: -1.13288e-13 | D29: 1585.4 | E29: 2.708181e-12 | F29: -1.129555e-13 | G29: 1585.4 | H29: 2.692442e-12 | I29: -1.072536e-13 | J29: 1585.4 | K29: 2.687113e-12 | L29: -1.041191e-13 | M29: 1585.4 | N29: 2.684368e-12 | O29: -1.022767e-13 | P29: 1585.4 | Q29: 2.682058e-12 | R29: -1.004453e-13 | S29: 1585.4 | T29: 2.68032e-12 | U29: -9.866944e-14 | V29: 1585.4 | W29: 2.679528e-12 | X29: -9.772059e-14 | Y29: 1585.4 | Z29: 2.678787e-12 | AA29: -9.705645e-14 | AB29: 1585.4 | AC29: 2.678119e-12 | AD29: -9.636964e-14 | AE29: 1585.4 | AF29: 2.677276e-12 | AG29: -9.612257e-14 | AH29: 1585.4 | AI29: 2.676961e-12 | AJ29: -9.551948e-14 | AK29: 1585.4 | AL29: 2.676346e-12 | AM29: -9.510309e-14 | AN29: 1585.4 | AO29: 2.675565e-12 | AP29: -9.501172e-14 | AQ29: 1585.4 | AR29: 2.675078e-12 | AS29: -9.481254e-14 | AT29: 1585.4 | AU29: 2.674384e-12 | AV29: -9.452009e-14 | AW29: 1585.4 | AX29: 2.673687e-12 | AY29: -9.425639e-14 | AZ29: 1585.4 | BA29: 2.670902e-12 | BB29: -9.324679e-14 | BC29: 1585.4 | BD29: 2.668193e-12 | BE29: -9.121415e-14 | BF29: 1585.4 | BG29: 2.664046e-12 | BH29: -8.950458e-14 | BI29: 1585.4 | BJ29: 2.660303e-12 | BK29: -8.720177e-14 | BL29: 1585.4 | BM29: 2.65526e-12 | BN29: -8.441939e-14 | BO29: 1585.4 | BP29: 2.65077e-12 | BQ29: -8.200678e-14 | BR29: 1585.4 | BS29: 2.645735e-12 | BT29: -7.956259e-14 | BU29: 1585.4 | BV29: 2.640865e-12 | BW29: -7.696409e-14 | BX29: 1585.4 | BY29: 2.635371e-12 | BZ29: -7.460492e-14 | CA29: 1585.4 | CB29: 2.630596e-12 | CC29: -7.209599e-14 | CD29: 1585.4 | CE29: 2.625022e-12 | CF29: -6.936223e-14 | CG29: 1585.4 | CH29: 2.620557e-12 | CI29: -6.676214e-14 | CJ29: 1585.4 | CK29: 2.614807e-12 | CL29: -6.413701e-14 | CM29: 1585.4 | CN29: 2.610018e-12 | CO29: -6.176768e-14 | CP29: 1585.4 | CQ29: 2.605112e-12 | CR29: -5.930578e-14 | CS29: 1585.4 | CT29: 2.600149e-12 | CU29: -5.693579e-14 | CV29: 1585.4 | CW29: 2.595004e-12 | CX29: -5.449858e-14 | CY29: 1585.4 | CZ29: 2.590395e-12 | DA29: -5.246857e-14 | DB29: 1585.4 | DC29: 2.585072e-12 | DD29: -5.027902e-14 | DE29: 1585.4 | DF29: 2.580764e-12 | DG29: -4.809971e-14 | DH29: 1585.4 | DI29: 2.575404e-12 | DJ29: -4.607796e-14 | DK29: 1585.4 | DL29: 2.570855e-12 | DM29: -4.401149e-14 | DN29: 1585.4 | DO29: 2.565783e-12 | DP29: -4.229426e-14 | DQ29: 1585.4 | DR29: 2.561844e-12 | DS29: -4.048755e-14 | DT29: 1585.4 | DU29: 2.557331e-12 | DV29: -3.861279e-14 | DW29: 1585.4 | DX29: 2.553157e-12 | DY29: -3.668049e-14 | DZ29: 1585.4 | EA29: 2.547896e-12 | EB29: -3.468019e-14 | EC29: 1585.4 | ED29: 2.542448e-12 | EE29: -3.321128e-14 | EF29: 1585.4 | EG29: 2.537422e-12 | EH29: -3.110438e-14 | EI29: 1585.4 | EJ29: 2.532851e-12 | EK29: -2.939281e-14 | EL29: 1585.4 | EM29: 2.527972e-12 | EN29: -2.790854e-14 | EO29: 1585.4 | EP29: 2.523673e-12 | EQ29: -2.676652e-14 | ER29: 1585.4 | ES29: 2.518894e-12 | ET29: -2.508085e-14 | EU29: 1585.4 | EV29: 2.516822e-12 | EW29: -2.446081e-14 | EX29: 1585.4 | EY29: 2.513501e-12 | EZ29: -2.341679e-14 | FA29: 1585.4 | FB29: 2.509999e-12 | FC29: -2.239681e-14 | FD29: 1585.4 | FE29: 2.551623e-12 | FF29: -4.220246e-14 | FG29: 1585.4 | FH29: 2.550784e-12 | FI29: -4.00517e-14 | FJ29: 1585.4 | FK29: 2.550645e-12 | FL29: -4.033076e-14 | FM29: 1585.4 | FN29: 2.549862e-12 | FO29: -4.048425e-14 | FP29: 1585.4 | FQ29: 2.549319e-12 | FR29: -4.125548e-14 | FS29: 1585.4 | FT29: 2.549598e-12 | FU29: -4.263514e-14 | FV29: 1585.4 | FW29: 2.550142e-12 | FX29: -4.186302e-14 | FY29: 1585.4 | FZ29: 2.547494e-12 | GA29: -3.745977e-14 | GB29: 1585.4 | GC29: 2.538348e-12 | GD29: -2.997642e-14 | GE29: 1585.4 | GF29: 2.520055e-12 | GG29: -2.392066e-14 | GH29: 1585.4 | GI29: 2.502578e-12 | GJ29: -3.006613e-14 | GK29: 1585.4 | GL29: 2.486923e-12 | GM29: -4.997391e-14 | GN29: 1585.4 | GO29: 2.469619e-12 | GP29: -8.23409e-14 | GQ29: 1585.4 | GR29: 2.449077e-12 | GS29: -1.24164e-13 | GT29: 1585.4 | GU29: 2.422219e-12 | GV29: -1.731046e-13 | GW29: 1585.4 | GX29: 2.38643e-12 | GY29: -2.260674e-13 | GZ29: 1585.4 | HA29: 2.340034e-12 | HB29: -2.813143e-13 | HC29: 1585.4 | HD29: 2.281433e-12 | HE29: -3.358081e-13 | HF29: 1585.4 | HG29: 2.210919e-12 | HH29: -3.859161e-13 | HI29: 1585.4 | HJ29: 2.133202e-12 | HK29: -4.267299e-13 | HL29: 1585.4 | HM29: 2.052712e-12 | HN29: -4.565303e-13 | HO29: 1585.4 | HP29: 1.975392e-12 | HQ29: -4.74678e-13 | HR29: 1585.4 | HS29: 1.905626e-12 | HT29: -4.83385e-13 | HU29: 1585.4 | HV29: 1.846028e-12 | HW29: -4.856803e-13 | HX29: 1585.4 | HY29: 1.796447e-12 | HZ29: -4.844507e-13 | IA29: 1585.4 | IB29: 1.761296e-12 | IC29: -4.824221e-13 | ID29: 1585.4 | IE29: 1.729864e-12 | IF29: -4.802806e-13 | IG29: 1585.4 | IH29: 1.703068e-12 | II29: -4.786547e-13 | IJ29: 1585.4 | IK29: 1.679771e-12 | IL29: -4.775955e-13 | IM29: 1585.4 | IN29: 1.659841e-12 | IO29: -4.771479e-13 | IP29: 1585.4 | IQ29: 1.647093e-12 | IR29: -4.769665e-13 | IS29: 1585.4 | IT29: 1.634678e-12 | IU29: -4.771445e-13 | IV29: 1585.4 | IW29: 1.623683e-12 | IX29: -4.773273e-13 | IY29: 1585.4 | IZ29: 1.613976e-12 | JA29: -4.777103e-13 | JB29: 1585.4 | JC29: 1.604961e-12 | JD29: -4.780718e-13 | JE29: 1585.4 | JF29: 1.596781e-12 | JG29: -4.784254e-13 | JH29: 1585.4 | JI29: 1.588941e-12 | JJ29: -4.788936e-13 | JK29: 1585.4 | JL29: 1.581939e-12 | JM29: -4.792576e-13 | JN29: 1585.4 | JO29: 1.575943e-12 | JP29: -4.795866e-13 | JQ29: 1585.4 | JR29: 1.571537e-12 | JS29: -4.798095e-13 | JT29: 1585.4 | JU29: 1.566932e-12 | JV29: -4.798734e-13 | JW29: 1585.4 | JX29: 1.563844e-12 | JY29: -4.798152e-13 | JZ29: 1585.4 | KA29: 1.560751e-12 | KB29: -4.798716e-13 | KC29: 1585.4 | KD29: 1.557398e-12 | KE29: -4.79995e-13 | KF29: 1585.4 | KG29: 1.55443e-12 | KH29: -4.80081e-13 | KI29: 1585.4 | KJ29: 1.552219e-12 | KK29: -4.799097e-13 | KL29: 1585.4 | KM29: 1.550624e-12 | KN29: -4.798688e-13 | KO29: 1585.4 | KP29: 1.548748e-12 | KQ29: -4.798234e-13 | KR29: 1585.4 | KS29: 1.546826e-12 | KT29: -4.798053e-13 | KU29: 1585.4 | KV29: 1.544531e-12 | KW29: -4.798744e-13 | KX29: 1585.4 | KY29: 1.542264e-12 | KZ29: -4.798624e-13 | LA29: 1585.4 | LB29: 1.539763e-12 | LC29: -4.800602e-13 | LD29: 1585.4 | LE29: 1.538488e-12 | LF29: -4.799026e-13 | LG29: 1585.4 | LH29: 1.537746e-12 | LI29: -4.796105e-13 | LJ29: 1585.4 | LK29: 1.536293e-12 | LL29: -4.795787e-13 | LM29: 1585.4 | LN29: 1.534912e-12 | LO29: -4.796261e-13 | LP29: 1585.4 | LQ29: 1.534225e-12 | LR29: -4.793069e-13 | LS29: 1585.4 | LT29: 1.532553e-12 | LU29: -4.794622e-13 | LV29: 1585.4 | LW29: 1.531045e-12 | LX29: -4.793843e-13 | LY29: 1585.4 | LZ29: 1.530065e-12 | MA29: -4.793585e-13 | MB29: 1585.4 | MC29: 1.529273e-12 | MD29: -4.791515e-13 | ME29: 1585.4 | MF29: 1.528197e-12 | MG29: -4.790881e-13 | MH29: 1585.4 | MI29: 1.527341e-12 | MJ29: -4.790216e-13 | MK29: 1585.4 | ML29: 1.525939e-12 | MM29: -4.790712e-13 | MN29: 1585.4 | MO29: 1.525784e-12 | MP29: -4.787147e-13 | MQ29: 1585.4 | MR29: 1.524966e-12 | MS29: -4.786417e-13 | MT29: 1585.4 | MU29: 1.524667e-12 | MV29: -4.784028e-13 | MW29: 1585.4 | MX29: 1.523638e-12 | MY29: -4.783678e-13 | MZ29: 1585.4 | NA29: 1.522844e-12 | NB29: -4.783092e-13 | NC29: 1585.4 | ND29: 1.521819e-12 | NE29: -4.781824e-13 | NF29: 1585.4 | NG29: 1.521592e-12 | NH29: -4.779316e-13 | NI29: 1585.4 | NJ29: 1.520928e-12 | NK29: -4.777773e-13 | NL29: 1585.4 | NM29: 1.520275e-12 | NN29: -4.777848e-13 | NO29: 1585.4 | NP29: 1.520189e-12 | NQ29: -4.775093e-13 | NR29: 1585.4 | NS29: 1.520137e-12 | NT29: -4.773188e-13 | NU29: 1585.4 | NV29: 1.519306e-12 | NW29: -4.771405e-13 | NX29: 1585.4 | NY29: 1.519227e-12 | NZ29: -4.769006e-13 | OA29: 1585.4 | OB29: 1.519016e-12 | OC29: -4.766302e-13 | OD29: 1585.4 | OE29: 1.51835e-12 | OF29: -4.766587e-13 | OG29: 1585.4 | OH29: 1.518244e-12 | OI29: -4.763696e-13 | OJ29: 1585.4 | OK29: 1.517544e-12 | OL29: -4.764044e-13 | OM29: 1585.4 | ON29: 1.516524e-12 | OO29: -4.763695e-13 | OP29: 1585.4 | OQ29: 1.515996e-12 | OR29: -4.762469e-13 | OS29: 1585.4 | OT29: 1.515757e-12 | OU29: -4.760187e-13 | OV29: 1585.4 | OW29: 1.515509e-12 | OX29: -4.758462e-13 | OY29: 1585.4 | OZ29: 1.515521e-12 | PA29: -4.756094e-13 | PB29: 1585.4 | PC29: 1.515247e-12 | PD29: -4.753878e-13 | PE29: 1585.4 | PF29: 1.514885e-12 | PG29: -4.753805e-13 | PH29: 1585.4 | PI29: 1.513744e-12 | PJ29: -4.753504e-13 | PK29: 1585.4 | PL29: 1.513497e-12 | PM29: -4.751784e-13 | PN29: 1585.4 | PO29: 1.512949e-12 | PP29: -4.751324e-13 | PQ29: 1585.4 | PR29: 1.512554e-12 | PS29: -4.750409e-13 | PT29: 1585.4 | PU29: 1.511724e-12 | PV29: -4.749196e-13 | PW29: 1585.4 | PX29: 1.511945e-12 | PY29: -4.746466e-13 | PZ29: 1585.4 | QA29: 1.516481e-12 | QB29: -4.731241e-13 | QC29: 1585.4 | QD29: 1.520179e-12 | QE29: -4.720635e-13 | QF29: 1585.4 | QG29: 1.524364e-12 | QH29: -4.706988e-13 | QI29: 1585.4 | QJ29: 1.529908e-12 | QK29: -4.692397e-13
A30: 1996 | B30: 2.704438e-12 | C30: -1.066047e-13 | D30: 1996 | E30: 2.694931e-12 | F30: -1.060567e-13 | G30: 1996 | H30: 2.679672e-12 | I30: -1.01022e-13 | J30: 1996 | K30: 2.674912e-12 | L30: -9.828406e-14 | M30: 1996 | N30: 2.672433e-12 | O30: -9.648309e-14 | P30: 1996 | Q30: 2.670668e-12 | R30: -9.478411e-14 | S30: 1996 | T30: 2.668786e-12 | U30: -9.347593e-14 | V30: 1996 | W30: 2.668394e-12 | X30: -9.266872e-14 | Y30: 1996 | Z30: 2.667363e-12 | AA30: -9.204179e-14 | AB30: 1996 | AC30: 2.666942e-12 | AD30: -9.165463e-14 | AE30: 1996 | AF30: 2.666274e-12 | AG30: -9.095554e-14 | AH30: 1996 | AI30: 2.666194e-12 | AJ30: -9.080698e-14 | AK30: 1996 | AL30: 2.665245e-12 | AM30: -9.03042e-14 | AN30: 1996 | AO30: 2.664539e-12 | AP30: -9.017588e-14 | AQ30: 1996 | AR30: 2.664087e-12 | AS30: -9.025244e-14 | AT30: 1996 | AU30: 2.663502e-12 | AV30: -8.965038e-14 | AW30: 1996 | AX30: 2.66271e-12 | AY30: -8.948992e-14 | AZ30: 1996 | BA30: 2.660545e-12 | BB30: -8.853377e-14 | BC30: 1996 | BD30: 2.657355e-12 | BE30: -8.700988e-14 | BF30: 1996 | BG30: 2.653835e-12 | BH30: -8.51871e-14 | BI30: 1996 | BJ30: 2.650162e-12 | BK30: -8.312506e-14 | BL30: 1996 | BM30: 2.645968e-12 | BN30: -8.107961e-14 | BO30: 1996 | BP30: 2.641643e-12 | BQ30: -7.845745e-14 | BR30: 1996 | BS30: 2.636776e-12 | BT30: -7.632121e-14 | BU30: 1996 | BV30: 2.632532e-12 | BW30: -7.424149e-14 | BX30: 1996 | BY30: 2.626942e-12 | BZ30: -7.158333e-14 | CA30: 1996 | CB30: 2.622745e-12 | CC30: -6.910767e-14 | CD30: 1996 | CE30: 2.616908e-12 | CF30: -6.691464e-14 | CG30: 1996 | CH30: 2.612908e-12 | CI30: -6.444454e-14 | CJ30: 1996 | CK30: 2.607784e-12 | CL30: -6.242332e-14 | CM30: 1996 | CN30: 2.603045e-12 | CO30: -5.984894e-14 | CP30: 1996 | CQ30: 2.598545e-12 | CR30: -5.789748e-14 | CS30: 1996 | CT30: 2.593635e-12 | CU30: -5.597809e-14 | CV30: 1996 | CW30: 2.588582e-12 | CX30: -5.386167e-14 | CY30: 1996 | CZ30: 2.584612e-12 | DA30: -5.232755e-14 | DB30: 1996 | DC30: 2.579337e-12 | DD30: -5.027962e-14 | DE30: 1996 | DF30: 2.575233e-12 | DG30: -4.856267e-14 | DH30: 1996 | DI30: 2.57015e-12 | DJ30: -4.669181e-14 | DK30: 1996 | DL30: 2.565824e-12 | DM30: -4.496119e-14 | DN30: 1996 | DO30: 2.561262e-12 | DP30: -4.330765e-14 | DQ30: 1996 | DR30: 2.55728e-12 | DS30: -4.190078e-14 | DT30: 1996 | DU30: 2.552828e-12 | DV30: -4.021561e-14 | DW30: 1996 | DX30: 2.549205e-12 | DY30: -3.851687e-14 | DZ30: 1996 | EA30: 2.543721e-12 | EB30: -3.686366e-14 | EC30: 1996 | ED30: 2.538658e-12 | EE30: -3.536158e-14 | EF30: 1996 | EG30: 2.534029e-12 | EH30: -3.34246e-14 | EI30: 1996 | EJ30: 2.529638e-12 | EK30: -3.215263e-14 | EL30: 1996 | EM30: 2.524391e-12 | EN30: -3.04914e-14 | EO30: 1996 | EP30: 2.520261e-12 | EQ30: -2.960116e-14 | ER30: 1996 | ES30: 2.516072e-12 | ET30: -2.840596e-14 | EU30: 1996 | EV30: 2.513555e-12 | EW30: -2.743443e-14 | EX30: 1996 | EY30: 2.510406e-12 | EZ30: -2.661778e-14 | FA30: 1996 | FB30: 2.506944e-12 | FC30: -2.604375e-14 | FD30: 1996 | FE30: 2.547358e-12 | FF30: -4.277751e-14 | FG30: 1996 | FH30: 2.546512e-12 | FI30: -4.127344e-14 | FJ30: 1996 | FK30: 2.546513e-12 | FL30: -4.123035e-14 | FM30: 1996 | FN30: 2.545701e-12 | FO30: -4.117152e-14 | FP30: 1996 | FQ30: 2.545346e-12 | FR30: -4.208055e-14 | FS30: 1996 | FT30: 2.545317e-12 | FU30: -4.296187e-14 | FV30: 1996 | FW30: 2.545906e-12 | FX30: -4.237241e-14 | FY30: 1996 | FZ30: 2.543669e-12 | GA30: -3.861198e-14 | GB30: 1996 | GC30: 2.535269e-12 | GD30: -3.222257e-14 | GE30: 1996 | GF30: 2.517495e-12 | GG30: -2.874026e-14 | GH30: 1996 | GI30: 2.49987e-12 | GJ30: -3.818908e-14 | GK30: 1996 | GL30: 2.48408e-12 | GM30: -6.384668e-14 | GN30: 1996 | GO30: 2.465001e-12 | GP30: -1.041423e-13 | GQ30: 1996 | GR30: 2.439822e-12 | GS30: -1.550542e-13 | GT30: 1996 | GU30: 2.406755e-12 | GV30: -2.125842e-13 | GW30: 1996 | GX30: 2.362051e-12 | GY30: -2.734678e-13 | GZ30: 1996 | HA30: 2.305338e-12 | HB30: -3.339701e-13 | HC30: 1996 | HD30: 2.235596e-12 | HE30: -3.912536e-13 | HF30: 1996 | HG30: 2.154047e-12 | HH30: -4.410194e-13 | HI30: 1996 | HJ30: 2.067671e-12 | HK30: -4.786736e-13 | HL30: 1996 | HM30: 1.981183e-12 | HN30: -5.033213e-13 | HO30: 1996 | HP30: 1.900885e-12 | HQ30: -5.160436e-13 | HR30: 1996 | HS30: 1.830691e-12 | HT30: -5.204198e-13 | HU30: 1996 | HV30: 1.771946e-12 | HW30: -5.194099e-13 | HX30: 1996 | HY30: 1.723769e-12 | HZ30: -5.160911e-13 | IA30: 1996 | IB30: 1.690154e-12 | IC30: -5.1326e-13 | ID30: 1996 | IE30: 1.659717e-12 | IF30: -5.10781e-13 | IG30: 1996 | IH30: 1.633725e-12 | II30: -5.088337e-13 | IJ30: 1996 | IK30: 1.611212e-12 | IL30: -5.080652e-13 | IM30: 1996 | IN30: 1.591884e-12 | IO30: -5.07949e-13 | IP30: 1996 | IQ30: 1.579584e-12 | IR30: -5.078838e-13 | IS30: 1996 | IT30: 1.56739e-12 | IU30: -5.082644e-13 | IV30: 1996 | IW30: 1.556646e-12 | IX30: -5.086461e-13 | IY30: 1996 | IZ30: 1.547058e-12 | JA30: -5.093206e-13 | JB30: 1996 | JC30: 1.538144e-12 | JD30: -5.098386e-13 | JE30: 1996 | JF30: 1.52997e-12 | JG30: -5.104794e-13 | JH30: 1996 | JI30: 1.522548e-12 | JJ30: -5.113118e-13 | JK30: 1996 | JL30: 1.515629e-12 | JM30: -5.118426e-13 | JN30: 1996 | JO30: 1.509757e-12 | JP30: -5.124655e-13 | JQ30: 1996 | JR30: 1.5053e-12 | JS30: -5.128885e-13 | JT30: 1996 | JU30: 1.500967e-12 | JV30: -5.132186e-13 | JW30: 1996 | JX30: 1.49793e-12 | JY30: -5.131763e-13 | JZ30: 1996 | KA30: 1.494982e-12 | KB30: -5.133889e-13 | KC30: 1996 | KD30: 1.491723e-12 | KE30: -5.137025e-13 | KF30: 1996 | KG30: 1.48876e-12 | KH30: -5.137977e-13 | KI30: 1996 | KJ30: 1.486607e-12 | KK30: -5.139251e-13 | KL30: 1996 | KM30: 1.485027e-12 | KN30: -5.138276e-13 | KO30: 1996 | KP30: 1.483109e-12 | KQ30: -5.138142e-13 | KR30: 1996 | KS30: 1.481389e-12 | KT30: -5.139521e-13 | KU30: 1996 | KV30: 1.47902e-12 | KW30: -5.141208e-13 | KX30: 1996 | KY30: 1.476695e-12 | KZ30: -5.144345e-13 | LA30: 1996 | LB30: 1.47442e-12 | LC30: -5.147393e-13 | LD30: 1996 | LE30: 1.473121e-12 | LF30: -5.146045e-13 | LG30: 1996 | LH30: 1.472467e-12 | LI30: -5.143964e-13 | LJ30: 1996 | LK30: 1.470977e-12 | LL30: -5.142618e-13 | LM30: 1996 | LN30: 1.469566e-12 | LO30: -5.146157e-13 | LP30: 1996 | LQ30: 1.469072e-12 | LR30: -5.142603e-13 | LS30: 1996 | LT30: 1.467352e-12 | LU30: -5.145176e-13 | LV30: 1996 | LW30: 1.46606e-12 | LX30: -5.145318e-13 | LY30: 1996 | LZ30: 1.464931e-12 | MA30: -5.144414e-13 | MB30: 1996 | MC30: 1.46434e-12 | MD30: -5.145494e-13 | ME30: 1996 | MF30: 1.463086e-12 | MG30: -5.144724e-13 | MH30: 1996 | MI30: 1.462324e-12 | MJ30: -5.143628e-13 | MK30: 1996 | ML30: 1.460936e-12 | MM30: -5.14407e-13 | MN30: 1996 | MO30: 1.460641e-12 | MP30: -5.142466e-13 | MQ30: 1996 | MR30: 1.459932e-12 | MS30: -5.142168e-13 | MT30: 1996 | MU30: 1.459923e-12 | MV30: -5.139399e-13 | MW30: 1996 | MX30: 1.458906e-12 | MY30: -5.140077e-13 | MZ30: 1996 | NA30: 1.458137e-12 | NB30: -5.140055e-13 | NC30: 1996 | ND30: 1.457141e-12 | NE30: -5.140489e-13 | NF30: 1996 | NG30: 1.45695e-12 | NH30: -5.136649e-13 | NI30: 1996 | NJ30: 1.456203e-12 | NK30: -5.136391e-13 | NL30: 1996 | NM30: 1.455638e-12 | NN30: -5.135297e-13 | NO30: 1996 | NP30: 1.455556e-12 | NQ30: -5.131562e-13 | NR30: 1996 | NS30: 1.455556e-12 | NT30: -5.129649e-13 | NU30: 1996 | NV30: 1.454731e-12 | NW30: -5.129903e-13 | NX30: 1996 | NY30: 1.45475e-12 | NZ30: -5.12776e-13 | OA30: 1996 | OB30: 1.454569e-12 | OC30: -5.126683e-13 | OD30: 1996 | OE30: 1.45388e-12 | OF30: -5.125731e-13 | OG30: 1996 | OH30: 1.453727e-12 | OI30: -5.123352e-13 | OJ30: 1996 | OK30: 1.453048e-12 | OL30: -5.123238e-13 | OM30: 1996 | ON30: 1.452146e-12 | OO30: -5.123997e-13 | OP30: 1996 | OQ30: 1.451483e-12 | OR30: -5.123229e-13 | OS30: 1996 | OT30: 1.451525e-12 | OU30: -5.121282e-13 | OV30: 1996 | OW30: 1.451103e-12 | OX30: -5.121313e-13 | OY30: 1996 | OZ30: 1.451225e-12 | PA30: -5.116957e-13 | PB30: 1996 | PC30: 1.450952e-12 | PD30: -5.11514e-13 | PE30: 1996 | PF30: 1.450655e-12 | PG30: -5.115038e-13 | PH30: 1996 | PI30: 1.449548e-12 | PJ30: -5.116018e-13 | PK30: 1996 | PL30: 1.449275e-12 | PM30: -5.1161e-13 | PN30: 1996 | PO30: 1.448703e-12 | PP30: -5.113765e-13 | PQ30: 1996 | PR30: 1.448486e-12 | PS30: -5.113155e-13 | PT30: 1996 | PU30: 1.44771e-12 | PV30: -5.113354e-13 | PW30: 1996 | PX30: 1.447928e-12 | PY30: -5.110177e-13 | PZ30: 1996 | QA30: 1.452583e-12 | QB30: -5.090533e-13 | QC30: 1996 | QD30: 1.456345e-12 | QE30: -5.074822e-13 | QF30: 1996 | QG30: 1.460734e-12 | QH30: -5.058821e-13 | QI30: 1996 | QJ30: 1.466484e-12 | QK30: -5.03855e-13
A31: 2512.6 | B31: 2.690066e-12 | C31: -1.006332e-13 | D31: 2512.6 | E31: 2.681179e-12 | F31: -1.00201e-13 | G31: 2512.6 | H31: 2.66659e-12 | I31: -9.514705e-14 | J31: 2512.6 | K31: 2.662617e-12 | L31: -9.246041e-14 | M31: 2512.6 | N31: 2.659675e-12 | O31: -9.11868e-14 | P31: 2512.6 | Q31: 2.658538e-12 | R31: -8.9792e-14 | S31: 2512.6 | T31: 2.656373e-12 | U31: -8.872679e-14 | V31: 2512.6 | W31: 2.656328e-12 | X31: -8.771681e-14 | Y31: 2512.6 | Z31: 2.65569e-12 | AA31: -8.721891e-14 | AB31: 2512.6 | AC31: 2.654843e-12 | AD31: -8.651465e-14 | AE31: 2512.6 | AF31: 2.654361e-12 | AG31: -8.706122e-14 | AH31: 2512.6 | AI31: 2.654511e-12 | AJ31: -8.646845e-14 | AK31: 2512.6 | AL31: 2.653329e-12 | AM31: -8.577815e-14 | AN31: 2512.6 | AO31: 2.652538e-12 | AP31: -8.595312e-14 | AQ31: 2512.6 | AR31: 2.652559e-12 | AS31: -8.5628e-14 | AT31: 2512.6 | AU31: 2.65171e-12 | AV31: -8.496851e-14 | AW31: 2512.6 | AX31: 2.650695e-12 | AY31: -8.518376e-14 | AZ31: 2512.6 | BA31: 2.648954e-12 | BB31: -8.458289e-14 | BC31: 2512.6 | BD31: 2.64584e-12 | BE31: -8.293183e-14 | BF31: 2512.6 | BG31: 2.64285e-12 | BH31: -8.116623e-14 | BI31: 2512.6 | BJ31: 2.639187e-12 | BK31: -7.967088e-14 | BL31: 2512.6 | BM31: 2.635472e-12 | BN31: -7.734551e-14 | BO31: 2512.6 | BP31: 2.631397e-12 | BQ31: -7.569697e-14 | BR31: 2512.6 | BS31: 2.627033e-12 | BT31: -7.35554e-14 | BU31: 2512.6 | BV31: 2.622913e-12 | BW31: -7.116819e-14 | BX31: 2512.6 | BY31: 2.617589e-12 | BZ31: -6.915904e-14 | CA31: 2512.6 | CB31: 2.612827e-12 | CC31: -6.712011e-14 | CD31: 2512.6 | CE31: 2.607861e-12 | CF31: -6.514711e-14 | CG31: 2512.6 | CH31: 2.603768e-12 | CI31: -6.320883e-14 | CJ31: 2512.6 | CK31: 2.599185e-12 | CL31: -6.058041e-14 | CM31: 2512.6 | CN31: 2.594573e-12 | CO31: -5.884547e-14 | CP31: 2512.6 | CQ31: 2.590522e-12 | CR31: -5.674769e-14 | CS31: 2512.6 | CT31: 2.586042e-12 | CU31: -5.503221e-14 | CV31: 2512.6 | CW31: 2.581148e-12 | CX31: -5.346859e-14 | CY31: 2512.6 | CZ31: 2.577005e-12 | DA31: -5.193761e-14 | DB31: 2512.6 | DC31: 2.572262e-12 | DD31: -5.000425e-14 | DE31: 2512.6 | DF31: 2.568262e-12 | DG31: -4.812145e-14 | DH31: 2512.6 | DI31: 2.563228e-12 | DJ31: -4.640455e-14 | DK31: 2512.6 | DL31: 2.559238e-12 | DM31: -4.490433e-14 | DN31: 2512.6 | DO31: 2.554327e-12 | DP31: -4.355678e-14 | DQ31: 2512.6 | DR31: 2.55096e-12 | DS31: -4.264822e-14 | DT31: 2512.6 | DU31: 2.547103e-12 | DV31: -4.131794e-14 | DW31: 2512.6 | DX31: 2.543465e-12 | DY31: -3.982529e-14 | DZ31: 2512.6 | EA31: 2.538113e-12 | EB31: -3.809052e-14 | EC31: 2512.6 | ED31: 2.533066e-12 | EE31: -3.706436e-14 | EF31: 2512.6 | EG31: 2.528866e-12 | EH31: -3.528578e-14 | EI31: 2512.6 | EJ31: 2.52455e-12 | EK31: -3.455934e-14 | EL31: 2512.6 | EM31: 2.519465e-12 | EN31: -3.311277e-14 | EO31: 2512.6 | EP31: 2.515283e-12 | EQ31: -3.227142e-14 | ER31: 2512.6 | ES31: 2.511339e-12 | ET31: -3.038323e-14 | EU31: 2512.6 | EV31: 2.508857e-12 | EW31: -3.014027e-14 | EX31: 2512.6 | EY31: 2.506188e-12 | EZ31: -2.961886e-14 | FA31: 2512.6 | FB31: 2.502745e-12 | FC31: -2.85898e-14 | FD31: 2512.6 | FE31: 2.540892e-12 | FF31: -4.355568e-14 | FG31: 2512.6 | FH31: 2.540833e-12 | FI31: -4.229285e-14 | FJ31: 2512.6 | FK31: 2.540028e-12 | FL31: -4.19694e-14 | FM31: 2512.6 | FN31: 2.539704e-12 | FO31: -4.252227e-14 | FP31: 2512.6 | FQ31: 2.539597e-12 | FR31: -4.268071e-14 | FS31: 2512.6 | FT31: 2.539878e-12 | FU31: -4.338942e-14 | FV31: 2512.6 | FW31: 2.540299e-12 | FX31: -4.301327e-14 | FY31: 2512.6 | FZ31: 2.537847e-12 | GA31: -4.012368e-14 | GB31: 2512.6 | GC31: 2.530494e-12 | GD31: -3.490337e-14 | GE31: 2512.6 | GF31: 2.513351e-12 | GG31: -3.35928e-14 | GH31: 2512.6 | GI31: 2.496363e-12 | GJ31: -4.704067e-14 | GK31: 2512.6 | GL31: 2.479056e-12 | GM31: -7.934727e-14 | GN31: 2512.6 | GO31: 2.456791e-12 | GP31: -1.288401e-13 | GQ31: 2512.6 | GR31: 2.426249e-12 | GS31: -1.900848e-13 | GT31: 2512.6 | GU31: 2.384469e-12 | GV31: -2.577075e-13 | GW31: 2512.6 | GX31: 2.329444e-12 | GY31: -3.253205e-13 | GZ31: 2512.6 | HA31: 2.260816e-12 | HB31: -3.909889e-13 | HC31: 2512.6 | HD31: 2.179273e-12 | HE31: -4.490794e-13 | HF31: 2512.6 | HG31: 2.086891e-12 | HH31: -4.964457e-13 | HI31: 2512.6 | HJ31: 1.993189e-12 | HK31: -5.289144e-13 | HL31: 2512.6 | HM31: 1.902425e-12 | HN31: -5.480859e-13 | HO31: 2512.6 | HP31: 1.821252e-12 | HQ31: -5.557632e-13 | HR31: 2512.6 | HS31: 1.751541e-12 | HT31: -5.561404e-13 | HU31: 2512.6 | HV31: 1.694437e-12 | HW31: -5.529425e-13 | HX31: 2512.6 | HY31: 1.648205e-12 | HZ31: -5.485442e-13 | IA31: 2512.6 | IB31: 1.615997e-12 | IC31: -5.455546e-13 | ID31: 2512.6 | IE31: 1.586663e-12 | IF31: -5.431107e-13 | IG31: 2512.6 | IH31: 1.561487e-12 | II31: -5.421919e-13 | IJ31: 2512.6 | IK31: 1.539654e-12 | IL31: -5.418463e-13 | IM31: 2512.6 | IN31: 1.520422e-12 | IO31: -5.423233e-13 | IP31: 2512.6 | IQ31: 1.508279e-12 | IR31: -5.424953e-13 | IS31: 2512.6 | IT31: 1.496176e-12 | IU31: -5.433802e-13 | IV31: 2512.6 | IW31: 1.485555e-12 | IX31: -5.445744e-13 | IY31: 2512.6 | IZ31: 1.475936e-12 | JA31: -5.452633e-13 | JB31: 2512.6 | JC31: 1.466899e-12 | JD31: -5.464654e-13 | JE31: 2512.6 | JF31: 1.458771e-12 | JG31: -5.477146e-13 | JH31: 2512.6 | JI31: 1.451114e-12 | JJ31: -5.489129e-13 | JK31: 2512.6 | JL31: 1.444265e-12 | JM31: -5.500742e-13 | JN31: 2512.6 | JO31: 1.438424e-12 | JP31: -5.507997e-13 | JQ31: 2512.6 | JR31: 1.433903e-12 | JS31: -5.513552e-13 | JT31: 2512.6 | JU31: 1.429286e-12 | JV31: -5.521372e-13 | JW31: 2512.6 | JX31: 1.426299e-12 | JY31: -5.521218e-13 | JZ31: 2512.6 | KA31: 1.423277e-12 | KB31: -5.528077e-13 | KC31: 2512.6 | KD31: 1.419917e-12 | KE31: -5.532655e-13 | KF31: 2512.6 | KG31: 1.416751e-12 | KH31: -5.537329e-13 | KI31: 2512.6 | KJ31: 1.414718e-12 | KK31: -5.53891e-13 | KL31: 2512.6 | KM31: 1.413121e-12 | KN31: -5.539012e-13 | KO31: 2512.6 | KP31: 1.411421e-12 | KQ31: -5.538115e-13 | KR31: 2512.6 | KS31: 1.409696e-12 | KT31: -5.543368e-13 | KU31: 2512.6 | KV31: 1.407224e-12 | KW31: -5.546544e-13 | KX31: 2512.6 | KY31: 1.404779e-12 | KZ31: -5.547882e-13 | LA31: 2512.6 | LB31: 1.402183e-12 | LC31: -5.555583e-13 | LD31: 2512.6 | LE31: 1.401112e-12 | LF31: -5.553882e-13 | LG31: 2512.6 | LH31: 1.400402e-12 | LI31: -5.554098e-13 | LJ31: 2512.6 | LK31: 1.398883e-12 | LL31: -5.554045e-13 | LM31: 2512.6 | LN31: 1.397703e-12 | LO31: -5.557169e-13 | LP31: 2512.6 | LQ31: 1.397086e-12 | LR31: -5.553305e-13 | LS31: 2512.6 | LT31: 1.39521e-12 | LU31: -5.55862e-13 | LV31: 2512.6 | LW31: 1.393806e-12 | LX31: -5.560505e-13 | LY31: 2512.6 | LZ31: 1.392728e-12 | MA31: -5.561538e-13 | MB31: 2512.6 | MC31: 1.392167e-12 | MD31: -5.558167e-13 | ME31: 2512.6 | MF31: 1.390874e-12 | MG31: -5.562503e-13 | MH31: 2512.6 | MI31: 1.390241e-12 | MJ31: -5.559903e-13 | MK31: 2512.6 | ML31: 1.388621e-12 | MM31: -5.562043e-13 | MN31: 2512.6 | MO31: 1.388566e-12 | MP31: -5.560057e-13 | MQ31: 2512.6 | MR31: 1.387843e-12 | MS31: -5.560476e-13 | MT31: 2512.6 | MU31: 1.387788e-12 | MV31: -5.558492e-13 | MW31: 2512.6 | MX31: 1.386796e-12 | MY31: -5.560717e-13 | MZ31: 2512.6 | NA31: 1.38577e-12 | NB31: -5.558707e-13 | NC31: 2512.6 | ND31: 1.384705e-12 | NE31: -5.560683e-13 | NF31: 2512.6 | NG31: 1.3847e-12 | NH31: -5.558695e-13 | NI31: 2512.6 | NJ31: 1.384002e-12 | NK31: -5.557357e-13 | NL31: 2512.6 | NM31: 1.383535e-12 | NN31: -5.559692e-13 | NO31: 2512.6 | NP31: 1.383673e-12 | NQ31: -5.554697e-13 | NR31: 2512.6 | NS31: 1.383468e-12 | NT31: -5.551764e-13 | NU31: 2512.6 | NV31: 1.382877e-12 | NW31: -5.553878e-13 | NX31: 2512.6 | NY31: 1.38287e-12 | NZ31: -5.550408e-13 | OA31: 2512.6 | OB31: 1.382571e-12 | OC31: -5.549978e-13 | OD31: 2512.6 | OE31: 1.381954e-12 | OF31: -5.550855e-13 | OG31: 2512.6 | OH31: 1.381871e-12 | OI31: -5.546664e-13 | OJ31: 2512.6 | OK31: 1.380987e-12 | OL31: -5.549824e-13 | OM31: 2512.6 | ON31: 1.380319e-12 | OO31: -5.549717e-13 | OP31: 2512.6 | OQ31: 1.379779e-12 | OR31: -5.551311e-13 | OS31: 2512.6 | OT31: 1.379747e-12 | OU31: -5.548107e-13 | OV31: 2512.6 | OW31: 1.37913e-12 | OX31: -5.547987e-13 | OY31: 2512.6 | OZ31: 1.379493e-12 | PA31: -5.544704e-13 | PB31: 2512.6 | PC31: 1.379219e-12 | PD31: -5.543528e-13 | PE31: 2512.6 | PF31: 1.378992e-12 | PG31: -5.540863e-13 | PH31: 2512.6 | PI31: 1.377618e-12 | PJ31: -5.543612e-13 | PK31: 2512.6 | PL31: 1.377544e-12 | PM31: -5.543873e-13 | PN31: 2512.6 | PO31: 1.376899e-12 | PP31: -5.541051e-13 | PQ31: 2512.6 | PR31: 1.376435e-12 | PS31: -5.542864e-13 | PT31: 2512.6 | PU31: 1.375749e-12 | PV31: -5.543981e-13 | PW31: 2512.6 | PX31: 1.376062e-12 | PY31: -5.540726e-13 | PZ31: 2512.6 | QA31: 1.381617e-12 | QB31: -5.513334e-13 | QC31: 2512.6 | QD31: 1.38538e-12 | QE31: -5.495441e-13 | QF31: 2512.6 | QG31: 1.390157e-12 | QH31: -5.473237e-13 | QI31: 2512.6 | QJ31: 1.396338e-12 | QK31: -5.447601e-13
A32: 3164.6 | B32: 2.676879e-12 | C32: -9.50503e-14 | D32: 3164.6 | E32: 2.667937e-12 | F32: -9.451074e-14 | G32: 3164.6 | H32: 2.654273e-12 | I32: -8.980855e-14 | J32: 3164.6 | K32: 2.650074e-12 | L32: -8.754875e-14 | M32: 3164.6 | N32: 2.648052e-12 | O32: -8.635621e-14 | P32: 3164.6 | Q32: 2.646448e-12 | R32: -8.523446e-14 | S32: 3164.6 | T32: 2.644718e-12 | U32: -8.391343e-14 | V32: 3164.6 | W32: 2.644607e-12 | X32: -8.344893e-14 | Y32: 3164.6 | Z32: 2.643943e-12 | AA32: -8.293573e-14 | AB32: 3164.6 | AC32: 2.643534e-12 | AD32: -8.278742e-14 | AE32: 3164.6 | AF32: 2.642556e-12 | AG32: -8.283473e-14 | AH32: 3164.6 | AI32: 2.642602e-12 | AJ32: -8.208704e-14 | AK32: 3164.6 | AL32: 2.642074e-12 | AM32: -8.162684e-14 | AN32: 3164.6 | AO32: 2.641529e-12 | AP32: -8.144424e-14 | AQ32: 3164.6 | AR32: 2.640979e-12 | AS32: -8.132689e-14 | AT32: 3164.6 | AU32: 2.640573e-12 | AV32: -8.115861e-14 | AW32: 3164.6 | AX32: 2.640021e-12 | AY32: -8.107884e-14 | AZ32: 3164.6 | BA32: 2.637856e-12 | BB32: -8.016461e-14 | BC32: 3164.6 | BD32: 2.635428e-12 | BE32: -7.904764e-14 | BF32: 3164.6 | BG32: 2.631757e-12 | BH32: -7.800575e-14 | BI32: 3164.6 | BJ32: 2.629126e-12 | BK32: -7.582826e-14 | BL32: 3164.6 | BM32: 2.625104e-12 | BN32: -7.397548e-14 | BO32: 3164.6 | BP32: 2.621218e-12 | BQ32: -7.235147e-14 | BR32: 3164.6 | BS32: 2.616787e-12 | BT32: -7.089782e-14 | BU32: 3164.6 | BV32: 2.612812e-12 | BW32: -6.879567e-14 | BX32: 3164.6 | BY32: 2.608041e-12 | BZ32: -6.655233e-14 | CA32: 3164.6 | CB32: 2.603919e-12 | CC32: -6.511282e-14 | CD32: 3164.6 | CE32: 2.598885e-12 | CF32: -6.332867e-14 | CG32: 3164.6 | CH32: 2.595087e-12 | CI32: -6.130053e-14 | CJ32: 3164.6 | CK32: 2.590359e-12 | CL32: -5.933196e-14 | CM32: 3164.6 | CN32: 2.586295e-12 | CO32: -5.773654e-14 | CP32: 3164.6 | CQ32: 2.582119e-12 | CR32: -5.593176e-14 | CS32: 3164.6 | CT32: 2.577939e-12 | CU32: -5.450292e-14 | CV32: 3164.6 | CW32: 2.573251e-12 | CX32: -5.290207e-14 | CY32: 3164.6 | CZ32: 2.569491e-12 | DA32: -5.150013e-14 | DB32: 3164.6 | DC32: 2.564838e-12 | DD32: -4.972129e-14 | DE32: 3164.6 | DF32: 2.561096e-12 | DG32: -4.840511e-14 | DH32: 3164.6 | DI32: 2.556328e-12 | DJ32: -4.698537e-14 | DK32: 3164.6 | DL32: 2.552356e-12 | DM32: -4.550003e-14 | DN32: 3164.6 | DO32: 2.547999e-12 | DP32: -4.425166e-14 | DQ32: 3164.6 | DR32: 2.544417e-12 | DS32: -4.335038e-14 | DT32: 3164.6 | DU32: 2.540357e-12 | DV32: -4.166202e-14 | DW32: 3164.6 | DX32: 2.536551e-12 | DY32: -4.04246e-14 | DZ32: 3164.6 | EA32: 2.531609e-12 | EB32: -3.909265e-14 | EC32: 3164.6 | ED32: 2.526944e-12 | EE32: -3.762223e-14 | EF32: 3164.6 | EG32: 2.522286e-12 | EH32: -3.644821e-14 | EI32: 3164.6 | EJ32: 2.519024e-12 | EK32: -3.560151e-14 | EL32: 3164.6 | EM32: 2.514137e-12 | EN32: -3.464103e-14 | EO32: 3164.6 | EP32: 2.510269e-12 | EQ32: -3.372215e-14 | ER32: 3164.6 | ES32: 2.506296e-12 | ET32: -3.251451e-14 | EU32: 3164.6 | EV32: 2.503936e-12 | EW32: -3.203796e-14 | EX32: 3164.6 | EY32: 2.500842e-12 | EZ32: -3.123969e-14 | FA32: 3164.6 | FB32: 2.497496e-12 | FC32: -3.089805e-14 | FD32: 3164.6 | FE32: 2.534278e-12 | FF32: -4.339403e-14 | FG32: 3164.6 | FH32: 2.533936e-12 | FI32: -4.216458e-14 | FJ32: 3164.6 | FK32: 2.533553e-12 | FL32: -4.216205e-14 | FM32: 3164.6 | FN32: 2.532911e-12 | FO32: -4.225814e-14 | FP32: 3164.6 | FQ32: 2.532769e-12 | FR32: -4.26849e-14 | FS32: 3164.6 | FT32: 2.533008e-12 | FU32: -4.316157e-14 | FV32: 3164.6 | FW32: 2.5334e-12 | FX32: -4.290543e-14 | FY32: 3164.6 | FZ32: 2.531575e-12 | GA32: -4.019596e-14 | GB32: 3164.6 | GC32: 2.523935e-12 | GD32: -3.636028e-14 | GE32: 3164.6 | GF32: 2.508405e-12 | GG32: -3.760918e-14 | GH32: 3164.6 | GI32: 2.491281e-12 | GJ32: -5.633256e-14 | GK32: 3164.6 | GL32: 2.473141e-12 | GM32: -9.723498e-14 | GN32: 3164.6 | GO32: 2.44634e-12 | GP32: -1.577879e-13 | GQ32: 3164.6 | GR32: 2.408526e-12 | GS32: -2.307604e-13 | GT32: 3164.6 | GU32: 2.35604e-12 | GV32: -3.077513e-13 | GW32: 3164.6 | GX32: 2.288658e-12 | GY32: -3.826493e-13 | GZ32: 3164.6 | HA32: 2.206819e-12 | HB32: -4.509573e-13 | HC32: 3164.6 | HD32: 2.112636e-12 | HE32: -5.082607e-13 | HF32: 3164.6 | HG32: 2.011232e-12 | HH32: -5.513289e-13 | HI32: 3164.6 | HJ32: 1.911396e-12 | HK32: -5.78335e-13 | HL32: 3164.6 | HM32: 1.818449e-12 | HN32: -5.91803e-13 | HO32: 3164.6 | HP32: 1.737335e-12 | HQ32: -5.952219e-13 | HR32: 3164.6 | HS32: 1.669151e-12 | HT32: -5.929685e-13 | HU32: 3164.6 | HV32: 1.614035e-12 | HW32: -5.885008e-13 | HX32: 3164.6 | HY32: 1.569235e-12 | HZ32: -5.843514e-13 | IA32: 3164.6 | IB32: 1.537865e-12 | IC32: -5.817321e-13 | ID32: 3164.6 | IE32: 1.509404e-12 | IF32: -5.803519e-13 | IG32: 3164.6 | IH32: 1.48443e-12 | II32: -5.799746e-13 | IJ32: 3164.6 | IK32: 1.462446e-12 | IL32: -5.80882e-13 | IM32: 3164.6 | IN32: 1.443121e-12 | IO32: -5.821017e-13 | IP32: 3164.6 | IQ32: 1.430863e-12 | IR32: -5.830638e-13 | IS32: 3164.6 | IT32: 1.418244e-12 | IU32: -5.845911e-13 | IV32: 3164.6 | IW32: 1.40736e-12 | IX32: -5.861343e-13 | IY32: 3164.6 | IZ32: 1.397404e-12 | JA32: -5.877507e-13 | JB32: 3164.6 | JC32: 1.388061e-12 | JD32: -5.892893e-13 | JE32: 3164.6 | JF32: 1.379589e-12 | JG32: -5.910542e-13 | JH32: 3164.6 | JI32: 1.371409e-12 | JJ32: -5.926601e-13 | JK32: 3164.6 | JL32: 1.364131e-12 | JM32: -5.942623e-13 | JN32: 3164.6 | JO32: 1.357778e-12 | JP32: -5.955986e-13 | JQ32: 3164.6 | JR32: 1.353022e-12 | JS32: -5.964114e-13 | JT32: 3164.6 | JU32: 1.348281e-12 | JV32: -5.97386e-13 | JW32: 3164.6 | JX32: 1.345144e-12 | JY32: -5.977796e-13 | JZ32: 3164.6 | KA32: 1.341788e-12 | KB32: -5.984868e-13 | KC32: 3164.6 | KD32: 1.33817e-12 | KE32: -5.99197e-13 | KF32: 3164.6 | KG32: 1.335024e-12 | KH32: -5.997703e-13 | KI32: 3164.6 | KJ32: 1.332928e-12 | KK32: -6.000366e-13 | KL32: 3164.6 | KM32: 1.331331e-12 | KN32: -6.000893e-13 | KO32: 3164.6 | KP32: 1.329301e-12 | KQ32: -6.004127e-13 | KR32: 3164.6 | KS32: 1.327334e-12 | KT32: -6.00736e-13 | KU32: 3164.6 | KV32: 1.324813e-12 | KW32: -6.013765e-13 | KX32: 3164.6 | KY32: 1.322155e-12 | KZ32: -6.019105e-13 | LA32: 3164.6 | LB32: 1.319551e-12 | LC32: -6.026185e-13 | LD32: 3164.6 | LE32: 1.318367e-12 | LF32: -6.025927e-13 | LG32: 3164.6 | LH32: 1.317688e-12 | LI32: -6.025732e-13 | LJ32: 3164.6 | LK32: 1.316083e-12 | LL32: -6.026924e-13 | LM32: 3164.6 | LN32: 1.314611e-12 | LO32: -6.030259e-13 | LP32: 3164.6 | LQ32: 1.314065e-12 | LR32: -6.028376e-13 | LS32: 3164.6 | LT32: 1.312238e-12 | LU32: -6.032585e-13 | LV32: 3164.6 | LW32: 1.310592e-12 | LX32: -6.036309e-13 | LY32: 3164.6 | LZ32: 1.309376e-12 | MA32: -6.037996e-13 | MB32: 3164.6 | MC32: 1.30882e-12 | MD32: -6.03785e-13 | ME32: 3164.6 | MF32: 1.307517e-12 | MG32: -6.039739e-13 | MH32: 3164.6 | MI32: 1.306721e-12 | MJ32: -6.04056e-13 | MK32: 3164.6 | ML32: 1.305121e-12 | MM32: -6.043346e-13 | MN32: 3164.6 | MO32: 1.305046e-12 | MP32: -6.041825e-13 | MQ32: 3164.6 | MR32: 1.304293e-12 | MS32: -6.041207e-13 | MT32: 3164.6 | MU32: 1.304155e-12 | MV32: -6.040219e-13 | MW32: 3164.6 | MX32: 1.302938e-12 | MY32: -6.042998e-13 | MZ32: 3164.6 | NA32: 1.302261e-12 | NB32: -6.043887e-13 | NC32: 3164.6 | ND32: 1.301203e-12 | NE32: -6.04532e-13 | NF32: 3164.6 | NG32: 1.301112e-12 | NH32: -6.042339e-13 | NI32: 3164.6 | NJ32: 1.300363e-12 | NK32: -6.041706e-13 | NL32: 3164.6 | NM32: 1.299736e-12 | NN32: -6.043783e-13 | NO32: 3164.6 | NP32: 1.299917e-12 | NQ32: -6.039588e-13 | NR32: 3164.6 | NS32: 1.299958e-12 | NT32: -6.038173e-13 | NU32: 3164.6 | NV32: 1.299064e-12 | NW32: -6.037705e-13 | NX32: 3164.6 | NY32: 1.299188e-12 | NZ32: -6.036653e-13 | OA32: 3164.6 | OB32: 1.299004e-12 | OC32: -6.03447e-13 | OD32: 3164.6 | OE32: 1.298326e-12 | OF32: -6.035921e-13 | OG32: 3164.6 | OH32: 1.298169e-12 | OI32: -6.034051e-13 | OJ32: 3164.6 | OK32: 1.297398e-12 | OL32: -6.036284e-13 | OM32: 3164.6 | ON32: 1.296372e-12 | OO32: -6.037999e-13 | OP32: 3164.6 | OQ32: 1.295862e-12 | OR32: -6.03698e-13 | OS32: 3164.6 | OT32: 1.295903e-12 | OU32: -6.035573e-13 | OV32: 3164.6 | OW32: 1.295591e-12 | OX32: -6.035014e-13 | OY32: 3164.6 | OZ32: 1.29588e-12 | PA32: -6.031517e-13 | PB32: 3164.6 | PC32: 1.295599e-12 | PD32: -6.030698e-13 | PE32: 3164.6 | PF32: 1.295256e-12 | PG32: -6.030402e-13 | PH32: 3164.6 | PI32: 1.294052e-12 | PJ32: -6.0331e-13 | PK32: 3164.6 | PL32: 1.293741e-12 | PM32: -6.03254e-13 | PN32: 3164.6 | PO32: 1.293248e-12 | PP32: -6.032971e-13 | PQ32: 3164.6 | PR32: 1.292818e-12 | PS32: -6.03288e-13 | PT32: 3164.6 | PU32: 1.292057e-12 | PV32: -6.034505e-13 | PW32: 3164.6 | PX32: 1.292325e-12 | PY32: -6.030149e-13 | PZ32: 3164.6 | QA32: 1.298475e-12 | QB32: -6.000505e-13 | QC32: 3164.6 | QD32: 1.303188e-12 | QE32: -5.978428e-13 | QF32: 3164.6 | QG32: 1.308594e-12 | QH32: -5.953836e-13 | QI32: 3164.6 | QJ32: 1.315817e-12 | QK32: -5.921672e-13
A33: 3984.1 | B33: 2.664404e-12 | C33: -8.988982e-14 | D33: 3984.1 | E33: 2.655233e-12 | F33: -8.885878e-14 | G33: 3984.1 | H33: 2.64228e-12 | I33: -8.486858e-14 | J33: 3984.1 | K33: 2.638368e-12 | L33: -8.308086e-14 | M33: 3984.1 | N33: 2.636173e-12 | O33: -8.188522e-14 | P33: 3984.1 | Q33: 2.635018e-12 | R33: -8.081639e-14 | S33: 3984.1 | T33: 2.63352e-12 | U33: -7.967983e-14 | V33: 3984.1 | W33: 2.633372e-12 | X33: -7.924094e-14 | Y33: 3984.1 | Z33: 2.632867e-12 | AA33: -7.896169e-14 | AB33: 3984.1 | AC33: 2.632342e-12 | AD33: -7.901886e-14 | AE33: 3984.1 | AF33: 2.631493e-12 | AG33: -7.867932e-14 | AH33: 3984.1 | AI33: 2.631708e-12 | AJ33: -7.797776e-14 | AK33: 3984.1 | AL33: 2.630854e-12 | AM33: -7.77308e-14 | AN33: 3984.1 | AO33: 2.63051e-12 | AP33: -7.768091e-14 | AQ33: 3984.1 | AR33: 2.630177e-12 | AS33: -7.742341e-14 | AT33: 3984.1 | AU33: 2.629495e-12 | AV33: -7.722701e-14 | AW33: 3984.1 | AX33: 2.628817e-12 | AY33: -7.694264e-14 | AZ33: 3984.1 | BA33: 2.626943e-12 | BB33: -7.63947e-14 | BC33: 3984.1 | BD33: 2.624587e-12 | BE33: -7.523944e-14 | BF33: 3984.1 | BG33: 2.621356e-12 | BH33: -7.437649e-14 | BI33: 3984.1 | BJ33: 2.618699e-12 | BK33: -7.26271e-14 | BL33: 3984.1 | BM33: 2.614843e-12 | BN33: -7.088133e-14 | BO33: 3984.1 | BP33: 2.611324e-12 | BQ33: -6.942804e-14 | BR33: 3984.1 | BS33: 2.607118e-12 | BT33: -6.822061e-14 | BU33: 3984.1 | BV33: 2.603636e-12 | BW33: -6.641623e-14 | BX33: 3984.1 | BY33: 2.59899e-12 | BZ33: -6.431235e-14 | CA33: 3984.1 | CB33: 2.595337e-12 | CC33: -6.29002e-14 | CD33: 3984.1 | CE33: 2.590336e-12 | CF33: -6.172909e-14 | CG33: 3984.1 | CH33: 2.586731e-12 | CI33: -5.979061e-14 | CJ33: 3984.1 | CK33: 2.581964e-12 | CL33: -5.78354e-14 | CM33: 3984.1 | CN33: 2.578185e-12 | CO33: -5.650631e-14 | CP33: 3984.1 | CQ33: 2.574094e-12 | CR33: -5.493181e-14 | CS33: 3984.1 | CT33: 2.570164e-12 | CU33: -5.373589e-14 | CV33: 3984.1 | CW33: 2.565605e-12 | CX33: -5.207697e-14 | CY33: 3984.1 | CZ33: 2.561517e-12 | DA33: -5.132729e-14 | DB33: 3984.1 | DC33: 2.557494e-12 | DD33: -4.92515e-14 | DE33: 3984.1 | DF33: 2.553442e-12 | DG33: -4.822298e-14 | DH33: 3984.1 | DI33: 2.549093e-12 | DJ33: -4.676916e-14 | DK33: 3984.1 | DL33: 2.545232e-12 | DM33: -4.56406e-14 | DN33: 3984.1 | DO33: 2.541058e-12 | DP33: -4.452995e-14 | DQ33: 3984.1 | DR33: 2.537698e-12 | DS33: -4.357803e-14 | DT33: 3984.1 | DU33: 2.533711e-12 | DV33: -4.23748e-14 | DW33: 3984.1 | DX33: 2.530059e-12 | DY33: -4.111406e-14 | DZ33: 3984.1 | EA33: 2.525615e-12 | EB33: -3.990705e-14 | EC33: 3984.1 | ED33: 2.520861e-12 | EE33: -3.892911e-14 | EF33: 3984.1 | EG33: 2.516613e-12 | EH33: -3.753828e-14 | EI33: 3984.1 | EJ33: 2.512524e-12 | EK33: -3.654508e-14 | EL33: 3984.1 | EM33: 2.507973e-12 | EN33: -3.560456e-14 | EO33: 3984.1 | EP33: 2.504072e-12 | EQ33: -3.451066e-14 | ER33: 3984.1 | ES33: 2.500176e-12 | ET33: -3.361113e-14 | EU33: 3984.1 | EV33: 2.497843e-12 | EW33: -3.312336e-14 | EX33: 3984.1 | EY33: 2.494736e-12 | EZ33: -3.257804e-14 | FA33: 3984.1 | FB33: 2.491795e-12 | FC33: -3.190101e-14 | FD33: 3984.1 | FE33: 2.528054e-12 | FF33: -4.35564e-14 | FG33: 3984.1 | FH33: 2.527449e-12 | FI33: -4.253843e-14 | FJ33: 3984.1 | FK33: 2.527283e-12 | FL33: -4.271367e-14 | FM33: 3984.1 | FN33: 2.526809e-12 | FO33: -4.252329e-14 | FP33: 3984.1 | FQ33: 2.526477e-12 | FR33: -4.287515e-14 | FS33: 3984.1 | FT33: 2.526468e-12 | FU33: -4.315629e-14 | FV33: 3984.1 | FW33: 2.527431e-12 | FX33: -4.305798e-14 | FY33: 3984.1 | FZ33: 2.525585e-12 | GA33: -4.086965e-14 | GB33: 3984.1 | GC33: 2.518502e-12 | GD33: -3.806022e-14 | GE33: 3984.1 | GF33: 2.502611e-12 | GG33: -4.126846e-14 | GH33: 3984.1 | GI33: 2.485807e-12 | GJ33: -6.577274e-14 | GK33: 3984.1 | GL33: 2.465403e-12 | GM33: -1.167326e-13 | GN33: 3984.1 | GO33: 2.433622e-12 | GP33: -1.903789e-13 | GQ33: 3984.1 | GR33: 2.3857e-12 | GS33: -2.762693e-13 | GT33: 3984.1 | GU33: 2.3205e-12 | GV33: -3.633834e-13 | GW33: 3984.1 | GX33: 2.238864e-12 | GY33: -4.441994e-13 | GZ33: 3984.1 | HA33: 2.142855e-12 | HB33: -5.137189e-13 | HC33: 3984.1 | HD33: 2.037108e-12 | HE33: -5.685048e-13 | HF33: 3984.1 | HG33: 1.927685e-12 | HH33: -6.065829e-13 | HI33: 3984.1 | HJ33: 1.82342e-12 | HK33: -6.279883e-13 | HL33: 3984.1 | HM33: 1.729138e-12 | HN33: -6.364649e-13 | HO33: 3984.1 | HP33: 1.648609e-12 | HQ33: -6.365833e-13 | HR33: 3984.1 | HS33: 1.58198e-12 | HT33: -6.328574e-13 | HU33: 3984.1 | HV33: 1.528288e-12 | HW33: -6.283623e-13 | HX33: 3984.1 | HY33: 1.484395e-12 | HZ33: -6.24834e-13 | IA33: 3984.1 | IB33: 1.453308e-12 | IC33: -6.229364e-13 | ID33: 3984.1 | IE33: 1.424467e-12 | IF33: -6.226636e-13 | IG33: 3984.1 | IH33: 1.399158e-12 | II33: -6.234013e-13 | IJ33: 3984.1 | IK33: 1.376145e-12 | IL33: -6.251356e-13 | IM33: 3984.1 | IN33: 1.355977e-12 | IO33: -6.273615e-13 | IP33: 3984.1 | IQ33: 1.343052e-12 | IR33: -6.288864e-13 | IS33: 3984.1 | IT33: 1.329591e-12 | IU33: -6.308562e-13 | IV33: 3984.1 | IW33: 1.31791e-12 | IX33: -6.33029e-13 | IY33: 3984.1 | IZ33: 1.307046e-12 | JA33: -6.349958e-13 | JB33: 3984.1 | JC33: 1.297043e-12 | JD33: -6.371257e-13 | JE33: 3984.1 | JF33: 1.287651e-12 | JG33: -6.391435e-13 | JH33: 3984.1 | JI33: 1.278728e-12 | JJ33: -6.411568e-13 | JK33: 3984.1 | JL33: 1.270508e-12 | JM33: -6.429943e-13 | JN33: 3984.1 | JO33: 1.263751e-12 | JP33: -6.44546e-13 | JQ33: 3984.1 | JR33: 1.258467e-12 | JS33: -6.456346e-13 | JT33: 3984.1 | JU33: 1.253127e-12 | JV33: -6.467494e-13 | JW33: 3984.1 | JX33: 1.249642e-12 | JY33: -6.473308e-13 | JZ33: 3984.1 | KA33: 1.245899e-12 | KB33: -6.480292e-13 | KC33: 3984.1 | KD33: 1.241983e-12 | KE33: -6.489614e-13 | KF33: 3984.1 | KG33: 1.238607e-12 | KH33: -6.496897e-13 | KI33: 3984.1 | KJ33: 1.236114e-12 | KK33: -6.498645e-13 | KL33: 3984.1 | KM33: 1.234454e-12 | KN33: -6.501178e-13 | KO33: 3984.1 | KP33: 1.232218e-12 | KQ33: -6.504694e-13 | KR33: 3984.1 | KS33: 1.229986e-12 | KT33: -6.508157e-13 | KU33: 3984.1 | KV33: 1.227133e-12 | KW33: -6.515232e-13 | KX33: 3984.1 | KY33: 1.224219e-12 | KZ33: -6.522074e-13 | LA33: 3984.1 | LB33: 1.221234e-12 | LC33: -6.529345e-13 | LD33: 3984.1 | LE33: 1.22001e-12 | LF33: -6.530015e-13 | LG33: 3984.1 | LH33: 1.219252e-12 | LI33: -6.528153e-13 | LJ33: 3984.1 | LK33: 1.217474e-12 | LL33: -6.530785e-13 | LM33: 3984.1 | LN33: 1.215805e-12 | LO33: -6.534976e-13 | LP33: 3984.1 | LQ33: 1.215462e-12 | LR33: -6.533245e-13 | LS33: 3984.1 | LT33: 1.213188e-12 | LU33: -6.53855e-13 | LV33: 3984.1 | LW33: 1.211539e-12 | LX33: -6.541998e-13 | LY33: 3984.1 | LZ33: 1.210182e-12 | MA33: -6.544651e-13 | MB33: 3984.1 | MC33: 1.209513e-12 | MD33: -6.543934e-13 | ME33: 3984.1 | MF33: 1.208001e-12 | MG33: -6.54759e-13 | MH33: 3984.1 | MI33: 1.207096e-12 | MJ33: -6.548408e-13 | MK33: 3984.1 | ML33: 1.205417e-12 | MM33: -6.551998e-13 | MN33: 3984.1 | MO33: 1.205289e-12 | MP33: -6.550021e-13 | MQ33: 3984.1 | MR33: 1.20461e-12 | MS33: -6.549933e-13 | MT33: 3984.1 | MU33: 1.204414e-12 | MV33: -6.549515e-13 | MW33: 3984.1 | MX33: 1.203186e-12 | MY33: -6.551301e-13 | MZ33: 3984.1 | NA33: 1.202182e-12 | NB33: -6.552194e-13 | NC33: 3984.1 | ND33: 1.201061e-12 | NE33: -6.553839e-13 | NF33: 3984.1 | NG33: 1.201052e-12 | NH33: -6.551108e-13 | NI33: 3984.1 | NJ33: 1.200245e-12 | NK33: -6.552405e-13 | NL33: 3984.1 | NM33: 1.199542e-12 | NN33: -6.553584e-13 | NO33: 3984.1 | NP33: 1.199848e-12 | NQ33: -6.548835e-13 | NR33: 3984.1 | NS33: 1.199901e-12 | NT33: -6.547936e-13 | NU33: 3984.1 | NV33: 1.198991e-12 | NW33: -6.54934e-13 | NX33: 3984.1 | NY33: 1.199151e-12 | NZ33: -6.546645e-13 | OA33: 3984.1 | OB33: 1.198958e-12 | OC33: -6.546224e-13 | OD33: 3984.1 | OE33: 1.198181e-12 | OF33: -6.546222e-13 | OG33: 3984.1 | OH33: 1.19813e-12 | OI33: -6.545436e-13 | OJ33: 3984.1 | OK33: 1.197312e-12 | OL33: -6.547362e-13 | OM33: 3984.1 | ON33: 1.196041e-12 | OO33: -6.549968e-13 | OP33: 3984.1 | OQ33: 1.195587e-12 | OR33: -6.550654e-13 | OS33: 3984.1 | OT33: 1.195594e-12 | OU33: -6.5473e-13 | OV33: 3984.1 | OW33: 1.19513e-12 | OX33: -6.546952e-13 | OY33: 3984.1 | OZ33: 1.195561e-12 | PA33: -6.544198e-13 | PB33: 3984.1 | PC33: 1.195408e-12 | PD33: -6.543524e-13 | PE33: 3984.1 | PF33: 1.194969e-12 | PG33: -6.543569e-13 | PH33: 3984.1 | PI33: 1.193599e-12 | PJ33: -6.546259e-13 | PK33: 3984.1 | PL33: 1.19325e-12 | PM33: -6.546831e-13 | PN33: 3984.1 | PO33: 1.192685e-12 | PP33: -6.546583e-13 | PQ33: 3984.1 | PR33: 1.192209e-12 | PS33: -6.546867e-13 | PT33: 3984.1 | PU33: 1.191371e-12 | PV33: -6.548352e-13 | PW33: 3984.1 | PX33: 1.191879e-12 | PY33: -6.545126e-13 | PZ33: 3984.1 | QA33: 1.199161e-12 | QB33: -6.513247e-13 | QC33: 3984.1 | QD33: 1.204783e-12 | QE33: -6.48989e-13 | QF33: 3984.1 | QG33: 1.211178e-12 | QH33: -6.46377e-13 | QI33: 3984.1 | QJ33: 1.21967e-12 | QK33: -6.430287e-13
